Workbook

Sheet Paramètres
A2: Réglages paramètres | L2: Difficulté
L3: 1
L4: 1 | N4: 2 | P4: 3
L5: 0.75 | N5: 0.71 | P5: 0.66
A6: forcer nb mots/jr | B6: forcer 1er mot | C6: Classe | D6: mots/jr | E6: mots /page | F6: échelon max | G6: n° premier mot | H6: dernier mot | I6: nb pages | J6: nb mots année | L6: échelon max | M6: mot max | N6: échelon max | O6: mot max | P6: échelon max | Q6: mot max
C7: CP | D7: =fréquence!AH2 -> 1 | E7: =fréquence!AI2 -> 10 | F7: =OFFSET(J7,,$L$3*2) -> 7 | G7: =fréquence!AJ2 -> 1 | H7: =fréquence!AK2 -> 110 | I7: =fréquence!AP2 -> 14 | J7: =H7-G7+1 -> 110 | K7: =C7 -> CP | L7: 7 | M7: 110 | N7: 8 | O7: 222 | P7: 9 | Q7: 253
C8: CE1 | D8: =fréquence!AH3 -> 1 | E8: =fréquence!AI3 -> 20 | F8: =OFFSET(J8,,$L$3*2) -> 11 | G8: =fréquence!AJ3 -> 111 | H8: =fréquence!AK3 -> 253 | I8: =fréquence!AP3 -> 15 | J8: =H8-G8+1 -> 143 | K8: =C8 -> CE1 | L8: 11 | M8: 253 | N8: 12 | O8: 459 | P8: 13 | Q8: 597
C9: CE2 | D9: =fréquence!AH4 -> 3 | E9: =fréquence!AI4 -> 40 | F9: 15 | G9: =fréquence!AJ4 -> 254 | H9: =fréquence!AK4 -> 729 | I9: =fréquence!AP4 -> 21 | J9: 476 | K9: CE2 | L9: 15 | M9: 729 | N9: 16 | O9: 1056 | P9: 17 | Q9: 1273
C10: CM1 | D10: =fréquence!AH5 -> 5 | E10: =fréquence!AI5 -> 50 | F10: 19 | G10: =fréquence!AJ5 -> 730 | H10: =fréquence!AK5 -> 1459 | I10: =fréquence!AP5 -> 32 | J10: 730 | K10: CM1 | L10: 19 | M10: 1459 | N10: 20 | O10: 1893 | P10: 21 | Q10: 2116
C11: CM2 | D11: =fréquence!AH6 -> 6 | E11: =fréquence!AI6 -> 50 | F11: 23 | G11: =fréquence!AJ6 -> 1460 | H11: =fréquence!AK6 -> 2433 | I11: =fréquence!AP6 -> 48 | J11: 974 | K11: CM2 | L11: 23 | M11: 2433 | N11: 24 | O11: 2630 | P11: 25 | Q11: 2805
C12: 6ème | D12: =fréquence!AH7 -> 4 | E12: =fréquence!AI7 -> 50 | F12: 27 | G12: =fréquence!AJ7 -> 2434 | H12: =fréquence!AK7 -> 3025 | I12: =fréquence!AP7 -> 60 | J12: 592 | K12: 6ème | L12: 27 | M12: 3025 | N12: 28 | O12: 3113 | P12: 29 | Q12: 3176
C13: 5ème | D13: =fréquence!AH8 -> 2 | E13: =fréquence!AI8 -> 50 | F13: 31 | G13: =fréquence!AJ8 -> 3026 | H13: =fréquence!AK8 -> 3248 | I13: =fréquence!AP8 -> 64 | J13: 223 | K13: 5ème | L13: 31 | M13: 3248 | N13: 32 | O13: 3272 | P13: 33 | Q13: 3304
C14: 4ème | D14: =fréquence!AH9 -> 1 | E14: =fréquence!AI9 -> 50 | F14: 35 | G14: =fréquence!AJ9 -> 3249 | H14: =fréquence!AK9 -> 3325 | I14: =fréquence!AP9 -> 66 | J14: 77 | K14: 4ème | L14: 35 | M14: 3325 | N14: 36 | O14: 3348 | P14: 37 | Q14: 3341
C15: 3ème | D15: =fréquence!AH10 -> 1 | E15: =fréquence!AI10 -> 50 | F15: 39 | G15: =fréquence!AJ10 -> 3326 | H15: =fréquence!AK10 -> 3351 | I15: =fréquence!AP10 -> 67 | J15: 26 | K15: 3ème | L15: 39 | M15: 3351 | N15: 40 | O15: 3351 | P15: 41 | Q15: 3352
C16: 2nde | D16: =fréquence!AH11 -> 1 | E16: =fréquence!AI11 -> 50 | F16: 42 | G16: =fréquence!AJ11 -> 3352 | H16: =fréquence!AK11 -> 3356 | I16: =fréquence!AP11 -> 67 | J16: 5 | K16: 2nde | L16: 42 | M16: 3356 | N16: 42 | O16: 3356 | P16: 42 | Q16: 3356
L17: Lecture : À la fin de l'année du CE2, 75% des enfants, sont capables d'écrire correctement les mots jusqu'à l'échelon 15 (729 mots). Ils seraient 66% à savoir écrire correctement les mots jusqu'à l'échelon 16 (1056 mots)... et 61% à écrire correctement les mots jusqu'à l'échelon 17 (1273 mots).

Sheet Calendrier
B1: sem. scol. | C1: sem. civile | E1: Année | K1: 2015 | M1: ="/" -> / | R1: =K1+1 -> 2016 | U1: =WEEKDAY(K2,2) -> 4 | AR1: nb jours sem. | AS1: cp | AT1: ce1 | AU1: ce2 | AV1: cm1 | AW1: cm2
K2: =DATE(K1,1,1) -> 2015-01-01
D3: Lundi | E3: Travaillé | G3: Maths | H3: Maths | I3: Grammaire | J3: Grammaire | K3: Mardi | L3: Travaillé | N3: Maths | O3: Maths | P3: Grammaire | Q3: Grammaire | R3: Mercredi | U3: Jeudi | V3: Travaillé | X3: Maths | Y3: Maths | Z3: Grammaire | AA3: Grammaire | AB3: Vendredi | AC3: Travaillé | AE3: Maths | AF3: Maths | AG3: Grammaire | AH3: Grammaire | AI3: Samedi | AL3: Dimanche
C4: 1 | D4: =IF($U$1=1,$K$2,"") ->  | E4: 0 | K4: =IF(D4="",IF($U$1=2,$K$2,""),D4+1) ->  | L4: 0 | R4: =IF(K4="",IF($U$1=3,$K$2,""),K4+1) ->  | S4: 0 | U4: =IF(R4="",IF($U$1=4,$K$2,""),R4+1) -> 2015-01-01 | V4: 0 | AB4: =IF(U4="",IF($U$1=5,$K$2,""),U4+1) -> 2015-01-02 | AC4: 0 | AI4: =IF(AB4="",IF($U$1=6,$K$2,""),AB4+1) -> 2015-01-03 | AJ4: 0 | AL4: =IF(AI4="",IF($U$1=7,$K$2,""),AI4+1) -> 2015-01-04 | AM4: 0
C5: =C4+1 -> 2 | D5: =AL4+1 -> 2015-01-05 | E5: 0 | K5: =D5+1 -> 2015-01-06 | L5: 0 | R5: =K5+1 -> 2015-01-07 | S5: 0 | U5: =R5+1 -> 2015-01-08 | V5: 0 | AB5: =U5+1 -> 2015-01-09 | AC5: 0 | AI5: =AB5+1 -> 2015-01-10 | AJ5: 0 | AL5: =AI5+1 -> 2015-01-11 | AM5: 0
C6: =C5+1 -> 3 | D6: =AL5+1 -> 2015-01-12 | E6: 0 | K6: =D6+1 -> 2015-01-13 | L6: 0 | R6: =K6+1 -> 2015-01-14 | S6: 0 | U6: =R6+1 -> 2015-01-15 | V6: 0 | AB6: =U6+1 -> 2015-01-16 | AC6: 0 | AI6: =AB6+1 -> 2015-01-17 | AJ6: 0 | AL6: =AI6+1 -> 2015-01-18 | AM6: 0
C7: 4 | D7: 2015-01-19 | E7: 0 | K7: 2015-01-20 | L7: 0 | R7: 2015-01-21 | S7: 0 | U7: 2015-01-22 | V7: 0 | AB7: 2015-01-23 | AC7: 0 | AI7: 2015-01-24 | AL7: 2015-01-25
C8: 5 | D8: 2015-01-26 | E8: 0 | K8: 2015-01-27 | L8: 0 | R8: 2015-01-28 | S8: 0 | U8: 2015-01-29 | V8: 0 | AB8: 2015-01-30 | AC8: 0 | AI8: 2015-01-31 | AL8: 2015-02-01
C9: 6 | D9: 2015-02-02 | E9: 0 | K9: 2015-02-03 | L9: 0 | R9: 2015-02-04 | S9: 0 | U9: 2015-02-05 | V9: 0 | AB9: 2015-02-06 | AC9: 0 | AI9: 2015-02-07 | AL9: 2015-02-08
C10: 7 | D10: 2015-02-09 | E10: 0 | K10: 2015-02-10 | L10: 0 | R10: 2015-02-11 | S10: 0 | U10: 2015-02-12 | V10: 0 | AB10: 2015-02-13 | AC10: 0 | AI10: 2015-02-14 | AL10: 2015-02-15
C11: 8 | D11: 2015-02-16 | E11: 0 | K11: 2015-02-17 | L11: 0 | R11: 2015-02-18 | S11: 0 | U11: 2015-02-19 | V11: 0 | AB11: 2015-02-20 | AC11: 0 | AI11: 2015-02-21 | AL11: 2015-02-22
C12: 9 | D12: 2015-02-23 | E12: 0 | K12: 2015-02-24 | L12: 0 | R12: 2015-02-25 | S12: 0 | U12: 2015-02-26 | V12: 0 | AB12: 2015-02-27 | AC12: 0 | AI12: 2015-02-28 | AL12: 2015-03-01
C13: 10 | D13: 2015-03-02 | E13: 0 | K13: 2015-03-03 | L13: 0 | R13: 2015-03-04 | S13: 0 | U13: 2015-03-05 | V13: 0 | AB13: 2015-03-06 | AC13: 0 | AI13: 2015-03-07 | AL13: 2015-03-08
C14: 11 | D14: 2015-03-09 | E14: 0 | K14: 2015-03-10 | L14: 0 | R14: 2015-03-11 | S14: 0 | U14: 2015-03-12 | V14: 0 | AB14: 2015-03-13 | AC14: 0 | AI14: 2015-03-14 | AL14: 2015-03-15
C15: 12 | D15: 2015-03-16 | E15: 0 | K15: 2015-03-17 | L15: 0 | R15: 2015-03-18 | S15: 0 | U15: 2015-03-19 | V15: 0 | AB15: 2015-03-20 | AC15: 0 | AI15: 2015-03-21 | AL15: 2015-03-22
C16: 13 | D16: 2015-03-23 | E16: 0 | K16: 2015-03-24 | L16: 0 | R16: 2015-03-25 | S16: 0 | U16: 2015-03-26 | V16: 0 | AB16: 2015-03-27 | AC16: 0 | AI16: 2015-03-28 | AL16: 2015-03-29
C17: 14 | D17: 2015-03-30 | E17: 0 | K17: 2015-03-31 | L17: 0 | R17: 2015-04-01 | S17: 0 | U17: 2015-04-02 | V17: 0 | AB17: 2015-04-03 | AC17: 0 | AI17: 2015-04-04 | AL17: 2015-04-05
C18: 15 | D18: 2015-04-06 | E18: 0 | K18: 2015-04-07 | L18: 0 | R18: 2015-04-08 | S18: 0 | U18: 2015-04-09 | V18: 0 | AB18: 2015-04-10 | AC18: 0 | AI18: 2015-04-11 | AL18: 2015-04-12
C19: 16 | D19: 2015-04-13 | E19: 0 | K19: 2015-04-14 | L19: 0 | R19: 2015-04-15 | S19: 0 | U19: 2015-04-16 | V19: 0 | AB19: 2015-04-17 | AC19: 0 | AI19: 2015-04-18 | AL19: 2015-04-19
C20: 17 | D20: 2015-04-20 | E20: 0 | K20: 2015-04-21 | L20: 0 | R20: 2015-04-22 | S20: 0 | U20: 2015-04-23 | V20: 0 | AB20: 2015-04-24 | AC20: 0 | AI20: 2015-04-25 | AL20: 2015-04-26
C21: 18 | D21: 2015-04-27 | E21: 0 | K21: 2015-04-28 | L21: 0 | R21: 2015-04-29 | S21: 0 | U21: 2015-04-30 | V21: 0 | AB21: 2015-05-01 | AC21: 0 | AI21: 2015-05-02 | AL21: 2015-05-03
C22: 19 | D22: 2015-05-04 | E22: 0 | K22: 2015-05-05 | L22: 0 | R22: 2015-05-06 | S22: 0 | U22: 2015-05-07 | V22: 0 | AB22: 2015-05-08 | AC22: 0 | AI22: 2015-05-09 | AL22: 2015-05-10
C23: 20 | D23: 2015-05-11 | E23: 0 | K23: 2015-05-12 | L23: 0 | R23: 2015-05-13 | S23: 0 | U23: 2015-05-14 | V23: 0 | AB23: 2015-05-15 | AC23: 0 | AI23: 2015-05-16 | AL23: 2015-05-17
C24: 21 | D24: 2015-05-18 | E24: 0 | K24: 2015-05-19 | L24: 0 | R24: 2015-05-20 | S24: 0 | U24: 2015-05-21 | V24: 0 | AB24: 2015-05-22 | AC24: 0 | AI24: 2015-05-23 | AL24: 2015-05-24
C25: 22 | D25: 2015-05-25 | E25: 0 | K25: 2015-05-26 | L25: 0 | R25: 2015-05-27 | S25: 0 | U25: 2015-05-28 | V25: 0 | AB25: 2015-05-29 | AC25: 0 | AI25: 2015-05-30 | AL25: 2015-05-31
C26: 23 | D26: 2015-06-01 | E26: 0 | K26: 2015-06-02 | L26: 0 | R26: 2015-06-03 | S26: 0 | U26: 2015-06-04 | V26: 0 | AB26: 2015-06-05 | AC26: 0 | AI26: 2015-06-06 | AL26: 2015-06-07
C27: 24 | D27: 2015-06-08 | E27: 0 | K27: 2015-06-09 | L27: 0 | R27: 2015-06-10 | S27: 0 | U27: 2015-06-11 | V27: 0 | AB27: 2015-06-12 | AC27: 0 | AI27: 2015-06-13 | AL27: 2015-06-14
C28: 25 | D28: 2015-06-15 | E28: 0 | K28: 2015-06-16 | L28: 0 | R28: 2015-06-17 | S28: 0 | U28: 2015-06-18 | V28: 0 | AB28: 2015-06-19 | AC28: 0 | AI28: 2015-06-20 | AL28: 2015-06-21
C29: 26 | D29: 2015-06-22 | E29: 0 | K29: 2015-06-23 | L29: 0 | R29: 2015-06-24 | S29: 0 | U29: 2015-06-25 | V29: 0 | AB29: 2015-06-26 | AC29: 0 | AI29: 2015-06-27 | AL29: 2015-06-28
C30: 27 | D30: 2015-06-29 | E30: 0 | K30: 2015-06-30 | L30: 0 | R30: 2015-07-01 | S30: 0 | U30: 2015-07-02 | V30: 0 | AB30: 2015-07-03 | AC30: 0 | AI30: 2015-07-04 | AL30: 2015-07-05
C31: 28 | D31: 2015-07-06 | E31: 0 | K31: 2015-07-07 | L31: 0 | R31: 2015-07-08 | S31: 0 | U31: 2015-07-09 | V31: 0 | AB31: 2015-07-10 | AC31: 0 | AI31: 2015-07-11 | AL31: 2015-07-12
C32: =C31+1 -> 29 | D32: 2015-07-13 | E32: 0 | K32: 2015-07-14 | L32: 0 | R32: 2015-07-15 | S32: 0 | U32: 2015-07-16 | V32: 0 | AB32: 2015-07-17 | AC32: 0 | AI32: 2015-07-18 | AL32: 2015-07-19
C33: =C32+1 -> 30 | D33: 2015-07-20 | E33: 0 | K33: 2015-07-21 | L33: 0 | R33: 2015-07-22 | S33: 0 | U33: 2015-07-23 | V33: 0 | AB33: 2015-07-24 | AC33: 0 | AI33: 2015-07-25 | AL33: 2015-07-26
C34: 31 | D34: 2015-07-27 | E34: 0 | K34: 2015-07-28 | L34: 0 | R34: 2015-07-29 | S34: 0 | U34: 2015-07-30 | V34: 0 | AB34: 2015-07-31 | AC34: 0 | AI34: 2015-08-01 | AL34: 2015-08-02
C35: 32 | D35: 2015-08-03 | E35: 0 | K35: 2015-08-04 | L35: 0 | R35: 2015-08-05 | S35: 0 | U35: 2015-08-06 | V35: 0 | AB35: 2015-08-07 | AC35: 0 | AI35: 2015-08-08 | AL35: 2015-08-09
C36: 33 | D36: 2015-08-10 | E36: 0 | K36: 2015-08-11 | L36: 0 | R36: 2015-08-12 | S36: 0 | U36: 2015-08-13 | V36: 0 | AB36: 2015-08-14 | AC36: 0 | AI36: 2015-08-15 | AL36: 2015-08-16
C37: 34 | D37: 2015-08-17 | E37: 0 | K37: 2015-08-18 | L37: 0 | R37: 2015-08-19 | S37: 0 | U37: 2015-08-20 | V37: 0 | AB37: 2015-08-21 | AC37: 0 | AI37: 2015-08-22 | AL37: 2015-08-23
A38: =K1 -> 2015 | B38: =IF($AP38<>0,$AP38,"") ->  | C38: 35 | D38: 2015-08-24 | E38: 0 | F38: =E38 -> 0 | G38: =IF(AND(E38<>0,H38=""),AE37+1,AE37) -> 0 | I38: =IF(AND(E38<>0,J38=""),AG37+1,AG37) -> 0 | K38: 2015-08-25 | L38: 0 | M38: =IF(L38=1,L38+F38,F38) -> 0 | N38: =IF(AND(L38<>0,O38=""),G38+1,G38) -> 0 | P38: =IF(AND(L38<>0,Q38=""),I38+1,I38) -> 0 | R38: 2015-08-26 | S38: 0 | T38: =IF(S38=1,S38+M38,M38) -> 0 | U38: 2015-08-27 | V38: 0 | W38: =IF(V38=1,V38+T38,T38) -> 0 | X38: =IF(AND(V38<>0,Y38=""),N38+1,N38) -> 0 | Z38: =IF(AND(V38<>0,AA38=""),P38+1,P38) -> 0 | AB38: 2015-08-28 | AC38: 0 | AD38: =IF(AC38=1,AC38+W38,W38) -> 0 | AE38: =IF(AND(AC38<>0,AF38=""),X38+1,X38) -> 0 | AG38: =IF(AND(AC38<>0,AH38=""),Z38+1,Z38) -> 0 | AI38: 2015-08-29 | AJ38: 0 | AK38: =IF(AJ38=1,AJ38+AD38,AD38) -> 0 | AL38: 2015-08-30 | AM38: 0 | AN38: =IF(AM38=1,AM38+AK38,AK38) -> 0 | AO38: =E38+L38+S38+V38+AC38+AJ38+AM38 -> 0 | AP38: =IF(AO38<>0,1,0) -> 0 | AQ38: =IF($AP38<>0,$AP38,"") ->  | AR38: =AD38-AD37 -> 0 | AS38: =Paramètres!G7-1 -> 0 | AT38: =Paramètres!G8-1 -> 110 | AU38: =Paramètres!G9-1 -> 253 | AV38: =Paramètres!G10-1 -> 729 | AW38: =Paramètres!G11-1 -> 1459
B39: =IF($AP39<>$AP38,$AP39,"") -> 1 | C39: 36 | D39: 2015-08-31 | E39: 0 | F39: =IF(E39=1,E39+AN38,AN38) -> 0 | G39: =IF(AND(E39<>0,H39=""),AE38+1,AE38) -> 0 | I39: =IF(AND(E39<>0,J39=""),AG38+1,AG38) -> 0 | K39: 2015-09-01 | L39: 2 | M39: =IF(L39=1,L39+F39,F39) -> 0 | N39: =IF(AND(L39<>0,O39=""),G39+1,G39) -> 1 | P39: =IF(AND(L39<>0,Q39=""),I39+1,I39) -> 1 | R39: 2015-09-02 | S39: 1 | T39: =IF(S39=1,S39+M39,M39) -> 1 | U39: 2015-09-03 | V39: 1 | W39: 2 | X39: =IF(AND(V39<>0,Y39=""),N39+1,N39) -> 1 | Z39: =IF(AND(V39<>0,AA39=""),P39+1,P39) -> 1 | AA39: & | AB39: 2015-09-04 | AC39: 1 | AD39: =IF(AC39=1,AC39+W39,W39) -> 3 | AE39: =IF(AND(AC39<>0,AF39=""),X39+1,X39) -> 2 | AG39: =IF(AND(AC39<>0,AH39=""),Z39+1,Z39) -> 2 | AI39: 2015-09-05 | AJ39: 0 | AK39: =IF(AJ39=1,AJ39+AD39,AD39) -> 3 | AL39: 2015-09-06 | AM39: 0 | AN39: 3 | AO39: 5 | AP39: =IF(AO39<>0,AP38+1,AP38) -> 1 | AQ39: =IF($AP39<>$AP38,$AP39,"") -> 1 | AR39: =AD39-AD38 -> 3 | AS39: =AS38+($AR39*Paramètres!$D$8) -> 3 | AT39: =AT38+($AR39*Paramètres!$D$9) -> 119 | AU39: =AU38+($AR39*Paramètres!$D$10) -> 268 | AV39: =AV$38+($AR39*Paramètres!$D$11) -> 747 | AW39: =AW38+($AR39*Paramètres!$D$12) -> 1471
B40: =IF($AP40<>$AP39,$AP40,"") -> 2 | C40: 37 | D40: 2015-09-07 | E40: 1 | F40: 4 | G40: 3 | I40: 2 | J40: 2 | K40: 2015-09-08 | L40: 1 | M40: 5 | N40: 4 | P40: 2 | Q40: 2 | R40: 2015-09-09 | S40: 1 | T40: 6 | U40: 2015-09-10 | V40: 1 | W40: 7 | X40: 5 | Z40: 2 | AA40: 2 | AB40: 2015-09-11 | AC40: 1 | AD40: 8 | AE40: 6 | AG40: 2 | AH40: 2 | AI40: 2015-09-12 | AJ40: 0 | AK40: 8 | AL40: 2015-09-13 | AM40: 0 | AN40: 8 | AO40: 5 | AP40: =IF(AO40<>0,AP39+1,AP39) -> 2 | AQ40: =IF($AP40<>$AP39,$AP40,"") -> 2 | AR40: =AD40-AD39 -> 5 | AS40: =AS39+($AR40*Paramètres!$D$8) -> 8 | AT40: =AT39+($AR40*Paramètres!$D$9) -> 134 | AU40: =AU39+($AR40*Paramètres!$D$10) -> 293 | AV40: =AV39+($AR40*Paramètres!$D$11) -> 777 | AW40: =AW39+($AR40*Paramètres!$D$12) -> 1491
B41: 3 | C41: 38 | D41: 2015-09-14 | E41: 1 | F41: =IF(E41=1,E41+AN40,AN40) -> 9 | G41: 7 | I41: 2 | J41: 2 | K41: 2015-09-15 | L41: 1 | M41: 10 | N41: 8 | P41: 2 | Q41: 2 | R41: 2015-09-16 | S41: 1 | T41: 11 | U41: 2015-09-17 | V41: 1 | W41: 12 | X41: 9 | Z41: 2 | AA41: 2 | AB41: 2015-09-18 | AC41: 1 | AD41: 13 | AE41: 10 | AG41: 2 | AH41: 2 | AI41: 2015-09-19 | AJ41: 0 | AK41: 13 | AL41: 2015-09-20 | AM41: 0 | AN41: 13 | AO41: 5 | AP41: 3 | AQ41: 3 | AR41: 5 | AS41: =AS40+($AR41*Paramètres!$D$8) -> 13 | AT41: =AT40+($AR41*Paramètres!$D$9) -> 149 | AU41: =AU40+($AR41*Paramètres!$D$10) -> 318 | AV41: =AV40+($AR41*Paramètres!$D$11) -> 807 | AW41: =AW40+($AR41*Paramètres!$D$12) -> 1511
B42: 4 | C42: 39 | D42: 2015-09-21 | E42: 1 | F42: 14 | G42: 11 | I42: 2 | J42: 2 | K42: 2015-09-22 | L42: 1 | M42: 15 | N42: 12 | P42: 2 | Q42: 2 | R42: 2015-09-23 | S42: 1 | T42: 16 | U42: 2015-09-24 | V42: 1 | W42: 17 | X42: 13 | Z42: 2 | AA42: 2 | AB42: 2015-09-25 | AC42: 1 | AD42: 18 | AE42: 14 | AG42: 2 | AH42: 2 | AI42: 2015-09-26 | AJ42: 0 | AK42: 18 | AL42: 2015-09-27 | AM42: 0 | AN42: 18 | AO42: 5 | AP42: 4 | AQ42: 4 | AR42: 5 | AS42: =AS41+($AR42*Paramètres!$D$8) -> 18 | AT42: =AT41+($AR42*Paramètres!$D$9) -> 164 | AU42: =AU41+($AR42*Paramètres!$D$10) -> 343 | AV42: =AV41+($AR42*Paramètres!$D$11) -> 837 | AW42: =AW41+($AR42*Paramètres!$D$12) -> 1531
B43: 5 | C43: 40 | D43: 2015-09-28 | E43: 1 | F43: 19 | G43: 15 | I43: 2 | J43: 2 | K43: 2015-09-29 | L43: 1 | M43: 20 | N43: 16 | P43: 2 | Q43: 2 | R43: 2015-09-30 | S43: 1 | T43: 21 | U43: 2015-10-01 | V43: 1 | W43: 22 | X43: 17 | Z43: 2 | AA43: 2 | AB43: 2015-10-02 | AC43: 1 | AD43: 23 | AE43: 18 | AG43: 2 | AH43: 2 | AI43: 2015-10-03 | AJ43: 0 | AK43: 23 | AL43: 2015-10-04 | AM43: 0 | AN43: 23 | AO43: 5 | AP43: 5 | AQ43: 5 | AR43: 5 | AS43: =AS42+($AR43*Paramètres!$D$8) -> 23 | AT43: =AT42+($AR43*Paramètres!$D$9) -> 179 | AU43: =AU42+($AR43*Paramètres!$D$10) -> 368 | AV43: =AV42+($AR43*Paramètres!$D$11) -> 867 | AW43: =AW42+($AR43*Paramètres!$D$12) -> 1551
B44: 6 | C44: 41 | D44: 2015-10-05 | E44: 1 | F44: 24 | G44: 19 | I44: 2 | J44: 2 | K44: 2015-10-06 | L44: 1 | M44: 25 | N44: 20 | P44: 2 | Q44: 2 | R44: 2015-10-07 | S44: 1 | T44: 26 | U44: 2015-10-08 | V44: 1 | W44: 27 | X44: 21 | Z44: 2 | AA44: 2 | AB44: 2015-10-09 | AC44: 1 | AD44: 28 | AE44: 22 | AG44: 2 | AH44: 2 | AI44: 2015-10-10 | AJ44: 0 | AK44: 28 | AL44: 2015-10-11 | AM44: 0 | AN44: 28 | AO44: 5 | AP44: 6 | AQ44: 6 | AR44: 5 | AS44: =AS43+($AR44*Paramètres!$D$8) -> 28 | AT44: =AT43+($AR44*Paramètres!$D$9) -> 194 | AU44: =AU43+($AR44*Paramètres!$D$10) -> 393 | AV44: =AV43+($AR44*Paramètres!$D$11) -> 897 | AW44: =AW43+($AR44*Paramètres!$D$12) -> 1571
B45: 7 | C45: 42 | D45: 2015-10-12 | E45: 1 | F45: 29 | G45: 23 | I45: 2 | J45: 2 | K45: 2015-10-13 | L45: 1 | M45: 30 | N45: 24 | P45: 2 | Q45: 25 | R45: 2015-10-14 | S45: 1 | T45: 31 | U45: 2015-10-15 | V45: 1 | W45: 32 | X45: 25 | Z45: 2 | AA45: 2 | AB45: 2015-10-16 | AC45: 1 | AD45: 33 | AE45: 26 | AG45: 2 | AH45: 2 | AI45: 2015-10-17 | AJ45: 0 | AK45: 33 | AL45: 2015-10-18 | AM45: 0 | AN45: 33 | AO45: 5 | AP45: 7 | AQ45: 7 | AR45: 5 | AS45: =AS44+($AR45*Paramètres!$D$8) -> 33 | AT45: =AT44+($AR45*Paramètres!$D$9) -> 209 | AU45: =AU44+($AR45*Paramètres!$D$10) -> 418 | AV45: =AV44+($AR45*Paramètres!$D$11) -> 927 | AW45: =AW44+($AR45*Paramètres!$D$12) -> 1591
C46: 43 | D46: 2015-10-19 | E46: 0 | F46: 33 | G46: 26 | I46: 2 | J46: 2 | K46: 2015-10-20 | L46: 0 | M46: 33 | N46: 26 | P46: 2 | Q46: 2 | R46: 2015-10-21 | S46: 0 | T46: 33 | U46: 2015-10-22 | V46: 0 | W46: 33 | X46: 26 | Z46: 2 | AA46: 22 | AB46: 2015-10-23 | AC46: 0 | AD46: 33 | AE46: 26 | AG46: 2 | AH46: 2 | AI46: 2015-10-24 | AJ46: 0 | AK46: 33 | AL46: 2015-10-25 | AM46: 0 | AN46: 33 | AO46: 0 | AP46: 7 | AR46: 0 | AS46: =AS45+($AR46*Paramètres!$D$8) -> 33 | AT46: =AT45+($AR46*Paramètres!$D$9) -> 209 | AU46: =AU45+($AR46*Paramètres!$D$10) -> 418 | AV46: =AV45+($AR46*Paramètres!$D$11) -> 927 | AW46: =AW45+($AR46*Paramètres!$D$12) -> 1591
C47: 44 | D47: 2015-10-26 | E47: 0 | F47: 33 | G47: 26 | I47: 2 | J47: 2 | K47: 2015-10-27 | L47: 0 | M47: 33 | N47: 26 | P47: 2 | Q47: 2 | R47: 2015-10-28 | S47: 0 | T47: 33 | U47: 2015-10-29 | V47: 0 | W47: 33 | X47: 26 | Z47: 2 | AB47: 2015-10-30 | AC47: 0 | AD47: 33 | AE47: 26 | AG47: 2 | AI47: 2015-10-31 | AJ47: 0 | AK47: 33 | AL47: 2015-11-01 | AM47: 0 | AN47: 33 | AO47: 0 | AP47: 7 | AR47: 0 | AS47: =AS46+($AR47*Paramètres!$D$8) -> 33 | AT47: =AT46+($AR47*Paramètres!$D$9) -> 209 | AU47: =AU46+($AR47*Paramètres!$D$10) -> 418 | AV47: =AV46+($AR47*Paramètres!$D$11) -> 927 | AW47: =AW46+($AR47*Paramètres!$D$12) -> 1591
B48: 8 | C48: 45 | D48: 2015-11-02 | E48: 1 | F48: 34 | G48: 27 | I48: 2 | J48: 2 | K48: 2015-11-03 | L48: 1 | M48: 35 | N48: 28 | P48: 2 | Q48: 2 | R48: 2015-11-04 | S48: 1 | T48: 36 | U48: 2015-11-05 | V48: 1 | W48: 37 | X48: 29 | Z48: 2 | AA48: 2 | AB48: 2015-11-06 | AC48: 1 | AD48: 38 | AE48: 30 | AG48: 2 | AH48: 2 | AI48: 2015-11-07 | AJ48: 0 | AK48: 38 | AL48: 2015-11-08 | AM48: 0 | AN48: 38 | AO48: 5 | AP48: 8 | AQ48: 8 | AR48: 5 | AS48: =AS47+($AR48*Paramètres!$D$8) -> 38 | AT48: =AT47+($AR48*Paramètres!$D$9) -> 224 | AU48: =AU47+($AR48*Paramètres!$D$10) -> 443 | AV48: =AV47+($AR48*Paramètres!$D$11) -> 957 | AW48: =AW47+($AR48*Paramètres!$D$12) -> 1611
B49: 9 | C49: 46 | D49: 2015-11-09 | E49: 1 | F49: 39 | G49: 31 | I49: 2 | J49: 2 | K49: 2015-11-10 | L49: 1 | M49: 40 | N49: 32 | P49: 2 | Q49: 2 | R49: 2015-11-11 | S49: 0 | T49: 40 | U49: 2015-11-12 | V49: 1 | W49: 41 | X49: 33 | Z49: 2 | AA49: 2 | AB49: 2015-11-13 | AC49: 1 | AD49: 42 | AE49: 34 | AG49: 2 | AH49: 22 | AI49: 2015-11-14 | AJ49: 0 | AK49: 42 | AL49: 2015-11-15 | AM49: 0 | AN49: 42 | AO49: 4 | AP49: 9 | AQ49: 9 | AR49: 4 | AS49: =AS48+($AR49*Paramètres!$D$8) -> 42 | AT49: =AT48+($AR49*Paramètres!$D$9) -> 236 | AU49: =AU48+($AR49*Paramètres!$D$10) -> 463 | AV49: =AV48+($AR49*Paramètres!$D$11) -> 981 | AW49: =AW48+($AR49*Paramètres!$D$12) -> 1627
B50: 10 | C50: 47 | D50: 2015-11-16 | E50: 1 | F50: 43 | G50: 35 | I50: 2 | J50: 2 | K50: 2015-11-17 | L50: 1 | M50: 44 | N50: 36 | P50: 2 | Q50: 2 | R50: 2015-11-18 | S50: 1 | T50: 45 | U50: 2015-11-19 | V50: 1 | W50: 46 | X50: 37 | Z50: 2 | AA50: 2 | AB50: 2015-11-20 | AC50: 1 | AD50: 47 | AE50: 38 | AG50: 2 | AH50: 2 | AI50: 2015-11-21 | AJ50: 0 | AK50: 47 | AL50: 2015-11-22 | AM50: 0 | AN50: 47 | AO50: 5 | AP50: 10 | AQ50: 10 | AR50: 5 | AS50: =AS49+($AR50*Paramètres!$D$8) -> 47 | AT50: =AT49+($AR50*Paramètres!$D$9) -> 251 | AU50: =AU49+($AR50*Paramètres!$D$10) -> 488 | AV50: =AV49+($AR50*Paramètres!$D$11) -> 1011 | AW50: =AW49+($AR50*Paramètres!$D$12) -> 1647
B51: 11 | C51: 48 | D51: 2015-11-23 | E51: 1 | F51: 48 | G51: 39 | I51: 2 | J51: 2 | K51: 2015-11-24 | L51: 1 | M51: 49 | N51: 40 | P51: 2 | Q51: 2 | R51: 2015-11-25 | S51: 1 | T51: 50 | U51: 2015-11-26 | V51: 1 | W51: 51 | X51: 41 | Z51: 2 | AA51: 2 | AB51: 2015-11-27 | AC51: 1 | AD51: 52 | AE51: 42 | AG51: 2 | AH51: 2 | AI51: 2015-11-28 | AJ51: 0 | AK51: 52 | AL51: 2015-11-29 | AM51: 0 | AN51: 52 | AO51: 5 | AP51: 11 | AQ51: 11 | AR51: 5 | AS51: =AS50+($AR51*Paramètres!$D$8) -> 52 | AT51: =AT50+($AR51*Paramètres!$D$9) -> 266 | AU51: =AU50+($AR51*Paramètres!$D$10) -> 513 | AV51: =AV50+($AR51*Paramètres!$D$11) -> 1041 | AW51: =AW50+($AR51*Paramètres!$D$12) -> 1667
B52: 12 | C52: 49 | D52: 2015-11-30 | E52: 1 | F52: 53 | G52: 43 | I52: 2 | J52: 2 | K52: 2015-12-01 | L52: 1 | M52: 54 | N52: 44 | P52: 2 | Q52: 2 | R52: 2015-12-02 | S52: 1 | T52: 55 | U52: 2015-12-03 | V52: 1 | W52: 56 | X52: 45 | Z52: 2 | AA52: 2 | AB52: 2015-12-04 | AC52: 1 | AD52: 57 | AE52: 46 | AG52: 2 | AH52: 2 | AI52: 2015-12-05 | AJ52: 0 | AK52: 57 | AL52: 2015-12-06 | AM52: 0 | AN52: 57 | AO52: 5 | AP52: 12 | AQ52: 12 | AR52: 5 | AS52: =AS51+($AR52*Paramètres!$D$8) -> 57 | AT52: =AT51+($AR52*Paramètres!$D$9) -> 281 | AU52: =AU51+($AR52*Paramètres!$D$10) -> 538 | AV52: =AV51+($AR52*Paramètres!$D$11) -> 1071 | AW52: =AW51+($AR52*Paramètres!$D$12) -> 1687
B53: 13 | C53: 50 | D53: 2015-12-07 | E53: 1 | F53: 58 | G53: 47 | I53: 2 | J53: 2 | K53: 2015-12-08 | L53: 1 | M53: 59 | N53: 48 | P53: 2 | Q53: 2 | R53: 2015-12-09 | S53: 1 | T53: 60 | U53: 2015-12-10 | V53: 1 | W53: 61 | X53: 49 | Z53: 2 | AA53: 2 | AB53: 2015-12-11 | AC53: 1 | AD53: 62 | AE53: 50 | AG53: 2 | AH53: 2 | AI53: 2015-12-12 | AJ53: 0 | AK53: 62 | AL53: 2015-12-13 | AM53: 0 | AN53: 62 | AO53: 5 | AP53: 13 | AQ53: 13 | AR53: 5 | AS53: =AS52+($AR53*Paramètres!$D$8) -> 62 | AT53: =AT52+($AR53*Paramètres!$D$9) -> 296 | AU53: =AU52+($AR53*Paramètres!$D$10) -> 563 | AV53: =AV52+($AR53*Paramètres!$D$11) -> 1101 | AW53: =AW52+($AR53*Paramètres!$D$12) -> 1707
B54: =IF($AP54<>$AP53,$AP54,"") -> 14 | C54: =C53+1 -> 51 | D54: 2015-12-14 | E54: 1 | F54: 63 | G54: 51 | I54: 2 | J54: 2 | K54: 2015-12-15 | L54: 1 | M54: 64 | N54: 52 | P54: 2 | Q54: 2 | R54: 2015-12-16 | S54: 1 | T54: 65 | U54: 2015-12-17 | V54: 1 | W54: 66 | X54: 53 | Z54: 2 | AA54: 2 | AB54: 2015-12-18 | AC54: 1 | AD54: 67 | AE54: 54 | AG54: 2 | AH54: 2 | AI54: 2015-12-19 | AJ54: 0 | AK54: 67 | AL54: 2015-12-20 | AM54: 0 | AN54: 67 | AO54: 5 | AP54: 14 | AQ54: 14 | AR54: 5 | AS54: =AS53+($AR54*Paramètres!$D$8) -> 67 | AT54: =AT53+($AR54*Paramètres!$D$9) -> 311 | AU54: =AU53+($AR54*Paramètres!$D$10) -> 588 | AV54: =AV53+($AR54*Paramètres!$D$11) -> 1131 | AW54: =AW53+($AR54*Paramètres!$D$12) -> 1727
C55: =C54+1 -> 52 | D55: 2015-12-21 | E55: 0 | F55: 67 | G55: 54 | I55: 2 | K55: 2015-12-22 | L55: 0 | M55: 67 | N55: 54 | P55: 2 | R55: 2015-12-23 | S55: 0 | T55: 67 | U55: 2015-12-24 | V55: 0 | W55: 67 | X55: 54 | Z55: 2 | AB55: 2015-12-25 | AC55: 0 | AD55: 67 | AE55: 54 | AG55: 2 | AI55: 2015-12-26 | AJ55: 0 | AK55: 67 | AL55: 2015-12-27 | AM55: 0 | AN55: 67 | AO55: 0 | AP55: 14 | AR55: 0 | AS55: =AS54+($AR55*Paramètres!$D$8) -> 67 | AT55: =AT54+($AR55*Paramètres!$D$9) -> 311 | AU55: =AU54+($AR55*Paramètres!$D$10) -> 588 | AV55: =AV54+($AR55*Paramètres!$D$11) -> 1131 | AW55: =AW54+($AR55*Paramètres!$D$12) -> 1727
A56: =A38+1 -> 2016 | C56: 1 | D56: 2015-12-28 | E56: 0 | F56: 67 | G56: 54 | I56: 2 | K56: 2015-12-29 | L56: 0 | M56: 67 | N56: 54 | P56: 2 | R56: 2015-12-30 | S56: 0 | T56: 67 | U56: 2015-12-31 | V56: 0 | W56: 67 | X56: 54 | Z56: 2 | AB56: 2016-01-01 | AC56: 0 | AD56: 67 | AE56: 54 | AG56: 2 | AI56: 2016-01-02 | AJ56: 0 | AK56: 67 | AL56: 2016-01-03 | AM56: 0 | AN56: 67 | AO56: 0 | AP56: 14 | AR56: 0 | AS56: =AS55+($AR56*Paramètres!$D$8) -> 67 | AT56: =AT55+($AR56*Paramètres!$D$9) -> 311 | AU56: =AU55+($AR56*Paramètres!$D$10) -> 588 | AV56: =AV55+($AR56*Paramètres!$D$11) -> 1131 | AW56: =AW55+($AR56*Paramètres!$D$12) -> 1727
B57: 15 | C57: 2 | D57: 2016-01-04 | E57: 1 | F57: 68 | G57: 55 | I57: 3 | K57: 2016-01-05 | L57: 1 | M57: 69 | N57: 56 | P57: 3 | Q57: 2 | R57: 2016-01-06 | S57: 1 | T57: 70 | U57: 2016-01-07 | V57: 1 | W57: 71 | X57: 57 | Z57: 3 | AA57: 2 | AB57: 2016-01-08 | AC57: 1 | AD57: 72 | AE57: 58 | AG57: 3 | AH57: 2 | AI57: 2016-01-09 | AJ57: 0 | AK57: 72 | AL57: 2016-01-10 | AM57: 0 | AN57: 72 | AO57: 5 | AP57: 15 | AQ57: 15 | AR57: 5 | AS57: =AS56+($AR57*Paramètres!$D$8) -> 72 | AT57: =AT56+($AR57*Paramètres!$D$9) -> 326 | AU57: =AU56+($AR57*Paramètres!$D$10) -> 613 | AV57: =AV56+($AR57*Paramètres!$D$11) -> 1161 | AW57: =AW56+($AR57*Paramètres!$D$12) -> 1747
B58: 16 | C58: 3 | D58: 2016-01-11 | E58: 1 | F58: 73 | G58: 59 | I58: 4 | K58: 2016-01-12 | L58: 1 | M58: 74 | N58: 60 | P58: 5 | R58: 2016-01-13 | S58: 1 | T58: 75 | U58: 2016-01-14 | V58: 1 | W58: 76 | X58: 61 | Z58: 6 | AB58: 2016-01-15 | AC58: 1 | AD58: 77 | AE58: 62 | AG58: 7 | AI58: 2016-01-16 | AJ58: 0 | AK58: 77 | AL58: 2016-01-17 | AM58: 0 | AN58: 77 | AO58: 5 | AP58: 16 | AQ58: 16 | AR58: 5 | AS58: =AS57+($AR58*Paramètres!$D$8) -> 77 | AT58: =AT57+($AR58*Paramètres!$D$9) -> 341 | AU58: =AU57+($AR58*Paramètres!$D$10) -> 638 | AV58: =AV57+($AR58*Paramètres!$D$11) -> 1191 | AW58: =AW57+($AR58*Paramètres!$D$12) -> 1767
B59: 17 | C59: 4 | D59: 2016-01-18 | E59: 1 | F59: 78 | G59: 63 | I59: 8 | K59: 2016-01-19 | L59: 1 | M59: 79 | N59: 64 | P59: 9 | R59: 2016-01-20 | S59: 1 | T59: 80 | U59: 2016-01-21 | V59: 1 | W59: 81 | X59: 65 | Z59: 10 | AB59: 2016-01-22 | AC59: 1 | AD59: 82 | AE59: 66 | AG59: 11 | AI59: 2016-01-23 | AJ59: 0 | AK59: 82 | AL59: 2016-01-24 | AM59: 0 | AN59: 82 | AO59: 5 | AP59: 17 | AQ59: 17 | AR59: 5 | AS59: =AS58+($AR59*Paramètres!$D$8) -> 82 | AT59: =AT58+($AR59*Paramètres!$D$9) -> 356 | AU59: =AU58+($AR59*Paramètres!$D$10) -> 663 | AV59: =AV58+($AR59*Paramètres!$D$11) -> 1221 | AW59: =AW58+($AR59*Paramètres!$D$12) -> 1787
B60: 18 | C60: 5 | D60: 2016-01-25 | E60: 1 | F60: 83 | G60: 67 | I60: 12 | K60: 2016-01-26 | L60: 1 | M60: 84 | N60: 68 | P60: 13 | R60: 2016-01-27 | S60: 1 | T60: 85 | U60: 2016-01-28 | V60: 1 | W60: 86 | X60: 69 | Z60: 14 | AB60: 2016-01-29 | AC60: 1 | AD60: 87 | AE60: 70 | AG60: 15 | AI60: 2016-01-30 | AJ60: 0 | AK60: 87 | AL60: 2016-01-31 | AM60: 0 | AN60: 87 | AO60: 5 | AP60: 18 | AQ60: 18 | AR60: 5 | AS60: =AS59+($AR60*Paramètres!$D$8) -> 87 | AT60: =AT59+($AR60*Paramètres!$D$9) -> 371 | AU60: =AU59+($AR60*Paramètres!$D$10) -> 688 | AV60: =AV59+($AR60*Paramètres!$D$11) -> 1251 | AW60: =AW59+($AR60*Paramètres!$D$12) -> 1807
B61: 19 | C61: 6 | D61: 2016-02-01 | E61: 1 | F61: 88 | G61: 71 | I61: 16 | K61: 2016-02-02 | L61: 1 | M61: 89 | N61: 72 | P61: 17 | R61: 2016-02-03 | S61: 1 | T61: 90 | U61: 2016-02-04 | V61: 1 | W61: 91 | X61: 73 | Z61: 18 | AB61: 2016-02-05 | AC61: 1 | AD61: 92 | AE61: 74 | AG61: 19 | AI61: 2016-02-06 | AJ61: 0 | AK61: 92 | AL61: 2016-02-07 | AM61: 0 | AN61: 92 | AO61: 5 | AP61: 19 | AQ61: 19 | AR61: 5 | AS61: =AS60+($AR61*Paramètres!$D$8) -> 92 | AT61: =AT60+($AR61*Paramètres!$D$9) -> 386 | AU61: =AU60+($AR61*Paramètres!$D$10) -> 713 | AV61: =AV60+($AR61*Paramètres!$D$11) -> 1281 | AW61: =AW60+($AR61*Paramètres!$D$12) -> 1827
B62: 20 | C62: 7 | D62: 2016-02-08 | E62: 1 | F62: 93 | G62: 75 | I62: 20 | K62: 2016-02-09 | L62: 1 | M62: 94 | N62: 76 | P62: 21 | R62: 2016-02-10 | S62: 1 | T62: 95 | U62: 2016-02-11 | V62: 1 | W62: 96 | X62: 77 | Z62: 22 | AB62: 2016-02-12 | AC62: 1 | AD62: 97 | AE62: 78 | AG62: 23 | AI62: 2016-02-13 | AJ62: 0 | AK62: 97 | AL62: 2016-02-14 | AM62: 0 | AN62: 97 | AO62: 5 | AP62: 20 | AQ62: 20 | AR62: 5 | AS62: =AS61+($AR62*Paramètres!$D$8) -> 97 | AT62: =AT61+($AR62*Paramètres!$D$9) -> 401 | AU62: =AU61+($AR62*Paramètres!$D$10) -> 738 | AV62: =AV61+($AR62*Paramètres!$D$11) -> 1311 | AW62: =AW61+($AR62*Paramètres!$D$12) -> 1847
B63: 21 | C63: 8 | D63: 2016-02-15 | E63: 1 | F63: 98 | G63: 79 | I63: 24 | K63: 2016-02-16 | L63: 1 | M63: 99 | N63: 80 | P63: 25 | R63: 2016-02-17 | S63: 1 | T63: 100 | U63: 2016-02-18 | V63: 1 | W63: 101 | X63: 81 | Z63: 26 | AB63: 2016-02-19 | AC63: 1 | AD63: 102 | AE63: 82 | AG63: 27 | AI63: 2016-02-20 | AJ63: 0 | AK63: 102 | AL63: 2016-02-21 | AM63: 0 | AN63: 102 | AO63: 5 | AP63: 21 | AQ63: 21 | AR63: 5 | AS63: =AS62+($AR63*Paramètres!$D$8) -> 102 | AT63: =AT62+($AR63*Paramètres!$D$9) -> 416 | AU63: =AU62+($AR63*Paramètres!$D$10) -> 763 | AV63: =AV62+($AR63*Paramètres!$D$11) -> 1341 | AW63: =AW62+($AR63*Paramètres!$D$12) -> 1867
C64: 9 | D64: 2016-02-22 | E64: 0 | F64: 102 | G64: 82 | I64: 27 | K64: 2016-02-23 | L64: 0 | M64: 102 | N64: 82 | P64: 27 | R64: 2016-02-24 | S64: 0 | T64: 102 | U64: 2016-02-25 | V64: 0 | W64: 102 | X64: 82 | Z64: 27 | AB64: 2016-02-26 | AC64: 0 | AD64: 102 | AE64: 82 | AG64: 27 | AI64: 2016-02-27 | AJ64: 0 | AK64: 102 | AL64: 2016-02-28 | AM64: 0 | AN64: 102 | AO64: 0 | AP64: 21 | AR64: 0 | AS64: =AS63+($AR64*Paramètres!$D$8) -> 102 | AT64: =AT63+($AR64*Paramètres!$D$9) -> 416 | AU64: =AU63+($AR64*Paramètres!$D$10) -> 763 | AV64: =AV63+($AR64*Paramètres!$D$11) -> 1341 | AW64: =AW63+($AR64*Paramètres!$D$12) -> 1867
C65: 10 | D65: 2016-02-29 | E65: 0 | F65: 102 | G65: 82 | I65: 27 | K65: 2016-03-01 | L65: 0 | M65: 102 | N65: 82 | P65: 27 | R65: 2016-03-02 | S65: 0 | T65: 102 | U65: 2016-03-03 | V65: 0 | W65: 102 | X65: 82 | Z65: 27 | AB65: 2016-03-04 | AC65: 0 | AD65: 102 | AE65: 82 | AG65: 27 | AI65: 2016-03-05 | AJ65: 0 | AK65: 102 | AL65: 2016-03-06 | AM65: 0 | AN65: 102 | AO65: 0 | AP65: 21 | AR65: 0 | AS65: =AS64+($AR65*Paramètres!$D$8) -> 102 | AT65: =AT64+($AR65*Paramètres!$D$9) -> 416 | AU65: =AU64+($AR65*Paramètres!$D$10) -> 763 | AV65: =AV64+($AR65*Paramètres!$D$11) -> 1341 | AW65: =AW64+($AR65*Paramètres!$D$12) -> 1867
B66: 22 | C66: 11 | D66: 2016-03-07 | E66: 1 | F66: 103 | G66: 82 | H66: 0 | I66: 28 | K66: 2016-03-08 | L66: 1 | M66: 104 | N66: 83 | P66: 29 | R66: 2016-03-09 | S66: 1 | T66: 105 | U66: 2016-03-10 | V66: 1 | W66: 106 | X66: 84 | Z66: 30 | AB66: 2016-03-11 | AC66: 1 | AD66: 107 | AE66: 85 | AG66: 31 | AI66: 2016-03-12 | AJ66: 0 | AK66: 107 | AL66: 2016-03-13 | AM66: 0 | AN66: 107 | AO66: 5 | AP66: 22 | AQ66: 22 | AR66: 5 | AS66: =AS65+($AR66*Paramètres!$D$8) -> 107 | AT66: =AT65+($AR66*Paramètres!$D$9) -> 431 | AU66: =AU65+($AR66*Paramètres!$D$10) -> 788 | AV66: =AV65+($AR66*Paramètres!$D$11) -> 1371 | AW66: =AW65+($AR66*Paramètres!$D$12) -> 1887
B67: 23 | C67: 12 | D67: 2016-03-14 | E67: 1 | F67: 108 | G67: 86 | I67: 32 | K67: 2016-03-15 | L67: 1 | M67: 109 | N67: 87 | P67: 33 | R67: 2016-03-16 | S67: 1 | T67: 110 | U67: 2016-03-17 | V67: 1 | W67: 111 | X67: 88 | Z67: 34 | AB67: 2016-03-18 | AC67: 1 | AD67: 112 | AE67: 89 | AG67: 35 | AI67: 2016-03-19 | AJ67: 0 | AK67: 112 | AL67: 2016-03-20 | AM67: 0 | AN67: 112 | AO67: 5 | AP67: 23 | AQ67: 23 | AR67: 5 | AS67: =AS66+($AR67*Paramètres!$D$8) -> 112 | AT67: =AT66+($AR67*Paramètres!$D$9) -> 446 | AU67: =AU66+($AR67*Paramètres!$D$10) -> 813 | AV67: =AV66+($AR67*Paramètres!$D$11) -> 1401 | AW67: =AW66+($AR67*Paramètres!$D$12) -> 1907
B68: 24 | C68: 13 | D68: 2016-03-21 | E68: 1 | F68: 113 | G68: 90 | I68: 36 | K68: 2016-03-22 | L68: 1 | M68: 114 | N68: 91 | P68: 37 | R68: 2016-03-23 | S68: 1 | T68: 115 | U68: 2016-03-24 | V68: 1 | W68: 116 | X68: 92 | Z68: 38 | AB68: 2016-03-25 | AC68: 1 | AD68: 117 | AE68: 93 | AG68: 39 | AI68: 2016-03-26 | AJ68: 0 | AK68: 117 | AL68: 2016-03-27 | AM68: 0 | AN68: 117 | AO68: 5 | AP68: 24 | AQ68: 24 | AR68: 5 | AS68: =AS67+($AR68*Paramètres!$D$8) -> 117 | AT68: =AT67+($AR68*Paramètres!$D$9) -> 461 | AU68: =AU67+($AR68*Paramètres!$D$10) -> 838 | AV68: =AV67+($AR68*Paramètres!$D$11) -> 1431 | AW68: =AW67+($AR68*Paramètres!$D$12) -> 1927
B69: 25 | C69: 14 | D69: 2016-03-28 | E69: 0 | F69: 117 | G69: 93 | I69: 39 | K69: 2016-03-29 | L69: 1 | M69: 118 | N69: 94 | P69: 40 | R69: 2016-03-30 | S69: 1 | T69: 119 | U69: 2016-03-31 | V69: 1 | W69: 120 | X69: 95 | Z69: 41 | AB69: 2016-04-01 | AC69: 1 | AD69: 121 | AE69: 96 | AG69: 42 | AI69: 2016-04-02 | AJ69: 0 | AK69: 121 | AL69: 2016-04-03 | AM69: 0 | AN69: 121 | AO69: 4 | AP69: 25 | AQ69: 25 | AR69: 4 | AS69: =AS68+($AR69*Paramètres!$D$8) -> 121 | AT69: =AT68+($AR69*Paramètres!$D$9) -> 473 | AU69: =AU68+($AR69*Paramètres!$D$10) -> 858 | AV69: =AV68+($AR69*Paramètres!$D$11) -> 1455 | AW69: =AW68+($AR69*Paramètres!$D$12) -> 1943
B70: 26 | C70: 15 | D70: =AL69+1 -> 2016-04-04 | E70: 1 | F70: 122 | G70: 97 | I70: 43 | K70: =D70+1 -> 2016-04-05 | L70: 1 | M70: 123 | N70: 98 | P70: 44 | R70: =K70+1 -> 2016-04-06 | S70: 1 | T70: 124 | U70: =R70+1 -> 2016-04-07 | V70: 1 | W70: 125 | X70: 99 | Z70: 45 | AB70: =U70+1 -> 2016-04-08 | AC70: 1 | AD70: 126 | AE70: 100 | AG70: 46 | AI70: =AB70+1 -> 2016-04-09 | AJ70: 0 | AK70: 126 | AL70: =AI70+1 -> 2016-04-10 | AM70: 0 | AN70: 126 | AO70: 5 | AP70: 26 | AQ70: 26 | AR70: 5 | AS70: =AS69+($AR70*Paramètres!$D$8) -> 126 | AT70: =AT69+($AR70*Paramètres!$D$9) -> 488 | AU70: =AU69+($AR70*Paramètres!$D$10) -> 883 | AV70: =AV69+($AR70*Paramètres!$D$11) -> 1485 | AW70: =AW69+($AR70*Paramètres!$D$12) -> 1963
B71: 27 | C71: 16 | D71: 2016-04-11 | E71: 1 | F71: 127 | G71: 101 | I71: 47 | K71: 2016-04-12 | L71: 1 | M71: 128 | N71: 102 | P71: 48 | R71: 2016-04-13 | S71: 1 | T71: 129 | U71: 2016-04-14 | V71: 1 | W71: 130 | X71: 103 | Z71: 49 | AB71: 2016-04-15 | AC71: 1 | AD71: 131 | AE71: 104 | AG71: 50 | AI71: 2016-04-16 | AJ71: 0 | AK71: 131 | AL71: 2016-04-17 | AM71: 0 | AN71: 131 | AO71: 5 | AP71: 27 | AQ71: 27 | AR71: 5 | AS71: =AS70+($AR71*Paramètres!$D$8) -> 131 | AT71: =AT70+($AR71*Paramètres!$D$9) -> 503 | AU71: =AU70+($AR71*Paramètres!$D$10) -> 908 | AV71: =AV70+($AR71*Paramètres!$D$11) -> 1515 | AW71: =AW70+($AR71*Paramètres!$D$12) -> 1983
C72: 17 | D72: 2016-04-18 | E72: 0 | F72: 131 | G72: 104 | I72: 50 | K72: 2016-04-19 | L72: 0 | M72: 131 | N72: 104 | P72: 50 | R72: 2016-04-20 | S72: 0 | T72: 131 | U72: 2016-04-21 | V72: 0 | W72: 131 | X72: 104 | Z72: 50 | AB72: 2016-04-22 | AC72: 0 | AD72: 131 | AE72: 104 | AG72: 50 | AI72: 2016-04-23 | AJ72: 0 | AK72: 131 | AL72: 2016-04-24 | AM72: 0 | AN72: 131 | AO72: 0 | AP72: 27 | AR72: 0 | AS72: =AS71+($AR72*Paramètres!$D$8) -> 131 | AT72: =AT71+($AR72*Paramètres!$D$9) -> 503 | AU72: =AU71+($AR72*Paramètres!$D$10) -> 908 | AV72: =AV71+($AR72*Paramètres!$D$11) -> 1515 | AW72: =AW71+($AR72*Paramètres!$D$12) -> 1983
C73: 18 | D73: 2016-04-25 | E73: 0 | F73: 131 | G73: 104 | I73: 50 | K73: 2016-04-26 | L73: 0 | M73: 131 | N73: 104 | P73: 50 | R73: 2016-04-27 | S73: 0 | T73: 131 | U73: 2016-04-28 | V73: 0 | W73: 131 | X73: 104 | Z73: 50 | AB73: 2016-04-29 | AC73: 0 | AD73: 131 | AE73: 104 | AG73: 50 | AI73: 2016-04-30 | AJ73: 0 | AK73: 131 | AL73: 2016-05-01 | AM73: 0 | AN73: 131 | AO73: 0 | AP73: 27 | AR73: 0 | AS73: =AS72+($AR73*Paramètres!$D$8) -> 131 | AT73: =AT72+($AR73*Paramètres!$D$9) -> 503 | AU73: =AU72+($AR73*Paramètres!$D$10) -> 908 | AV73: =AV72+($AR73*Paramètres!$D$11) -> 1515 | AW73: =AW72+($AR73*Paramètres!$D$12) -> 1983
B74: 28 | C74: 19 | D74: 2016-05-02 | E74: 1 | F74: 132 | G74: 105 | I74: 51 | K74: 2016-05-03 | L74: 1 | M74: 133 | N74: 106 | P74: 52 | R74: 2016-05-04 | S74: 1 | T74: 134 | U74: 2016-05-05 | V74: 0 | W74: 134 | X74: 106 | Z74: 52 | AB74: 2016-05-06 | AC74: 0 | AD74: 134 | AE74: 106 | AG74: 52 | AI74: 2016-05-07 | AJ74: 0 | AK74: 134 | AL74: 2016-05-08 | AM74: 0 | AN74: 134 | AO74: 3 | AP74: 28 | AQ74: 28 | AR74: 3 | AS74: =AS73+($AR74*Paramètres!$D$8) -> 134 | AT74: =AT73+($AR74*Paramètres!$D$9) -> 512 | AU74: =AU73+($AR74*Paramètres!$D$10) -> 923 | AV74: =AV73+($AR74*Paramètres!$D$11) -> 1533 | AW74: =AW73+($AR74*Paramètres!$D$12) -> 1995
B75: 29 | C75: 20 | D75: 2016-05-09 | E75: 1 | F75: 135 | G75: 107 | I75: 53 | K75: 2016-05-10 | L75: 1 | M75: 136 | N75: 108 | P75: 54 | R75: 2016-05-11 | S75: 1 | T75: 137 | U75: 2016-05-12 | V75: 1 | W75: 138 | X75: 109 | Z75: 55 | AB75: 2016-05-13 | AC75: 1 | AD75: 139 | AE75: 110 | AG75: 56 | AI75: 2016-05-14 | AJ75: 0 | AK75: 139 | AL75: 2016-05-15 | AM75: 0 | AN75: 139 | AO75: 5 | AP75: 29 | AQ75: 29 | AR75: 5 | AS75: =AS74+($AR75*Paramètres!$D$8) -> 139 | AT75: =AT74+($AR75*Paramètres!$D$9) -> 527 | AU75: =AU74+($AR75*Paramètres!$D$10) -> 948 | AV75: =AV74+($AR75*Paramètres!$D$11) -> 1563 | AW75: =AW74+($AR75*Paramètres!$D$12) -> 2015
B76: 30 | C76: 21 | D76: 2016-05-16 | E76: 0 | F76: 139 | G76: 110 | I76: 56 | K76: 2016-05-17 | L76: 1 | M76: 140 | N76: 111 | P76: 57 | R76: 2016-05-18 | S76: 1 | T76: 141 | U76: 2016-05-19 | V76: 1 | W76: 142 | X76: 112 | Z76: 58 | AB76: 2016-05-20 | AC76: 1 | AD76: 143 | AE76: 113 | AG76: 59 | AI76: 2016-05-21 | AJ76: 0 | AK76: 143 | AL76: 2016-05-22 | AM76: 0 | AN76: 143 | AO76: 4 | AP76: 30 | AQ76: 30 | AR76: 4 | AS76: =AS75+($AR76*Paramètres!$D$8) -> 143 | AT76: =AT75+($AR76*Paramètres!$D$9) -> 539 | AU76: =AU75+($AR76*Paramètres!$D$10) -> 968 | AV76: =AV75+($AR76*Paramètres!$D$11) -> 1587 | AW76: =AW75+($AR76*Paramètres!$D$12) -> 2031
B77: 31 | C77: 22 | D77: 2016-05-23 | E77: 1 | F77: 144 | G77: 114 | I77: 60 | K77: 2016-05-24 | L77: 1 | M77: 145 | N77: 115 | P77: 61 | R77: 2016-05-25 | S77: 1 | T77: 146 | U77: 2016-05-26 | V77: 1 | W77: 147 | X77: 116 | Z77: 62 | AB77: 2016-05-27 | AC77: 1 | AD77: 148 | AE77: 117 | AG77: 63 | AI77: 2016-05-28 | AJ77: 0 | AK77: 148 | AL77: 2016-05-29 | AM77: 0 | AN77: 148 | AO77: 5 | AP77: 31 | AQ77: 31 | AR77: 5 | AS77: =AS76+($AR77*Paramètres!$D$8) -> 148 | AT77: =AT76+($AR77*Paramètres!$D$9) -> 554 | AU77: =AU76+($AR77*Paramètres!$D$10) -> 993 | AV77: =AV76+($AR77*Paramètres!$D$11) -> 1617 | AW77: =AW76+($AR77*Paramètres!$D$12) -> 2051
B78: 32 | C78: 23 | D78: 2016-05-30 | E78: 1 | F78: 149 | G78: 118 | I78: 64 | K78: 2016-05-31 | L78: 1 | M78: 150 | N78: 119 | P78: 65 | R78: 2016-06-01 | S78: 1 | T78: 151 | U78: 2016-06-02 | V78: 1 | W78: 152 | X78: 120 | Z78: 66 | AB78: 2016-06-03 | AC78: 1 | AD78: 153 | AE78: 121 | AG78: 67 | AI78: 2016-06-04 | AJ78: 0 | AK78: 153 | AL78: 2016-06-05 | AM78: 0 | AN78: 153 | AO78: 5 | AP78: 32 | AQ78: 32 | AR78: 5 | AS78: =AS77+($AR78*Paramètres!$D$8) -> 153 | AT78: =AT77+($AR78*Paramètres!$D$9) -> 569 | AU78: =AU77+($AR78*Paramètres!$D$10) -> 1018 | AV78: =AV77+($AR78*Paramètres!$D$11) -> 1647 | AW78: =AW77+($AR78*Paramètres!$D$12) -> 2071
B79: 33 | C79: 24 | D79: 2016-06-06 | E79: 1 | F79: 154 | G79: 122 | I79: 68 | K79: 2016-06-07 | L79: 1 | M79: 155 | N79: 123 | P79: 69 | R79: 2016-06-08 | S79: 1 | T79: 156 | U79: 2016-06-09 | V79: 1 | W79: 157 | X79: 124 | Z79: 70 | AB79: 2016-06-10 | AC79: 1 | AD79: 158 | AE79: 125 | AG79: 71 | AI79: 2016-06-11 | AJ79: 0 | AK79: 158 | AL79: 2016-06-12 | AM79: 0 | AN79: 158 | AO79: 5 | AP79: 33 | AQ79: 33 | AR79: 5 | AS79: =AS78+($AR79*Paramètres!$D$8) -> 158 | AT79: =AT78+($AR79*Paramètres!$D$9) -> 584 | AU79: =AU78+($AR79*Paramètres!$D$10) -> 1043 | AV79: =AV78+($AR79*Paramètres!$D$11) -> 1677 | AW79: =AW78+($AR79*Paramètres!$D$12) -> 2091
B80: 34 | C80: 25 | D80: 2016-06-13 | E80: 1 | F80: 159 | G80: 126 | I80: 72 | K80: 2016-06-14 | L80: 1 | M80: 160 | N80: 127 | P80: 73 | R80: 2016-06-15 | S80: 1 | T80: 161 | U80: 2016-06-16 | V80: 1 | W80: 162 | X80: 128 | Z80: 74 | AB80: 2016-06-17 | AC80: 1 | AD80: 163 | AE80: 129 | AG80: 75 | AI80: 2016-06-18 | AJ80: 0 | AK80: 163 | AL80: 2016-06-19 | AM80: 0 | AN80: 163 | AO80: 5 | AP80: 34 | AQ80: 34 | AR80: 5 | AS80: =AS79+($AR80*Paramètres!$D$8) -> 163 | AT80: =AT79+($AR80*Paramètres!$D$9) -> 599 | AU80: =AU79+($AR80*Paramètres!$D$10) -> 1068 | AV80: =AV79+($AR80*Paramètres!$D$11) -> 1707 | AW80: =AW79+($AR80*Paramètres!$D$12) -> 2111
B81: 35 | C81: 26 | D81: 2016-06-20 | E81: 1 | F81: 164 | G81: 130 | I81: 76 | K81: 2016-06-21 | L81: 1 | M81: 165 | N81: 131 | P81: 77 | R81: 2016-06-22 | S81: 1 | T81: 166 | U81: 2016-06-23 | V81: 1 | W81: 167 | X81: 132 | Z81: 78 | AB81: 2016-06-24 | AC81: 1 | AD81: 168 | AE81: 133 | AG81: 79 | AI81: 2016-06-25 | AJ81: 0 | AK81: 168 | AL81: 2016-06-26 | AM81: 0 | AN81: 168 | AO81: 5 | AP81: 35 | AQ81: 35 | AR81: 5 | AS81: =AS80+($AR81*Paramètres!$D$8) -> 168 | AT81: =AT80+($AR81*Paramètres!$D$9) -> 614 | AU81: =AU80+($AR81*Paramètres!$D$10) -> 1093 | AV81: =AV80+($AR81*Paramètres!$D$11) -> 1737 | AW81: =AW80+($AR81*Paramètres!$D$12) -> 2131
B82: 36 | C82: 27 | D82: 2016-06-27 | E82: 1 | F82: 169 | G82: 134 | I82: 80 | K82: 2016-06-28 | L82: 1 | M82: 170 | N82: 135 | P82: 81 | R82: 2016-06-29 | S82: 1 | T82: 171 | U82: 2016-06-30 | V82: 1 | W82: 172 | X82: 136 | Z82: 82 | AB82: 2016-07-01 | AC82: 1 | AD82: 173 | AE82: 137 | AG82: 83 | AI82: 2016-07-02 | AJ82: 0 | AK82: 173 | AL82: 2016-07-03 | AM82: 0 | AN82: 173 | AO82: 5 | AP82: 36 | AQ82: 36 | AR82: 5 | AS82: =AS81+($AR82*Paramètres!$D$8) -> 173 | AT82: =AT81+($AR82*Paramètres!$D$9) -> 629 | AU82: =AU81+($AR82*Paramètres!$D$10) -> 1118 | AV82: =AV81+($AR82*Paramètres!$D$11) -> 1767 | AW82: =AW81+($AR82*Paramètres!$D$12) -> 2151
B83: 37 | C83: 28 | D83: 2016-07-04 | E83: 1 | F83: 174 | G83: 138 | I83: 84 | K83: 2016-07-05 | L83: 1 | M83: 175 | N83: 139 | P83: 85 | R83: 2016-07-06 | S83: 0 | T83: 175 | U83: 2016-07-07 | V83: 0 | W83: 175 | X83: 139 | Z83: 85 | AB83: 2016-07-08 | AC83: 0 | AD83: 175 | AE83: 139 | AG83: 85 | AI83: 2016-07-09 | AJ83: 0 | AK83: 175 | AL83: 2016-07-10 | AM83: 0 | AN83: 175 | AO83: 2 | AP83: 37 | AQ83: 37 | AR83: 2 | AS83: =AS82+($AR83*Paramètres!$D$8) -> 175 | AT83: =AT82+($AR83*Paramètres!$D$9) -> 635 | AU83: =AU82+($AR83*Paramètres!$D$10) -> 1128 | AV83: =AV82+($AR83*Paramètres!$D$11) -> 1779 | AW83: =AW82+($AR83*Paramètres!$D$12) -> 2159
C84: 29 | D84: 2016-07-11 | E84: 0 | F84: 175 | K84: 2016-07-12 | L84: 0 | M84: 175 | R84: 2016-07-13 | S84: 0 | T84: 175 | U84: 2016-07-14 | V84: 0 | W84: 175 | AB84: 2016-07-15 | AC84: 0 | AD84: 175 | AF84: * | AI84: 2016-07-16 | AJ84: 0 | AK84: 175 | AL84: 2016-07-17 | AN84: 175 | AO84: 0 | AP84: =IF(AO84<>0,AP83+1,0) -> 0 | AR84: =AD84-F84 -> 0 | AU84: =fréquence!$AJ$4+(Calendrier!AD85*fréquence!$AH$4) -> 779
C85: 30 | D85: 2016-07-18 | E85: 0 | F85: 175 | K85: 2016-07-19 | L85: 0 | M85: 175 | R85: 2016-07-20 | S85: 0 | T85: 175 | U85: 2016-07-21 | V85: 0 | W85: 175 | AB85: 2016-07-22 | AC85: 0 | AD85: 175 | AF85: * | AI85: 2016-07-23 | AJ85: 0 | AK85: 175 | AL85: 2016-07-24 | AN85: 175 | AO85: 0 | AP85: 0 | AR85: 0 | AU85: =fréquence!$AJ$4+(Calendrier!AD86*fréquence!$AH$4) -> 779
C86: 31 | D86: 2016-07-25 | E86: 0 | F86: 175 | K86: 2016-07-26 | L86: 0 | M86: 175 | R86: 2016-07-27 | S86: 0 | T86: 175 | U86: 2016-07-28 | V86: 0 | W86: 175 | AB86: 2016-07-29 | AC86: 0 | AD86: 175 | AF86: * | AI86: 2016-07-30 | AJ86: 0 | AK86: 175 | AL86: 2016-07-31 | AN86: 175 | AO86: 0 | AP86: 0 | AR86: 0 | AU86: =fréquence!$AJ$4+(Calendrier!AD87*fréquence!$AH$4) -> 779
C87: 32 | D87: 2016-08-01 | E87: 0 | F87: 175 | K87: 2016-08-02 | L87: 0 | M87: 175 | R87: 2016-08-03 | S87: 0 | T87: 175 | U87: 2016-08-04 | V87: 0 | W87: 175 | AB87: 2016-08-05 | AC87: 0 | AD87: 175 | AF87: * | AI87: 2016-08-06 | AJ87: 0 | AK87: 175 | AL87: 2016-08-07 | AN87: 175 | AO87: 0 | AP87: 0 | AR87: 0 | AU87: =fréquence!$AJ$4+(Calendrier!AD88*fréquence!$AH$4) -> 779
C88: 33 | D88: 2016-08-08 | E88: 0 | F88: 175 | K88: 2016-08-09 | L88: 0 | M88: 175 | R88: 2016-08-10 | S88: 0 | T88: 175 | U88: 2016-08-11 | V88: 0 | W88: 175 | AB88: 2016-08-12 | AC88: 0 | AD88: 175 | AF88: * | AI88: 2016-08-13 | AJ88: 0 | AK88: 175 | AL88: 2016-08-14 | AN88: 175 | AO88: 0 | AP88: 0 | AR88: 0 | AU88: =fréquence!$AJ$4+(Calendrier!AD89*fréquence!$AH$4) -> 779
C89: 34 | D89: 2016-08-15 | E89: 0 | F89: 175 | K89: 2016-08-16 | L89: 0 | M89: 175 | R89: 2016-08-17 | S89: 0 | T89: 175 | U89: 2016-08-18 | V89: 0 | W89: 175 | AB89: 2016-08-19 | AC89: 0 | AD89: 175 | AF89: * | AI89: 2016-08-20 | AJ89: 0 | AK89: 175 | AL89: 2016-08-21 | AN89: 175 | AO89: 0 | AP89: 0 | AR89: 0 | AU89: =fréquence!$AJ$4+(Calendrier!AD90*fréquence!$AH$4) -> 779
C90: 35 | D90: 2016-08-22 | E90: 0 | F90: 175 | K90: 2016-08-23 | L90: 0 | M90: 175 | R90: 2016-08-24 | S90: 0 | T90: 175 | U90: 2016-08-25 | V90: 0 | W90: 175 | AB90: 2016-08-26 | AC90: 0 | AD90: 175 | AF90: * | AI90: 2016-08-27 | AJ90: 0 | AK90: 175 | AL90: 2016-08-28 | AN90: 175 | AO90: 0 | AP90: 0 | AR90: 0 | AU90: =fréquence!$AJ$4+(Calendrier!AD91*fréquence!$AH$4) -> 254
D91: Marquer 0 pour un jour vaqué, 1 pour un jour travaillé, 2 pour un jour sans devoir (en cas de remplacement par exemple) | AR91: =SUM(AR38:AR83) -> 175
A93: nbre jours : | B93: =SUM(E93:AM93) -> 177 | D93: Lundis: | E93: =SUM(E4:E90) -> 34 | K93: Mardis: | L93: =SUM(L4:L90) -> 38 | R93: Mercredis: | S93: =SUM(S4:S90) -> 35 | U93: Jeudis: | V93: =SUM(V4:V90) -> 35 | AB93: Vendredis: | AC93: =SUM(AC4:AC90) -> 35 | AI93: Samedis: | AJ93: =SUM(AJ4:AJ90) -> 0 | AL93: Dimanches: | AM93: =SUM(AM4:AM90) -> 0
C96: =F96 -> 33 | D96: =D38 -> 2015-08-24 | E96: =VLOOKUP(D96,D$4:F$90,2) -> 0 | F96: =VLOOKUP(E96,E$4:G$90,2) -> 33 | G96: =VLOOKUP(F96,F$4:H$90,2) -> 26 | H96: =VLOOKUP(G96,G$4:I$90,2) -> 0 | I96: =VLOOKUP(H96,H$4:J$90,2) -> 28
C97: =IF(F97<>F96,F97,"") -> 0 | D97: =D96+1 -> 2015-08-25 | E97: =VLOOKUP(D97,K$4:M$90,2) -> 0 | F97: =VLOOKUP(D97,K$4:M$90,3) -> 0
C98: =IF(F98<>F97,F98,"") ->  | D98: =D97+1 -> 2015-08-26 | E98: =VLOOKUP(D98,R$4:T$90,2) -> 0 | F98: =VLOOKUP(D98,R$4:T$90,3) -> 0
D99: 2015-08-27 | E99: =VLOOKUP(D99,U$4:AC$90,2) -> 0 | F99: =VLOOKUP(D99,U$4:W$90,3) -> 0
D100: 2015-08-28 | E100: =VLOOKUP(D100,AB$4:AD$90,2) -> 0 | F100: =VLOOKUP(D100,AB$4:AD$90,3) -> 0
D101: 2015-08-29 | E101: =VLOOKUP(D101,AI$4:AK$90,2) -> 0 | F101: =VLOOKUP(D101,AI$4:AK$90,3) -> 0
D102: 2015-08-30 | E102: =VLOOKUP(D102,AL$4:AN$90,2) -> 0 | F102: =VLOOKUP(D102,AL$4:AN$90,3) -> 0
D103: 2015-08-31 | E103: =VLOOKUP(D103,D$4:F$90,2) -> 0 | F103: =VLOOKUP(D103,D$4:F$90,3) -> 0
D104: 2015-09-01 | E104: =VLOOKUP(D104,K$4:M$90,2) -> 2 | F104: =VLOOKUP(D104,K$4:M$90,3) -> 0
C105: 1 | D105: 2015-09-02 | E105: =VLOOKUP(D105,R$4:T$90,2) -> 1 | F105: =VLOOKUP(D105,R$4:T$90,3) -> 1
C106: 2 | D106: 2015-09-03 | E106: =VLOOKUP(D106,U$4:AC$90,2) -> 1 | F106: =VLOOKUP(D106,U$4:W$90,3) -> 2
C107: 3 | D107: 2015-09-04 | E107: =VLOOKUP(D107,AB$4:AD$90,2) -> 1 | F107: =VLOOKUP(D107,AB$4:AD$90,3) -> 3
D108: 2015-09-05 | E108: =VLOOKUP(D108,AI$4:AK$90,2) -> 0 | F108: =VLOOKUP(D108,AI$4:AK$90,3) -> 3
D109: 2015-09-06 | E109: =VLOOKUP(D109,AL$4:AN$90,2) -> 0 | F109: =VLOOKUP(D109,AL$4:AN$90,3) -> 3
C110: 4 | D110: 2015-09-07 | E110: =VLOOKUP(D110,D$4:F$90,2) -> 1 | F110: =VLOOKUP(D110,D$4:F$90,3) -> 4
C111: 5 | D111: 2015-09-08 | E111: =VLOOKUP(D111,K$4:M$90,2) -> 1 | F111: =VLOOKUP(D111,K$4:M$90,3) -> 5
C112: 6 | D112: 2015-09-09 | E112: =VLOOKUP(D112,R$4:T$90,2) -> 1 | F112: =VLOOKUP(D112,R$4:T$90,3) -> 6
C113: 7 | D113: 2015-09-10 | E113: =VLOOKUP(D113,U$4:AC$90,2) -> 1 | F113: =VLOOKUP(D113,U$4:W$90,3) -> 7
C114: 8 | D114: 2015-09-11 | E114: =VLOOKUP(D114,AB$4:AD$90,2) -> 1 | F114: =VLOOKUP(D114,AB$4:AD$90,3) -> 8
D115: 2015-09-12 | E115: =VLOOKUP(D115,AI$4:AK$90,2) -> 0 | F115: =VLOOKUP(D115,AI$4:AK$90,3) -> 8
D116: 2015-09-13 | E116: =VLOOKUP(D116,AL$4:AN$90,2) -> 0 | F116: =VLOOKUP(D116,AL$4:AN$90,3) -> 8
C117: 9 | D117: 2015-09-14 | E117: =VLOOKUP(D117,D$4:F$90,2) -> 1 | F117: =VLOOKUP(D117,D$4:F$90,3) -> 9
C118: 10 | D118: 2015-09-15 | E118: =VLOOKUP(D118,K$4:M$90,2) -> 1 | F118: =VLOOKUP(D118,K$4:M$90,3) -> 10
C119: 11 | D119: 2015-09-16 | E119: =VLOOKUP(D119,R$4:T$90,2) -> 1 | F119: =VLOOKUP(D119,R$4:T$90,3) -> 11
C120: 12 | D120: 2015-09-17 | E120: =VLOOKUP(D120,U$4:AC$90,2) -> 1 | F120: =VLOOKUP(D120,U$4:W$90,3) -> 12
C121: 13 | D121: 2015-09-18 | E121: =VLOOKUP(D121,AB$4:AD$90,2) -> 1 | F121: =VLOOKUP(D121,AB$4:AD$90,3) -> 13
D122: 2015-09-19 | E122: =VLOOKUP(D122,AI$4:AK$90,2) -> 0 | F122: =VLOOKUP(D122,AI$4:AK$90,3) -> 13
D123: 2015-09-20 | E123: =VLOOKUP(D123,AL$4:AN$90,2) -> 0 | F123: =VLOOKUP(D123,AL$4:AN$90,3) -> 13
C124: 14 | D124: 2015-09-21 | E124: =VLOOKUP(D124,D$4:F$90,2) -> 1 | F124: =VLOOKUP(D124,D$4:F$90,3) -> 14
C125: 15 | D125: 2015-09-22 | E125: =VLOOKUP(D125,K$4:M$90,2) -> 1 | F125: =VLOOKUP(D125,K$4:M$90,3) -> 15
C126: 16 | D126: 2015-09-23 | E126: =VLOOKUP(D126,R$4:T$90,2) -> 1 | F126: =VLOOKUP(D126,R$4:T$90,3) -> 16
C127: 17 | D127: 2015-09-24 | E127: =VLOOKUP(D127,U$4:AC$90,2) -> 1 | F127: =VLOOKUP(D127,U$4:W$90,3) -> 17
C128: 18 | D128: 2015-09-25 | E128: =VLOOKUP(D128,AB$4:AD$90,2) -> 1 | F128: =VLOOKUP(D128,AB$4:AD$90,3) -> 18
D129: 2015-09-26 | E129: =VLOOKUP(D129,AI$4:AK$90,2) -> 0 | F129: =VLOOKUP(D129,AI$4:AK$90,3) -> 18
D130: 2015-09-27 | E130: =VLOOKUP(D130,AL$4:AN$90,2) -> 0 | F130: =VLOOKUP(D130,AL$4:AN$90,3) -> 18
C131: 19 | D131: 2015-09-28 | E131: =VLOOKUP(D131,D$4:F$90,2) -> 1 | F131: =VLOOKUP(D131,D$4:F$90,3) -> 19
C132: 20 | D132: 2015-09-29 | E132: =VLOOKUP(D132,K$4:M$90,2) -> 1 | F132: =VLOOKUP(D132,K$4:M$90,3) -> 20
C133: 21 | D133: 2015-09-30 | E133: =VLOOKUP(D133,R$4:T$90,2) -> 1 | F133: =VLOOKUP(D133,R$4:T$90,3) -> 21
C134: 22 | D134: 2015-10-01 | E134: =VLOOKUP(D134,U$4:AC$90,2) -> 1 | F134: =VLOOKUP(D134,U$4:W$90,3) -> 22
C135: 23 | D135: 2015-10-02 | E135: =VLOOKUP(D135,AB$4:AD$90,2) -> 1 | F135: =VLOOKUP(D135,AB$4:AD$90,3) -> 23
D136: 2015-10-03 | E136: =VLOOKUP(D136,AI$4:AK$90,2) -> 0 | F136: =VLOOKUP(D136,AI$4:AK$90,3) -> 23
D137: 2015-10-04 | E137: =VLOOKUP(D137,AL$4:AN$90,2) -> 0 | F137: =VLOOKUP(D137,AL$4:AN$90,3) -> 23
C138: 24 | D138: 2015-10-05 | E138: =VLOOKUP(D138,D$4:F$90,2) -> 1 | F138: =VLOOKUP(D138,D$4:F$90,3) -> 24
C139: 25 | D139: 2015-10-06 | E139: =VLOOKUP(D139,K$4:M$90,2) -> 1 | F139: =VLOOKUP(D139,K$4:M$90,3) -> 25
C140: 26 | D140: 2015-10-07 | E140: =VLOOKUP(D140,R$4:T$90,2) -> 1 | F140: =VLOOKUP(D140,R$4:T$90,3) -> 26
C141: 27 | D141: 2015-10-08 | E141: =VLOOKUP(D141,U$4:AC$90,2) -> 1 | F141: =VLOOKUP(D141,U$4:W$90,3) -> 27
C142: 28 | D142: 2015-10-09 | E142: =VLOOKUP(D142,AB$4:AD$90,2) -> 1 | F142: =VLOOKUP(D142,AB$4:AD$90,3) -> 28
D143: 2015-10-10 | E143: =VLOOKUP(D143,AI$4:AK$90,2) -> 0 | F143: =VLOOKUP(D143,AI$4:AK$90,3) -> 28
D144: 2015-10-11 | E144: =VLOOKUP(D144,AL$4:AN$90,2) -> 0 | F144: =VLOOKUP(D144,AL$4:AN$90,3) -> 28
C145: 29 | D145: 2015-10-12 | E145: =VLOOKUP(D145,D$4:F$90,2) -> 1 | F145: =VLOOKUP(D145,D$4:F$90,3) -> 29
C146: 30 | D146: 2015-10-13 | E146: =VLOOKUP(D146,K$4:M$90,2) -> 1 | F146: =VLOOKUP(D146,K$4:M$90,3) -> 30
C147: 31 | D147: 2015-10-14 | E147: =VLOOKUP(D147,R$4:T$90,2) -> 1 | F147: =VLOOKUP(D147,R$4:T$90,3) -> 31
C148: 32 | D148: 2015-10-15 | E148: =VLOOKUP(D148,U$4:AC$90,2) -> 1 | F148: =VLOOKUP(D148,U$4:W$90,3) -> 32
C149: 33 | D149: 2015-10-16 | E149: =VLOOKUP(D149,AB$4:AD$90,2) -> 1 | F149: =VLOOKUP(D149,AB$4:AD$90,3) -> 33
D150: 2015-10-17 | E150: =VLOOKUP(D150,AI$4:AK$90,2) -> 0 | F150: =VLOOKUP(D150,AI$4:AK$90,3) -> 33
D151: 2015-10-18 | E151: =VLOOKUP(D151,AL$4:AN$90,2) -> 0 | F151: =VLOOKUP(D151,AL$4:AN$90,3) -> 33
D152: 2015-10-19 | E152: =VLOOKUP(D152,D$4:F$90,2) -> 0 | F152: =VLOOKUP(D152,D$4:F$90,3) -> 33
D153: 2015-10-20 | E153: =VLOOKUP(D153,K$4:M$90,2) -> 0 | F153: =VLOOKUP(D153,K$4:M$90,3) -> 33
D154: 2015-10-21 | E154: =VLOOKUP(D154,R$4:T$90,2) -> 0 | F154: =VLOOKUP(D154,R$4:T$90,3) -> 33
D155: 2015-10-22 | E155: =VLOOKUP(D155,U$4:AC$90,2) -> 0 | F155: =VLOOKUP(D155,U$4:W$90,3) -> 33
D156: 2015-10-23 | E156: =VLOOKUP(D156,AB$4:AD$90,2) -> 0 | F156: =VLOOKUP(D156,AB$4:AD$90,3) -> 33
D157: 2015-10-24 | E157: =VLOOKUP(D157,AI$4:AK$90,2) -> 0 | F157: =VLOOKUP(D157,AI$4:AK$90,3) -> 33
D158: 2015-10-25 | E158: =VLOOKUP(D158,AL$4:AN$90,2) -> 0 | F158: =VLOOKUP(D158,AL$4:AN$90,3) -> 33
D159: 2015-10-26 | E159: =VLOOKUP(D159,D$4:F$90,2) -> 0 | F159: =VLOOKUP(D159,D$4:F$90,3) -> 33
D160: 2015-10-27 | E160: =VLOOKUP(D160,K$4:M$90,2) -> 0 | F160: =VLOOKUP(D160,K$4:M$90,3) -> 33
D161: 2015-10-28 | E161: =VLOOKUP(D161,R$4:T$90,2) -> 0 | F161: =VLOOKUP(D161,R$4:T$90,3) -> 33
C162: =IF(F162<>F161,F162,"") ->  | D162: =D161+1 -> 2015-10-29 | E162: =VLOOKUP(D162,U$4:AC$90,2) -> 0 | F162: =VLOOKUP(D162,U$4:W$90,3) -> 33
D163: 2015-10-30 | E163: =VLOOKUP(D163,AB$4:AD$90,2) -> 0 | F163: =VLOOKUP(D163,AB$4:AD$90,3) -> 33
D164: 2015-10-31 | E164: =VLOOKUP(D164,AI$4:AK$90,2) -> 0 | F164: =VLOOKUP(D164,AI$4:AK$90,3) -> 33
D165: 2015-11-01 | E165: =VLOOKUP(D165,AL$4:AN$90,2) -> 0 | F165: =VLOOKUP(D165,AL$4:AN$90,3) -> 33
C166: 34 | D166: 2015-11-02 | E166: =VLOOKUP(D166,D$4:F$90,2) -> 1 | F166: =VLOOKUP(D166,D$4:F$90,3) -> 34
C167: 35 | D167: 2015-11-03 | E167: =VLOOKUP(D167,K$4:M$90,2) -> 1 | F167: =VLOOKUP(D167,K$4:M$90,3) -> 35
C168: 36 | D168: 2015-11-04 | E168: =VLOOKUP(D168,R$4:T$90,2) -> 1 | F168: =VLOOKUP(D168,R$4:T$90,3) -> 36
C169: 37 | D169: 2015-11-05 | E169: =VLOOKUP(D169,U$4:AC$90,2) -> 1 | F169: =VLOOKUP(D169,U$4:W$90,3) -> 37
C170: 38 | D170: 2015-11-06 | E170: =VLOOKUP(D170,AB$4:AD$90,2) -> 1 | F170: =VLOOKUP(D170,AB$4:AD$90,3) -> 38
D171: 2015-11-07 | E171: =VLOOKUP(D171,AI$4:AK$90,2) -> 0 | F171: =VLOOKUP(D171,AI$4:AK$90,3) -> 38
D172: 2015-11-08 | E172: =VLOOKUP(D172,AL$4:AN$90,2) -> 0 | F172: =VLOOKUP(D172,AL$4:AN$90,3) -> 38
C173: 39 | D173: 2015-11-09 | E173: =VLOOKUP(D173,D$4:F$90,2) -> 1 | F173: =VLOOKUP(D173,D$4:F$90,3) -> 39
C174: 40 | D174: 2015-11-10 | E174: =VLOOKUP(D174,K$4:M$90,2) -> 1 | F174: =VLOOKUP(D174,K$4:M$90,3) -> 40
D175: 2015-11-11 | E175: =VLOOKUP(D175,R$4:T$90,2) -> 0 | F175: =VLOOKUP(D175,R$4:T$90,3) -> 40
C176: 41 | D176: 2015-11-12 | E176: =VLOOKUP(D176,U$4:AC$90,2) -> 1 | F176: =VLOOKUP(D176,U$4:W$90,3) -> 41
C177: 42 | D177: 2015-11-13 | E177: =VLOOKUP(D177,AB$4:AD$90,2) -> 1 | F177: =VLOOKUP(D177,AB$4:AD$90,3) -> 42
D178: 2015-11-14 | E178: =VLOOKUP(D178,AI$4:AK$90,2) -> 0 | F178: =VLOOKUP(D178,AI$4:AK$90,3) -> 42
D179: 2015-11-15 | E179: =VLOOKUP(D179,AL$4:AN$90,2) -> 0 | F179: =VLOOKUP(D179,AL$4:AN$90,3) -> 42
C180: 43 | D180: 2015-11-16 | E180: =VLOOKUP(D180,D$4:F$90,2) -> 1 | F180: =VLOOKUP(D180,D$4:F$90,3) -> 43
C181: 44 | D181: 2015-11-17 | E181: =VLOOKUP(D181,K$4:M$90,2) -> 1 | F181: =VLOOKUP(D181,K$4:M$90,3) -> 44
C182: 45 | D182: 2015-11-18 | E182: =VLOOKUP(D182,R$4:T$90,2) -> 1 | F182: =VLOOKUP(D182,R$4:T$90,3) -> 45
C183: 46 | D183: 2015-11-19 | E183: =VLOOKUP(D183,U$4:AC$90,2) -> 1 | F183: =VLOOKUP(D183,U$4:W$90,3) -> 46
C184: 47 | D184: 2015-11-20 | E184: =VLOOKUP(D184,AB$4:AD$90,2) -> 1 | F184: =VLOOKUP(D184,AB$4:AD$90,3) -> 47
D185: 2015-11-21 | E185: =VLOOKUP(D185,AI$4:AK$90,2) -> 0 | F185: =VLOOKUP(D185,AI$4:AK$90,3) -> 47
D186: 2015-11-22 | E186: =VLOOKUP(D186,AL$4:AN$90,2) -> 0 | F186: =VLOOKUP(D186,AL$4:AN$90,3) -> 47
C187: 48 | D187: 2015-11-23 | E187: =VLOOKUP(D187,D$4:F$90,2) -> 1 | F187: =VLOOKUP(D187,D$4:F$90,3) -> 48
C188: 49 | D188: 2015-11-24 | E188: =VLOOKUP(D188,K$4:M$90,2) -> 1 | F188: =VLOOKUP(D188,K$4:M$90,3) -> 49
C189: 50 | D189: 2015-11-25 | E189: =VLOOKUP(D189,R$4:T$90,2) -> 1 | F189: =VLOOKUP(D189,R$4:T$90,3) -> 50
C190: 51 | D190: 2015-11-26 | E190: =VLOOKUP(D190,U$4:AC$90,2) -> 1 | F190: =VLOOKUP(D190,U$4:W$90,3) -> 51
C191: 52 | D191: 2015-11-27 | E191: =VLOOKUP(D191,AB$4:AD$90,2) -> 1 | F191: =VLOOKUP(D191,AB$4:AD$90,3) -> 52
D192: 2015-11-28 | E192: =VLOOKUP(D192,AI$4:AK$90,2) -> 0 | F192: =VLOOKUP(D192,AI$4:AK$90,3) -> 52
D193: 2015-11-29 | E193: =VLOOKUP(D193,AL$4:AN$90,2) -> 0 | F193: =VLOOKUP(D193,AL$4:AN$90,3) -> 52
C194: 53 | D194: 2015-11-30 | E194: =VLOOKUP(D194,D$4:F$90,2) -> 1 | F194: =VLOOKUP(D194,D$4:F$90,3) -> 53
C195: 54 | D195: 2015-12-01 | E195: =VLOOKUP(D195,K$4:M$90,2) -> 1 | F195: =VLOOKUP(D195,K$4:M$90,3) -> 54
C196: 55 | D196: 2015-12-02 | E196: =VLOOKUP(D196,R$4:T$90,2) -> 1 | F196: =VLOOKUP(D196,R$4:T$90,3) -> 55
C197: 56 | D197: 2015-12-03 | E197: =VLOOKUP(D197,U$4:AC$90,2) -> 1 | F197: =VLOOKUP(D197,U$4:W$90,3) -> 56
C198: 57 | D198: 2015-12-04 | E198: =VLOOKUP(D198,AB$4:AD$90,2) -> 1 | F198: =VLOOKUP(D198,AB$4:AD$90,3) -> 57
D199: 2015-12-05 | E199: =VLOOKUP(D199,AI$4:AK$90,2) -> 0 | F199: =VLOOKUP(D199,AI$4:AK$90,3) -> 57
D200: 2015-12-06 | E200: =VLOOKUP(D200,AL$4:AN$90,2) -> 0 | F200: =VLOOKUP(D200,AL$4:AN$90,3) -> 57
C201: 58 | D201: 2015-12-07 | E201: =VLOOKUP(D201,D$4:F$90,2) -> 1 | F201: =VLOOKUP(D201,D$4:F$90,3) -> 58
C202: 59 | D202: 2015-12-08 | E202: =VLOOKUP(D202,K$4:M$90,2) -> 1 | F202: =VLOOKUP(D202,K$4:M$90,3) -> 59
C203: 60 | D203: 2015-12-09 | E203: =VLOOKUP(D203,R$4:T$90,2) -> 1 | F203: =VLOOKUP(D203,R$4:T$90,3) -> 60
... 227 more rows

Sheet carnet de mots (classe)
A1: n° | B1: Mots | C1: Nature | D1: CP | E1: CE1 | F1: CE2 | G1: CM1 | H1: CM2 | J1: CP | K1: CE1 | L1: CE2 | M1: CM1 | N1: CM2 | O1: CP | P1: CE1 | Q1: CE2 | R1: CM1 | S1: CM2
A3: 1 | B3: =VLOOKUP($A3,fréquence!$W$16:$AO$2805,8,FALSE) -> un papa ; des papas | C3: =VLOOKUP($A3,fréquence!$W$16:$AO$2805,11,FALSE) -> nom commun | D3: =CONCATENATE(D$1,"-",VLOOKUP($A3,fréquence!$A$16:$V$3371,18,FALSE)) -> CP-75 | E3: =CONCATENATE(E$1,"-",VLOOKUP($A3,fréquence!$A$16:$V$3371,19,FALSE)) -> CE1-178 | F3: =CONCATENATE(F$1,"-",VLOOKUP($A3,fréquence!$A$16:$V$3371,19,FALSE)) -> CE2-178 | G3: =CONCATENATE(G$1,"-",VLOOKUP($A3,fréquence!$A$16:$V$3371,21,FALSE)) -> CM1-926 | H3: =CONCATENATE(H$1,"-",VLOOKUP($A3,fréquence!$A$16:$V$3371,22,FALSE)) -> CM2-1587 | J3: =IF(O3<>0,INT((O3-1)/fréquence!$AH$2)+1,"") -> 1 | K3: =IF(P3<>0,INT((P3-1)/fréquence!$AH$3)+1,"") ->  | L3: =IF(Q3<>0,INT((Q3-1)/fréquence!$AH$4)+1,"") ->  | M3: =IF(R3<>0,INT((R3-1)/fréquence!$AH$5)+1,"") ->  | N3: =IF(S3<>0,INT((S3-1)/fréquence!$AH$6)+1,"") ->  | O3: =IF(AND($A3>=fréquence!$AJ$2,$A3<=fréquence!$AK$2),1,0) -> 1 | P3: =IF(AND($A3>=fréquence!$AJ$3,$A3<=fréquence!$AK$3),1,0) -> 0 | Q3: =IF(AND($A3>=fréquence!$AJ$4,$A3<=fréquence!$AK$4),1,0) -> 0 | R3: =IF(AND($A3>=fréquence!$AJ$5,$A3<=fréquence!$AK$5),1,0) -> 0 | S3: =IF(AND($A3>=fréquence!$AJ$6,$A3<=fréquence!$AK$6),1,0) -> 0
D4: =IFERROR(VLOOKUP(J3,'Recherche mots connus'!$C$6:$D$187,2,FALSE),"") -> 2015-09-02 | E4: =IFERROR(VLOOKUP(K3,'Recherche mots connus'!$C$6:$D$187,2,FALSE),"") ->  | F4: =IFERROR(VLOOKUP(L3,'Recherche mots connus'!$C$6:$D$187,2,FALSE),"") ->  | G4: =IFERROR(VLOOKUP(M3,'Recherche mots connus'!$C$6:$D$187,2,FALSE),"") ->  | H4: =IFERROR(VLOOKUP(N3,'Recherche mots connus'!$C$6:$D$187,2,FALSE),"") -> 
A6: =A3+1 -> 2 | B6: =VLOOKUP($A6,fréquence!$W$16:$AO$2805,8,FALSE) -> une maman ; des mamans | C6: =VLOOKUP($A6,fréquence!$W$16:$AO$2805,11,FALSE) -> nom commun | D6: =CONCATENATE(D$1,"-",VLOOKUP($A6,fréquence!$A$16:$V$3371,18,FALSE)) -> CP-60 | E6: =CONCATENATE(E$1,"-",VLOOKUP($A6,fréquence!$A$16:$V$3371,19,FALSE)) -> CE1-140 | F6: =CONCATENATE(F$1,"-",VLOOKUP($A6,fréquence!$A$16:$V$3371,20,FALSE)) -> CE2-389 | G6: =CONCATENATE(G$1,"-",VLOOKUP($A6,fréquence!$A$16:$V$3371,21,FALSE)) -> CM1-752 | H6: =CONCATENATE(H$1,"-",VLOOKUP($A6,fréquence!$A$16:$V$3371,22,FALSE)) -> CM2-1337 | J6: =IF(O6<>O3,IF(O6<>0,INT((O6-1)/fréquence!$AH$2)+1,""),"") -> 2 | K6: =IF(P6<>P3,IF(P6<>0,INT((P6-1)/fréquence!$AH$3)+1,""),"") ->  | L6: =IF(Q6<>Q3,IF(Q6<>0,INT((Q6-1)/fréquence!$AH$4)+1,""),"") ->  | M6: =IF(R6<>R3,IF(R6<>0,INT((R6-1)/fréquence!$AH$5)+1,""),"") ->  | N6: =IF(S6<>S3,IF(S6<>0,INT((S6-1)/fréquence!$AH$6)+1,""),"") ->  | O6: =IF(AND($A6>=fréquence!$AJ$2,$A6<=fréquence!$AK$2),O3+1,O3) -> 2 | P6: =IF(AND($A6>=fréquence!$AJ$3,$A6<=fréquence!$AK$3),P3+1,P3) -> 0 | Q6: =IF(AND($A6>=fréquence!$AJ$4,$A6<=fréquence!$AK$4),Q3+1,Q3) -> 0 | R6: =IF(AND($A6>=fréquence!$AJ$5,$A6<=fréquence!$AK$5),R3+1,R3) -> 0 | S6: =IF(AND($A6>=fréquence!$AJ$6,$A6<=fréquence!$AK$6),S3+1,S3) -> 0
D7: =IFERROR(VLOOKUP(J6,'Recherche mots connus'!$C$6:$D$187,2,FALSE),"") -> 2015-09-03 | E7: =IFERROR(VLOOKUP(K6,'Recherche mots connus'!$C$6:$D$187,2,FALSE),"") ->  | F7: =IFERROR(VLOOKUP(L6,'Recherche mots connus'!$C$6:$D$187,2,FALSE),"") ->  | G7: =IFERROR(VLOOKUP(M6,'Recherche mots connus'!$C$6:$D$187,2,FALSE),"") ->  | H7: =IFERROR(VLOOKUP(N6,'Recherche mots connus'!$C$6:$D$187,2,FALSE),"") -> 
A9: =A6+1 -> 3 | B9: =VLOOKUP($A9,fréquence!$W$16:$AO$2805,8,FALSE) -> c'est | C9: =VLOOKUP($A9,fréquence!$W$16:$AO$2805,11,FALSE) -> forme verbale | D9: =CONCATENATE(D$1,"-",VLOOKUP($A9,fréquence!$A$16:$V$3371,18,FALSE)) -> CP-12 | E9: =CONCATENATE(E$1,"-",VLOOKUP($A9,fréquence!$A$16:$V$3371,19,FALSE)) -> CE1-32 | F9: =CONCATENATE(F$1,"-",VLOOKUP($A9,fréquence!$A$16:$V$3371,20,FALSE)) -> CE2-90 | G9: =CONCATENATE(G$1,"-",VLOOKUP($A9,fréquence!$A$16:$V$3371,21,FALSE)) -> CM1-187 | H9: =CONCATENATE(H$1,"-",VLOOKUP($A9,fréquence!$A$16:$V$3371,22,FALSE)) -> CM2-343 | J9: =IF(O9<>O6,IF(O9<>0,INT((O9-1)/fréquence!$AH$2)+1,""),"") -> 3 | K9: =IF(P9<>P6,IF(P9<>0,INT((P9-1)/fréquence!$AH$3)+1,""),"") ->  | L9: =IF(Q9<>Q6,IF(Q9<>0,INT((Q9-1)/fréquence!$AH$4)+1,""),"") ->  | M9: =IF(R9<>R6,IF(R9<>0,INT((R9-1)/fréquence!$AH$5)+1,""),"") ->  | N9: =IF(S9<>S6,IF(S9<>0,INT((S9-1)/fréquence!$AH$6)+1,""),"") ->  | O9: =IF(AND($A9>=fréquence!$AJ$2,$A9<=fréquence!$AK$2),O6+1,O6) -> 3 | P9: =IF(AND($A9>=fréquence!$AJ$3,$A9<=fréquence!$AK$3),P6+1,P6) -> 0 | Q9: =IF(AND($A9>=fréquence!$AJ$4,$A9<=fréquence!$AK$4),Q6+1,Q6) -> 0 | R9: =IF(AND($A9>=fréquence!$AJ$5,$A9<=fréquence!$AK$5),R6+1,R6) -> 0 | S9: =IF(AND($A9>=fréquence!$AJ$6,$A9<=fréquence!$AK$6),S6+1,S6) -> 0
D10: =IFERROR(VLOOKUP(J9,'Recherche mots connus'!$C$6:$D$187,2,FALSE),"") -> 2015-09-04 | E10: =IFERROR(VLOOKUP(K9,'Recherche mots connus'!$C$6:$D$187,2,FALSE),"") ->  | F10: =IFERROR(VLOOKUP(L9,'Recherche mots connus'!$C$6:$D$187,2,FALSE),"") ->  | G10: =IFERROR(VLOOKUP(M9,'Recherche mots connus'!$C$6:$D$187,2,FALSE),"") ->  | H10: =IFERROR(VLOOKUP(N9,'Recherche mots connus'!$C$6:$D$187,2,FALSE),"") -> 
A12: =A9+1 -> 4 | B12: =VLOOKUP($A12,fréquence!$W$16:$AO$2805,8,FALSE) -> [son prénom] | C12: =VLOOKUP($A12,fréquence!$W$16:$AO$2805,11,FALSE) -> nom propre | D12: =CONCATENATE(D$1,"-",VLOOKUP($A12,fréquence!$A$16:$V$3371,18,FALSE)) -> CP-1 | E12: =CONCATENATE(E$1,"-",VLOOKUP($A12,fréquence!$A$16:$V$3371,19,FALSE)) -> CE1-2 | F12: =CONCATENATE(F$1,"-",VLOOKUP($A12,fréquence!$A$16:$V$3371,20,FALSE)) -> CE2-2 | G12: =CONCATENATE(G$1,"-",VLOOKUP($A12,fréquence!$A$16:$V$3371,21,FALSE)) -> CM1-2 | H12: =CONCATENATE(H$1,"-",VLOOKUP($A12,fréquence!$A$16:$V$3371,22,FALSE)) -> CM2-2 | J12: =IF(O12<>O9,IF(O12<>0,INT((O12-1)/fréquence!$AH$2)+1,""),"") -> 4 | K12: =IF(P12<>P9,IF(P12<>0,INT((P12-1)/fréquence!$AH$3)+1,""),"") ->  | L12: =IF(Q12<>Q9,IF(Q12<>0,INT((Q12-1)/fréquence!$AH$4)+1,""),"") ->  | M12: =IF(R12<>R9,IF(R12<>0,INT((R12-1)/fréquence!$AH$5)+1,""),"") ->  | N12: =IF(S12<>S9,IF(S12<>0,INT((S12-1)/fréquence!$AH$6)+1,""),"") ->  | O12: =IF(AND($A12>=fréquence!$AJ$2,$A12<=fréquence!$AK$2),O9+1,O9) -> 4 | P12: =IF(AND($A12>=fréquence!$AJ$3,$A12<=fréquence!$AK$3),P9+1,P9) -> 0 | Q12: =IF(AND($A12>=fréquence!$AJ$4,$A12<=fréquence!$AK$4),Q9+1,Q9) -> 0 | R12: =IF(AND($A12>=fréquence!$AJ$5,$A12<=fréquence!$AK$5),R9+1,R9) -> 0 | S12: =IF(AND($A12>=fréquence!$AJ$6,$A12<=fréquence!$AK$6),S9+1,S9) -> 0
D13: =IFERROR(VLOOKUP(J12,'Recherche mots connus'!$C$6:$D$187,2,FALSE),"") -> 2015-09-07 | E13: =IFERROR(VLOOKUP(K12,'Recherche mots connus'!$C$6:$D$187,2,FALSE),"") ->  | F13: =IFERROR(VLOOKUP(L12,'Recherche mots connus'!$C$6:$D$187,2,FALSE),"") ->  | G13: =IFERROR(VLOOKUP(M12,'Recherche mots connus'!$C$6:$D$187,2,FALSE),"") ->  | H13: =IFERROR(VLOOKUP(N12,'Recherche mots connus'!$C$6:$D$187,2,FALSE),"") -> 
A15: =A12+1 -> 5 | B15: =VLOOKUP($A15,fréquence!$W$16:$AO$2805,8,FALSE) -> avec | C15: =VLOOKUP($A15,fréquence!$W$16:$AO$2805,11,FALSE) -> préposition | D15: =CONCATENATE(D$1,"-",VLOOKUP($A15,fréquence!$A$16:$V$3371,18,FALSE)) -> CP-6 | E15: =CONCATENATE(E$1,"-",VLOOKUP($A15,fréquence!$A$16:$V$3371,19,FALSE)) -> CE1-15 | F15: =CONCATENATE(F$1,"-",VLOOKUP($A15,fréquence!$A$16:$V$3371,20,FALSE)) -> CE2-25 | G15: =CONCATENATE(G$1,"-",VLOOKUP($A15,fréquence!$A$16:$V$3371,21,FALSE)) -> CM1-62 | H15: =CONCATENATE(H$1,"-",VLOOKUP($A15,fréquence!$A$16:$V$3371,22,FALSE)) -> CM2-151 | J15: =IF(O15<>O12,IF(O15<>0,INT((O15-1)/fréquence!$AH$2)+1,""),"") -> 5 | K15: =IF(P15<>P12,IF(P15<>0,INT((P15-1)/fréquence!$AH$3)+1,""),"") ->  | L15: =IF(Q15<>Q12,IF(Q15<>0,INT((Q15-1)/fréquence!$AH$4)+1,""),"") ->  | M15: =IF(R15<>R12,IF(R15<>0,INT((R15-1)/fréquence!$AH$5)+1,""),"") ->  | N15: =IF(S15<>S12,IF(S15<>0,INT((S15-1)/fréquence!$AH$6)+1,""),"") ->  | O15: =IF(AND($A15>=fréquence!$AJ$2,$A15<=fréquence!$AK$2),O12+1,O12) -> 5 | P15: =IF(AND($A15>=fréquence!$AJ$3,$A15<=fréquence!$AK$3),P12+1,P12) -> 0 | Q15: =IF(AND($A15>=fréquence!$AJ$4,$A15<=fréquence!$AK$4),Q12+1,Q12) -> 0 | R15: =IF(AND($A15>=fréquence!$AJ$5,$A15<=fréquence!$AK$5),R12+1,R12) -> 0 | S15: =IF(AND($A15>=fréquence!$AJ$6,$A15<=fréquence!$AK$6),S12+1,S12) -> 0
D16: =IFERROR(VLOOKUP(J15,'Recherche mots connus'!$C$6:$D$187,2,FALSE),"") -> 2015-09-08 | E16: =IFERROR(VLOOKUP(K15,'Recherche mots connus'!$C$6:$D$187,2,FALSE),"") ->  | F16: =IFERROR(VLOOKUP(L15,'Recherche mots connus'!$C$6:$D$187,2,FALSE),"") ->  | G16: =IFERROR(VLOOKUP(M15,'Recherche mots connus'!$C$6:$D$187,2,FALSE),"") ->  | H16: =IFERROR(VLOOKUP(N15,'Recherche mots connus'!$C$6:$D$187,2,FALSE),"") -> 
A18: =A15+1 -> 6 | B18: =VLOOKUP($A18,fréquence!$W$16:$AO$2805,8,FALSE) -> une maison ; des maisons | C18: =VLOOKUP($A18,fréquence!$W$16:$AO$2805,11,FALSE) -> nom commun | D18: =CONCATENATE(D$1,"-",VLOOKUP($A18,fréquence!$A$16:$V$3371,18,FALSE)) -> CP-58 | E18: =CONCATENATE(E$1,"-",VLOOKUP($A18,fréquence!$A$16:$V$3371,19,FALSE)) -> CE1-136 | F18: =CONCATENATE(F$1,"-",VLOOKUP($A18,fréquence!$A$16:$V$3371,20,FALSE)) -> CE2-382 | G18: =CONCATENATE(G$1,"-",VLOOKUP($A18,fréquence!$A$16:$V$3371,21,FALSE)) -> CM1-744 | H18: =CONCATENATE(H$1,"-",VLOOKUP($A18,fréquence!$A$16:$V$3371,22,FALSE)) -> CM2-1325 | J18: =IF(O18<>O15,IF(O18<>0,INT((O18-1)/fréquence!$AH$2)+1,""),"") -> 6 | K18: =IF(P18<>P15,IF(P18<>0,INT((P18-1)/fréquence!$AH$3)+1,""),"") ->  | L18: =IF(Q18<>Q15,IF(Q18<>0,INT((Q18-1)/fréquence!$AH$4)+1,""),"") ->  | M18: =IF(R18<>R15,IF(R18<>0,INT((R18-1)/fréquence!$AH$5)+1,""),"") ->  | N18: =IF(S18<>S15,IF(S18<>0,INT((S18-1)/fréquence!$AH$6)+1,""),"") ->  | O18: =IF(AND($A18>=fréquence!$AJ$2,$A18<=fréquence!$AK$2),O15+1,O15) -> 6 | P18: =IF(AND($A18>=fréquence!$AJ$3,$A18<=fréquence!$AK$3),P15+1,P15) -> 0 | Q18: =IF(AND($A18>=fréquence!$AJ$4,$A18<=fréquence!$AK$4),Q15+1,Q15) -> 0 | R18: =IF(AND($A18>=fréquence!$AJ$5,$A18<=fréquence!$AK$5),R15+1,R15) -> 0 | S18: =IF(AND($A18>=fréquence!$AJ$6,$A18<=fréquence!$AK$6),S15+1,S15) -> 0
D19: =IFERROR(VLOOKUP(J18,'Recherche mots connus'!$C$6:$D$187,2,FALSE),"") -> 2015-09-09 | E19: =IFERROR(VLOOKUP(K18,'Recherche mots connus'!$C$6:$D$187,2,FALSE),"") ->  | F19: =IFERROR(VLOOKUP(L18,'Recherche mots connus'!$C$6:$D$187,2,FALSE),"") ->  | G19: =IFERROR(VLOOKUP(M18,'Recherche mots connus'!$C$6:$D$187,2,FALSE),"") ->  | H19: =IFERROR(VLOOKUP(N18,'Recherche mots connus'!$C$6:$D$187,2,FALSE),"") -> 
A21: =A18+1 -> 7 | B21: =VLOOKUP($A21,fréquence!$W$16:$AO$2805,8,FALSE) -> un bébé ; des bébés | C21: =VLOOKUP($A21,fréquence!$W$16:$AO$2805,11,FALSE) -> nom commun | D21: =CONCATENATE(D$1,"-",VLOOKUP($A21,fréquence!$A$16:$V$3371,18,FALSE)) -> CP-8 | E21: =CONCATENATE(E$1,"-",VLOOKUP($A21,fréquence!$A$16:$V$3371,19,FALSE)) -> CE1-21 | F21: =CONCATENATE(F$1,"-",VLOOKUP($A21,fréquence!$A$16:$V$3371,20,FALSE)) -> CE2-43 | G21: =CONCATENATE(G$1,"-",VLOOKUP($A21,fréquence!$A$16:$V$3371,21,FALSE)) -> CM1-92 | H21: =CONCATENATE(H$1,"-",VLOOKUP($A21,fréquence!$A$16:$V$3371,22,FALSE)) -> CM2-196 | J21: =IF(O21<>O18,IF(O21<>0,INT((O21-1)/fréquence!$AH$2)+1,""),"") -> 7 | K21: =IF(P21<>P18,IF(P21<>0,INT((P21-1)/fréquence!$AH$3)+1,""),"") ->  | L21: =IF(Q21<>Q18,IF(Q21<>0,INT((Q21-1)/fréquence!$AH$4)+1,""),"") ->  | M21: =IF(R21<>R18,IF(R21<>0,INT((R21-1)/fréquence!$AH$5)+1,""),"") ->  | N21: =IF(S21<>S18,IF(S21<>0,INT((S21-1)/fréquence!$AH$6)+1,""),"") ->  | O21: =IF(AND($A21>=fréquence!$AJ$2,$A21<=fréquence!$AK$2),O18+1,O18) -> 7 | P21: =IF(AND($A21>=fréquence!$AJ$3,$A21<=fréquence!$AK$3),P18+1,P18) -> 0 | Q21: =IF(AND($A21>=fréquence!$AJ$4,$A21<=fréquence!$AK$4),Q18+1,Q18) -> 0 | R21: =IF(AND($A21>=fréquence!$AJ$5,$A21<=fréquence!$AK$5),R18+1,R18) -> 0 | S21: =IF(AND($A21>=fréquence!$AJ$6,$A21<=fréquence!$AK$6),S18+1,S18) -> 0
D22: =IFERROR(VLOOKUP(J21,'Recherche mots connus'!$C$6:$D$187,2,FALSE),"") -> 2015-09-10 | E22: =IFERROR(VLOOKUP(K21,'Recherche mots connus'!$C$6:$D$187,2,FALSE),"") ->  | F22: =IFERROR(VLOOKUP(L21,'Recherche mots connus'!$C$6:$D$187,2,FALSE),"") ->  | G22: =IFERROR(VLOOKUP(M21,'Recherche mots connus'!$C$6:$D$187,2,FALSE),"") ->  | H22: =IFERROR(VLOOKUP(N21,'Recherche mots connus'!$C$6:$D$187,2,FALSE),"") -> 
A24: =A21+1 -> 8 | B24: =VLOOKUP($A24,fréquence!$W$16:$AO$2805,8,FALSE) -> un père ; des pères | C24: =VLOOKUP($A24,fréquence!$W$16:$AO$2805,11,FALSE) -> nom commun | D24: =CONCATENATE(D$1,"-",VLOOKUP($A24,fréquence!$A$16:$V$3371,18,FALSE)) -> CP-76 | E24: =CONCATENATE(E$1,"-",VLOOKUP($A24,fréquence!$A$16:$V$3371,19,FALSE)) -> CE1-181 | F24: =CONCATENATE(F$1,"-",VLOOKUP($A24,fréquence!$A$16:$V$3371,20,FALSE)) -> CE2-490 | G24: =CONCATENATE(G$1,"-",VLOOKUP($A24,fréquence!$A$16:$V$3371,21,FALSE)) -> CM1-969 | H24: =CONCATENATE(H$1,"-",VLOOKUP($A24,fréquence!$A$16:$V$3371,22,FALSE)) -> CM2-1649 | J24: =IF(O24<>O21,IF(O24<>0,INT((O24-1)/fréquence!$AH$2)+1,""),"") -> 8 | K24: =IF(P24<>P21,IF(P24<>0,INT((P24-1)/fréquence!$AH$3)+1,""),"") ->  | L24: =IF(Q24<>Q21,IF(Q24<>0,INT((Q24-1)/fréquence!$AH$4)+1,""),"") ->  | M24: =IF(R24<>R21,IF(R24<>0,INT((R24-1)/fréquence!$AH$5)+1,""),"") ->  | N24: =IF(S24<>S21,IF(S24<>0,INT((S24-1)/fréquence!$AH$6)+1,""),"") ->  | O24: =IF(AND($A24>=fréquence!$AJ$2,$A24<=fréquence!$AK$2),O21+1,O21) -> 8 | P24: =IF(AND($A24>=fréquence!$AJ$3,$A24<=fréquence!$AK$3),P21+1,P21) -> 0 | Q24: =IF(AND($A24>=fréquence!$AJ$4,$A24<=fréquence!$AK$4),Q21+1,Q21) -> 0 | R24: =IF(AND($A24>=fréquence!$AJ$5,$A24<=fréquence!$AK$5),R21+1,R21) -> 0 | S24: =IF(AND($A24>=fréquence!$AJ$6,$A24<=fréquence!$AK$6),S21+1,S21) -> 0
D25: =IFERROR(VLOOKUP(J24,'Recherche mots connus'!$C$6:$D$187,2,FALSE),"") -> 2015-09-11 | E25: =IFERROR(VLOOKUP(K24,'Recherche mots connus'!$C$6:$D$187,2,FALSE),"") ->  | F25: =IFERROR(VLOOKUP(L24,'Recherche mots connus'!$C$6:$D$187,2,FALSE),"") ->  | G25: =IFERROR(VLOOKUP(M24,'Recherche mots connus'!$C$6:$D$187,2,FALSE),"") ->  | H25: =IFERROR(VLOOKUP(N24,'Recherche mots connus'!$C$6:$D$187,2,FALSE),"") -> 
A27: =A24+1 -> 9 | B27: =VLOOKUP($A27,fréquence!$W$16:$AO$2805,8,FALSE) -> une mère ; des mères | C27: =VLOOKUP($A27,fréquence!$W$16:$AO$2805,11,FALSE) -> nom commun | D27: =CONCATENATE(D$1,"-",VLOOKUP($A27,fréquence!$A$16:$V$3371,18,FALSE)) -> CP-64 | E27: =CONCATENATE(E$1,"-",VLOOKUP($A27,fréquence!$A$16:$V$3371,19,FALSE)) -> CE1-148 | F27: =CONCATENATE(F$1,"-",VLOOKUP($A27,fréquence!$A$16:$V$3371,20,FALSE)) -> CE2-411 | G27: =CONCATENATE(G$1,"-",VLOOKUP($A27,fréquence!$A$16:$V$3371,21,FALSE)) -> CM1-794 | H27: =CONCATENATE(H$1,"-",VLOOKUP($A27,fréquence!$A$16:$V$3371,22,FALSE)) -> CM2-1405 | J27: =IF(O27<>O24,IF(O27<>0,INT((O27-1)/fréquence!$AH$2)+1,""),"") -> 9 | K27: =IF(P27<>P24,IF(P27<>0,INT((P27-1)/fréquence!$AH$3)+1,""),"") ->  | L27: =IF(Q27<>Q24,IF(Q27<>0,INT((Q27-1)/fréquence!$AH$4)+1,""),"") ->  | M27: =IF(R27<>R24,IF(R27<>0,INT((R27-1)/fréquence!$AH$5)+1,""),"") ->  | N27: =IF(S27<>S24,IF(S27<>0,INT((S27-1)/fréquence!$AH$6)+1,""),"") ->  | O27: =IF(AND($A27>=fréquence!$AJ$2,$A27<=fréquence!$AK$2),O24+1,O24) -> 9 | P27: =IF(AND($A27>=fréquence!$AJ$3,$A27<=fréquence!$AK$3),P24+1,P24) -> 0 | Q27: =IF(AND($A27>=fréquence!$AJ$4,$A27<=fréquence!$AK$4),Q24+1,Q24) -> 0 | R27: =IF(AND($A27>=fréquence!$AJ$5,$A27<=fréquence!$AK$5),R24+1,R24) -> 0 | S27: =IF(AND($A27>=fréquence!$AJ$6,$A27<=fréquence!$AK$6),S24+1,S24) -> 0
D28: =IFERROR(VLOOKUP(J27,'Recherche mots connus'!$C$6:$D$187,2,FALSE),"") -> 2015-09-14 | E28: =IFERROR(VLOOKUP(K27,'Recherche mots connus'!$C$6:$D$187,2,FALSE),"") ->  | F28: =IFERROR(VLOOKUP(L27,'Recherche mots connus'!$C$6:$D$187,2,FALSE),"") ->  | G28: =IFERROR(VLOOKUP(M27,'Recherche mots connus'!$C$6:$D$187,2,FALSE),"") ->  | H28: =IFERROR(VLOOKUP(N27,'Recherche mots connus'!$C$6:$D$187,2,FALSE),"") -> 
A30: =A27+1 -> 10 | B30: =VLOOKUP($A30,fréquence!$W$16:$AO$2805,8,FALSE) -> et | C30: =VLOOKUP($A30,fréquence!$W$16:$AO$2805,11,FALSE) -> conjonction | D30: =CONCATENATE(D$1,"-",VLOOKUP($A30,fréquence!$A$16:$V$3371,18,FALSE)) -> CP-29 | E30: =CONCATENATE(E$1,"-",VLOOKUP($A30,fréquence!$A$16:$V$3371,19,FALSE)) -> CE1-75 | F30: =CONCATENATE(F$1,"-",VLOOKUP($A30,fréquence!$A$16:$V$3371,20,FALSE)) -> CE2-224 | G30: =CONCATENATE(G$1,"-",VLOOKUP($A30,fréquence!$A$16:$V$3371,21,FALSE)) -> CM1-464 | H30: =CONCATENATE(H$1,"-",VLOOKUP($A30,fréquence!$A$16:$V$3371,22,FALSE)) -> CM2-834 | J30: =IF(O30<>O27,IF(O30<>0,INT((O30-1)/fréquence!$AH$2)+1,""),"") -> 10 | K30: =IF(P30<>P27,IF(P30<>0,INT((P30-1)/fréquence!$AH$3)+1,""),"") ->  | L30: =IF(Q30<>Q27,IF(Q30<>0,INT((Q30-1)/fréquence!$AH$4)+1,""),"") ->  | M30: =IF(R30<>R27,IF(R30<>0,INT((R30-1)/fréquence!$AH$5)+1,""),"") ->  | N30: =IF(S30<>S27,IF(S30<>0,INT((S30-1)/fréquence!$AH$6)+1,""),"") ->  | O30: =IF(AND($A30>=fréquence!$AJ$2,$A30<=fréquence!$AK$2),O27+1,O27) -> 10 | P30: =IF(AND($A30>=fréquence!$AJ$3,$A30<=fréquence!$AK$3),P27+1,P27) -> 0 | Q30: =IF(AND($A30>=fréquence!$AJ$4,$A30<=fréquence!$AK$4),Q27+1,Q27) -> 0 | R30: =IF(AND($A30>=fréquence!$AJ$5,$A30<=fréquence!$AK$5),R27+1,R27) -> 0 | S30: =IF(AND($A30>=fréquence!$AJ$6,$A30<=fréquence!$AK$6),S27+1,S27) -> 0
D31: =IFERROR(VLOOKUP(J30,'Recherche mots connus'!$C$6:$D$187,2,FALSE),"") -> 2015-09-15 | E31: =IFERROR(VLOOKUP(K30,'Recherche mots connus'!$C$6:$D$187,2,FALSE),"") ->  | F31: =IFERROR(VLOOKUP(L30,'Recherche mots connus'!$C$6:$D$187,2,FALSE),"") ->  | G31: =IFERROR(VLOOKUP(M30,'Recherche mots connus'!$C$6:$D$187,2,FALSE),"") ->  | H31: =IFERROR(VLOOKUP(N30,'Recherche mots connus'!$C$6:$D$187,2,FALSE),"") -> 
A33: =A30+1 -> 11 | B33: =VLOOKUP($A33,fréquence!$W$16:$AO$2805,8,FALSE) -> à | C33: =VLOOKUP($A33,fréquence!$W$16:$AO$2805,11,FALSE) -> préposition | D33: =CONCATENATE(D$1,"-",VLOOKUP($A33,fréquence!$A$16:$V$3371,18,FALSE)) -> CP-2 | E33: =CONCATENATE(E$1,"-",VLOOKUP($A33,fréquence!$A$16:$V$3371,19,FALSE)) -> CE1-3 | F33: =CONCATENATE(F$1,"-",VLOOKUP($A33,fréquence!$A$16:$V$3371,20,FALSE)) -> CE2-3 | G33: =CONCATENATE(G$1,"-",VLOOKUP($A33,fréquence!$A$16:$V$3371,21,FALSE)) -> CM1-3 | H33: =CONCATENATE(H$1,"-",VLOOKUP($A33,fréquence!$A$16:$V$3371,22,FALSE)) -> CM2-3 | J33: =IF(O33<>O30,IF(O33<>0,INT((O33-1)/fréquence!$AH$2)+1,""),"") -> 11 | K33: =IF(P33<>P30,IF(P33<>0,INT((P33-1)/fréquence!$AH$3)+1,""),"") ->  | L33: =IF(Q33<>Q30,IF(Q33<>0,INT((Q33-1)/fréquence!$AH$4)+1,""),"") ->  | M33: =IF(R33<>R30,IF(R33<>0,INT((R33-1)/fréquence!$AH$5)+1,""),"") ->  | N33: =IF(S33<>S30,IF(S33<>0,INT((S33-1)/fréquence!$AH$6)+1,""),"") ->  | O33: =IF(AND($A33>=fréquence!$AJ$2,$A33<=fréquence!$AK$2),O30+1,O30) -> 11 | P33: =IF(AND($A33>=fréquence!$AJ$3,$A33<=fréquence!$AK$3),P30+1,P30) -> 0 | Q33: =IF(AND($A33>=fréquence!$AJ$4,$A33<=fréquence!$AK$4),Q30+1,Q30) -> 0 | R33: =IF(AND($A33>=fréquence!$AJ$5,$A33<=fréquence!$AK$5),R30+1,R30) -> 0 | S33: =IF(AND($A33>=fréquence!$AJ$6,$A33<=fréquence!$AK$6),S30+1,S30) -> 0
D34: =IFERROR(VLOOKUP(J33,'Recherche mots connus'!$C$6:$D$187,2,FALSE),"") -> 2015-09-16 | E34: =IFERROR(VLOOKUP(K33,'Recherche mots connus'!$C$6:$D$187,2,FALSE),"") ->  | F34: =IFERROR(VLOOKUP(L33,'Recherche mots connus'!$C$6:$D$187,2,FALSE),"") ->  | G34: =IFERROR(VLOOKUP(M33,'Recherche mots connus'!$C$6:$D$187,2,FALSE),"") ->  | H34: =IFERROR(VLOOKUP(N33,'Recherche mots connus'!$C$6:$D$187,2,FALSE),"") -> 
A36: =A33+1 -> 12 | B36: =VLOOKUP($A36,fréquence!$W$16:$AO$2805,8,FALSE) -> au | C36: =VLOOKUP($A36,fréquence!$W$16:$AO$2805,11,FALSE) -> préposition | D36: =CONCATENATE(D$1,"-",VLOOKUP($A36,fréquence!$A$16:$V$3371,18,FALSE)) -> CP-5 | E36: =CONCATENATE(E$1,"-",VLOOKUP($A36,fréquence!$A$16:$V$3371,19,FALSE)) -> CE1-11 | F36: =CONCATENATE(F$1,"-",VLOOKUP($A36,fréquence!$A$16:$V$3371,20,FALSE)) -> CE2-19 | G36: =CONCATENATE(G$1,"-",VLOOKUP($A36,fréquence!$A$16:$V$3371,21,FALSE)) -> CM1-50 | H36: =CONCATENATE(H$1,"-",VLOOKUP($A36,fréquence!$A$16:$V$3371,22,FALSE)) -> CM2-127 | J36: =IF(O36<>O33,IF(O36<>0,INT((O36-1)/fréquence!$AH$2)+1,""),"") -> 12 | K36: =IF(P36<>P33,IF(P36<>0,INT((P36-1)/fréquence!$AH$3)+1,""),"") ->  | L36: =IF(Q36<>Q33,IF(Q36<>0,INT((Q36-1)/fréquence!$AH$4)+1,""),"") ->  | M36: =IF(R36<>R33,IF(R36<>0,INT((R36-1)/fréquence!$AH$5)+1,""),"") ->  | N36: =IF(S36<>S33,IF(S36<>0,INT((S36-1)/fréquence!$AH$6)+1,""),"") ->  | O36: =IF(AND($A36>=fréquence!$AJ$2,$A36<=fréquence!$AK$2),O33+1,O33) -> 12 | P36: =IF(AND($A36>=fréquence!$AJ$3,$A36<=fréquence!$AK$3),P33+1,P33) -> 0 | Q36: =IF(AND($A36>=fréquence!$AJ$4,$A36<=fréquence!$AK$4),Q33+1,Q33) -> 0 | R36: =IF(AND($A36>=fréquence!$AJ$5,$A36<=fréquence!$AK$5),R33+1,R33) -> 0 | S36: =IF(AND($A36>=fréquence!$AJ$6,$A36<=fréquence!$AK$6),S33+1,S33) -> 0
D37: =IFERROR(VLOOKUP(J36,'Recherche mots connus'!$C$6:$D$187,2,FALSE),"") -> 2015-09-17 | E37: =IFERROR(VLOOKUP(K36,'Recherche mots connus'!$C$6:$D$187,2,FALSE),"") ->  | F37: =IFERROR(VLOOKUP(L36,'Recherche mots connus'!$C$6:$D$187,2,FALSE),"") ->  | G37: =IFERROR(VLOOKUP(M36,'Recherche mots connus'!$C$6:$D$187,2,FALSE),"") ->  | H37: =IFERROR(VLOOKUP(N36,'Recherche mots connus'!$C$6:$D$187,2,FALSE),"") -> 
A39: =A36+1 -> 13 | B39: =VLOOKUP($A39,fréquence!$W$16:$AO$2805,8,FALSE) -> ou | C39: =VLOOKUP($A39,fréquence!$W$16:$AO$2805,11,FALSE) -> conjonction | D39: =CONCATENATE(D$1,"-",VLOOKUP($A39,fréquence!$A$16:$V$3371,18,FALSE)) -> CP-74 | E39: =CONCATENATE(E$1,"-",VLOOKUP($A39,fréquence!$A$16:$V$3371,19,FALSE)) -> CE1-176 | F39: =CONCATENATE(F$1,"-",VLOOKUP($A39,fréquence!$A$16:$V$3371,20,FALSE)) -> CE2-469 | G39: =CONCATENATE(G$1,"-",VLOOKUP($A39,fréquence!$A$16:$V$3371,21,FALSE)) -> CM1-910 | H39: =CONCATENATE(H$1,"-",VLOOKUP($A39,fréquence!$A$16:$V$3371,22,FALSE)) -> CM2-1568 | J39: =IF(O39<>O36,IF(O39<>0,INT((O39-1)/fréquence!$AH$2)+1,""),"") -> 13 | K39: =IF(P39<>P36,IF(P39<>0,INT((P39-1)/fréquence!$AH$3)+1,""),"") ->  | L39: =IF(Q39<>Q36,IF(Q39<>0,INT((Q39-1)/fréquence!$AH$4)+1,""),"") ->  | M39: =IF(R39<>R36,IF(R39<>0,INT((R39-1)/fréquence!$AH$5)+1,""),"") ->  | N39: =IF(S39<>S36,IF(S39<>0,INT((S39-1)/fréquence!$AH$6)+1,""),"") ->  | O39: =IF(AND($A39>=fréquence!$AJ$2,$A39<=fréquence!$AK$2),O36+1,O36) -> 13 | P39: =IF(AND($A39>=fréquence!$AJ$3,$A39<=fréquence!$AK$3),P36+1,P36) -> 0 | Q39: =IF(AND($A39>=fréquence!$AJ$4,$A39<=fréquence!$AK$4),Q36+1,Q36) -> 0 | R39: =IF(AND($A39>=fréquence!$AJ$5,$A39<=fréquence!$AK$5),R36+1,R36) -> 0 | S39: =IF(AND($A39>=fréquence!$AJ$6,$A39<=fréquence!$AK$6),S36+1,S36) -> 0
D40: =IFERROR(VLOOKUP(J39,'Recherche mots connus'!$C$6:$D$187,2,FALSE),"") -> 2015-09-18 | E40: =IFERROR(VLOOKUP(K39,'Recherche mots connus'!$C$6:$D$187,2,FALSE),"") ->  | F40: =IFERROR(VLOOKUP(L39,'Recherche mots connus'!$C$6:$D$187,2,FALSE),"") ->  | G40: =IFERROR(VLOOKUP(M39,'Recherche mots connus'!$C$6:$D$187,2,FALSE),"") ->  | H40: =IFERROR(VLOOKUP(N39,'Recherche mots connus'!$C$6:$D$187,2,FALSE),"") -> 
A42: =A39+1 -> 14 | B42: =VLOOKUP($A42,fréquence!$W$16:$AO$2805,8,FALSE) -> dans | C42: =VLOOKUP($A42,fréquence!$W$16:$AO$2805,11,FALSE) -> préposition | D42: =CONCATENATE(D$1,"-",VLOOKUP($A42,fréquence!$A$16:$V$3371,18,FALSE)) -> CP-19 | E42: =CONCATENATE(E$1,"-",VLOOKUP($A42,fréquence!$A$16:$V$3371,19,FALSE)) -> CE1-56 | F42: =CONCATENATE(F$1,"-",VLOOKUP($A42,fréquence!$A$16:$V$3371,20,FALSE)) -> CE2-165 | G42: =CONCATENATE(G$1,"-",VLOOKUP($A42,fréquence!$A$16:$V$3371,21,FALSE)) -> CM1-332 | H42: =CONCATENATE(H$1,"-",VLOOKUP($A42,fréquence!$A$16:$V$3371,22,FALSE)) -> CM2-567 | J42: =IF(O42<>O39,IF(O42<>0,INT((O42-1)/fréquence!$AH$2)+1,""),"") -> 14 | K42: =IF(P42<>P39,IF(P42<>0,INT((P42-1)/fréquence!$AH$3)+1,""),"") ->  | L42: =IF(Q42<>Q39,IF(Q42<>0,INT((Q42-1)/fréquence!$AH$4)+1,""),"") ->  | M42: =IF(R42<>R39,IF(R42<>0,INT((R42-1)/fréquence!$AH$5)+1,""),"") ->  | N42: =IF(S42<>S39,IF(S42<>0,INT((S42-1)/fréquence!$AH$6)+1,""),"") ->  | O42: =IF(AND($A42>=fréquence!$AJ$2,$A42<=fréquence!$AK$2),O39+1,O39) -> 14 | P42: =IF(AND($A42>=fréquence!$AJ$3,$A42<=fréquence!$AK$3),P39+1,P39) -> 0 | Q42: =IF(AND($A42>=fréquence!$AJ$4,$A42<=fréquence!$AK$4),Q39+1,Q39) -> 0 | R42: =IF(AND($A42>=fréquence!$AJ$5,$A42<=fréquence!$AK$5),R39+1,R39) -> 0 | S42: =IF(AND($A42>=fréquence!$AJ$6,$A42<=fréquence!$AK$6),S39+1,S39) -> 0
D43: =IFERROR(VLOOKUP(J42,'Recherche mots connus'!$C$6:$D$187,2,FALSE),"") -> 2015-09-21 | E43: =IFERROR(VLOOKUP(K42,'Recherche mots connus'!$C$6:$D$187,2,FALSE),"") ->  | F43: =IFERROR(VLOOKUP(L42,'Recherche mots connus'!$C$6:$D$187,2,FALSE),"") ->  | G43: =IFERROR(VLOOKUP(M42,'Recherche mots connus'!$C$6:$D$187,2,FALSE),"") ->  | H43: =IFERROR(VLOOKUP(N42,'Recherche mots connus'!$C$6:$D$187,2,FALSE),"") -> 
A45: =A42+1 -> 15 | B45: =VLOOKUP($A45,fréquence!$W$16:$AO$2805,8,FALSE) -> sur | C45: =VLOOKUP($A45,fréquence!$W$16:$AO$2805,11,FALSE) -> préposition | D45: =CONCATENATE(D$1,"-",VLOOKUP($A45,fréquence!$A$16:$V$3371,18,FALSE)) -> CP-101 | E45: =CONCATENATE(E$1,"-",VLOOKUP($A45,fréquence!$A$16:$V$3371,19,FALSE)) -> CE1-233 | F45: =CONCATENATE(F$1,"-",VLOOKUP($A45,fréquence!$A$16:$V$3371,20,FALSE)) -> CE2-641 | G45: =CONCATENATE(G$1,"-",VLOOKUP($A45,fréquence!$A$16:$V$3371,21,FALSE)) -> CM1-1297 | H45: =CONCATENATE(H$1,"-",VLOOKUP($A45,fréquence!$A$16:$V$3371,22,FALSE)) -> CM2-2202 | J45: =IF(O45<>O42,IF(O45<>0,INT((O45-1)/fréquence!$AH$2)+1,""),"") -> 15 | K45: =IF(P45<>P42,IF(P45<>0,INT((P45-1)/fréquence!$AH$3)+1,""),"") ->  | L45: =IF(Q45<>Q42,IF(Q45<>0,INT((Q45-1)/fréquence!$AH$4)+1,""),"") ->  | M45: =IF(R45<>R42,IF(R45<>0,INT((R45-1)/fréquence!$AH$5)+1,""),"") ->  | N45: =IF(S45<>S42,IF(S45<>0,INT((S45-1)/fréquence!$AH$6)+1,""),"") ->  | O45: =IF(AND($A45>=fréquence!$AJ$2,$A45<=fréquence!$AK$2),O42+1,O42) -> 15 | P45: =IF(AND($A45>=fréquence!$AJ$3,$A45<=fréquence!$AK$3),P42+1,P42) -> 0 | Q45: =IF(AND($A45>=fréquence!$AJ$4,$A45<=fréquence!$AK$4),Q42+1,Q42) -> 0 | R45: =IF(AND($A45>=fréquence!$AJ$5,$A45<=fréquence!$AK$5),R42+1,R42) -> 0 | S45: =IF(AND($A45>=fréquence!$AJ$6,$A45<=fréquence!$AK$6),S42+1,S42) -> 0
D46: =IFERROR(VLOOKUP(J45,'Recherche mots connus'!$C$6:$D$187,2,FALSE),"") -> 2015-09-22 | E46: =IFERROR(VLOOKUP(K45,'Recherche mots connus'!$C$6:$D$187,2,FALSE),"") ->  | F46: =IFERROR(VLOOKUP(L45,'Recherche mots connus'!$C$6:$D$187,2,FALSE),"") ->  | G46: =IFERROR(VLOOKUP(M45,'Recherche mots connus'!$C$6:$D$187,2,FALSE),"") ->  | H46: =IFERROR(VLOOKUP(N45,'Recherche mots connus'!$C$6:$D$187,2,FALSE),"") -> 
A48: =A45+1 -> 16 | B48: =VLOOKUP($A48,fréquence!$W$16:$AO$2805,8,FALSE) -> une fille ; des filles | C48: =VLOOKUP($A48,fréquence!$W$16:$AO$2805,11,FALSE) -> nom commun | D48: =CONCATENATE(D$1,"-",VLOOKUP($A48,fréquence!$A$16:$V$3371,18,FALSE)) -> CP-33 | E48: =CONCATENATE(E$1,"-",VLOOKUP($A48,fréquence!$A$16:$V$3371,19,FALSE)) -> CE1-85 | F48: =CONCATENATE(F$1,"-",VLOOKUP($A48,fréquence!$A$16:$V$3371,20,FALSE)) -> CE2-251 | G48: =CONCATENATE(G$1,"-",VLOOKUP($A48,fréquence!$A$16:$V$3371,21,FALSE)) -> CM1-514 | H48: =CONCATENATE(H$1,"-",VLOOKUP($A48,fréquence!$A$16:$V$3371,22,FALSE)) -> CM2-934 | J48: =IF(O48<>O45,IF(O48<>0,INT((O48-1)/fréquence!$AH$2)+1,""),"") -> 16 | K48: =IF(P48<>P45,IF(P48<>0,INT((P48-1)/fréquence!$AH$3)+1,""),"") ->  | L48: =IF(Q48<>Q45,IF(Q48<>0,INT((Q48-1)/fréquence!$AH$4)+1,""),"") ->  | M48: =IF(R48<>R45,IF(R48<>0,INT((R48-1)/fréquence!$AH$5)+1,""),"") ->  | N48: =IF(S48<>S45,IF(S48<>0,INT((S48-1)/fréquence!$AH$6)+1,""),"") ->  | O48: =IF(AND($A48>=fréquence!$AJ$2,$A48<=fréquence!$AK$2),O45+1,O45) -> 16 | P48: =IF(AND($A48>=fréquence!$AJ$3,$A48<=fréquence!$AK$3),P45+1,P45) -> 0 | Q48: =IF(AND($A48>=fréquence!$AJ$4,$A48<=fréquence!$AK$4),Q45+1,Q45) -> 0 | R48: =IF(AND($A48>=fréquence!$AJ$5,$A48<=fréquence!$AK$5),R45+1,R45) -> 0 | S48: =IF(AND($A48>=fréquence!$AJ$6,$A48<=fréquence!$AK$6),S45+1,S45) -> 0
D49: =IFERROR(VLOOKUP(J48,'Recherche mots connus'!$C$6:$D$187,2,FALSE),"") -> 2015-09-23 | E49: =IFERROR(VLOOKUP(K48,'Recherche mots connus'!$C$6:$D$187,2,FALSE),"") ->  | F49: =IFERROR(VLOOKUP(L48,'Recherche mots connus'!$C$6:$D$187,2,FALSE),"") ->  | G49: =IFERROR(VLOOKUP(M48,'Recherche mots connus'!$C$6:$D$187,2,FALSE),"") ->  | H49: =IFERROR(VLOOKUP(N48,'Recherche mots connus'!$C$6:$D$187,2,FALSE),"") -> 
A51: =A48+1 -> 17 | B51: =VLOOKUP($A51,fréquence!$W$16:$AO$2805,8,FALSE) -> un garçon ; des garçons | C51: =VLOOKUP($A51,fréquence!$W$16:$AO$2805,11,FALSE) -> nom commun | D51: =CONCATENATE(D$1,"-",VLOOKUP($A51,fréquence!$A$16:$V$3371,18,FALSE)) -> CP-35 | E51: =CONCATENATE(E$1,"-",VLOOKUP($A51,fréquence!$A$16:$V$3371,19,FALSE)) -> CE1-92 | F51: =CONCATENATE(F$1,"-",VLOOKUP($A51,fréquence!$A$16:$V$3371,20,FALSE)) -> CE2-278 | G51: =CONCATENATE(G$1,"-",VLOOKUP($A51,fréquence!$A$16:$V$3371,21,FALSE)) -> CM1-554 | H51: =CONCATENATE(H$1,"-",VLOOKUP($A51,fréquence!$A$16:$V$3371,22,FALSE)) -> CM2-1011 | J51: =IF(O51<>O48,IF(O51<>0,INT((O51-1)/fréquence!$AH$2)+1,""),"") -> 17 | K51: =IF(P51<>P48,IF(P51<>0,INT((P51-1)/fréquence!$AH$3)+1,""),"") ->  | L51: =IF(Q51<>Q48,IF(Q51<>0,INT((Q51-1)/fréquence!$AH$4)+1,""),"") ->  | M51: =IF(R51<>R48,IF(R51<>0,INT((R51-1)/fréquence!$AH$5)+1,""),"") ->  | N51: =IF(S51<>S48,IF(S51<>0,INT((S51-1)/fréquence!$AH$6)+1,""),"") ->  | O51: =IF(AND($A51>=fréquence!$AJ$2,$A51<=fréquence!$AK$2),O48+1,O48) -> 17 | P51: =IF(AND($A51>=fréquence!$AJ$3,$A51<=fréquence!$AK$3),P48+1,P48) -> 0 | Q51: =IF(AND($A51>=fréquence!$AJ$4,$A51<=fréquence!$AK$4),Q48+1,Q48) -> 0 | R51: =IF(AND($A51>=fréquence!$AJ$5,$A51<=fréquence!$AK$5),R48+1,R48) -> 0 | S51: =IF(AND($A51>=fréquence!$AJ$6,$A51<=fréquence!$AK$6),S48+1,S48) -> 0
D52: =IFERROR(VLOOKUP(J51,'Recherche mots connus'!$C$6:$D$187,2,FALSE),"") -> 2015-09-24 | E52: =IFERROR(VLOOKUP(K51,'Recherche mots connus'!$C$6:$D$187,2,FALSE),"") ->  | F52: =IFERROR(VLOOKUP(L51,'Recherche mots connus'!$C$6:$D$187,2,FALSE),"") ->  | G52: =IFERROR(VLOOKUP(M51,'Recherche mots connus'!$C$6:$D$187,2,FALSE),"") ->  | H52: =IFERROR(VLOOKUP(N51,'Recherche mots connus'!$C$6:$D$187,2,FALSE),"") -> 
A54: =A51+1 -> 18 | B54: =VLOOKUP($A54,fréquence!$W$16:$AO$2805,8,FALSE) -> un lapin ; des lapins | C54: =VLOOKUP($A54,fréquence!$W$16:$AO$2805,11,FALSE) -> nom commun | D54: =CONCATENATE(D$1,"-",VLOOKUP($A54,fréquence!$A$16:$V$3371,18,FALSE)) -> CP-51 | E54: =CONCATENATE(E$1,"-",VLOOKUP($A54,fréquence!$A$16:$V$3371,19,FALSE)) -> CE1-120 | F54: =CONCATENATE(F$1,"-",VLOOKUP($A54,fréquence!$A$16:$V$3371,20,FALSE)) -> CE2-342 | G54: =CONCATENATE(G$1,"-",VLOOKUP($A54,fréquence!$A$16:$V$3371,21,FALSE)) -> CM1-684 | H54: =CONCATENATE(H$1,"-",VLOOKUP($A54,fréquence!$A$16:$V$3371,22,FALSE)) -> CM2-1244 | J54: =IF(O54<>O51,IF(O54<>0,INT((O54-1)/fréquence!$AH$2)+1,""),"") -> 18 | K54: =IF(P54<>P51,IF(P54<>0,INT((P54-1)/fréquence!$AH$3)+1,""),"") ->  | L54: =IF(Q54<>Q51,IF(Q54<>0,INT((Q54-1)/fréquence!$AH$4)+1,""),"") ->  | M54: =IF(R54<>R51,IF(R54<>0,INT((R54-1)/fréquence!$AH$5)+1,""),"") ->  | N54: =IF(S54<>S51,IF(S54<>0,INT((S54-1)/fréquence!$AH$6)+1,""),"") ->  | O54: =IF(AND($A54>=fréquence!$AJ$2,$A54<=fréquence!$AK$2),O51+1,O51) -> 18 | P54: =IF(AND($A54>=fréquence!$AJ$3,$A54<=fréquence!$AK$3),P51+1,P51) -> 0 | Q54: =IF(AND($A54>=fréquence!$AJ$4,$A54<=fréquence!$AK$4),Q51+1,Q51) -> 0 | R54: =IF(AND($A54>=fréquence!$AJ$5,$A54<=fréquence!$AK$5),R51+1,R51) -> 0 | S54: =IF(AND($A54>=fréquence!$AJ$6,$A54<=fréquence!$AK$6),S51+1,S51) -> 0
D55: =IFERROR(VLOOKUP(J54,'Recherche mots connus'!$C$6:$D$187,2,FALSE),"") -> 2015-09-25 | E55: =IFERROR(VLOOKUP(K54,'Recherche mots connus'!$C$6:$D$187,2,FALSE),"") ->  | F55: =IFERROR(VLOOKUP(L54,'Recherche mots connus'!$C$6:$D$187,2,FALSE),"") ->  | G55: =IFERROR(VLOOKUP(M54,'Recherche mots connus'!$C$6:$D$187,2,FALSE),"") ->  | H55: =IFERROR(VLOOKUP(N54,'Recherche mots connus'!$C$6:$D$187,2,FALSE),"") -> 
A57: =A54+1 -> 19 | B57: =VLOOKUP($A57,fréquence!$W$16:$AO$2805,8,FALSE) -> une lapine ; des lapines | C57: =VLOOKUP($A57,fréquence!$W$16:$AO$2805,11,FALSE) -> nom commun | D57: =CONCATENATE(D$1,"-",VLOOKUP($A57,fréquence!$A$16:$V$3371,18,FALSE)) -> CP-52 | E57: =CONCATENATE(E$1,"-",VLOOKUP($A57,fréquence!$A$16:$V$3371,19,FALSE)) -> CE1-121 | F57: =CONCATENATE(F$1,"-",VLOOKUP($A57,fréquence!$A$16:$V$3371,20,FALSE)) -> CE2-343 | G57: =CONCATENATE(G$1,"-",VLOOKUP($A57,fréquence!$A$16:$V$3371,21,FALSE)) -> CM1-685 | H57: =CONCATENATE(H$1,"-",VLOOKUP($A57,fréquence!$A$16:$V$3371,22,FALSE)) -> CM2-1245 | J57: =IF(O57<>O54,IF(O57<>0,INT((O57-1)/fréquence!$AH$2)+1,""),"") -> 19 | K57: =IF(P57<>P54,IF(P57<>0,INT((P57-1)/fréquence!$AH$3)+1,""),"") ->  | L57: =IF(Q57<>Q54,IF(Q57<>0,INT((Q57-1)/fréquence!$AH$4)+1,""),"") ->  | M57: =IF(R57<>R54,IF(R57<>0,INT((R57-1)/fréquence!$AH$5)+1,""),"") ->  | N57: =IF(S57<>S54,IF(S57<>0,INT((S57-1)/fréquence!$AH$6)+1,""),"") ->  | O57: =IF(AND($A57>=fréquence!$AJ$2,$A57<=fréquence!$AK$2),O54+1,O54) -> 19 | P57: =IF(AND($A57>=fréquence!$AJ$3,$A57<=fréquence!$AK$3),P54+1,P54) -> 0 | Q57: =IF(AND($A57>=fréquence!$AJ$4,$A57<=fréquence!$AK$4),Q54+1,Q54) -> 0 | R57: =IF(AND($A57>=fréquence!$AJ$5,$A57<=fréquence!$AK$5),R54+1,R54) -> 0 | S57: =IF(AND($A57>=fréquence!$AJ$6,$A57<=fréquence!$AK$6),S54+1,S54) -> 0
D58: =IFERROR(VLOOKUP(J57,'Recherche mots connus'!$C$6:$D$187,2,FALSE),"") -> 2015-09-28 | E58: =IFERROR(VLOOKUP(K57,'Recherche mots connus'!$C$6:$D$187,2,FALSE),"") ->  | F58: =IFERROR(VLOOKUP(L57,'Recherche mots connus'!$C$6:$D$187,2,FALSE),"") ->  | G58: =IFERROR(VLOOKUP(M57,'Recherche mots connus'!$C$6:$D$187,2,FALSE),"") ->  | H58: =IFERROR(VLOOKUP(N57,'Recherche mots connus'!$C$6:$D$187,2,FALSE),"") -> 
A60: =A57+1 -> 20 | B60: =VLOOKUP($A60,fréquence!$W$16:$AO$2805,8,FALSE) -> une tête ; des têtes | C60: =VLOOKUP($A60,fréquence!$W$16:$AO$2805,11,FALSE) -> nom commun | D60: =CONCATENATE(D$1,"-",VLOOKUP($A60,fréquence!$A$16:$V$3371,18,FALSE)) -> CP-105 | E60: =CONCATENATE(E$1,"-",VLOOKUP($A60,fréquence!$A$16:$V$3371,19,FALSE)) -> CE1-240 | F60: =CONCATENATE(F$1,"-",VLOOKUP($A60,fréquence!$A$16:$V$3371,20,FALSE)) -> CE2-653 | G60: =CONCATENATE(G$1,"-",VLOOKUP($A60,fréquence!$A$16:$V$3371,21,FALSE)) -> CM1-1329 | H60: =CONCATENATE(H$1,"-",VLOOKUP($A60,fréquence!$A$16:$V$3371,22,FALSE)) -> CM2-2254 | J60: =IF(O60<>O57,IF(O60<>0,INT((O60-1)/fréquence!$AH$2)+1,""),"") -> 20 | K60: =IF(P60<>P57,IF(P60<>0,INT((P60-1)/fréquence!$AH$3)+1,""),"") ->  | L60: =IF(Q60<>Q57,IF(Q60<>0,INT((Q60-1)/fréquence!$AH$4)+1,""),"") ->  | M60: =IF(R60<>R57,IF(R60<>0,INT((R60-1)/fréquence!$AH$5)+1,""),"") ->  | N60: =IF(S60<>S57,IF(S60<>0,INT((S60-1)/fréquence!$AH$6)+1,""),"") ->  | O60: =IF(AND($A60>=fréquence!$AJ$2,$A60<=fréquence!$AK$2),O57+1,O57) -> 20 | P60: =IF(AND($A60>=fréquence!$AJ$3,$A60<=fréquence!$AK$3),P57+1,P57) -> 0 | Q60: =IF(AND($A60>=fréquence!$AJ$4,$A60<=fréquence!$AK$4),Q57+1,Q57) -> 0 | R60: =IF(AND($A60>=fréquence!$AJ$5,$A60<=fréquence!$AK$5),R57+1,R57) -> 0 | S60: =IF(AND($A60>=fréquence!$AJ$6,$A60<=fréquence!$AK$6),S57+1,S57) -> 0
D61: =IFERROR(VLOOKUP(J60,'Recherche mots connus'!$C$6:$D$187,2,FALSE),"") -> 2015-09-29 | E61: =IFERROR(VLOOKUP(K60,'Recherche mots connus'!$C$6:$D$187,2,FALSE),"") ->  | F61: =IFERROR(VLOOKUP(L60,'Recherche mots connus'!$C$6:$D$187,2,FALSE),"") ->  | G61: =IFERROR(VLOOKUP(M60,'Recherche mots connus'!$C$6:$D$187,2,FALSE),"") ->  | H61: =IFERROR(VLOOKUP(N60,'Recherche mots connus'!$C$6:$D$187,2,FALSE),"") -> 
A63: =A60+1 -> 21 | B63: =VLOOKUP($A63,fréquence!$W$16:$AO$2805,8,FALSE) -> un sac ; des sacs | C63: =VLOOKUP($A63,fréquence!$W$16:$AO$2805,11,FALSE) -> nom commun | D63: =CONCATENATE(D$1,"-",VLOOKUP($A63,fréquence!$A$16:$V$3371,18,FALSE)) -> CP-91 | E63: =CONCATENATE(E$1,"-",VLOOKUP($A63,fréquence!$A$16:$V$3371,19,FALSE)) -> CE1-216 | F63: =CONCATENATE(F$1,"-",VLOOKUP($A63,fréquence!$A$16:$V$3371,20,FALSE)) -> CE2-595 | G63: =CONCATENATE(G$1,"-",VLOOKUP($A63,fréquence!$A$16:$V$3371,21,FALSE)) -> CM1-1192 | H63: =CONCATENATE(H$1,"-",VLOOKUP($A63,fréquence!$A$16:$V$3371,22,FALSE)) -> CM2-2034 | J63: =IF(O63<>O60,IF(O63<>0,INT((O63-1)/fréquence!$AH$2)+1,""),"") -> 21 | K63: =IF(P63<>P60,IF(P63<>0,INT((P63-1)/fréquence!$AH$3)+1,""),"") ->  | L63: =IF(Q63<>Q60,IF(Q63<>0,INT((Q63-1)/fréquence!$AH$4)+1,""),"") ->  | M63: =IF(R63<>R60,IF(R63<>0,INT((R63-1)/fréquence!$AH$5)+1,""),"") ->  | N63: =IF(S63<>S60,IF(S63<>0,INT((S63-1)/fréquence!$AH$6)+1,""),"") ->  | O63: =IF(AND($A63>=fréquence!$AJ$2,$A63<=fréquence!$AK$2),O60+1,O60) -> 21 | P63: =IF(AND($A63>=fréquence!$AJ$3,$A63<=fréquence!$AK$3),P60+1,P60) -> 0 | Q63: =IF(AND($A63>=fréquence!$AJ$4,$A63<=fréquence!$AK$4),Q60+1,Q60) -> 0 | R63: =IF(AND($A63>=fréquence!$AJ$5,$A63<=fréquence!$AK$5),R60+1,R60) -> 0 | S63: =IF(AND($A63>=fréquence!$AJ$6,$A63<=fréquence!$AK$6),S60+1,S60) -> 0
D64: =IFERROR(VLOOKUP(J63,'Recherche mots connus'!$C$6:$D$187,2,FALSE),"") -> 2015-09-30 | E64: =IFERROR(VLOOKUP(K63,'Recherche mots connus'!$C$6:$D$187,2,FALSE),"") ->  | F64: =IFERROR(VLOOKUP(L63,'Recherche mots connus'!$C$6:$D$187,2,FALSE),"") ->  | G64: =IFERROR(VLOOKUP(M63,'Recherche mots connus'!$C$6:$D$187,2,FALSE),"") ->  | H64: =IFERROR(VLOOKUP(N63,'Recherche mots connus'!$C$6:$D$187,2,FALSE),"") -> 
A66: =A63+1 -> 22 | B66: =VLOOKUP($A66,fréquence!$W$16:$AO$2805,8,FALSE) -> petit ; petite ; petits ; petites | C66: =VLOOKUP($A66,fréquence!$W$16:$AO$2805,11,FALSE) -> adjectif | D66: =CONCATENATE(D$1,"-",VLOOKUP($A66,fréquence!$A$16:$V$3371,18,FALSE)) -> CP-77 | E66: =CONCATENATE(E$1,"-",VLOOKUP($A66,fréquence!$A$16:$V$3371,19,FALSE)) -> CE1-182 | F66: =CONCATENATE(F$1,"-",VLOOKUP($A66,fréquence!$A$16:$V$3371,20,FALSE)) -> CE2-494 | G66: =CONCATENATE(G$1,"-",VLOOKUP($A66,fréquence!$A$16:$V$3371,21,FALSE)) -> CM1-975 | H66: =CONCATENATE(H$1,"-",VLOOKUP($A66,fréquence!$A$16:$V$3371,22,FALSE)) -> CM2-1661 | J66: =IF(O66<>O63,IF(O66<>0,INT((O66-1)/fréquence!$AH$2)+1,""),"") -> 22 | K66: =IF(P66<>P63,IF(P66<>0,INT((P66-1)/fréquence!$AH$3)+1,""),"") ->  | L66: =IF(Q66<>Q63,IF(Q66<>0,INT((Q66-1)/fréquence!$AH$4)+1,""),"") ->  | M66: =IF(R66<>R63,IF(R66<>0,INT((R66-1)/fréquence!$AH$5)+1,""),"") ->  | N66: =IF(S66<>S63,IF(S66<>0,INT((S66-1)/fréquence!$AH$6)+1,""),"") ->  | O66: =IF(AND($A66>=fréquence!$AJ$2,$A66<=fréquence!$AK$2),O63+1,O63) -> 22 | P66: =IF(AND($A66>=fréquence!$AJ$3,$A66<=fréquence!$AK$3),P63+1,P63) -> 0 | Q66: =IF(AND($A66>=fréquence!$AJ$4,$A66<=fréquence!$AK$4),Q63+1,Q63) -> 0 | R66: =IF(AND($A66>=fréquence!$AJ$5,$A66<=fréquence!$AK$5),R63+1,R63) -> 0 | S66: =IF(AND($A66>=fréquence!$AJ$6,$A66<=fréquence!$AK$6),S63+1,S63) -> 0
D67: =IFERROR(VLOOKUP(J66,'Recherche mots connus'!$C$6:$D$187,2,FALSE),"") -> 2015-10-01 | E67: =IFERROR(VLOOKUP(K66,'Recherche mots connus'!$C$6:$D$187,2,FALSE),"") ->  | F67: =IFERROR(VLOOKUP(L66,'Recherche mots connus'!$C$6:$D$187,2,FALSE),"") ->  | G67: =IFERROR(VLOOKUP(M66,'Recherche mots connus'!$C$6:$D$187,2,FALSE),"") ->  | H67: =IFERROR(VLOOKUP(N66,'Recherche mots connus'!$C$6:$D$187,2,FALSE),"") -> 
A69: =A66+1 -> 23 | B69: =VLOOKUP($A69,fréquence!$W$16:$AO$2805,8,FALSE) -> malade ; malades | C69: =VLOOKUP($A69,fréquence!$W$16:$AO$2805,11,FALSE) -> adjectif | D69: =CONCATENATE(D$1,"-",VLOOKUP($A69,fréquence!$A$16:$V$3371,18,FALSE)) -> CP-59 | E69: =CONCATENATE(E$1,"-",VLOOKUP($A69,fréquence!$A$16:$V$3371,19,FALSE)) -> CE1-138 | F69: =CONCATENATE(F$1,"-",VLOOKUP($A69,fréquence!$A$16:$V$3371,20,FALSE)) -> CE2-386 | G69: =CONCATENATE(G$1,"-",VLOOKUP($A69,fréquence!$A$16:$V$3371,21,FALSE)) -> CM1-748 | H69: =CONCATENATE(H$1,"-",VLOOKUP($A69,fréquence!$A$16:$V$3371,22,FALSE)) -> CM2-1330 | J69: =IF(O69<>O66,IF(O69<>0,INT((O69-1)/fréquence!$AH$2)+1,""),"") -> 23 | K69: =IF(P69<>P66,IF(P69<>0,INT((P69-1)/fréquence!$AH$3)+1,""),"") ->  | L69: =IF(Q69<>Q66,IF(Q69<>0,INT((Q69-1)/fréquence!$AH$4)+1,""),"") ->  | M69: =IF(R69<>R66,IF(R69<>0,INT((R69-1)/fréquence!$AH$5)+1,""),"") ->  | N69: =IF(S69<>S66,IF(S69<>0,INT((S69-1)/fréquence!$AH$6)+1,""),"") ->  | O69: =IF(AND($A69>=fréquence!$AJ$2,$A69<=fréquence!$AK$2),O66+1,O66) -> 23 | P69: =IF(AND($A69>=fréquence!$AJ$3,$A69<=fréquence!$AK$3),P66+1,P66) -> 0 | Q69: =IF(AND($A69>=fréquence!$AJ$4,$A69<=fréquence!$AK$4),Q66+1,Q66) -> 0 | R69: =IF(AND($A69>=fréquence!$AJ$5,$A69<=fréquence!$AK$5),R66+1,R66) -> 0 | S69: =IF(AND($A69>=fréquence!$AJ$6,$A69<=fréquence!$AK$6),S66+1,S66) -> 0
D70: =IFERROR(VLOOKUP(J69,'Recherche mots connus'!$C$6:$D$187,2,FALSE),"") -> 2015-10-02 | E70: =IFERROR(VLOOKUP(K69,'Recherche mots connus'!$C$6:$D$187,2,FALSE),"") ->  | F70: =IFERROR(VLOOKUP(L69,'Recherche mots connus'!$C$6:$D$187,2,FALSE),"") ->  | G70: =IFERROR(VLOOKUP(M69,'Recherche mots connus'!$C$6:$D$187,2,FALSE),"") ->  | H70: =IFERROR(VLOOKUP(N69,'Recherche mots connus'!$C$6:$D$187,2,FALSE),"") -> 
A72: =A69+1 -> 24 | B72: =VLOOKUP($A72,fréquence!$W$16:$AO$2805,8,FALSE) -> un os ; des os | C72: =VLOOKUP($A72,fréquence!$W$16:$AO$2805,11,FALSE) -> nom commun | D72: =CONCATENATE(D$1,"-",VLOOKUP($A72,fréquence!$A$16:$V$3371,18,FALSE)) -> CP-73 | E72: =CONCATENATE(E$1,"-",VLOOKUP($A72,fréquence!$A$16:$V$3371,19,FALSE)) -> CE1-175 | F72: =CONCATENATE(F$1,"-",VLOOKUP($A72,fréquence!$A$16:$V$3371,20,FALSE)) -> CE2-468 | G72: =CONCATENATE(G$1,"-",VLOOKUP($A72,fréquence!$A$16:$V$3371,21,FALSE)) -> CM1-909 | H72: =CONCATENATE(H$1,"-",VLOOKUP($A72,fréquence!$A$16:$V$3371,22,FALSE)) -> CM2-1567 | J72: =IF(O72<>O69,IF(O72<>0,INT((O72-1)/fréquence!$AH$2)+1,""),"") -> 24 | K72: =IF(P72<>P69,IF(P72<>0,INT((P72-1)/fréquence!$AH$3)+1,""),"") ->  | L72: =IF(Q72<>Q69,IF(Q72<>0,INT((Q72-1)/fréquence!$AH$4)+1,""),"") ->  | M72: =IF(R72<>R69,IF(R72<>0,INT((R72-1)/fréquence!$AH$5)+1,""),"") ->  | N72: =IF(S72<>S69,IF(S72<>0,INT((S72-1)/fréquence!$AH$6)+1,""),"") ->  | O72: =IF(AND($A72>=fréquence!$AJ$2,$A72<=fréquence!$AK$2),O69+1,O69) -> 24 | P72: =IF(AND($A72>=fréquence!$AJ$3,$A72<=fréquence!$AK$3),P69+1,P69) -> 0 | Q72: =IF(AND($A72>=fréquence!$AJ$4,$A72<=fréquence!$AK$4),Q69+1,Q69) -> 0 | R72: =IF(AND($A72>=fréquence!$AJ$5,$A72<=fréquence!$AK$5),R69+1,R69) -> 0 | S72: =IF(AND($A72>=fréquence!$AJ$6,$A72<=fréquence!$AK$6),S69+1,S69) -> 0
D73: =IFERROR(VLOOKUP(J72,'Recherche mots connus'!$C$6:$D$187,2,FALSE),"") -> 2015-10-05 | E73: =IFERROR(VLOOKUP(K72,'Recherche mots connus'!$C$6:$D$187,2,FALSE),"") ->  | F73: =IFERROR(VLOOKUP(L72,'Recherche mots connus'!$C$6:$D$187,2,FALSE),"") ->  | G73: =IFERROR(VLOOKUP(M72,'Recherche mots connus'!$C$6:$D$187,2,FALSE),"") ->  | H73: =IFERROR(VLOOKUP(N72,'Recherche mots connus'!$C$6:$D$187,2,FALSE),"") -> 
A75: =A72+1 -> 25 | B75: =VLOOKUP($A75,fréquence!$W$16:$AO$2805,8,FALSE) -> ma | C75: =VLOOKUP($A75,fréquence!$W$16:$AO$2805,11,FALSE) -> adjectif possessif | D75: =CONCATENATE(D$1,"-",VLOOKUP($A75,fréquence!$A$16:$V$3371,18,FALSE)) -> CP-56 | E75: =CONCATENATE(E$1,"-",VLOOKUP($A75,fréquence!$A$16:$V$3371,19,FALSE)) -> CE1-133 | F75: =CONCATENATE(F$1,"-",VLOOKUP($A75,fréquence!$A$16:$V$3371,20,FALSE)) -> CE2-375 | G75: =CONCATENATE(G$1,"-",VLOOKUP($A75,fréquence!$A$16:$V$3371,21,FALSE)) -> CM1-733 | H75: =CONCATENATE(H$1,"-",VLOOKUP($A75,fréquence!$A$16:$V$3371,22,FALSE)) -> CM2-1312 | J75: =IF(O75<>O72,IF(O75<>0,INT((O75-1)/fréquence!$AH$2)+1,""),"") -> 25 | K75: =IF(P75<>P72,IF(P75<>0,INT((P75-1)/fréquence!$AH$3)+1,""),"") ->  | L75: =IF(Q75<>Q72,IF(Q75<>0,INT((Q75-1)/fréquence!$AH$4)+1,""),"") ->  | M75: =IF(R75<>R72,IF(R75<>0,INT((R75-1)/fréquence!$AH$5)+1,""),"") ->  | N75: =IF(S75<>S72,IF(S75<>0,INT((S75-1)/fréquence!$AH$6)+1,""),"") ->  | O75: =IF(AND($A75>=fréquence!$AJ$2,$A75<=fréquence!$AK$2),O72+1,O72) -> 25 | P75: =IF(AND($A75>=fréquence!$AJ$3,$A75<=fréquence!$AK$3),P72+1,P72) -> 0 | Q75: =IF(AND($A75>=fréquence!$AJ$4,$A75<=fréquence!$AK$4),Q72+1,Q72) -> 0 | R75: =IF(AND($A75>=fréquence!$AJ$5,$A75<=fréquence!$AK$5),R72+1,R72) -> 0 | S75: =IF(AND($A75>=fréquence!$AJ$6,$A75<=fréquence!$AK$6),S72+1,S72) -> 0
D76: =IFERROR(VLOOKUP(J75,'Recherche mots connus'!$C$6:$D$187,2,FALSE),"") -> 2015-10-06 | E76: =IFERROR(VLOOKUP(K75,'Recherche mots connus'!$C$6:$D$187,2,FALSE),"") ->  | F76: =IFERROR(VLOOKUP(L75,'Recherche mots connus'!$C$6:$D$187,2,FALSE),"") ->  | G76: =IFERROR(VLOOKUP(M75,'Recherche mots connus'!$C$6:$D$187,2,FALSE),"") ->  | H76: =IFERROR(VLOOKUP(N75,'Recherche mots connus'!$C$6:$D$187,2,FALSE),"") -> 
A78: =A75+1 -> 26 | B78: =VLOOKUP($A78,fréquence!$W$16:$AO$2805,8,FALSE) -> le monde ; les mondes | C78: =VLOOKUP($A78,fréquence!$W$16:$AO$2805,11,FALSE) -> nom commun | D78: =CONCATENATE(D$1,"-",VLOOKUP($A78,fréquence!$A$16:$V$3371,18,FALSE)) -> CP-70 | E78: =CONCATENATE(E$1,"-",VLOOKUP($A78,fréquence!$A$16:$V$3371,19,FALSE)) -> CE1-154 | F78: =CONCATENATE(F$1,"-",VLOOKUP($A78,fréquence!$A$16:$V$3371,20,FALSE)) -> CE2-425 | G78: =CONCATENATE(G$1,"-",VLOOKUP($A78,fréquence!$A$16:$V$3371,21,FALSE)) -> CM1-827 | H78: =CONCATENATE(H$1,"-",VLOOKUP($A78,fréquence!$A$16:$V$3371,22,FALSE)) -> CM2-1450 | J78: =IF(O78<>O75,IF(O78<>0,INT((O78-1)/fréquence!$AH$2)+1,""),"") -> 26 | K78: =IF(P78<>P75,IF(P78<>0,INT((P78-1)/fréquence!$AH$3)+1,""),"") ->  | L78: =IF(Q78<>Q75,IF(Q78<>0,INT((Q78-1)/fréquence!$AH$4)+1,""),"") ->  | M78: =IF(R78<>R75,IF(R78<>0,INT((R78-1)/fréquence!$AH$5)+1,""),"") ->  | N78: =IF(S78<>S75,IF(S78<>0,INT((S78-1)/fréquence!$AH$6)+1,""),"") ->  | O78: =IF(AND($A78>=fréquence!$AJ$2,$A78<=fréquence!$AK$2),O75+1,O75) -> 26 | P78: =IF(AND($A78>=fréquence!$AJ$3,$A78<=fréquence!$AK$3),P75+1,P75) -> 0 | Q78: =IF(AND($A78>=fréquence!$AJ$4,$A78<=fréquence!$AK$4),Q75+1,Q75) -> 0 | R78: =IF(AND($A78>=fréquence!$AJ$5,$A78<=fréquence!$AK$5),R75+1,R75) -> 0 | S78: =IF(AND($A78>=fréquence!$AJ$6,$A78<=fréquence!$AK$6),S75+1,S75) -> 0
D79: =IFERROR(VLOOKUP(J78,'Recherche mots connus'!$C$6:$D$187,2,FALSE),"") -> 2015-10-07 | E79: =IFERROR(VLOOKUP(K78,'Recherche mots connus'!$C$6:$D$187,2,FALSE),"") ->  | F79: =IFERROR(VLOOKUP(L78,'Recherche mots connus'!$C$6:$D$187,2,FALSE),"") ->  | G79: =IFERROR(VLOOKUP(M78,'Recherche mots connus'!$C$6:$D$187,2,FALSE),"") ->  | H79: =IFERROR(VLOOKUP(N78,'Recherche mots connus'!$C$6:$D$187,2,FALSE),"") -> 
A81: =A78+1 -> 27 | B81: =VLOOKUP($A81,fréquence!$W$16:$AO$2805,8,FALSE) -> mon | C81: =VLOOKUP($A81,fréquence!$W$16:$AO$2805,11,FALSE) -> adjectif possessif | D81: =CONCATENATE(D$1,"-",VLOOKUP($A81,fréquence!$A$16:$V$3371,18,FALSE)) -> CP-69 | E81: =CONCATENATE(E$1,"-",VLOOKUP($A81,fréquence!$A$16:$V$3371,19,FALSE)) -> CE1-153 | F81: =CONCATENATE(F$1,"-",VLOOKUP($A81,fréquence!$A$16:$V$3371,20,FALSE)) -> CE2-424 | G81: =CONCATENATE(G$1,"-",VLOOKUP($A81,fréquence!$A$16:$V$3371,21,FALSE)) -> CM1-826 | H81: =CONCATENATE(H$1,"-",VLOOKUP($A81,fréquence!$A$16:$V$3371,22,FALSE)) -> CM2-1449 | J81: =IF(O81<>O78,IF(O81<>0,INT((O81-1)/fréquence!$AH$2)+1,""),"") -> 27 | K81: =IF(P81<>P78,IF(P81<>0,INT((P81-1)/fréquence!$AH$3)+1,""),"") ->  | L81: =IF(Q81<>Q78,IF(Q81<>0,INT((Q81-1)/fréquence!$AH$4)+1,""),"") ->  | M81: =IF(R81<>R78,IF(R81<>0,INT((R81-1)/fréquence!$AH$5)+1,""),"") ->  | N81: =IF(S81<>S78,IF(S81<>0,INT((S81-1)/fréquence!$AH$6)+1,""),"") ->  | O81: =IF(AND($A81>=fréquence!$AJ$2,$A81<=fréquence!$AK$2),O78+1,O78) -> 27 | P81: =IF(AND($A81>=fréquence!$AJ$3,$A81<=fréquence!$AK$3),P78+1,P78) -> 0 | Q81: =IF(AND($A81>=fréquence!$AJ$4,$A81<=fréquence!$AK$4),Q78+1,Q78) -> 0 | R81: =IF(AND($A81>=fréquence!$AJ$5,$A81<=fréquence!$AK$5),R78+1,R78) -> 0 | S81: =IF(AND($A81>=fréquence!$AJ$6,$A81<=fréquence!$AK$6),S78+1,S78) -> 0
D82: =IFERROR(VLOOKUP(J81,'Recherche mots connus'!$C$6:$D$187,2,FALSE),"") -> 2015-10-08 | E82: =IFERROR(VLOOKUP(K81,'Recherche mots connus'!$C$6:$D$187,2,FALSE),"") ->  | F82: =IFERROR(VLOOKUP(L81,'Recherche mots connus'!$C$6:$D$187,2,FALSE),"") ->  | G82: =IFERROR(VLOOKUP(M81,'Recherche mots connus'!$C$6:$D$187,2,FALSE),"") ->  | H82: =IFERROR(VLOOKUP(N81,'Recherche mots connus'!$C$6:$D$187,2,FALSE),"") -> 
A84: =A81+1 -> 28 | B84: =VLOOKUP($A84,fréquence!$W$16:$AO$2805,8,FALSE) -> un élève ; une élève ; des élèves | C84: =VLOOKUP($A84,fréquence!$W$16:$AO$2805,11,FALSE) -> nom commun | D84: =CONCATENATE(D$1,"-",VLOOKUP($A84,fréquence!$A$16:$V$3371,18,FALSE)) -> CP-24 | E84: =CONCATENATE(E$1,"-",VLOOKUP($A84,fréquence!$A$16:$V$3371,19,FALSE)) -> CE1-69 | F84: =CONCATENATE(F$1,"-",VLOOKUP($A84,fréquence!$A$16:$V$3371,20,FALSE)) -> CE2-205 | G84: =CONCATENATE(G$1,"-",VLOOKUP($A84,fréquence!$A$16:$V$3371,21,FALSE)) -> CM1-429 | H84: =CONCATENATE(H$1,"-",VLOOKUP($A84,fréquence!$A$16:$V$3371,22,FALSE)) -> CM2-757 | J84: =IF(O84<>O81,IF(O84<>0,INT((O84-1)/fréquence!$AH$2)+1,""),"") -> 28 | K84: =IF(P84<>P81,IF(P84<>0,INT((P84-1)/fréquence!$AH$3)+1,""),"") ->  | L84: =IF(Q84<>Q81,IF(Q84<>0,INT((Q84-1)/fréquence!$AH$4)+1,""),"") ->  | M84: =IF(R84<>R81,IF(R84<>0,INT((R84-1)/fréquence!$AH$5)+1,""),"") ->  | N84: =IF(S84<>S81,IF(S84<>0,INT((S84-1)/fréquence!$AH$6)+1,""),"") ->  | O84: =IF(AND($A84>=fréquence!$AJ$2,$A84<=fréquence!$AK$2),O81+1,O81) -> 28 | P84: =IF(AND($A84>=fréquence!$AJ$3,$A84<=fréquence!$AK$3),P81+1,P81) -> 0 | Q84: =IF(AND($A84>=fréquence!$AJ$4,$A84<=fréquence!$AK$4),Q81+1,Q81) -> 0 | R84: =IF(AND($A84>=fréquence!$AJ$5,$A84<=fréquence!$AK$5),R81+1,R81) -> 0 | S84: =IF(AND($A84>=fréquence!$AJ$6,$A84<=fréquence!$AK$6),S81+1,S81) -> 0
D85: =IFERROR(VLOOKUP(J84,'Recherche mots connus'!$C$6:$D$187,2,FALSE),"") -> 2015-10-09 | E85: =IFERROR(VLOOKUP(K84,'Recherche mots connus'!$C$6:$D$187,2,FALSE),"") ->  | F85: =IFERROR(VLOOKUP(L84,'Recherche mots connus'!$C$6:$D$187,2,FALSE),"") ->  | G85: =IFERROR(VLOOKUP(M84,'Recherche mots connus'!$C$6:$D$187,2,FALSE),"") ->  | H85: =IFERROR(VLOOKUP(N84,'Recherche mots connus'!$C$6:$D$187,2,FALSE),"") -> 
A87: =A84+1 -> 29 | B87: =VLOOKUP($A87,fréquence!$W$16:$AO$2805,8,FALSE) -> une vache ; des vaches | C87: =VLOOKUP($A87,fréquence!$W$16:$AO$2805,11,FALSE) -> nom commun | D87: =CONCATENATE(D$1,"-",VLOOKUP($A87,fréquence!$A$16:$V$3371,18,FALSE)) -> CP-107 | E87: =CONCATENATE(E$1,"-",VLOOKUP($A87,fréquence!$A$16:$V$3371,19,FALSE)) -> CE1-248 | F87: =CONCATENATE(F$1,"-",VLOOKUP($A87,fréquence!$A$16:$V$3371,20,FALSE)) -> CE2-683 | G87: =CONCATENATE(G$1,"-",VLOOKUP($A87,fréquence!$A$16:$V$3371,21,FALSE)) -> CM1-1388 | H87: =CONCATENATE(H$1,"-",VLOOKUP($A87,fréquence!$A$16:$V$3371,22,FALSE)) -> CM2-2341 | J87: =IF(O87<>O84,IF(O87<>0,INT((O87-1)/fréquence!$AH$2)+1,""),"") -> 29 | K87: =IF(P87<>P84,IF(P87<>0,INT((P87-1)/fréquence!$AH$3)+1,""),"") ->  | L87: =IF(Q87<>Q84,IF(Q87<>0,INT((Q87-1)/fréquence!$AH$4)+1,""),"") ->  | M87: =IF(R87<>R84,IF(R87<>0,INT((R87-1)/fréquence!$AH$5)+1,""),"") ->  | N87: =IF(S87<>S84,IF(S87<>0,INT((S87-1)/fréquence!$AH$6)+1,""),"") ->  | O87: =IF(AND($A87>=fréquence!$AJ$2,$A87<=fréquence!$AK$2),O84+1,O84) -> 29 | P87: =IF(AND($A87>=fréquence!$AJ$3,$A87<=fréquence!$AK$3),P84+1,P84) -> 0 | Q87: =IF(AND($A87>=fréquence!$AJ$4,$A87<=fréquence!$AK$4),Q84+1,Q84) -> 0 | R87: =IF(AND($A87>=fréquence!$AJ$5,$A87<=fréquence!$AK$5),R84+1,R84) -> 0 | S87: =IF(AND($A87>=fréquence!$AJ$6,$A87<=fréquence!$AK$6),S84+1,S84) -> 0
D88: =IFERROR(VLOOKUP(J87,'Recherche mots connus'!$C$6:$D$187,2,FALSE),"") -> 2015-10-12 | E88: =IFERROR(VLOOKUP(K87,'Recherche mots connus'!$C$6:$D$187,2,FALSE),"") ->  | F88: =IFERROR(VLOOKUP(L87,'Recherche mots connus'!$C$6:$D$187,2,FALSE),"") ->  | G88: =IFERROR(VLOOKUP(M87,'Recherche mots connus'!$C$6:$D$187,2,FALSE),"") ->  | H88: =IFERROR(VLOOKUP(N87,'Recherche mots connus'!$C$6:$D$187,2,FALSE),"") -> 
A90: =A87+1 -> 30 | B90: =VLOOKUP($A90,fréquence!$W$16:$AO$2805,8,FALSE) -> un cheval ; des chevaux | C90: =VLOOKUP($A90,fréquence!$W$16:$AO$2805,11,FALSE) -> nom commun | D90: =CONCATENATE(D$1,"-",VLOOKUP($A90,fréquence!$A$16:$V$3371,18,FALSE)) -> CP-16 | E90: =CONCATENATE(E$1,"-",VLOOKUP($A90,fréquence!$A$16:$V$3371,19,FALSE)) -> CE1-43 | F90: =CONCATENATE(F$1,"-",VLOOKUP($A90,fréquence!$A$16:$V$3371,20,FALSE)) -> CE2-113 | G90: =CONCATENATE(G$1,"-",VLOOKUP($A90,fréquence!$A$16:$V$3371,21,FALSE)) -> CM1-223 | H90: =CONCATENATE(H$1,"-",VLOOKUP($A90,fréquence!$A$16:$V$3371,22,FALSE)) -> CM2-392 | J90: =IF(O90<>O87,IF(O90<>0,INT((O90-1)/fréquence!$AH$2)+1,""),"") -> 30 | K90: =IF(P90<>P87,IF(P90<>0,INT((P90-1)/fréquence!$AH$3)+1,""),"") ->  | L90: =IF(Q90<>Q87,IF(Q90<>0,INT((Q90-1)/fréquence!$AH$4)+1,""),"") ->  | M90: =IF(R90<>R87,IF(R90<>0,INT((R90-1)/fréquence!$AH$5)+1,""),"") ->  | N90: =IF(S90<>S87,IF(S90<>0,INT((S90-1)/fréquence!$AH$6)+1,""),"") ->  | O90: =IF(AND($A90>=fréquence!$AJ$2,$A90<=fréquence!$AK$2),O87+1,O87) -> 30 | P90: =IF(AND($A90>=fréquence!$AJ$3,$A90<=fréquence!$AK$3),P87+1,P87) -> 0 | Q90: =IF(AND($A90>=fréquence!$AJ$4,$A90<=fréquence!$AK$4),Q87+1,Q87) -> 0 | R90: =IF(AND($A90>=fréquence!$AJ$5,$A90<=fréquence!$AK$5),R87+1,R87) -> 0 | S90: =IF(AND($A90>=fréquence!$AJ$6,$A90<=fréquence!$AK$6),S87+1,S87) -> 0
D91: =IFERROR(VLOOKUP(J90,'Recherche mots connus'!$C$6:$D$187,2,FALSE),"") -> 2015-10-13 | E91: =IFERROR(VLOOKUP(K90,'Recherche mots connus'!$C$6:$D$187,2,FALSE),"") ->  | F91: =IFERROR(VLOOKUP(L90,'Recherche mots connus'!$C$6:$D$187,2,FALSE),"") ->  | G91: =IFERROR(VLOOKUP(M90,'Recherche mots connus'!$C$6:$D$187,2,FALSE),"") ->  | H91: =IFERROR(VLOOKUP(N90,'Recherche mots connus'!$C$6:$D$187,2,FALSE),"") -> 
A93: =A90+1 -> 31 | B93: =VLOOKUP($A93,fréquence!$W$16:$AO$2805,8,FALSE) -> un mouton ; des moutons | C93: =VLOOKUP($A93,fréquence!$W$16:$AO$2805,11,FALSE) -> nom commun | D93: =CONCATENATE(D$1,"-",VLOOKUP($A93,fréquence!$A$16:$V$3371,18,FALSE)) -> CP-71 | E93: =CONCATENATE(E$1,"-",VLOOKUP($A93,fréquence!$A$16:$V$3371,19,FALSE)) -> CE1-158 | F93: =CONCATENATE(F$1,"-",VLOOKUP($A93,fréquence!$A$16:$V$3371,20,FALSE)) -> CE2-433 | G93: =CONCATENATE(G$1,"-",VLOOKUP($A93,fréquence!$A$16:$V$3371,21,FALSE)) -> CM1-845 | H93: =CONCATENATE(H$1,"-",VLOOKUP($A93,fréquence!$A$16:$V$3371,22,FALSE)) -> CM2-1472 | J93: =IF(O93<>O90,IF(O93<>0,INT((O93-1)/fréquence!$AH$2)+1,""),"") -> 31 | K93: =IF(P93<>P90,IF(P93<>0,INT((P93-1)/fréquence!$AH$3)+1,""),"") ->  | L93: =IF(Q93<>Q90,IF(Q93<>0,INT((Q93-1)/fréquence!$AH$4)+1,""),"") ->  | M93: =IF(R93<>R90,IF(R93<>0,INT((R93-1)/fréquence!$AH$5)+1,""),"") ->  | N93: =IF(S93<>S90,IF(S93<>0,INT((S93-1)/fréquence!$AH$6)+1,""),"") ->  | O93: =IF(AND($A93>=fréquence!$AJ$2,$A93<=fréquence!$AK$2),O90+1,O90) -> 31 | P93: =IF(AND($A93>=fréquence!$AJ$3,$A93<=fréquence!$AK$3),P90+1,P90) -> 0 | Q93: =IF(AND($A93>=fréquence!$AJ$4,$A93<=fréquence!$AK$4),Q90+1,Q90) -> 0 | R93: =IF(AND($A93>=fréquence!$AJ$5,$A93<=fréquence!$AK$5),R90+1,R90) -> 0 | S93: =IF(AND($A93>=fréquence!$AJ$6,$A93<=fréquence!$AK$6),S90+1,S90) -> 0
D94: =IFERROR(VLOOKUP(J93,'Recherche mots connus'!$C$6:$D$187,2,FALSE),"") -> 2015-10-14 | E94: =IFERROR(VLOOKUP(K93,'Recherche mots connus'!$C$6:$D$187,2,FALSE),"") ->  | F94: =IFERROR(VLOOKUP(L93,'Recherche mots connus'!$C$6:$D$187,2,FALSE),"") ->  | G94: =IFERROR(VLOOKUP(M93,'Recherche mots connus'!$C$6:$D$187,2,FALSE),"") ->  | H94: =IFERROR(VLOOKUP(N93,'Recherche mots connus'!$C$6:$D$187,2,FALSE),"") -> 
A96: =A93+1 -> 32 | B96: =VLOOKUP($A96,fréquence!$W$16:$AO$2805,8,FALSE) -> une porte ; des portes | C96: =VLOOKUP($A96,fréquence!$W$16:$AO$2805,11,FALSE) -> nom commun | D96: =CONCATENATE(D$1,"-",VLOOKUP($A96,fréquence!$A$16:$V$3371,18,FALSE)) -> CP-81 | E96: =CONCATENATE(E$1,"-",VLOOKUP($A96,fréquence!$A$16:$V$3371,19,FALSE)) -> CE1-189 | F96: =CONCATENATE(F$1,"-",VLOOKUP($A96,fréquence!$A$16:$V$3371,20,FALSE)) -> CE2-518 | G96: =CONCATENATE(G$1,"-",VLOOKUP($A96,fréquence!$A$16:$V$3371,21,FALSE)) -> CM1-1022 | H96: =CONCATENATE(H$1,"-",VLOOKUP($A96,fréquence!$A$16:$V$3371,22,FALSE)) -> CM2-1733 | J96: =IF(O96<>O93,IF(O96<>0,INT((O96-1)/fréquence!$AH$2)+1,""),"") -> 32 | K96: =IF(P96<>P93,IF(P96<>0,INT((P96-1)/fréquence!$AH$3)+1,""),"") ->  | L96: =IF(Q96<>Q93,IF(Q96<>0,INT((Q96-1)/fréquence!$AH$4)+1,""),"") ->  | M96: =IF(R96<>R93,IF(R96<>0,INT((R96-1)/fréquence!$AH$5)+1,""),"") ->  | N96: =IF(S96<>S93,IF(S96<>0,INT((S96-1)/fréquence!$AH$6)+1,""),"") ->  | O96: =IF(AND($A96>=fréquence!$AJ$2,$A96<=fréquence!$AK$2),O93+1,O93) -> 32 | P96: =IF(AND($A96>=fréquence!$AJ$3,$A96<=fréquence!$AK$3),P93+1,P93) -> 0 | Q96: =IF(AND($A96>=fréquence!$AJ$4,$A96<=fréquence!$AK$4),Q93+1,Q93) -> 0 | R96: =IF(AND($A96>=fréquence!$AJ$5,$A96<=fréquence!$AK$5),R93+1,R93) -> 0 | S96: =IF(AND($A96>=fréquence!$AJ$6,$A96<=fréquence!$AK$6),S93+1,S93) -> 0
D97: =IFERROR(VLOOKUP(J96,'Recherche mots connus'!$C$6:$D$187,2,FALSE),"") -> 2015-10-15 | E97: =IFERROR(VLOOKUP(K96,'Recherche mots connus'!$C$6:$D$187,2,FALSE),"") ->  | F97: =IFERROR(VLOOKUP(L96,'Recherche mots connus'!$C$6:$D$187,2,FALSE),"") ->  | G97: =IFERROR(VLOOKUP(M96,'Recherche mots connus'!$C$6:$D$187,2,FALSE),"") ->  | H97: =IFERROR(VLOOKUP(N96,'Recherche mots connus'!$C$6:$D$187,2,FALSE),"") -> 
A99: =A96+1 -> 33 | B99: =VLOOKUP($A99,fréquence!$W$16:$AO$2805,8,FALSE) -> une balle ; des balles | C99: =VLOOKUP($A99,fréquence!$W$16:$AO$2805,11,FALSE) -> nom commun | D99: =CONCATENATE(D$1,"-",VLOOKUP($A99,fréquence!$A$16:$V$3371,18,FALSE)) -> CP-7 | E99: =CONCATENATE(E$1,"-",VLOOKUP($A99,fréquence!$A$16:$V$3371,19,FALSE)) -> CE1-19 | F99: =CONCATENATE(F$1,"-",VLOOKUP($A99,fréquence!$A$16:$V$3371,20,FALSE)) -> CE2-33 | G99: =CONCATENATE(G$1,"-",VLOOKUP($A99,fréquence!$A$16:$V$3371,21,FALSE)) -> CM1-78 | H99: =CONCATENATE(H$1,"-",VLOOKUP($A99,fréquence!$A$16:$V$3371,22,FALSE)) -> CM2-171 | J99: =IF(O99<>O96,IF(O99<>0,INT((O99-1)/fréquence!$AH$2)+1,""),"") -> 33 | K99: =IF(P99<>P96,IF(P99<>0,INT((P99-1)/fréquence!$AH$3)+1,""),"") ->  | L99: =IF(Q99<>Q96,IF(Q99<>0,INT((Q99-1)/fréquence!$AH$4)+1,""),"") ->  | M99: =IF(R99<>R96,IF(R99<>0,INT((R99-1)/fréquence!$AH$5)+1,""),"") ->  | N99: =IF(S99<>S96,IF(S99<>0,INT((S99-1)/fréquence!$AH$6)+1,""),"") ->  | O99: =IF(AND($A99>=fréquence!$AJ$2,$A99<=fréquence!$AK$2),O96+1,O96) -> 33 | P99: =IF(AND($A99>=fréquence!$AJ$3,$A99<=fréquence!$AK$3),P96+1,P96) -> 0 | Q99: =IF(AND($A99>=fréquence!$AJ$4,$A99<=fréquence!$AK$4),Q96+1,Q96) -> 0 | R99: =IF(AND($A99>=fréquence!$AJ$5,$A99<=fréquence!$AK$5),R96+1,R96) -> 0 | S99: =IF(AND($A99>=fréquence!$AJ$6,$A99<=fréquence!$AK$6),S96+1,S96) -> 0
D100: =IFERROR(VLOOKUP(J99,'Recherche mots connus'!$C$6:$D$187,2,FALSE),"") -> 2015-10-16 | E100: =IFERROR(VLOOKUP(K99,'Recherche mots connus'!$C$6:$D$187,2,FALSE),"") ->  | F100: =IFERROR(VLOOKUP(L99,'Recherche mots connus'!$C$6:$D$187,2,FALSE),"") ->  | G100: =IFERROR(VLOOKUP(M99,'Recherche mots connus'!$C$6:$D$187,2,FALSE),"") ->  | H100: =IFERROR(VLOOKUP(N99,'Recherche mots connus'!$C$6:$D$187,2,FALSE),"") -> 
A102: =A99+1 -> 34 | B102: =VLOOKUP($A102,fréquence!$W$16:$AO$2805,8,FALSE) -> une image ; des images | C102: =VLOOKUP($A102,fréquence!$W$16:$AO$2805,11,FALSE) -> nom commun | D102: =CONCATENATE(D$1,"-",VLOOKUP($A102,fréquence!$A$16:$V$3371,18,FALSE)) -> CP-41 | E102: =CONCATENATE(E$1,"-",VLOOKUP($A102,fréquence!$A$16:$V$3371,19,FALSE)) -> CE1-105 | F102: =CONCATENATE(F$1,"-",VLOOKUP($A102,fréquence!$A$16:$V$3371,20,FALSE)) -> CE2-304 | G102: =CONCATENATE(G$1,"-",VLOOKUP($A102,fréquence!$A$16:$V$3371,21,FALSE)) -> CM1-617 | H102: =CONCATENATE(H$1,"-",VLOOKUP($A102,fréquence!$A$16:$V$3371,22,FALSE)) -> CM2-1126 | J102: =IF(O102<>O99,IF(O102<>0,INT((O102-1)/fréquence!$AH$2)+1,""),"") -> 34 | K102: =IF(P102<>P99,IF(P102<>0,INT((P102-1)/fréquence!$AH$3)+1,""),"") ->  | L102: =IF(Q102<>Q99,IF(Q102<>0,INT((Q102-1)/fréquence!$AH$4)+1,""),"") ->  | M102: =IF(R102<>R99,IF(R102<>0,INT((R102-1)/fréquence!$AH$5)+1,""),"") ->  | N102: =IF(S102<>S99,IF(S102<>0,INT((S102-1)/fréquence!$AH$6)+1,""),"") ->  | O102: =IF(AND($A102>=fréquence!$AJ$2,$A102<=fréquence!$AK$2),O99+1,O99) -> 34 | P102: =IF(AND($A102>=fréquence!$AJ$3,$A102<=fréquence!$AK$3),P99+1,P99) -> 0 | Q102: =IF(AND($A102>=fréquence!$AJ$4,$A102<=fréquence!$AK$4),Q99+1,Q99) -> 0 | R102: =IF(AND($A102>=fréquence!$AJ$5,$A102<=fréquence!$AK$5),R99+1,R99) -> 0 | S102: =IF(AND($A102>=fréquence!$AJ$6,$A102<=fréquence!$AK$6),S99+1,S99) -> 0
D103: =IFERROR(VLOOKUP(J102,'Recherche mots connus'!$C$6:$D$187,2,FALSE),"") -> 2015-11-02 | E103: =IFERROR(VLOOKUP(K102,'Recherche mots connus'!$C$6:$D$187,2,FALSE),"") ->  | F103: =IFERROR(VLOOKUP(L102,'Recherche mots connus'!$C$6:$D$187,2,FALSE),"") ->  | G103: =IFERROR(VLOOKUP(M102,'Recherche mots connus'!$C$6:$D$187,2,FALSE),"") ->  | H103: =IFERROR(VLOOKUP(N102,'Recherche mots connus'!$C$6:$D$187,2,FALSE),"") -> 
A105: =A102+1 -> 35 | B105: =VLOOKUP($A105,fréquence!$W$16:$AO$2805,8,FALSE) -> sage ; sages | C105: =VLOOKUP($A105,fréquence!$W$16:$AO$2805,11,FALSE) -> adjectif | D105: =CONCATENATE(D$1,"-",VLOOKUP($A105,fréquence!$A$16:$V$3371,18,FALSE)) -> CP-92 | E105: =CONCATENATE(E$1,"-",VLOOKUP($A105,fréquence!$A$16:$V$3371,19,FALSE)) -> CE1-217 | F105: =CONCATENATE(F$1,"-",VLOOKUP($A105,fréquence!$A$16:$V$3371,20,FALSE)) -> CE2-596 | G105: =CONCATENATE(G$1,"-",VLOOKUP($A105,fréquence!$A$16:$V$3371,21,FALSE)) -> CM1-1194 | H105: =CONCATENATE(H$1,"-",VLOOKUP($A105,fréquence!$A$16:$V$3371,22,FALSE)) -> CM2-2036 | J105: =IF(O105<>O102,IF(O105<>0,INT((O105-1)/fréquence!$AH$2)+1,""),"") -> 35 | K105: =IF(P105<>P102,IF(P105<>0,INT((P105-1)/fréquence!$AH$3)+1,""),"") ->  | L105: =IF(Q105<>Q102,IF(Q105<>0,INT((Q105-1)/fréquence!$AH$4)+1,""),"") ->  | M105: =IF(R105<>R102,IF(R105<>0,INT((R105-1)/fréquence!$AH$5)+1,""),"") ->  | N105: =IF(S105<>S102,IF(S105<>0,INT((S105-1)/fréquence!$AH$6)+1,""),"") ->  | O105: =IF(AND($A105>=fréquence!$AJ$2,$A105<=fréquence!$AK$2),O102+1,O102) -> 35 | P105: =IF(AND($A105>=fréquence!$AJ$3,$A105<=fréquence!$AK$3),P102+1,P102) -> 0 | Q105: =IF(AND($A105>=fréquence!$AJ$4,$A105<=fréquence!$AK$4),Q102+1,Q102) -> 0 | R105: =IF(AND($A105>=fréquence!$AJ$5,$A105<=fréquence!$AK$5),R102+1,R102) -> 0 | S105: =IF(AND($A105>=fréquence!$AJ$6,$A105<=fréquence!$AK$6),S102+1,S102) -> 0
D106: =IFERROR(VLOOKUP(J105,'Recherche mots connus'!$C$6:$D$187,2,FALSE),"") -> 2015-11-03 | E106: =IFERROR(VLOOKUP(K105,'Recherche mots connus'!$C$6:$D$187,2,FALSE),"") ->  | F106: =IFERROR(VLOOKUP(L105,'Recherche mots connus'!$C$6:$D$187,2,FALSE),"") ->  | G106: =IFERROR(VLOOKUP(M105,'Recherche mots connus'!$C$6:$D$187,2,FALSE),"") ->  | H106: =IFERROR(VLOOKUP(N105,'Recherche mots connus'!$C$6:$D$187,2,FALSE),"") -> 
A108: =A105+1 -> 36 | B108: =VLOOKUP($A108,fréquence!$W$16:$AO$2805,8,FALSE) -> son | C108: =VLOOKUP($A108,fréquence!$W$16:$AO$2805,11,FALSE) -> adjectif possessif | D108: =CONCATENATE(D$1,"-",VLOOKUP($A108,fréquence!$A$16:$V$3371,18,FALSE)) -> CP-98 | E108: =CONCATENATE(E$1,"-",VLOOKUP($A108,fréquence!$A$16:$V$3371,19,FALSE)) -> CE1-228 | F108: =CONCATENATE(F$1,"-",VLOOKUP($A108,fréquence!$A$16:$V$3371,20,FALSE)) -> CE2-623 | G108: =CONCATENATE(G$1,"-",VLOOKUP($A108,fréquence!$A$16:$V$3371,21,FALSE)) -> CM1-1259 | H108: =CONCATENATE(H$1,"-",VLOOKUP($A108,fréquence!$A$16:$V$3371,22,FALSE)) -> CM2-2147 | J108: =IF(O108<>O105,IF(O108<>0,INT((O108-1)/fréquence!$AH$2)+1,""),"") -> 36 | K108: =IF(P108<>P105,IF(P108<>0,INT((P108-1)/fréquence!$AH$3)+1,""),"") ->  | L108: =IF(Q108<>Q105,IF(Q108<>0,INT((Q108-1)/fréquence!$AH$4)+1,""),"") ->  | M108: =IF(R108<>R105,IF(R108<>0,INT((R108-1)/fréquence!$AH$5)+1,""),"") ->  | N108: =IF(S108<>S105,IF(S108<>0,INT((S108-1)/fréquence!$AH$6)+1,""),"") ->  | O108: =IF(AND($A108>=fréquence!$AJ$2,$A108<=fréquence!$AK$2),O105+1,O105) -> 36 | P108: =IF(AND($A108>=fréquence!$AJ$3,$A108<=fréquence!$AK$3),P105+1,P105) -> 0 | Q108: =IF(AND($A108>=fréquence!$AJ$4,$A108<=fréquence!$AK$4),Q105+1,Q105) -> 0 | R108: =IF(AND($A108>=fréquence!$AJ$5,$A108<=fréquence!$AK$5),R105+1,R105) -> 0 | S108: =IF(AND($A108>=fréquence!$AJ$6,$A108<=fréquence!$AK$6),S105+1,S105) -> 0
D109: =IFERROR(VLOOKUP(J108,'Recherche mots connus'!$C$6:$D$187,2,FALSE),"") -> 2015-11-04 | E109: =IFERROR(VLOOKUP(K108,'Recherche mots connus'!$C$6:$D$187,2,FALSE),"") ->  | F109: =IFERROR(VLOOKUP(L108,'Recherche mots connus'!$C$6:$D$187,2,FALSE),"") ->  | G109: =IFERROR(VLOOKUP(M108,'Recherche mots connus'!$C$6:$D$187,2,FALSE),"") ->  | H109: =IFERROR(VLOOKUP(N108,'Recherche mots connus'!$C$6:$D$187,2,FALSE),"") -> 
A111: =A108+1 -> 37 | B111: =VLOOKUP($A111,fréquence!$W$16:$AO$2805,8,FALSE) -> une cave ; des caves | C111: =VLOOKUP($A111,fréquence!$W$16:$AO$2805,11,FALSE) -> nom commun | D111: =CONCATENATE(D$1,"-",VLOOKUP($A111,fréquence!$A$16:$V$3371,18,FALSE)) -> CP-11 | E111: =CONCATENATE(E$1,"-",VLOOKUP($A111,fréquence!$A$16:$V$3371,19,FALSE)) -> CE1-31 | F111: =CONCATENATE(F$1,"-",VLOOKUP($A111,fréquence!$A$16:$V$3371,20,FALSE)) -> CE2-88 | G111: =CONCATENATE(G$1,"-",VLOOKUP($A111,fréquence!$A$16:$V$3371,21,FALSE)) -> CM1-180 | H111: =CONCATENATE(H$1,"-",VLOOKUP($A111,fréquence!$A$16:$V$3371,22,FALSE)) -> CM2-327 | J111: =IF(O111<>O108,IF(O111<>0,INT((O111-1)/fréquence!$AH$2)+1,""),"") -> 37 | K111: =IF(P111<>P108,IF(P111<>0,INT((P111-1)/fréquence!$AH$3)+1,""),"") ->  | L111: =IF(Q111<>Q108,IF(Q111<>0,INT((Q111-1)/fréquence!$AH$4)+1,""),"") ->  | M111: =IF(R111<>R108,IF(R111<>0,INT((R111-1)/fréquence!$AH$5)+1,""),"") ->  | N111: =IF(S111<>S108,IF(S111<>0,INT((S111-1)/fréquence!$AH$6)+1,""),"") ->  | O111: =IF(AND($A111>=fréquence!$AJ$2,$A111<=fréquence!$AK$2),O108+1,O108) -> 37 | P111: =IF(AND($A111>=fréquence!$AJ$3,$A111<=fréquence!$AK$3),P108+1,P108) -> 0 | Q111: =IF(AND($A111>=fréquence!$AJ$4,$A111<=fréquence!$AK$4),Q108+1,Q108) -> 0 | R111: =IF(AND($A111>=fréquence!$AJ$5,$A111<=fréquence!$AK$5),R108+1,R108) -> 0 | S111: =IF(AND($A111>=fréquence!$AJ$6,$A111<=fréquence!$AK$6),S108+1,S108) -> 0
D112: =IFERROR(VLOOKUP(J111,'Recherche mots connus'!$C$6:$D$187,2,FALSE),"") -> 2015-11-05 | E112: =IFERROR(VLOOKUP(K111,'Recherche mots connus'!$C$6:$D$187,2,FALSE),"") ->  | F112: =IFERROR(VLOOKUP(L111,'Recherche mots connus'!$C$6:$D$187,2,FALSE),"") ->  | G112: =IFERROR(VLOOKUP(M111,'Recherche mots connus'!$C$6:$D$187,2,FALSE),"") ->  | H112: =IFERROR(VLOOKUP(N111,'Recherche mots connus'!$C$6:$D$187,2,FALSE),"") -> 
A114: =A111+1 -> 38 | B114: =VLOOKUP($A114,fréquence!$W$16:$AO$2805,8,FALSE) -> un chapeau ; des chapeaux | C114: =VLOOKUP($A114,fréquence!$W$16:$AO$2805,11,FALSE) -> nom commun | D114: =CONCATENATE(D$1,"-",VLOOKUP($A114,fréquence!$A$16:$V$3371,18,FALSE)) -> CP-13 | E114: =CONCATENATE(E$1,"-",VLOOKUP($A114,fréquence!$A$16:$V$3371,19,FALSE)) -> CE1-36 | F114: =CONCATENATE(F$1,"-",VLOOKUP($A114,fréquence!$A$16:$V$3371,20,FALSE)) -> CE2-97 | G114: =CONCATENATE(G$1,"-",VLOOKUP($A114,fréquence!$A$16:$V$3371,21,FALSE)) -> CM1-201 | H114: =CONCATENATE(H$1,"-",VLOOKUP($A114,fréquence!$A$16:$V$3371,22,FALSE)) -> CM2-361 | J114: =IF(O114<>O111,IF(O114<>0,INT((O114-1)/fréquence!$AH$2)+1,""),"") -> 38 | K114: =IF(P114<>P111,IF(P114<>0,INT((P114-1)/fréquence!$AH$3)+1,""),"") ->  | L114: =IF(Q114<>Q111,IF(Q114<>0,INT((Q114-1)/fréquence!$AH$4)+1,""),"") ->  | M114: =IF(R114<>R111,IF(R114<>0,INT((R114-1)/fréquence!$AH$5)+1,""),"") ->  | N114: =IF(S114<>S111,IF(S114<>0,INT((S114-1)/fréquence!$AH$6)+1,""),"") ->  | O114: =IF(AND($A114>=fréquence!$AJ$2,$A114<=fréquence!$AK$2),O111+1,O111) -> 38 | P114: =IF(AND($A114>=fréquence!$AJ$3,$A114<=fréquence!$AK$3),P111+1,P111) -> 0 | Q114: =IF(AND($A114>=fréquence!$AJ$4,$A114<=fréquence!$AK$4),Q111+1,Q111) -> 0 | R114: =IF(AND($A114>=fréquence!$AJ$5,$A114<=fréquence!$AK$5),R111+1,R111) -> 0 | S114: =IF(AND($A114>=fréquence!$AJ$6,$A114<=fréquence!$AK$6),S111+1,S111) -> 0
D115: =IFERROR(VLOOKUP(J114,'Recherche mots connus'!$C$6:$D$187,2,FALSE),"") -> 2015-11-06 | E115: =IFERROR(VLOOKUP(K114,'Recherche mots connus'!$C$6:$D$187,2,FALSE),"") ->  | F115: =IFERROR(VLOOKUP(L114,'Recherche mots connus'!$C$6:$D$187,2,FALSE),"") ->  | G115: =IFERROR(VLOOKUP(M114,'Recherche mots connus'!$C$6:$D$187,2,FALSE),"") ->  | H115: =IFERROR(VLOOKUP(N114,'Recherche mots connus'!$C$6:$D$187,2,FALSE),"") -> 
A117: =A114+1 -> 39 | B117: =VLOOKUP($A117,fréquence!$W$16:$AO$2805,8,FALSE) -> sa | C117: =VLOOKUP($A117,fréquence!$W$16:$AO$2805,11,FALSE) -> adjectif possessif | D117: =CONCATENATE(D$1,"-",VLOOKUP($A117,fréquence!$A$16:$V$3371,18,FALSE)) -> CP-90 | E117: =CONCATENATE(E$1,"-",VLOOKUP($A117,fréquence!$A$16:$V$3371,19,FALSE)) -> CE1-214 | F117: =CONCATENATE(F$1,"-",VLOOKUP($A117,fréquence!$A$16:$V$3371,20,FALSE)) -> CE2-592 | G117: =CONCATENATE(G$1,"-",VLOOKUP($A117,fréquence!$A$16:$V$3371,21,FALSE)) -> CM1-1189 | H117: =CONCATENATE(H$1,"-",VLOOKUP($A117,fréquence!$A$16:$V$3371,22,FALSE)) -> CM2-2031 | J117: =IF(O117<>O114,IF(O117<>0,INT((O117-1)/fréquence!$AH$2)+1,""),"") -> 39 | K117: =IF(P117<>P114,IF(P117<>0,INT((P117-1)/fréquence!$AH$3)+1,""),"") ->  | L117: =IF(Q117<>Q114,IF(Q117<>0,INT((Q117-1)/fréquence!$AH$4)+1,""),"") ->  | M117: =IF(R117<>R114,IF(R117<>0,INT((R117-1)/fréquence!$AH$5)+1,""),"") ->  | N117: =IF(S117<>S114,IF(S117<>0,INT((S117-1)/fréquence!$AH$6)+1,""),"") ->  | O117: =IF(AND($A117>=fréquence!$AJ$2,$A117<=fréquence!$AK$2),O114+1,O114) -> 39 | P117: =IF(AND($A117>=fréquence!$AJ$3,$A117<=fréquence!$AK$3),P114+1,P114) -> 0 | Q117: =IF(AND($A117>=fréquence!$AJ$4,$A117<=fréquence!$AK$4),Q114+1,Q114) -> 0 | R117: =IF(AND($A117>=fréquence!$AJ$5,$A117<=fréquence!$AK$5),R114+1,R114) -> 0 | S117: =IF(AND($A117>=fréquence!$AJ$6,$A117<=fréquence!$AK$6),S114+1,S114) -> 0
D118: =IFERROR(VLOOKUP(J117,'Recherche mots connus'!$C$6:$D$187,2,FALSE),"") -> 2015-11-09 | E118: =IFERROR(VLOOKUP(K117,'Recherche mots connus'!$C$6:$D$187,2,FALSE),"") ->  | F118: =IFERROR(VLOOKUP(L117,'Recherche mots connus'!$C$6:$D$187,2,FALSE),"") ->  | G118: =IFERROR(VLOOKUP(M117,'Recherche mots connus'!$C$6:$D$187,2,FALSE),"") ->  | H118: =IFERROR(VLOOKUP(N117,'Recherche mots connus'!$C$6:$D$187,2,FALSE),"") -> 
A120: =A117+1 -> 40 | B120: =VLOOKUP($A120,fréquence!$W$16:$AO$2805,8,FALSE) -> une classe ; des classes | C120: =VLOOKUP($A120,fréquence!$W$16:$AO$2805,11,FALSE) -> nom commun | D120: =CONCATENATE(D$1,"-",VLOOKUP($A120,fréquence!$A$16:$V$3371,18,FALSE)) -> CP-17 | E120: =CONCATENATE(E$1,"-",VLOOKUP($A120,fréquence!$A$16:$V$3371,19,FALSE)) -> CE1-47 | F120: =CONCATENATE(F$1,"-",VLOOKUP($A120,fréquence!$A$16:$V$3371,20,FALSE)) -> CE2-121 | G120: =CONCATENATE(G$1,"-",VLOOKUP($A120,fréquence!$A$16:$V$3371,21,FALSE)) -> CM1-238 | H120: =CONCATENATE(H$1,"-",VLOOKUP($A120,fréquence!$A$16:$V$3371,22,FALSE)) -> CM2-418 | J120: =IF(O120<>O117,IF(O120<>0,INT((O120-1)/fréquence!$AH$2)+1,""),"") -> 40 | K120: =IF(P120<>P117,IF(P120<>0,INT((P120-1)/fréquence!$AH$3)+1,""),"") ->  | L120: =IF(Q120<>Q117,IF(Q120<>0,INT((Q120-1)/fréquence!$AH$4)+1,""),"") ->  | M120: =IF(R120<>R117,IF(R120<>0,INT((R120-1)/fréquence!$AH$5)+1,""),"") ->  | N120: =IF(S120<>S117,IF(S120<>0,INT((S120-1)/fréquence!$AH$6)+1,""),"") ->  | O120: =IF(AND($A120>=fréquence!$AJ$2,$A120<=fréquence!$AK$2),O117+1,O117) -> 40 | P120: =IF(AND($A120>=fréquence!$AJ$3,$A120<=fréquence!$AK$3),P117+1,P117) -> 0 | Q120: =IF(AND($A120>=fréquence!$AJ$4,$A120<=fréquence!$AK$4),Q117+1,Q117) -> 0 | R120: =IF(AND($A120>=fréquence!$AJ$5,$A120<=fréquence!$AK$5),R117+1,R117) -> 0 | S120: =IF(AND($A120>=fréquence!$AJ$6,$A120<=fréquence!$AK$6),S117+1,S117) -> 0
D121: =IFERROR(VLOOKUP(J120,'Recherche mots connus'!$C$6:$D$187,2,FALSE),"") -> 2015-11-10 | E121: =IFERROR(VLOOKUP(K120,'Recherche mots connus'!$C$6:$D$187,2,FALSE),"") ->  | F121: =IFERROR(VLOOKUP(L120,'Recherche mots connus'!$C$6:$D$187,2,FALSE),"") ->  | G121: =IFERROR(VLOOKUP(M120,'Recherche mots connus'!$C$6:$D$187,2,FALSE),"") ->  | H121: =IFERROR(VLOOKUP(N120,'Recherche mots connus'!$C$6:$D$187,2,FALSE),"") -> 
A123: =A120+1 -> 41 | B123: =VLOOKUP($A123,fréquence!$W$16:$AO$2805,8,FALSE) -> une école ; des écoles | C123: =VLOOKUP($A123,fréquence!$W$16:$AO$2805,11,FALSE) -> nom commun | D123: =CONCATENATE(D$1,"-",VLOOKUP($A123,fréquence!$A$16:$V$3371,18,FALSE)) -> CP-23 | E123: =CONCATENATE(E$1,"-",VLOOKUP($A123,fréquence!$A$16:$V$3371,19,FALSE)) -> CE1-67 | F123: =CONCATENATE(F$1,"-",VLOOKUP($A123,fréquence!$A$16:$V$3371,20,FALSE)) -> CE2-199 | G123: =CONCATENATE(G$1,"-",VLOOKUP($A123,fréquence!$A$16:$V$3371,21,FALSE)) -> CM1-418 | H123: =CONCATENATE(H$1,"-",VLOOKUP($A123,fréquence!$A$16:$V$3371,22,FALSE)) -> CM2-735 | J123: =IF(O123<>O120,IF(O123<>0,INT((O123-1)/fréquence!$AH$2)+1,""),"") -> 41 | K123: =IF(P123<>P120,IF(P123<>0,INT((P123-1)/fréquence!$AH$3)+1,""),"") ->  | L123: =IF(Q123<>Q120,IF(Q123<>0,INT((Q123-1)/fréquence!$AH$4)+1,""),"") ->  | M123: =IF(R123<>R120,IF(R123<>0,INT((R123-1)/fréquence!$AH$5)+1,""),"") ->  | N123: =IF(S123<>S120,IF(S123<>0,INT((S123-1)/fréquence!$AH$6)+1,""),"") ->  | O123: =IF(AND($A123>=fréquence!$AJ$2,$A123<=fréquence!$AK$2),O120+1,O120) -> 41 | P123: =IF(AND($A123>=fréquence!$AJ$3,$A123<=fréquence!$AK$3),P120+1,P120) -> 0 | Q123: =IF(AND($A123>=fréquence!$AJ$4,$A123<=fréquence!$AK$4),Q120+1,Q120) -> 0 | R123: =IF(AND($A123>=fréquence!$AJ$5,$A123<=fréquence!$AK$5),R120+1,R120) -> 0 | S123: =IF(AND($A123>=fréquence!$AJ$6,$A123<=fréquence!$AK$6),S120+1,S120) -> 0
D124: =IFERROR(VLOOKUP(J123,'Recherche mots connus'!$C$6:$D$187,2,FALSE),"") -> 2015-11-12 | E124: =IFERROR(VLOOKUP(K123,'Recherche mots connus'!$C$6:$D$187,2,FALSE),"") ->  | F124: =IFERROR(VLOOKUP(L123,'Recherche mots connus'!$C$6:$D$187,2,FALSE),"") ->  | G124: =IFERROR(VLOOKUP(M123,'Recherche mots connus'!$C$6:$D$187,2,FALSE),"") ->  | H124: =IFERROR(VLOOKUP(N123,'Recherche mots connus'!$C$6:$D$187,2,FALSE),"") -> 
A126: =A123+1 -> 42 | B126: =VLOOKUP($A126,fréquence!$W$16:$AO$2805,8,FALSE) -> un chat ; des chats | C126: =VLOOKUP($A126,fréquence!$W$16:$AO$2805,11,FALSE) -> nom commun | D126: =CONCATENATE(D$1,"-",VLOOKUP($A126,fréquence!$A$16:$V$3371,18,FALSE)) -> CP-14 | E126: =CONCATENATE(E$1,"-",VLOOKUP($A126,fréquence!$A$16:$V$3371,19,FALSE)) -> CE1-38 | F126: =CONCATENATE(F$1,"-",VLOOKUP($A126,fréquence!$A$16:$V$3371,20,FALSE)) -> CE2-104 | G126: =CONCATENATE(G$1,"-",VLOOKUP($A126,fréquence!$A$16:$V$3371,21,FALSE)) -> CM1-210 | H126: =CONCATENATE(H$1,"-",VLOOKUP($A126,fréquence!$A$16:$V$3371,22,FALSE)) -> CM2-373 | J126: =IF(O126<>O123,IF(O126<>0,INT((O126-1)/fréquence!$AH$2)+1,""),"") -> 42 | K126: =IF(P126<>P123,IF(P126<>0,INT((P126-1)/fréquence!$AH$3)+1,""),"") ->  | L126: =IF(Q126<>Q123,IF(Q126<>0,INT((Q126-1)/fréquence!$AH$4)+1,""),"") ->  | M126: =IF(R126<>R123,IF(R126<>0,INT((R126-1)/fréquence!$AH$5)+1,""),"") ->  | N126: =IF(S126<>S123,IF(S126<>0,INT((S126-1)/fréquence!$AH$6)+1,""),"") ->  | O126: =IF(AND($A126>=fréquence!$AJ$2,$A126<=fréquence!$AK$2),O123+1,O123) -> 42 | P126: =IF(AND($A126>=fréquence!$AJ$3,$A126<=fréquence!$AK$3),P123+1,P123) -> 0 | Q126: =IF(AND($A126>=fréquence!$AJ$4,$A126<=fréquence!$AK$4),Q123+1,Q123) -> 0 | R126: =IF(AND($A126>=fréquence!$AJ$5,$A126<=fréquence!$AK$5),R123+1,R123) -> 0 | S126: =IF(AND($A126>=fréquence!$AJ$6,$A126<=fréquence!$AK$6),S123+1,S123) -> 0
D127: =IFERROR(VLOOKUP(J126,'Recherche mots connus'!$C$6:$D$187,2,FALSE),"") -> 2015-11-13 | E127: =IFERROR(VLOOKUP(K126,'Recherche mots connus'!$C$6:$D$187,2,FALSE),"") ->  | F127: =IFERROR(VLOOKUP(L126,'Recherche mots connus'!$C$6:$D$187,2,FALSE),"") ->  | G127: =IFERROR(VLOOKUP(M126,'Recherche mots connus'!$C$6:$D$187,2,FALSE),"") ->  | H127: =IFERROR(VLOOKUP(N126,'Recherche mots connus'!$C$6:$D$187,2,FALSE),"") -> 
A129: =A126+1 -> 43 | B129: =VLOOKUP($A129,fréquence!$W$16:$AO$2805,8,FALSE) -> une chatte ; des chattes | C129: =VLOOKUP($A129,fréquence!$W$16:$AO$2805,11,FALSE) -> nom commun | D129: =CONCATENATE(D$1,"-",VLOOKUP($A129,fréquence!$A$16:$V$3371,18,FALSE)) -> CP-15 | E129: =CONCATENATE(E$1,"-",VLOOKUP($A129,fréquence!$A$16:$V$3371,19,FALSE)) -> CE1-39 | F129: =CONCATENATE(F$1,"-",VLOOKUP($A129,fréquence!$A$16:$V$3371,20,FALSE)) -> CE2-105 | G129: =CONCATENATE(G$1,"-",VLOOKUP($A129,fréquence!$A$16:$V$3371,21,FALSE)) -> CM1-211 | H129: =CONCATENATE(H$1,"-",VLOOKUP($A129,fréquence!$A$16:$V$3371,22,FALSE)) -> CM2-374 | J129: =IF(O129<>O126,IF(O129<>0,INT((O129-1)/fréquence!$AH$2)+1,""),"") -> 43 | K129: =IF(P129<>P126,IF(P129<>0,INT((P129-1)/fréquence!$AH$3)+1,""),"") ->  | L129: =IF(Q129<>Q126,IF(Q129<>0,INT((Q129-1)/fréquence!$AH$4)+1,""),"") ->  | M129: =IF(R129<>R126,IF(R129<>0,INT((R129-1)/fréquence!$AH$5)+1,""),"") ->  | N129: =IF(S129<>S126,IF(S129<>0,INT((S129-1)/fréquence!$AH$6)+1,""),"") ->  | O129: =IF(AND($A129>=fréquence!$AJ$2,$A129<=fréquence!$AK$2),O126+1,O126) -> 43 | P129: =IF(AND($A129>=fréquence!$AJ$3,$A129<=fréquence!$AK$3),P126+1,P126) -> 0 | Q129: =IF(AND($A129>=fréquence!$AJ$4,$A129<=fréquence!$AK$4),Q126+1,Q126) -> 0 | R129: =IF(AND($A129>=fréquence!$AJ$5,$A129<=fréquence!$AK$5),R126+1,R126) -> 0 | S129: =IF(AND($A129>=fréquence!$AJ$6,$A129<=fréquence!$AK$6),S126+1,S126) -> 0
D130: =IFERROR(VLOOKUP(J129,'Recherche mots connus'!$C$6:$D$187,2,FALSE),"") -> 2015-11-16 | E130: =IFERROR(VLOOKUP(K129,'Recherche mots connus'!$C$6:$D$187,2,FALSE),"") ->  | F130: =IFERROR(VLOOKUP(L129,'Recherche mots connus'!$C$6:$D$187,2,FALSE),"") ->  | G130: =IFERROR(VLOOKUP(M129,'Recherche mots connus'!$C$6:$D$187,2,FALSE),"") ->  | H130: =IFERROR(VLOOKUP(N129,'Recherche mots connus'!$C$6:$D$187,2,FALSE),"") -> 
A132: =A129+1 -> 44 | B132: =VLOOKUP($A132,fréquence!$W$16:$AO$2805,8,FALSE) -> une salade ; des salades | C132: =VLOOKUP($A132,fréquence!$W$16:$AO$2805,11,FALSE) -> nom commun | D132: =CONCATENATE(D$1,"-",VLOOKUP($A132,fréquence!$A$16:$V$3371,18,FALSE)) -> CP-93 | E132: =CONCATENATE(E$1,"-",VLOOKUP($A132,fréquence!$A$16:$V$3371,19,FALSE)) -> CE1-218 | F132: =CONCATENATE(F$1,"-",VLOOKUP($A132,fréquence!$A$16:$V$3371,20,FALSE)) -> CE2-597 | G132: =CONCATENATE(G$1,"-",VLOOKUP($A132,fréquence!$A$16:$V$3371,21,FALSE)) -> CM1-1197 | H132: =CONCATENATE(H$1,"-",VLOOKUP($A132,fréquence!$A$16:$V$3371,22,FALSE)) -> CM2-2041 | J132: =IF(O132<>O129,IF(O132<>0,INT((O132-1)/fréquence!$AH$2)+1,""),"") -> 44 | K132: =IF(P132<>P129,IF(P132<>0,INT((P132-1)/fréquence!$AH$3)+1,""),"") ->  | L132: =IF(Q132<>Q129,IF(Q132<>0,INT((Q132-1)/fréquence!$AH$4)+1,""),"") ->  | M132: =IF(R132<>R129,IF(R132<>0,INT((R132-1)/fréquence!$AH$5)+1,""),"") ->  | N132: =IF(S132<>S129,IF(S132<>0,INT((S132-1)/fréquence!$AH$6)+1,""),"") ->  | O132: =IF(AND($A132>=fréquence!$AJ$2,$A132<=fréquence!$AK$2),O129+1,O129) -> 44 | P132: =IF(AND($A132>=fréquence!$AJ$3,$A132<=fréquence!$AK$3),P129+1,P129) -> 0 | Q132: =IF(AND($A132>=fréquence!$AJ$4,$A132<=fréquence!$AK$4),Q129+1,Q129) -> 0 | R132: =IF(AND($A132>=fréquence!$AJ$5,$A132<=fréquence!$AK$5),R129+1,R129) -> 0 | S132: =IF(AND($A132>=fréquence!$AJ$6,$A132<=fréquence!$AK$6),S129+1,S129) -> 0
D133: =IFERROR(VLOOKUP(J132,'Recherche mots connus'!$C$6:$D$187,2,FALSE),"") -> 2015-11-17 | E133: =IFERROR(VLOOKUP(K132,'Recherche mots connus'!$C$6:$D$187,2,FALSE),"") ->  | F133: =IFERROR(VLOOKUP(L132,'Recherche mots connus'!$C$6:$D$187,2,FALSE),"") ->  | G133: =IFERROR(VLOOKUP(M132,'Recherche mots connus'!$C$6:$D$187,2,FALSE),"") ->  | H133: =IFERROR(VLOOKUP(N132,'Recherche mots connus'!$C$6:$D$187,2,FALSE),"") -> 
A135: =A132+1 -> 45 | B135: =VLOOKUP($A135,fréquence!$W$16:$AO$2805,8,FALSE) -> une rue ; des rues | C135: =VLOOKUP($A135,fréquence!$W$16:$AO$2805,11,FALSE) -> nom commun | D135: =CONCATENATE(D$1,"-",VLOOKUP($A135,fréquence!$A$16:$V$3371,18,FALSE)) -> CP-89 | E135: =CONCATENATE(E$1,"-",VLOOKUP($A135,fréquence!$A$16:$V$3371,19,FALSE)) -> CE1-213 | F135: =CONCATENATE(F$1,"-",VLOOKUP($A135,fréquence!$A$16:$V$3371,20,FALSE)) -> CE2-590 | G135: =CONCATENATE(G$1,"-",VLOOKUP($A135,fréquence!$A$16:$V$3371,21,FALSE)) -> CM1-1185 | H135: =CONCATENATE(H$1,"-",VLOOKUP($A135,fréquence!$A$16:$V$3371,22,FALSE)) -> CM2-2024 | J135: =IF(O135<>O132,IF(O135<>0,INT((O135-1)/fréquence!$AH$2)+1,""),"") -> 45 | K135: =IF(P135<>P132,IF(P135<>0,INT((P135-1)/fréquence!$AH$3)+1,""),"") ->  | L135: =IF(Q135<>Q132,IF(Q135<>0,INT((Q135-1)/fréquence!$AH$4)+1,""),"") ->  | M135: =IF(R135<>R132,IF(R135<>0,INT((R135-1)/fréquence!$AH$5)+1,""),"") ->  | N135: =IF(S135<>S132,IF(S135<>0,INT((S135-1)/fréquence!$AH$6)+1,""),"") ->  | O135: =IF(AND($A135>=fréquence!$AJ$2,$A135<=fréquence!$AK$2),O132+1,O132) -> 45 | P135: =IF(AND($A135>=fréquence!$AJ$3,$A135<=fréquence!$AK$3),P132+1,P132) -> 0 | Q135: =IF(AND($A135>=fréquence!$AJ$4,$A135<=fréquence!$AK$4),Q132+1,Q132) -> 0 | R135: =IF(AND($A135>=fréquence!$AJ$5,$A135<=fréquence!$AK$5),R132+1,R132) -> 0 | S135: =IF(AND($A135>=fréquence!$AJ$6,$A135<=fréquence!$AK$6),S132+1,S132) -> 0
D136: =IFERROR(VLOOKUP(J135,'Recherche mots connus'!$C$6:$D$187,2,FALSE),"") -> 2015-11-18 | E136: =IFERROR(VLOOKUP(K135,'Recherche mots connus'!$C$6:$D$187,2,FALSE),"") ->  | F136: =IFERROR(VLOOKUP(L135,'Recherche mots connus'!$C$6:$D$187,2,FALSE),"") ->  | G136: =IFERROR(VLOOKUP(M135,'Recherche mots connus'!$C$6:$D$187,2,FALSE),"") ->  | H136: =IFERROR(VLOOKUP(N135,'Recherche mots connus'!$C$6:$D$187,2,FALSE),"") -> 
A138: =A135+1 -> 46 | B138: =VLOOKUP($A138,fréquence!$W$16:$AO$2805,8,FALSE) -> une voiture ; des voitures | C138: =VLOOKUP($A138,fréquence!$W$16:$AO$2805,11,FALSE) -> nom commun | D138: =CONCATENATE(D$1,"-",VLOOKUP($A138,fréquence!$A$16:$V$3371,18,FALSE)) -> CP-110 | E138: =CONCATENATE(E$1,"-",VLOOKUP($A138,fréquence!$A$16:$V$3371,19,FALSE)) -> CE1-251 | F138: =CONCATENATE(F$1,"-",VLOOKUP($A138,fréquence!$A$16:$V$3371,20,FALSE)) -> CE2-721 | G138: =CONCATENATE(G$1,"-",VLOOKUP($A138,fréquence!$A$16:$V$3371,21,FALSE)) -> CM1-1443 | H138: =CONCATENATE(H$1,"-",VLOOKUP($A138,fréquence!$A$16:$V$3371,22,FALSE)) -> CM2-2414 | J138: =IF(O138<>O135,IF(O138<>0,INT((O138-1)/fréquence!$AH$2)+1,""),"") -> 46 | K138: =IF(P138<>P135,IF(P138<>0,INT((P138-1)/fréquence!$AH$3)+1,""),"") ->  | L138: =IF(Q138<>Q135,IF(Q138<>0,INT((Q138-1)/fréquence!$AH$4)+1,""),"") ->  | M138: =IF(R138<>R135,IF(R138<>0,INT((R138-1)/fréquence!$AH$5)+1,""),"") ->  | N138: =IF(S138<>S135,IF(S138<>0,INT((S138-1)/fréquence!$AH$6)+1,""),"") ->  | O138: =IF(AND($A138>=fréquence!$AJ$2,$A138<=fréquence!$AK$2),O135+1,O135) -> 46 | P138: =IF(AND($A138>=fréquence!$AJ$3,$A138<=fréquence!$AK$3),P135+1,P135) -> 0 | Q138: =IF(AND($A138>=fréquence!$AJ$4,$A138<=fréquence!$AK$4),Q135+1,Q135) -> 0 | R138: =IF(AND($A138>=fréquence!$AJ$5,$A138<=fréquence!$AK$5),R135+1,R135) -> 0 | S138: =IF(AND($A138>=fréquence!$AJ$6,$A138<=fréquence!$AK$6),S135+1,S135) -> 0
D139: =IFERROR(VLOOKUP(J138,'Recherche mots connus'!$C$6:$D$187,2,FALSE),"") -> 2015-11-19 | E139: =IFERROR(VLOOKUP(K138,'Recherche mots connus'!$C$6:$D$187,2,FALSE),"") ->  | F139: =IFERROR(VLOOKUP(L138,'Recherche mots connus'!$C$6:$D$187,2,FALSE),"") ->  | G139: =IFERROR(VLOOKUP(M138,'Recherche mots connus'!$C$6:$D$187,2,FALSE),"") ->  | H139: =IFERROR(VLOOKUP(N138,'Recherche mots connus'!$C$6:$D$187,2,FALSE),"") -> 
A141: =A138+1 -> 47 | B141: =VLOOKUP($A141,fréquence!$W$16:$AO$2805,8,FALSE) -> une robe ; des robes | C141: =VLOOKUP($A141,fréquence!$W$16:$AO$2805,11,FALSE) -> nom commun | D141: =CONCATENATE(D$1,"-",VLOOKUP($A141,fréquence!$A$16:$V$3371,18,FALSE)) -> CP-86 | E141: =CONCATENATE(E$1,"-",VLOOKUP($A141,fréquence!$A$16:$V$3371,19,FALSE)) -> CE1-209 | F141: =CONCATENATE(F$1,"-",VLOOKUP($A141,fréquence!$A$16:$V$3371,20,FALSE)) -> CE2-581 | G141: =CONCATENATE(G$1,"-",VLOOKUP($A141,fréquence!$A$16:$V$3371,21,FALSE)) -> CM1-1170 | H141: =CONCATENATE(H$1,"-",VLOOKUP($A141,fréquence!$A$16:$V$3371,22,FALSE)) -> CM2-2000 | J141: =IF(O141<>O138,IF(O141<>0,INT((O141-1)/fréquence!$AH$2)+1,""),"") -> 47 | K141: =IF(P141<>P138,IF(P141<>0,INT((P141-1)/fréquence!$AH$3)+1,""),"") ->  | L141: =IF(Q141<>Q138,IF(Q141<>0,INT((Q141-1)/fréquence!$AH$4)+1,""),"") ->  | M141: =IF(R141<>R138,IF(R141<>0,INT((R141-1)/fréquence!$AH$5)+1,""),"") ->  | N141: =IF(S141<>S138,IF(S141<>0,INT((S141-1)/fréquence!$AH$6)+1,""),"") ->  | O141: =IF(AND($A141>=fréquence!$AJ$2,$A141<=fréquence!$AK$2),O138+1,O138) -> 47 | P141: =IF(AND($A141>=fréquence!$AJ$3,$A141<=fréquence!$AK$3),P138+1,P138) -> 0 | Q141: =IF(AND($A141>=fréquence!$AJ$4,$A141<=fréquence!$AK$4),Q138+1,Q138) -> 0 | R141: =IF(AND($A141>=fréquence!$AJ$5,$A141<=fréquence!$AK$5),R138+1,R138) -> 0 | S141: =IF(AND($A141>=fréquence!$AJ$6,$A141<=fréquence!$AK$6),S138+1,S138) -> 0
D142: =IFERROR(VLOOKUP(J141,'Recherche mots connus'!$C$6:$D$187,2,FALSE),"") -> 2015-11-20 | E142: =IFERROR(VLOOKUP(K141,'Recherche mots connus'!$C$6:$D$187,2,FALSE),"") ->  | F142: =IFERROR(VLOOKUP(L141,'Recherche mots connus'!$C$6:$D$187,2,FALSE),"") ->  | G142: =IFERROR(VLOOKUP(M141,'Recherche mots connus'!$C$6:$D$187,2,FALSE),"") ->  | H142: =IFERROR(VLOOKUP(N141,'Recherche mots connus'!$C$6:$D$187,2,FALSE),"") -> 
A144: =A141+1 -> 48 | B144: =VLOOKUP($A144,fréquence!$W$16:$AO$2805,8,FALSE) -> un été ; des étés | C144: =VLOOKUP($A144,fréquence!$W$16:$AO$2805,11,FALSE) -> nom commun | D144: =CONCATENATE(D$1,"-",VLOOKUP($A144,fréquence!$A$16:$V$3371,18,FALSE)) -> CP-30 | E144: =CONCATENATE(E$1,"-",VLOOKUP($A144,fréquence!$A$16:$V$3371,19,FALSE)) -> CE1-76 | F144: =CONCATENATE(F$1,"-",VLOOKUP($A144,fréquence!$A$16:$V$3371,20,FALSE)) -> CE2-228 | G144: =CONCATENATE(G$1,"-",VLOOKUP($A144,fréquence!$A$16:$V$3371,21,FALSE)) -> CM1-470 | H144: =CONCATENATE(H$1,"-",VLOOKUP($A144,fréquence!$A$16:$V$3371,22,FALSE)) -> CM2-843 | J144: =IF(O144<>O141,IF(O144<>0,INT((O144-1)/fréquence!$AH$2)+1,""),"") -> 48 | K144: =IF(P144<>P141,IF(P144<>0,INT((P144-1)/fréquence!$AH$3)+1,""),"") ->  | L144: =IF(Q144<>Q141,IF(Q144<>0,INT((Q144-1)/fréquence!$AH$4)+1,""),"") ->  | M144: =IF(R144<>R141,IF(R144<>0,INT((R144-1)/fréquence!$AH$5)+1,""),"") ->  | N144: =IF(S144<>S141,IF(S144<>0,INT((S144-1)/fréquence!$AH$6)+1,""),"") ->  | O144: =IF(AND($A144>=fréquence!$AJ$2,$A144<=fréquence!$AK$2),O141+1,O141) -> 48 | P144: =IF(AND($A144>=fréquence!$AJ$3,$A144<=fréquence!$AK$3),P141+1,P141) -> 0 | Q144: =IF(AND($A144>=fréquence!$AJ$4,$A144<=fréquence!$AK$4),Q141+1,Q141) -> 0 | R144: =IF(AND($A144>=fréquence!$AJ$5,$A144<=fréquence!$AK$5),R141+1,R141) -> 0 | S144: =IF(AND($A144>=fréquence!$AJ$6,$A144<=fréquence!$AK$6),S141+1,S141) -> 0
D145: =IFERROR(VLOOKUP(J144,'Recherche mots connus'!$C$6:$D$187,2,FALSE),"") -> 2015-11-23 | E145: =IFERROR(VLOOKUP(K144,'Recherche mots connus'!$C$6:$D$187,2,FALSE),"") ->  | F145: =IFERROR(VLOOKUP(L144,'Recherche mots connus'!$C$6:$D$187,2,FALSE),"") ->  | G145: =IFERROR(VLOOKUP(M144,'Recherche mots connus'!$C$6:$D$187,2,FALSE),"") ->  | H145: =IFERROR(VLOOKUP(N144,'Recherche mots connus'!$C$6:$D$187,2,FALSE),"") -> 
A147: =A144+1 -> 49 | B147: =VLOOKUP($A147,fréquence!$W$16:$AO$2805,8,FALSE) -> un matin ; des matins | C147: =VLOOKUP($A147,fréquence!$W$16:$AO$2805,11,FALSE) -> nom commun | D147: =CONCATENATE(D$1,"-",VLOOKUP($A147,fréquence!$A$16:$V$3371,18,FALSE)) -> CP-62 | E147: =CONCATENATE(E$1,"-",VLOOKUP($A147,fréquence!$A$16:$V$3371,19,FALSE)) -> CE1-145 | F147: =CONCATENATE(F$1,"-",VLOOKUP($A147,fréquence!$A$16:$V$3371,20,FALSE)) -> CE2-400 | G147: =CONCATENATE(G$1,"-",VLOOKUP($A147,fréquence!$A$16:$V$3371,21,FALSE)) -> CM1-770 | H147: =CONCATENATE(H$1,"-",VLOOKUP($A147,fréquence!$A$16:$V$3371,22,FALSE)) -> CM2-1371 | J147: =IF(O147<>O144,IF(O147<>0,INT((O147-1)/fréquence!$AH$2)+1,""),"") -> 49 | K147: =IF(P147<>P144,IF(P147<>0,INT((P147-1)/fréquence!$AH$3)+1,""),"") ->  | L147: =IF(Q147<>Q144,IF(Q147<>0,INT((Q147-1)/fréquence!$AH$4)+1,""),"") ->  | M147: =IF(R147<>R144,IF(R147<>0,INT((R147-1)/fréquence!$AH$5)+1,""),"") ->  | N147: =IF(S147<>S144,IF(S147<>0,INT((S147-1)/fréquence!$AH$6)+1,""),"") ->  | O147: =IF(AND($A147>=fréquence!$AJ$2,$A147<=fréquence!$AK$2),O144+1,O144) -> 49 | P147: =IF(AND($A147>=fréquence!$AJ$3,$A147<=fréquence!$AK$3),P144+1,P144) -> 0 | Q147: =IF(AND($A147>=fréquence!$AJ$4,$A147<=fréquence!$AK$4),Q144+1,Q144) -> 0 | R147: =IF(AND($A147>=fréquence!$AJ$5,$A147<=fréquence!$AK$5),R144+1,R144) -> 0 | S147: =IF(AND($A147>=fréquence!$AJ$6,$A147<=fréquence!$AK$6),S144+1,S144) -> 0
D148: =IFERROR(VLOOKUP(J147,'Recherche mots connus'!$C$6:$D$187,2,FALSE),"") -> 2015-11-24 | E148: =IFERROR(VLOOKUP(K147,'Recherche mots connus'!$C$6:$D$187,2,FALSE),"") ->  | F148: =IFERROR(VLOOKUP(L147,'Recherche mots connus'!$C$6:$D$187,2,FALSE),"") ->  | G148: =IFERROR(VLOOKUP(M147,'Recherche mots connus'!$C$6:$D$187,2,FALSE),"") ->  | H148: =IFERROR(VLOOKUP(N147,'Recherche mots connus'!$C$6:$D$187,2,FALSE),"") -> 
A150: =A147+1 -> 50 | B150: =VLOOKUP($A150,fréquence!$W$16:$AO$2805,8,FALSE) -> le midi ; les midis | C150: =VLOOKUP($A150,fréquence!$W$16:$AO$2805,11,FALSE) -> nom commun | D150: =CONCATENATE(D$1,"-",VLOOKUP($A150,fréquence!$A$16:$V$3371,18,FALSE)) -> CP-66 | E150: =CONCATENATE(E$1,"-",VLOOKUP($A150,fréquence!$A$16:$V$3371,19,FALSE)) -> CE1-150 | F150: =CONCATENATE(F$1,"-",VLOOKUP($A150,fréquence!$A$16:$V$3371,20,FALSE)) -> CE2-415 | G150: =CONCATENATE(G$1,"-",VLOOKUP($A150,fréquence!$A$16:$V$3371,21,FALSE)) -> CM1-804 | H150: =CONCATENATE(H$1,"-",VLOOKUP($A150,fréquence!$A$16:$V$3371,22,FALSE)) -> CM2-1418 | J150: =IF(O150<>O147,IF(O150<>0,INT((O150-1)/fréquence!$AH$2)+1,""),"") -> 50 | K150: =IF(P150<>P147,IF(P150<>0,INT((P150-1)/fréquence!$AH$3)+1,""),"") ->  | L150: =IF(Q150<>Q147,IF(Q150<>0,INT((Q150-1)/fréquence!$AH$4)+1,""),"") ->  | M150: =IF(R150<>R147,IF(R150<>0,INT((R150-1)/fréquence!$AH$5)+1,""),"") ->  | N150: =IF(S150<>S147,IF(S150<>0,INT((S150-1)/fréquence!$AH$6)+1,""),"") ->  | O150: =IF(AND($A150>=fréquence!$AJ$2,$A150<=fréquence!$AK$2),O147+1,O147) -> 50 | P150: =IF(AND($A150>=fréquence!$AJ$3,$A150<=fréquence!$AK$3),P147+1,P147) -> 0 | Q150: =IF(AND($A150>=fréquence!$AJ$4,$A150<=fréquence!$AK$4),Q147+1,Q147) -> 0 | R150: =IF(AND($A150>=fréquence!$AJ$5,$A150<=fréquence!$AK$5),R147+1,R147) -> 0 | S150: =IF(AND($A150>=fréquence!$AJ$6,$A150<=fréquence!$AK$6),S147+1,S147) -> 0
D151: =IFERROR(VLOOKUP(J150,'Recherche mots connus'!$C$6:$D$187,2,FALSE),"") -> 2015-11-25 | E151: =IFERROR(VLOOKUP(K150,'Recherche mots connus'!$C$6:$D$187,2,FALSE),"") ->  | F151: =IFERROR(VLOOKUP(L150,'Recherche mots connus'!$C$6:$D$187,2,FALSE),"") ->  | G151: =IFERROR(VLOOKUP(M150,'Recherche mots connus'!$C$6:$D$187,2,FALSE),"") ->  | H151: =IFERROR(VLOOKUP(N150,'Recherche mots connus'!$C$6:$D$187,2,FALSE),"") -> 
A153: =A150+1 -> 51 | B153: =VLOOKUP($A153,fréquence!$W$16:$AO$2805,8,FALSE) -> le soir ; les soirs | C153: =VLOOKUP($A153,fréquence!$W$16:$AO$2805,11,FALSE) -> nom commun | D153: =CONCATENATE(D$1,"-",VLOOKUP($A153,fréquence!$A$16:$V$3371,18,FALSE)) -> CP-97 | E153: =CONCATENATE(E$1,"-",VLOOKUP($A153,fréquence!$A$16:$V$3371,19,FALSE)) -> CE1-225 | F153: =CONCATENATE(F$1,"-",VLOOKUP($A153,fréquence!$A$16:$V$3371,20,FALSE)) -> CE2-617 | G153: =CONCATENATE(G$1,"-",VLOOKUP($A153,fréquence!$A$16:$V$3371,21,FALSE)) -> CM1-1250 | H153: =CONCATENATE(H$1,"-",VLOOKUP($A153,fréquence!$A$16:$V$3371,22,FALSE)) -> CM2-2136 | J153: =IF(O153<>O150,IF(O153<>0,INT((O153-1)/fréquence!$AH$2)+1,""),"") -> 51 | K153: =IF(P153<>P150,IF(P153<>0,INT((P153-1)/fréquence!$AH$3)+1,""),"") ->  | L153: =IF(Q153<>Q150,IF(Q153<>0,INT((Q153-1)/fréquence!$AH$4)+1,""),"") ->  | M153: =IF(R153<>R150,IF(R153<>0,INT((R153-1)/fréquence!$AH$5)+1,""),"") ->  | N153: =IF(S153<>S150,IF(S153<>0,INT((S153-1)/fréquence!$AH$6)+1,""),"") ->  | O153: =IF(AND($A153>=fréquence!$AJ$2,$A153<=fréquence!$AK$2),O150+1,O150) -> 51 | P153: =IF(AND($A153>=fréquence!$AJ$3,$A153<=fréquence!$AK$3),P150+1,P150) -> 0 | Q153: =IF(AND($A153>=fréquence!$AJ$4,$A153<=fréquence!$AK$4),Q150+1,Q150) -> 0 | R153: =IF(AND($A153>=fréquence!$AJ$5,$A153<=fréquence!$AK$5),R150+1,R150) -> 0 | S153: =IF(AND($A153>=fréquence!$AJ$6,$A153<=fréquence!$AK$6),S150+1,S150) -> 0
D154: =IFERROR(VLOOKUP(J153,'Recherche mots connus'!$C$6:$D$187,2,FALSE),"") -> 2015-11-26 | E154: =IFERROR(VLOOKUP(K153,'Recherche mots connus'!$C$6:$D$187,2,FALSE),"") ->  | F154: =IFERROR(VLOOKUP(L153,'Recherche mots connus'!$C$6:$D$187,2,FALSE),"") ->  | G154: =IFERROR(VLOOKUP(M153,'Recherche mots connus'!$C$6:$D$187,2,FALSE),"") ->  | H154: =IFERROR(VLOOKUP(N153,'Recherche mots connus'!$C$6:$D$187,2,FALSE),"") -> 
A156: =A153+1 -> 52 | B156: =VLOOKUP($A156,fréquence!$W$16:$AO$2805,8,FALSE) -> une fête ; des fêtes | C156: =VLOOKUP($A156,fréquence!$W$16:$AO$2805,11,FALSE) -> nom commun | D156: =CONCATENATE(D$1,"-",VLOOKUP($A156,fréquence!$A$16:$V$3371,18,FALSE)) -> CP-32 | E156: =CONCATENATE(E$1,"-",VLOOKUP($A156,fréquence!$A$16:$V$3371,19,FALSE)) -> CE1-83 | F156: =CONCATENATE(F$1,"-",VLOOKUP($A156,fréquence!$A$16:$V$3371,20,FALSE)) -> CE2-246 | G156: =CONCATENATE(G$1,"-",VLOOKUP($A156,fréquence!$A$16:$V$3371,21,FALSE)) -> CM1-508 | H156: =CONCATENATE(H$1,"-",VLOOKUP($A156,fréquence!$A$16:$V$3371,22,FALSE)) -> CM2-920 | J156: =IF(O156<>O153,IF(O156<>0,INT((O156-1)/fréquence!$AH$2)+1,""),"") -> 52 | K156: =IF(P156<>P153,IF(P156<>0,INT((P156-1)/fréquence!$AH$3)+1,""),"") ->  | L156: =IF(Q156<>Q153,IF(Q156<>0,INT((Q156-1)/fréquence!$AH$4)+1,""),"") ->  | M156: =IF(R156<>R153,IF(R156<>0,INT((R156-1)/fréquence!$AH$5)+1,""),"") ->  | N156: =IF(S156<>S153,IF(S156<>0,INT((S156-1)/fréquence!$AH$6)+1,""),"") ->  | O156: =IF(AND($A156>=fréquence!$AJ$2,$A156<=fréquence!$AK$2),O153+1,O153) -> 52 | P156: =IF(AND($A156>=fréquence!$AJ$3,$A156<=fréquence!$AK$3),P153+1,P153) -> 0 | Q156: =IF(AND($A156>=fréquence!$AJ$4,$A156<=fréquence!$AK$4),Q153+1,Q153) -> 0 | R156: =IF(AND($A156>=fréquence!$AJ$5,$A156<=fréquence!$AK$5),R153+1,R153) -> 0 | S156: =IF(AND($A156>=fréquence!$AJ$6,$A156<=fréquence!$AK$6),S153+1,S153) -> 0
D157: =IFERROR(VLOOKUP(J156,'Recherche mots connus'!$C$6:$D$187,2,FALSE),"") -> 2015-11-27 | E157: =IFERROR(VLOOKUP(K156,'Recherche mots connus'!$C$6:$D$187,2,FALSE),"") ->  | F157: =IFERROR(VLOOKUP(L156,'Recherche mots connus'!$C$6:$D$187,2,FALSE),"") ->  | G157: =IFERROR(VLOOKUP(M156,'Recherche mots connus'!$C$6:$D$187,2,FALSE),"") ->  | H157: =IFERROR(VLOOKUP(N156,'Recherche mots connus'!$C$6:$D$187,2,FALSE),"") -> 
A159: =A156+1 -> 53 | B159: =VLOOKUP($A159,fréquence!$W$16:$AO$2805,8,FALSE) -> une route ; des routes | C159: =VLOOKUP($A159,fréquence!$W$16:$AO$2805,11,FALSE) -> nom commun | D159: =CONCATENATE(D$1,"-",VLOOKUP($A159,fréquence!$A$16:$V$3371,18,FALSE)) -> CP-88 | E159: =CONCATENATE(E$1,"-",VLOOKUP($A159,fréquence!$A$16:$V$3371,19,FALSE)) -> CE1-212 | F159: =CONCATENATE(F$1,"-",VLOOKUP($A159,fréquence!$A$16:$V$3371,20,FALSE)) -> CE2-588 | G159: =CONCATENATE(G$1,"-",VLOOKUP($A159,fréquence!$A$16:$V$3371,21,FALSE)) -> CM1-1181 | H159: =CONCATENATE(H$1,"-",VLOOKUP($A159,fréquence!$A$16:$V$3371,22,FALSE)) -> CM2-2018 | J159: =IF(O159<>O156,IF(O159<>0,INT((O159-1)/fréquence!$AH$2)+1,""),"") -> 53 | K159: =IF(P159<>P156,IF(P159<>0,INT((P159-1)/fréquence!$AH$3)+1,""),"") ->  | L159: =IF(Q159<>Q156,IF(Q159<>0,INT((Q159-1)/fréquence!$AH$4)+1,""),"") ->  | M159: =IF(R159<>R156,IF(R159<>0,INT((R159-1)/fréquence!$AH$5)+1,""),"") ->  | N159: =IF(S159<>S156,IF(S159<>0,INT((S159-1)/fréquence!$AH$6)+1,""),"") ->  | O159: =IF(AND($A159>=fréquence!$AJ$2,$A159<=fréquence!$AK$2),O156+1,O156) -> 53 | P159: =IF(AND($A159>=fréquence!$AJ$3,$A159<=fréquence!$AK$3),P156+1,P156) -> 0 | Q159: =IF(AND($A159>=fréquence!$AJ$4,$A159<=fréquence!$AK$4),Q156+1,Q156) -> 0 | R159: =IF(AND($A159>=fréquence!$AJ$5,$A159<=fréquence!$AK$5),R156+1,R156) -> 0 | S159: =IF(AND($A159>=fréquence!$AJ$6,$A159<=fréquence!$AK$6),S156+1,S156) -> 0
D160: =IFERROR(VLOOKUP(J159,'Recherche mots connus'!$C$6:$D$187,2,FALSE),"") -> 2015-11-30 | E160: =IFERROR(VLOOKUP(K159,'Recherche mots connus'!$C$6:$D$187,2,FALSE),"") ->  | F160: =IFERROR(VLOOKUP(L159,'Recherche mots connus'!$C$6:$D$187,2,FALSE),"") ->  | G160: =IFERROR(VLOOKUP(M159,'Recherche mots connus'!$C$6:$D$187,2,FALSE),"") ->  | H160: =IFERROR(VLOOKUP(N159,'Recherche mots connus'!$C$6:$D$187,2,FALSE),"") -> 
A162: =A159+1 -> 54 | B162: =VLOOKUP($A162,fréquence!$W$16:$AO$2805,8,FALSE) -> noir ; noire ; noirs ; noires | C162: =VLOOKUP($A162,fréquence!$W$16:$AO$2805,11,FALSE) -> adjectif | D162: =CONCATENATE(D$1,"-",VLOOKUP($A162,fréquence!$A$16:$V$3371,18,FALSE)) -> CP-72 | E162: =CONCATENATE(E$1,"-",VLOOKUP($A162,fréquence!$A$16:$V$3371,19,FALSE)) -> CE1-166 | F162: =CONCATENATE(F$1,"-",VLOOKUP($A162,fréquence!$A$16:$V$3371,20,FALSE)) -> CE2-449 | G162: =CONCATENATE(G$1,"-",VLOOKUP($A162,fréquence!$A$16:$V$3371,21,FALSE)) -> CM1-872 | H162: =CONCATENATE(H$1,"-",VLOOKUP($A162,fréquence!$A$16:$V$3371,22,FALSE)) -> CM2-1508 | J162: =IF(O162<>O159,IF(O162<>0,INT((O162-1)/fréquence!$AH$2)+1,""),"") -> 54 | K162: =IF(P162<>P159,IF(P162<>0,INT((P162-1)/fréquence!$AH$3)+1,""),"") ->  | L162: =IF(Q162<>Q159,IF(Q162<>0,INT((Q162-1)/fréquence!$AH$4)+1,""),"") ->  | M162: =IF(R162<>R159,IF(R162<>0,INT((R162-1)/fréquence!$AH$5)+1,""),"") ->  | N162: =IF(S162<>S159,IF(S162<>0,INT((S162-1)/fréquence!$AH$6)+1,""),"") ->  | O162: =IF(AND($A162>=fréquence!$AJ$2,$A162<=fréquence!$AK$2),O159+1,O159) -> 54 | P162: =IF(AND($A162>=fréquence!$AJ$3,$A162<=fréquence!$AK$3),P159+1,P159) -> 0 | Q162: =IF(AND($A162>=fréquence!$AJ$4,$A162<=fréquence!$AK$4),Q159+1,Q159) -> 0 | R162: =IF(AND($A162>=fréquence!$AJ$5,$A162<=fréquence!$AK$5),R159+1,R159) -> 0 | S162: =IF(AND($A162>=fréquence!$AJ$6,$A162<=fréquence!$AK$6),S159+1,S159) -> 0
D163: =IFERROR(VLOOKUP(J162,'Recherche mots connus'!$C$6:$D$187,2,FALSE),"") -> 2015-12-01 | E163: =IFERROR(VLOOKUP(K162,'Recherche mots connus'!$C$6:$D$187,2,FALSE),"") ->  | F163: =IFERROR(VLOOKUP(L162,'Recherche mots connus'!$C$6:$D$187,2,FALSE),"") ->  | G163: =IFERROR(VLOOKUP(M162,'Recherche mots connus'!$C$6:$D$187,2,FALSE),"") ->  | H163: =IFERROR(VLOOKUP(N162,'Recherche mots connus'!$C$6:$D$187,2,FALSE),"") -> 
A165: =A162+1 -> 55 | B165: =VLOOKUP($A165,fréquence!$W$16:$AO$2805,8,FALSE) -> moi | C165: =VLOOKUP($A165,fréquence!$W$16:$AO$2805,11,FALSE) -> pronom personnel | D165: =CONCATENATE(D$1,"-",VLOOKUP($A165,fréquence!$A$16:$V$3371,18,FALSE)) -> CP-67 | E165: =CONCATENATE(E$1,"-",VLOOKUP($A165,fréquence!$A$16:$V$3371,19,FALSE)) -> CE1-151 | F165: =CONCATENATE(F$1,"-",VLOOKUP($A165,fréquence!$A$16:$V$3371,20,FALSE)) -> CE2-422 | G165: =CONCATENATE(G$1,"-",VLOOKUP($A165,fréquence!$A$16:$V$3371,21,FALSE)) -> CM1-821 | H165: =CONCATENATE(H$1,"-",VLOOKUP($A165,fréquence!$A$16:$V$3371,22,FALSE)) -> CM2-1444 | J165: =IF(O165<>O162,IF(O165<>0,INT((O165-1)/fréquence!$AH$2)+1,""),"") -> 55 | K165: =IF(P165<>P162,IF(P165<>0,INT((P165-1)/fréquence!$AH$3)+1,""),"") ->  | L165: =IF(Q165<>Q162,IF(Q165<>0,INT((Q165-1)/fréquence!$AH$4)+1,""),"") ->  | M165: =IF(R165<>R162,IF(R165<>0,INT((R165-1)/fréquence!$AH$5)+1,""),"") ->  | N165: =IF(S165<>S162,IF(S165<>0,INT((S165-1)/fréquence!$AH$6)+1,""),"") ->  | O165: =IF(AND($A165>=fréquence!$AJ$2,$A165<=fréquence!$AK$2),O162+1,O162) -> 55 | P165: =IF(AND($A165>=fréquence!$AJ$3,$A165<=fréquence!$AK$3),P162+1,P162) -> 0 | Q165: =IF(AND($A165>=fréquence!$AJ$4,$A165<=fréquence!$AK$4),Q162+1,Q162) -> 0 | R165: =IF(AND($A165>=fréquence!$AJ$5,$A165<=fréquence!$AK$5),R162+1,R162) -> 0 | S165: =IF(AND($A165>=fréquence!$AJ$6,$A165<=fréquence!$AK$6),S162+1,S162) -> 0
D166: =IFERROR(VLOOKUP(J165,'Recherche mots connus'!$C$6:$D$187,2,FALSE),"") -> 2015-12-02 | E166: =IFERROR(VLOOKUP(K165,'Recherche mots connus'!$C$6:$D$187,2,FALSE),"") ->  | F166: =IFERROR(VLOOKUP(L165,'Recherche mots connus'!$C$6:$D$187,2,FALSE),"") ->  | G166: =IFERROR(VLOOKUP(M165,'Recherche mots connus'!$C$6:$D$187,2,FALSE),"") ->  | H166: =IFERROR(VLOOKUP(N165,'Recherche mots connus'!$C$6:$D$187,2,FALSE),"") -> 
A168: =A165+1 -> 56 | B168: =VLOOKUP($A168,fréquence!$W$16:$AO$2805,8,FALSE) -> ton | C168: =VLOOKUP($A168,fréquence!$W$16:$AO$2805,11,FALSE) -> adjectif possessif | D168: =CONCATENATE(D$1,"-",VLOOKUP($A168,fréquence!$A$16:$V$3371,18,FALSE)) -> CP-106 | E168: =CONCATENATE(E$1,"-",VLOOKUP($A168,fréquence!$A$16:$V$3371,19,FALSE)) -> CE1-242 | F168: =CONCATENATE(F$1,"-",VLOOKUP($A168,fréquence!$A$16:$V$3371,20,FALSE)) -> CE2-662 | G168: =CONCATENATE(G$1,"-",VLOOKUP($A168,fréquence!$A$16:$V$3371,21,FALSE)) -> CM1-1342 | H168: =CONCATENATE(H$1,"-",VLOOKUP($A168,fréquence!$A$16:$V$3371,22,FALSE)) -> CM2-2270 | J168: =IF(O168<>O165,IF(O168<>0,INT((O168-1)/fréquence!$AH$2)+1,""),"") -> 56 | K168: =IF(P168<>P165,IF(P168<>0,INT((P168-1)/fréquence!$AH$3)+1,""),"") ->  | L168: =IF(Q168<>Q165,IF(Q168<>0,INT((Q168-1)/fréquence!$AH$4)+1,""),"") ->  | M168: =IF(R168<>R165,IF(R168<>0,INT((R168-1)/fréquence!$AH$5)+1,""),"") ->  | N168: =IF(S168<>S165,IF(S168<>0,INT((S168-1)/fréquence!$AH$6)+1,""),"") ->  | O168: =IF(AND($A168>=fréquence!$AJ$2,$A168<=fréquence!$AK$2),O165+1,O165) -> 56 | P168: =IF(AND($A168>=fréquence!$AJ$3,$A168<=fréquence!$AK$3),P165+1,P165) -> 0 | Q168: =IF(AND($A168>=fréquence!$AJ$4,$A168<=fréquence!$AK$4),Q165+1,Q165) -> 0 | R168: =IF(AND($A168>=fréquence!$AJ$5,$A168<=fréquence!$AK$5),R165+1,R165) -> 0 | S168: =IF(AND($A168>=fréquence!$AJ$6,$A168<=fréquence!$AK$6),S165+1,S165) -> 0
D169: =IFERROR(VLOOKUP(J168,'Recherche mots connus'!$C$6:$D$187,2,FALSE),"") -> 2015-12-03 | E169: =IFERROR(VLOOKUP(K168,'Recherche mots connus'!$C$6:$D$187,2,FALSE),"") ->  | F169: =IFERROR(VLOOKUP(L168,'Recherche mots connus'!$C$6:$D$187,2,FALSE),"") ->  | G169: =IFERROR(VLOOKUP(M168,'Recherche mots connus'!$C$6:$D$187,2,FALSE),"") ->  | H169: =IFERROR(VLOOKUP(N168,'Recherche mots connus'!$C$6:$D$187,2,FALSE),"") -> 
A171: =A168+1 -> 57 | B171: =VLOOKUP($A171,fréquence!$W$16:$AO$2805,8,FALSE) -> ta | C171: =VLOOKUP($A171,fréquence!$W$16:$AO$2805,11,FALSE) -> adjectif possessif | D171: =CONCATENATE(D$1,"-",VLOOKUP($A171,fréquence!$A$16:$V$3371,18,FALSE)) -> CP-102 | E171: =CONCATENATE(E$1,"-",VLOOKUP($A171,fréquence!$A$16:$V$3371,19,FALSE)) -> CE1-234 | F171: =CONCATENATE(F$1,"-",VLOOKUP($A171,fréquence!$A$16:$V$3371,20,FALSE)) -> CE2-643 | G171: =CONCATENATE(G$1,"-",VLOOKUP($A171,fréquence!$A$16:$V$3371,21,FALSE)) -> CM1-1301 | H171: =CONCATENATE(H$1,"-",VLOOKUP($A171,fréquence!$A$16:$V$3371,22,FALSE)) -> CM2-2211 | J171: =IF(O171<>O168,IF(O171<>0,INT((O171-1)/fréquence!$AH$2)+1,""),"") -> 57 | K171: =IF(P171<>P168,IF(P171<>0,INT((P171-1)/fréquence!$AH$3)+1,""),"") ->  | L171: =IF(Q171<>Q168,IF(Q171<>0,INT((Q171-1)/fréquence!$AH$4)+1,""),"") ->  | M171: =IF(R171<>R168,IF(R171<>0,INT((R171-1)/fréquence!$AH$5)+1,""),"") ->  | N171: =IF(S171<>S168,IF(S171<>0,INT((S171-1)/fréquence!$AH$6)+1,""),"") ->  | O171: =IF(AND($A171>=fréquence!$AJ$2,$A171<=fréquence!$AK$2),O168+1,O168) -> 57 | P171: =IF(AND($A171>=fréquence!$AJ$3,$A171<=fréquence!$AK$3),P168+1,P168) -> 0 | Q171: =IF(AND($A171>=fréquence!$AJ$4,$A171<=fréquence!$AK$4),Q168+1,Q168) -> 0 | R171: =IF(AND($A171>=fréquence!$AJ$5,$A171<=fréquence!$AK$5),R168+1,R168) -> 0 | S171: =IF(AND($A171>=fréquence!$AJ$6,$A171<=fréquence!$AK$6),S168+1,S168) -> 0
D172: =IFERROR(VLOOKUP(J171,'Recherche mots connus'!$C$6:$D$187,2,FALSE),"") -> 2015-12-04 | E172: =IFERROR(VLOOKUP(K171,'Recherche mots connus'!$C$6:$D$187,2,FALSE),"") ->  | F172: =IFERROR(VLOOKUP(L171,'Recherche mots connus'!$C$6:$D$187,2,FALSE),"") ->  | G172: =IFERROR(VLOOKUP(M171,'Recherche mots connus'!$C$6:$D$187,2,FALSE),"") ->  | H172: =IFERROR(VLOOKUP(N171,'Recherche mots connus'!$C$6:$D$187,2,FALSE),"") -> 
A174: =A171+1 -> 58 | B174: =VLOOKUP($A174,fréquence!$W$16:$AO$2805,8,FALSE) -> le lait ; les laits | C174: =VLOOKUP($A174,fréquence!$W$16:$AO$2805,11,FALSE) -> nom commun | D174: =CONCATENATE(D$1,"-",VLOOKUP($A174,fréquence!$A$16:$V$3371,18,FALSE)) -> CP-50 | E174: =CONCATENATE(E$1,"-",VLOOKUP($A174,fréquence!$A$16:$V$3371,19,FALSE)) -> CE1-119 | F174: =CONCATENATE(F$1,"-",VLOOKUP($A174,fréquence!$A$16:$V$3371,20,FALSE)) -> CE2-340 | G174: =CONCATENATE(G$1,"-",VLOOKUP($A174,fréquence!$A$16:$V$3371,21,FALSE)) -> CM1-680 | H174: =CONCATENATE(H$1,"-",VLOOKUP($A174,fréquence!$A$16:$V$3371,22,FALSE)) -> CM2-1237 | J174: =IF(O174<>O171,IF(O174<>0,INT((O174-1)/fréquence!$AH$2)+1,""),"") -> 58 | K174: =IF(P174<>P171,IF(P174<>0,INT((P174-1)/fréquence!$AH$3)+1,""),"") ->  | L174: =IF(Q174<>Q171,IF(Q174<>0,INT((Q174-1)/fréquence!$AH$4)+1,""),"") ->  | M174: =IF(R174<>R171,IF(R174<>0,INT((R174-1)/fréquence!$AH$5)+1,""),"") ->  | N174: =IF(S174<>S171,IF(S174<>0,INT((S174-1)/fréquence!$AH$6)+1,""),"") ->  | O174: =IF(AND($A174>=fréquence!$AJ$2,$A174<=fréquence!$AK$2),O171+1,O171) -> 58 | P174: =IF(AND($A174>=fréquence!$AJ$3,$A174<=fréquence!$AK$3),P171+1,P171) -> 0 | Q174: =IF(AND($A174>=fréquence!$AJ$4,$A174<=fréquence!$AK$4),Q171+1,Q171) -> 0 | R174: =IF(AND($A174>=fréquence!$AJ$5,$A174<=fréquence!$AK$5),R171+1,R171) -> 0 | S174: =IF(AND($A174>=fréquence!$AJ$6,$A174<=fréquence!$AK$6),S171+1,S171) -> 0
D175: =IFERROR(VLOOKUP(J174,'Recherche mots connus'!$C$6:$D$187,2,FALSE),"") -> 2015-12-07 | E175: =IFERROR(VLOOKUP(K174,'Recherche mots connus'!$C$6:$D$187,2,FALSE),"") ->  | F175: =IFERROR(VLOOKUP(L174,'Recherche mots connus'!$C$6:$D$187,2,FALSE),"") ->  | G175: =IFERROR(VLOOKUP(M174,'Recherche mots connus'!$C$6:$D$187,2,FALSE),"") ->  | H175: =IFERROR(VLOOKUP(N174,'Recherche mots connus'!$C$6:$D$187,2,FALSE),"") -> 
A177: =A174+1 -> 59 | B177: =VLOOKUP($A177,fréquence!$W$16:$AO$2805,8,FALSE) -> le sucre ; les sucres | C177: =VLOOKUP($A177,fréquence!$W$16:$AO$2805,11,FALSE) -> nom commun | D177: =CONCATENATE(D$1,"-",VLOOKUP($A177,fréquence!$A$16:$V$3371,18,FALSE)) -> CP-100 | E177: =CONCATENATE(E$1,"-",VLOOKUP($A177,fréquence!$A$16:$V$3371,19,FALSE)) -> CE1-231 | F177: =CONCATENATE(F$1,"-",VLOOKUP($A177,fréquence!$A$16:$V$3371,20,FALSE)) -> CE2-636 | G177: =CONCATENATE(G$1,"-",VLOOKUP($A177,fréquence!$A$16:$V$3371,21,FALSE)) -> CM1-1289 | H177: =CONCATENATE(H$1,"-",VLOOKUP($A177,fréquence!$A$16:$V$3371,22,FALSE)) -> CM2-2193 | J177: =IF(O177<>O174,IF(O177<>0,INT((O177-1)/fréquence!$AH$2)+1,""),"") -> 59 | K177: =IF(P177<>P174,IF(P177<>0,INT((P177-1)/fréquence!$AH$3)+1,""),"") ->  | L177: =IF(Q177<>Q174,IF(Q177<>0,INT((Q177-1)/fréquence!$AH$4)+1,""),"") ->  | M177: =IF(R177<>R174,IF(R177<>0,INT((R177-1)/fréquence!$AH$5)+1,""),"") ->  | N177: =IF(S177<>S174,IF(S177<>0,INT((S177-1)/fréquence!$AH$6)+1,""),"") ->  | O177: =IF(AND($A177>=fréquence!$AJ$2,$A177<=fréquence!$AK$2),O174+1,O174) -> 59 | P177: =IF(AND($A177>=fréquence!$AJ$3,$A177<=fréquence!$AK$3),P174+1,P174) -> 0 | Q177: =IF(AND($A177>=fréquence!$AJ$4,$A177<=fréquence!$AK$4),Q174+1,Q174) -> 0 | R177: =IF(AND($A177>=fréquence!$AJ$5,$A177<=fréquence!$AK$5),R174+1,R174) -> 0 | S177: =IF(AND($A177>=fréquence!$AJ$6,$A177<=fréquence!$AK$6),S174+1,S174) -> 0
D178: =IFERROR(VLOOKUP(J177,'Recherche mots connus'!$C$6:$D$187,2,FALSE),"") -> 2015-12-08 | E178: =IFERROR(VLOOKUP(K177,'Recherche mots connus'!$C$6:$D$187,2,FALSE),"") ->  | F178: =IFERROR(VLOOKUP(L177,'Recherche mots connus'!$C$6:$D$187,2,FALSE),"") ->  | G178: =IFERROR(VLOOKUP(M177,'Recherche mots connus'!$C$6:$D$187,2,FALSE),"") ->  | H178: =IFERROR(VLOOKUP(N177,'Recherche mots connus'!$C$6:$D$187,2,FALSE),"") -> 
A180: =A177+1 -> 60 | B180: =VLOOKUP($A180,fréquence!$W$16:$AO$2805,8,FALSE) -> une tartine ; des tartines | C180: =VLOOKUP($A180,fréquence!$W$16:$AO$2805,11,FALSE) -> nom commun | D180: =CONCATENATE(D$1,"-",VLOOKUP($A180,fréquence!$A$16:$V$3371,18,FALSE)) -> CP-103 | E180: =CONCATENATE(E$1,"-",VLOOKUP($A180,fréquence!$A$16:$V$3371,19,FALSE)) -> CE1-236 | F180: =CONCATENATE(F$1,"-",VLOOKUP($A180,fréquence!$A$16:$V$3371,20,FALSE)) -> CE2-649 | G180: =CONCATENATE(G$1,"-",VLOOKUP($A180,fréquence!$A$16:$V$3371,21,FALSE)) -> CM1-1312 | H180: =CONCATENATE(H$1,"-",VLOOKUP($A180,fréquence!$A$16:$V$3371,22,FALSE)) -> CM2-2230 | J180: =IF(O180<>O177,IF(O180<>0,INT((O180-1)/fréquence!$AH$2)+1,""),"") -> 60 | K180: =IF(P180<>P177,IF(P180<>0,INT((P180-1)/fréquence!$AH$3)+1,""),"") ->  | L180: =IF(Q180<>Q177,IF(Q180<>0,INT((Q180-1)/fréquence!$AH$4)+1,""),"") ->  | M180: =IF(R180<>R177,IF(R180<>0,INT((R180-1)/fréquence!$AH$5)+1,""),"") ->  | N180: =IF(S180<>S177,IF(S180<>0,INT((S180-1)/fréquence!$AH$6)+1,""),"") ->  | O180: =IF(AND($A180>=fréquence!$AJ$2,$A180<=fréquence!$AK$2),O177+1,O177) -> 60 | P180: =IF(AND($A180>=fréquence!$AJ$3,$A180<=fréquence!$AK$3),P177+1,P177) -> 0 | Q180: =IF(AND($A180>=fréquence!$AJ$4,$A180<=fréquence!$AK$4),Q177+1,Q177) -> 0 | R180: =IF(AND($A180>=fréquence!$AJ$5,$A180<=fréquence!$AK$5),R177+1,R177) -> 0 | S180: =IF(AND($A180>=fréquence!$AJ$6,$A180<=fréquence!$AK$6),S177+1,S177) -> 0
D181: =IFERROR(VLOOKUP(J180,'Recherche mots connus'!$C$6:$D$187,2,FALSE),"") -> 2015-12-09 | E181: =IFERROR(VLOOKUP(K180,'Recherche mots connus'!$C$6:$D$187,2,FALSE),"") ->  | F181: =IFERROR(VLOOKUP(L180,'Recherche mots connus'!$C$6:$D$187,2,FALSE),"") ->  | G181: =IFERROR(VLOOKUP(M180,'Recherche mots connus'!$C$6:$D$187,2,FALSE),"") ->  | H181: =IFERROR(VLOOKUP(N180,'Recherche mots connus'!$C$6:$D$187,2,FALSE),"") -> 
A183: =A180+1 -> 61 | B183: =VLOOKUP($A183,fréquence!$W$16:$AO$2805,8,FALSE) -> la confiture ; les confitures | C183: =VLOOKUP($A183,fréquence!$W$16:$AO$2805,11,FALSE) -> nom commun | D183: =CONCATENATE(D$1,"-",VLOOKUP($A183,fréquence!$A$16:$V$3371,18,FALSE)) -> CP-18 | E183: =CONCATENATE(E$1,"-",VLOOKUP($A183,fréquence!$A$16:$V$3371,19,FALSE)) -> CE1-49 | F183: =CONCATENATE(F$1,"-",VLOOKUP($A183,fréquence!$A$16:$V$3371,20,FALSE)) -> CE2-135 | G183: =CONCATENATE(G$1,"-",VLOOKUP($A183,fréquence!$A$16:$V$3371,21,FALSE)) -> CM1-262 | H183: =CONCATENATE(H$1,"-",VLOOKUP($A183,fréquence!$A$16:$V$3371,22,FALSE)) -> CM2-465 | J183: =IF(O183<>O180,IF(O183<>0,INT((O183-1)/fréquence!$AH$2)+1,""),"") -> 61 | K183: =IF(P183<>P180,IF(P183<>0,INT((P183-1)/fréquence!$AH$3)+1,""),"") ->  | L183: =IF(Q183<>Q180,IF(Q183<>0,INT((Q183-1)/fréquence!$AH$4)+1,""),"") ->  | M183: =IF(R183<>R180,IF(R183<>0,INT((R183-1)/fréquence!$AH$5)+1,""),"") ->  | N183: =IF(S183<>S180,IF(S183<>0,INT((S183-1)/fréquence!$AH$6)+1,""),"") ->  | O183: =IF(AND($A183>=fréquence!$AJ$2,$A183<=fréquence!$AK$2),O180+1,O180) -> 61 | P183: =IF(AND($A183>=fréquence!$AJ$3,$A183<=fréquence!$AK$3),P180+1,P180) -> 0 | Q183: =IF(AND($A183>=fréquence!$AJ$4,$A183<=fréquence!$AK$4),Q180+1,Q180) -> 0 | R183: =IF(AND($A183>=fréquence!$AJ$5,$A183<=fréquence!$AK$5),R180+1,R180) -> 0 | S183: =IF(AND($A183>=fréquence!$AJ$6,$A183<=fréquence!$AK$6),S180+1,S180) -> 0
D184: =IFERROR(VLOOKUP(J183,'Recherche mots connus'!$C$6:$D$187,2,FALSE),"") -> 2015-12-10 | E184: =IFERROR(VLOOKUP(K183,'Recherche mots connus'!$C$6:$D$187,2,FALSE),"") ->  | F184: =IFERROR(VLOOKUP(L183,'Recherche mots connus'!$C$6:$D$187,2,FALSE),"") ->  | G184: =IFERROR(VLOOKUP(M183,'Recherche mots connus'!$C$6:$D$187,2,FALSE),"") ->  | H184: =IFERROR(VLOOKUP(N183,'Recherche mots connus'!$C$6:$D$187,2,FALSE),"") -> 
A186: =A183+1 -> 62 | B186: =VLOOKUP($A186,fréquence!$W$16:$AO$2805,8,FALSE) -> la soupe ; les soupes | C186: =VLOOKUP($A186,fréquence!$W$16:$AO$2805,11,FALSE) -> nom commun | D186: =CONCATENATE(D$1,"-",VLOOKUP($A186,fréquence!$A$16:$V$3371,18,FALSE)) -> CP-99 | E186: =CONCATENATE(E$1,"-",VLOOKUP($A186,fréquence!$A$16:$V$3371,19,FALSE)) -> CE1-229 | F186: =CONCATENATE(F$1,"-",VLOOKUP($A186,fréquence!$A$16:$V$3371,20,FALSE)) -> CE2-628 | G186: =CONCATENATE(G$1,"-",VLOOKUP($A186,fréquence!$A$16:$V$3371,21,FALSE)) -> CM1-1269 | H186: =CONCATENATE(H$1,"-",VLOOKUP($A186,fréquence!$A$16:$V$3371,22,FALSE)) -> CM2-2166 | J186: =IF(O186<>O183,IF(O186<>0,INT((O186-1)/fréquence!$AH$2)+1,""),"") -> 62 | K186: =IF(P186<>P183,IF(P186<>0,INT((P186-1)/fréquence!$AH$3)+1,""),"") ->  | L186: =IF(Q186<>Q183,IF(Q186<>0,INT((Q186-1)/fréquence!$AH$4)+1,""),"") ->  | M186: =IF(R186<>R183,IF(R186<>0,INT((R186-1)/fréquence!$AH$5)+1,""),"") ->  | N186: =IF(S186<>S183,IF(S186<>0,INT((S186-1)/fréquence!$AH$6)+1,""),"") ->  | O186: =IF(AND($A186>=fréquence!$AJ$2,$A186<=fréquence!$AK$2),O183+1,O183) -> 62 | P186: =IF(AND($A186>=fréquence!$AJ$3,$A186<=fréquence!$AK$3),P183+1,P183) -> 0 | Q186: =IF(AND($A186>=fréquence!$AJ$4,$A186<=fréquence!$AK$4),Q183+1,Q183) -> 0 | R186: =IF(AND($A186>=fréquence!$AJ$5,$A186<=fréquence!$AK$5),R183+1,R183) -> 0 | S186: =IF(AND($A186>=fréquence!$AJ$6,$A186<=fréquence!$AK$6),S183+1,S183) -> 0
D187: =IFERROR(VLOOKUP(J186,'Recherche mots connus'!$C$6:$D$187,2,FALSE),"") -> 2015-12-11 | E187: =IFERROR(VLOOKUP(K186,'Recherche mots connus'!$C$6:$D$187,2,FALSE),"") ->  | F187: =IFERROR(VLOOKUP(L186,'Recherche mots connus'!$C$6:$D$187,2,FALSE),"") ->  | G187: =IFERROR(VLOOKUP(M186,'Recherche mots connus'!$C$6:$D$187,2,FALSE),"") ->  | H187: =IFERROR(VLOOKUP(N186,'Recherche mots connus'!$C$6:$D$187,2,FALSE),"") -> 
A189: =A186+1 -> 63 | B189: =VLOOKUP($A189,fréquence!$W$16:$AO$2805,8,FALSE) -> une pomme ; des pommes | C189: =VLOOKUP($A189,fréquence!$W$16:$AO$2805,11,FALSE) -> nom commun | D189: =CONCATENATE(D$1,"-",VLOOKUP($A189,fréquence!$A$16:$V$3371,18,FALSE)) -> CP-80 | E189: =CONCATENATE(E$1,"-",VLOOKUP($A189,fréquence!$A$16:$V$3371,19,FALSE)) -> CE1-188 | F189: =CONCATENATE(F$1,"-",VLOOKUP($A189,fréquence!$A$16:$V$3371,20,FALSE)) -> CE2-516 | G189: =CONCATENATE(G$1,"-",VLOOKUP($A189,fréquence!$A$16:$V$3371,21,FALSE)) -> CM1-1016 | H189: =CONCATENATE(H$1,"-",VLOOKUP($A189,fréquence!$A$16:$V$3371,22,FALSE)) -> CM2-1725 | J189: =IF(O189<>O186,IF(O189<>0,INT((O189-1)/fréquence!$AH$2)+1,""),"") -> 63 | K189: =IF(P189<>P186,IF(P189<>0,INT((P189-1)/fréquence!$AH$3)+1,""),"") ->  | L189: =IF(Q189<>Q186,IF(Q189<>0,INT((Q189-1)/fréquence!$AH$4)+1,""),"") ->  | M189: =IF(R189<>R186,IF(R189<>0,INT((R189-1)/fréquence!$AH$5)+1,""),"") ->  | N189: =IF(S189<>S186,IF(S189<>0,INT((S189-1)/fréquence!$AH$6)+1,""),"") ->  | O189: =IF(AND($A189>=fréquence!$AJ$2,$A189<=fréquence!$AK$2),O186+1,O186) -> 63 | P189: =IF(AND($A189>=fréquence!$AJ$3,$A189<=fréquence!$AK$3),P186+1,P186) -> 0 | Q189: =IF(AND($A189>=fréquence!$AJ$4,$A189<=fréquence!$AK$4),Q186+1,Q186) -> 0 | R189: =IF(AND($A189>=fréquence!$AJ$5,$A189<=fréquence!$AK$5),R186+1,R186) -> 0 | S189: =IF(AND($A189>=fréquence!$AJ$6,$A189<=fréquence!$AK$6),S186+1,S186) -> 0
D190: =IFERROR(VLOOKUP(J189,'Recherche mots connus'!$C$6:$D$187,2,FALSE),"") -> 2015-12-14 | E190: =IFERROR(VLOOKUP(K189,'Recherche mots connus'!$C$6:$D$187,2,FALSE),"") ->  | F190: =IFERROR(VLOOKUP(L189,'Recherche mots connus'!$C$6:$D$187,2,FALSE),"") ->  | G190: =IFERROR(VLOOKUP(M189,'Recherche mots connus'!$C$6:$D$187,2,FALSE),"") ->  | H190: =IFERROR(VLOOKUP(N189,'Recherche mots connus'!$C$6:$D$187,2,FALSE),"") -> 
A192: =A189+1 -> 64 | B192: =VLOOKUP($A192,fréquence!$W$16:$AO$2805,8,FALSE) -> une poire ; des poires | C192: =VLOOKUP($A192,fréquence!$W$16:$AO$2805,11,FALSE) -> nom commun | D192: =CONCATENATE(D$1,"-",VLOOKUP($A192,fréquence!$A$16:$V$3371,18,FALSE)) -> CP-79 | E192: =CONCATENATE(E$1,"-",VLOOKUP($A192,fréquence!$A$16:$V$3371,19,FALSE)) -> CE1-187 | F192: =CONCATENATE(F$1,"-",VLOOKUP($A192,fréquence!$A$16:$V$3371,20,FALSE)) -> CE2-512 | G192: =CONCATENATE(G$1,"-",VLOOKUP($A192,fréquence!$A$16:$V$3371,21,FALSE)) -> CM1-1009 | H192: =CONCATENATE(H$1,"-",VLOOKUP($A192,fréquence!$A$16:$V$3371,22,FALSE)) -> CM2-1716 | J192: =IF(O192<>O189,IF(O192<>0,INT((O192-1)/fréquence!$AH$2)+1,""),"") -> 64 | K192: =IF(P192<>P189,IF(P192<>0,INT((P192-1)/fréquence!$AH$3)+1,""),"") ->  | L192: =IF(Q192<>Q189,IF(Q192<>0,INT((Q192-1)/fréquence!$AH$4)+1,""),"") ->  | M192: =IF(R192<>R189,IF(R192<>0,INT((R192-1)/fréquence!$AH$5)+1,""),"") ->  | N192: =IF(S192<>S189,IF(S192<>0,INT((S192-1)/fréquence!$AH$6)+1,""),"") ->  | O192: =IF(AND($A192>=fréquence!$AJ$2,$A192<=fréquence!$AK$2),O189+1,O189) -> 64 | P192: =IF(AND($A192>=fréquence!$AJ$3,$A192<=fréquence!$AK$3),P189+1,P189) -> 0 | Q192: =IF(AND($A192>=fréquence!$AJ$4,$A192<=fréquence!$AK$4),Q189+1,Q189) -> 0 | R192: =IF(AND($A192>=fréquence!$AJ$5,$A192<=fréquence!$AK$5),R189+1,R189) -> 0 | S192: =IF(AND($A192>=fréquence!$AJ$6,$A192<=fréquence!$AK$6),S189+1,S189) -> 0
D193: =IFERROR(VLOOKUP(J192,'Recherche mots connus'!$C$6:$D$187,2,FALSE),"") -> 2015-12-15 | E193: =IFERROR(VLOOKUP(K192,'Recherche mots connus'!$C$6:$D$187,2,FALSE),"") ->  | F193: =IFERROR(VLOOKUP(L192,'Recherche mots connus'!$C$6:$D$187,2,FALSE),"") ->  | G193: =IFERROR(VLOOKUP(M192,'Recherche mots connus'!$C$6:$D$187,2,FALSE),"") ->  | H193: =IFERROR(VLOOKUP(N192,'Recherche mots connus'!$C$6:$D$187,2,FALSE),"") -> 
A195: =A192+1 -> 65 | B195: =VLOOKUP($A195,fréquence!$W$16:$AO$2805,8,FALSE) -> le café ; les cafés | C195: =VLOOKUP($A195,fréquence!$W$16:$AO$2805,11,FALSE) -> nom commun | D195: =CONCATENATE(D$1,"-",VLOOKUP($A195,fréquence!$A$16:$V$3371,18,FALSE)) -> CP-10 | E195: =CONCATENATE(E$1,"-",VLOOKUP($A195,fréquence!$A$16:$V$3371,19,FALSE)) -> CE1-27 | F195: =CONCATENATE(F$1,"-",VLOOKUP($A195,fréquence!$A$16:$V$3371,20,FALSE)) -> CE2-77 | G195: =CONCATENATE(G$1,"-",VLOOKUP($A195,fréquence!$A$16:$V$3371,21,FALSE)) -> CM1-159 | H195: =CONCATENATE(H$1,"-",VLOOKUP($A195,fréquence!$A$16:$V$3371,22,FALSE)) -> CM2-292 | J195: =IF(O195<>O192,IF(O195<>0,INT((O195-1)/fréquence!$AH$2)+1,""),"") -> 65 | K195: =IF(P195<>P192,IF(P195<>0,INT((P195-1)/fréquence!$AH$3)+1,""),"") ->  | L195: =IF(Q195<>Q192,IF(Q195<>0,INT((Q195-1)/fréquence!$AH$4)+1,""),"") ->  | M195: =IF(R195<>R192,IF(R195<>0,INT((R195-1)/fréquence!$AH$5)+1,""),"") ->  | N195: =IF(S195<>S192,IF(S195<>0,INT((S195-1)/fréquence!$AH$6)+1,""),"") ->  | O195: =IF(AND($A195>=fréquence!$AJ$2,$A195<=fréquence!$AK$2),O192+1,O192) -> 65 | P195: =IF(AND($A195>=fréquence!$AJ$3,$A195<=fréquence!$AK$3),P192+1,P192) -> 0 | Q195: =IF(AND($A195>=fréquence!$AJ$4,$A195<=fréquence!$AK$4),Q192+1,Q192) -> 0 | R195: =IF(AND($A195>=fréquence!$AJ$5,$A195<=fréquence!$AK$5),R192+1,R192) -> 0 | S195: =IF(AND($A195>=fréquence!$AJ$6,$A195<=fréquence!$AK$6),S192+1,S192) -> 0
D196: =IFERROR(VLOOKUP(J195,'Recherche mots connus'!$C$6:$D$187,2,FALSE),"") -> 2015-12-16 | E196: =IFERROR(VLOOKUP(K195,'Recherche mots connus'!$C$6:$D$187,2,FALSE),"") ->  | F196: =IFERROR(VLOOKUP(L195,'Recherche mots connus'!$C$6:$D$187,2,FALSE),"") ->  | G196: =IFERROR(VLOOKUP(M195,'Recherche mots connus'!$C$6:$D$187,2,FALSE),"") ->  | H196: =IFERROR(VLOOKUP(N195,'Recherche mots connus'!$C$6:$D$187,2,FALSE),"") -> 
A198: =A195+1 -> 66 | B198: =VLOOKUP($A198,fréquence!$W$16:$AO$2805,8,FALSE) -> la bouche ; les bouches | C198: =VLOOKUP($A198,fréquence!$W$16:$AO$2805,11,FALSE) -> nom commun | D198: =CONCATENATE(D$1,"-",VLOOKUP($A198,fréquence!$A$16:$V$3371,18,FALSE)) -> CP-9 | E198: =CONCATENATE(E$1,"-",VLOOKUP($A198,fréquence!$A$16:$V$3371,19,FALSE)) -> CE1-24 | F198: =CONCATENATE(F$1,"-",VLOOKUP($A198,fréquence!$A$16:$V$3371,20,FALSE)) -> CE2-62 | G198: =CONCATENATE(G$1,"-",VLOOKUP($A198,fréquence!$A$16:$V$3371,21,FALSE)) -> CM1-127 | H198: =CONCATENATE(H$1,"-",VLOOKUP($A198,fréquence!$A$16:$V$3371,22,FALSE)) -> CM2-242 | J198: =IF(O198<>O195,IF(O198<>0,INT((O198-1)/fréquence!$AH$2)+1,""),"") -> 66 | K198: =IF(P198<>P195,IF(P198<>0,INT((P198-1)/fréquence!$AH$3)+1,""),"") ->  | L198: =IF(Q198<>Q195,IF(Q198<>0,INT((Q198-1)/fréquence!$AH$4)+1,""),"") ->  | M198: =IF(R198<>R195,IF(R198<>0,INT((R198-1)/fréquence!$AH$5)+1,""),"") ->  | N198: =IF(S198<>S195,IF(S198<>0,INT((S198-1)/fréquence!$AH$6)+1,""),"") ->  | O198: =IF(AND($A198>=fréquence!$AJ$2,$A198<=fréquence!$AK$2),O195+1,O195) -> 66 | P198: =IF(AND($A198>=fréquence!$AJ$3,$A198<=fréquence!$AK$3),P195+1,P195) -> 0 | Q198: =IF(AND($A198>=fréquence!$AJ$4,$A198<=fréquence!$AK$4),Q195+1,Q195) -> 0 | R198: =IF(AND($A198>=fréquence!$AJ$5,$A198<=fréquence!$AK$5),R195+1,R195) -> 0 | S198: =IF(AND($A198>=fréquence!$AJ$6,$A198<=fréquence!$AK$6),S195+1,S195) -> 0
D199: =IFERROR(VLOOKUP(J198,'Recherche mots connus'!$C$6:$D$187,2,FALSE),"") -> 2015-12-17 | E199: =IFERROR(VLOOKUP(K198,'Recherche mots connus'!$C$6:$D$187,2,FALSE),"") ->  | F199: =IFERROR(VLOOKUP(L198,'Recherche mots connus'!$C$6:$D$187,2,FALSE),"") ->  | G199: =IFERROR(VLOOKUP(M198,'Recherche mots connus'!$C$6:$D$187,2,FALSE),"") ->  | H199: =IFERROR(VLOOKUP(N198,'Recherche mots connus'!$C$6:$D$187,2,FALSE),"") -> 
A201: =A198+1 -> 67 | B201: =VLOOKUP($A201,fréquence!$W$16:$AO$2805,8,FALSE) -> un pou ; des poux | C201: =VLOOKUP($A201,fréquence!$W$16:$AO$2805,11,FALSE) -> nom commun | D201: =CONCATENATE(D$1,"-",VLOOKUP($A201,fréquence!$A$16:$V$3371,18,FALSE)) -> CP-82 | E201: =CONCATENATE(E$1,"-",VLOOKUP($A201,fréquence!$A$16:$V$3371,19,FALSE)) -> CE1-191 | F201: =CONCATENATE(F$1,"-",VLOOKUP($A201,fréquence!$A$16:$V$3371,20,FALSE)) -> CE2-520 | G201: =CONCATENATE(G$1,"-",VLOOKUP($A201,fréquence!$A$16:$V$3371,21,FALSE)) -> CM1-1027 | H201: =CONCATENATE(H$1,"-",VLOOKUP($A201,fréquence!$A$16:$V$3371,22,FALSE)) -> CM2-1744 | J201: =IF(O201<>O198,IF(O201<>0,INT((O201-1)/fréquence!$AH$2)+1,""),"") -> 67 | K201: =IF(P201<>P198,IF(P201<>0,INT((P201-1)/fréquence!$AH$3)+1,""),"") ->  | L201: =IF(Q201<>Q198,IF(Q201<>0,INT((Q201-1)/fréquence!$AH$4)+1,""),"") ->  | M201: =IF(R201<>R198,IF(R201<>0,INT((R201-1)/fréquence!$AH$5)+1,""),"") ->  | N201: =IF(S201<>S198,IF(S201<>0,INT((S201-1)/fréquence!$AH$6)+1,""),"") ->  | O201: =IF(AND($A201>=fréquence!$AJ$2,$A201<=fréquence!$AK$2),O198+1,O198) -> 67 | P201: =IF(AND($A201>=fréquence!$AJ$3,$A201<=fréquence!$AK$3),P198+1,P198) -> 0 | Q201: =IF(AND($A201>=fréquence!$AJ$4,$A201<=fréquence!$AK$4),Q198+1,Q198) -> 0 | R201: =IF(AND($A201>=fréquence!$AJ$5,$A201<=fréquence!$AK$5),R198+1,R198) -> 0 | S201: =IF(AND($A201>=fréquence!$AJ$6,$A201<=fréquence!$AK$6),S198+1,S198) -> 0
D202: =IFERROR(VLOOKUP(J201,'Recherche mots connus'!$C$6:$D$187,2,FALSE),"") -> 2015-12-18 | E202: =IFERROR(VLOOKUP(K201,'Recherche mots connus'!$C$6:$D$187,2,FALSE),"") ->  | F202: =IFERROR(VLOOKUP(L201,'Recherche mots connus'!$C$6:$D$187,2,FALSE),"") ->  | G202: =IFERROR(VLOOKUP(M201,'Recherche mots connus'!$C$6:$D$187,2,FALSE),"") ->  | H202: =IFERROR(VLOOKUP(N201,'Recherche mots connus'!$C$6:$D$187,2,FALSE),"") -> 
A204: =A201+1 -> 68 | B204: =VLOOKUP($A204,fréquence!$W$16:$AO$2805,8,FALSE) -> un lit ; des lits | C204: =VLOOKUP($A204,fréquence!$W$16:$AO$2805,11,FALSE) -> nom commun | D204: =CONCATENATE(D$1,"-",VLOOKUP($A204,fréquence!$A$16:$V$3371,18,FALSE)) -> CP-54 | E204: =CONCATENATE(E$1,"-",VLOOKUP($A204,fréquence!$A$16:$V$3371,19,FALSE)) -> CE1-128 | F204: =CONCATENATE(F$1,"-",VLOOKUP($A204,fréquence!$A$16:$V$3371,20,FALSE)) -> CE2-363 | G204: =CONCATENATE(G$1,"-",VLOOKUP($A204,fréquence!$A$16:$V$3371,21,FALSE)) -> CM1-716 | H204: =CONCATENATE(H$1,"-",VLOOKUP($A204,fréquence!$A$16:$V$3371,22,FALSE)) -> CM2-1286 | J204: =IF(O204<>O201,IF(O204<>0,INT((O204-1)/fréquence!$AH$2)+1,""),"") -> 68 | K204: =IF(P204<>P201,IF(P204<>0,INT((P204-1)/fréquence!$AH$3)+1,""),"") ->  | L204: =IF(Q204<>Q201,IF(Q204<>0,INT((Q204-1)/fréquence!$AH$4)+1,""),"") ->  | M204: =IF(R204<>R201,IF(R204<>0,INT((R204-1)/fréquence!$AH$5)+1,""),"") ->  | N204: =IF(S204<>S201,IF(S204<>0,INT((S204-1)/fréquence!$AH$6)+1,""),"") ->  | O204: =IF(AND($A204>=fréquence!$AJ$2,$A204<=fréquence!$AK$2),O201+1,O201) -> 68 | P204: =IF(AND($A204>=fréquence!$AJ$3,$A204<=fréquence!$AK$3),P201+1,P201) -> 0 | Q204: =IF(AND($A204>=fréquence!$AJ$4,$A204<=fréquence!$AK$4),Q201+1,Q201) -> 0 | R204: =IF(AND($A204>=fréquence!$AJ$5,$A204<=fréquence!$AK$5),R201+1,R201) -> 0 | S204: =IF(AND($A204>=fréquence!$AJ$6,$A204<=fréquence!$AK$6),S201+1,S201) -> 0
D205: =IFERROR(VLOOKUP(J204,'Recherche mots connus'!$C$6:$D$187,2,FALSE),"") -> 2016-01-04 | E205: =IFERROR(VLOOKUP(K204,'Recherche mots connus'!$C$6:$D$187,2,FALSE),"") ->  | F205: =IFERROR(VLOOKUP(L204,'Recherche mots connus'!$C$6:$D$187,2,FALSE),"") ->  | G205: =IFERROR(VLOOKUP(M204,'Recherche mots connus'!$C$6:$D$187,2,FALSE),"") ->  | H205: =IFERROR(VLOOKUP(N204,'Recherche mots connus'!$C$6:$D$187,2,FALSE),"") -> 
A207: =A204+1 -> 69 | B207: =VLOOKUP($A207,fréquence!$W$16:$AO$2805,8,FALSE) -> le lundi ; les lundis | C207: =VLOOKUP($A207,fréquence!$W$16:$AO$2805,11,FALSE) -> nom commun | D207: =CONCATENATE(D$1,"-",VLOOKUP($A207,fréquence!$A$16:$V$3371,18,FALSE)) -> CP-55 | E207: =CONCATENATE(E$1,"-",VLOOKUP($A207,fréquence!$A$16:$V$3371,19,FALSE)) -> CE1-132 | F207: =CONCATENATE(F$1,"-",VLOOKUP($A207,fréquence!$A$16:$V$3371,20,FALSE)) -> CE2-372 | G207: =CONCATENATE(G$1,"-",VLOOKUP($A207,fréquence!$A$16:$V$3371,21,FALSE)) -> CM1-730 | H207: =CONCATENATE(H$1,"-",VLOOKUP($A207,fréquence!$A$16:$V$3371,22,FALSE)) -> CM2-1308 | J207: =IF(O207<>O204,IF(O207<>0,INT((O207-1)/fréquence!$AH$2)+1,""),"") -> 69 | K207: =IF(P207<>P204,IF(P207<>0,INT((P207-1)/fréquence!$AH$3)+1,""),"") ->  | L207: =IF(Q207<>Q204,IF(Q207<>0,INT((Q207-1)/fréquence!$AH$4)+1,""),"") ->  | M207: =IF(R207<>R204,IF(R207<>0,INT((R207-1)/fréquence!$AH$5)+1,""),"") ->  | N207: =IF(S207<>S204,IF(S207<>0,INT((S207-1)/fréquence!$AH$6)+1,""),"") ->  | O207: =IF(AND($A207>=fréquence!$AJ$2,$A207<=fréquence!$AK$2),O204+1,O204) -> 69 | P207: =IF(AND($A207>=fréquence!$AJ$3,$A207<=fréquence!$AK$3),P204+1,P204) -> 0 | Q207: =IF(AND($A207>=fréquence!$AJ$4,$A207<=fréquence!$AK$4),Q204+1,Q204) -> 0 | R207: =IF(AND($A207>=fréquence!$AJ$5,$A207<=fréquence!$AK$5),R204+1,R204) -> 0 | S207: =IF(AND($A207>=fréquence!$AJ$6,$A207<=fréquence!$AK$6),S204+1,S204) -> 0
D208: =IFERROR(VLOOKUP(J207,'Recherche mots connus'!$C$6:$D$187,2,FALSE),"") -> 2016-01-05 | E208: =IFERROR(VLOOKUP(K207,'Recherche mots connus'!$C$6:$D$187,2,FALSE),"") ->  | F208: =IFERROR(VLOOKUP(L207,'Recherche mots connus'!$C$6:$D$187,2,FALSE),"") ->  | G208: =IFERROR(VLOOKUP(M207,'Recherche mots connus'!$C$6:$D$187,2,FALSE),"") ->  | H208: =IFERROR(VLOOKUP(N207,'Recherche mots connus'!$C$6:$D$187,2,FALSE),"") -> 
A210: =A207+1 -> 70 | B210: =VLOOKUP($A210,fréquence!$W$16:$AO$2805,8,FALSE) -> le mardi ; les mardis | C210: =VLOOKUP($A210,fréquence!$W$16:$AO$2805,11,FALSE) -> nom commun | D210: =CONCATENATE(D$1,"-",VLOOKUP($A210,fréquence!$A$16:$V$3371,18,FALSE)) -> CP-61 | E210: =CONCATENATE(E$1,"-",VLOOKUP($A210,fréquence!$A$16:$V$3371,19,FALSE)) -> CE1-142 | F210: =CONCATENATE(F$1,"-",VLOOKUP($A210,fréquence!$A$16:$V$3371,20,FALSE)) -> CE2-393 | G210: =CONCATENATE(G$1,"-",VLOOKUP($A210,fréquence!$A$16:$V$3371,21,FALSE)) -> CM1-761 | H210: =CONCATENATE(H$1,"-",VLOOKUP($A210,fréquence!$A$16:$V$3371,22,FALSE)) -> CM2-1356 | J210: =IF(O210<>O207,IF(O210<>0,INT((O210-1)/fréquence!$AH$2)+1,""),"") -> 70 | K210: =IF(P210<>P207,IF(P210<>0,INT((P210-1)/fréquence!$AH$3)+1,""),"") ->  | L210: =IF(Q210<>Q207,IF(Q210<>0,INT((Q210-1)/fréquence!$AH$4)+1,""),"") ->  | M210: =IF(R210<>R207,IF(R210<>0,INT((R210-1)/fréquence!$AH$5)+1,""),"") ->  | N210: =IF(S210<>S207,IF(S210<>0,INT((S210-1)/fréquence!$AH$6)+1,""),"") ->  | O210: =IF(AND($A210>=fréquence!$AJ$2,$A210<=fréquence!$AK$2),O207+1,O207) -> 70 | P210: =IF(AND($A210>=fréquence!$AJ$3,$A210<=fréquence!$AK$3),P207+1,P207) -> 0 | Q210: =IF(AND($A210>=fréquence!$AJ$4,$A210<=fréquence!$AK$4),Q207+1,Q207) -> 0 | R210: =IF(AND($A210>=fréquence!$AJ$5,$A210<=fréquence!$AK$5),R207+1,R207) -> 0 | S210: =IF(AND($A210>=fréquence!$AJ$6,$A210<=fréquence!$AK$6),S207+1,S207) -> 0
D211: =IFERROR(VLOOKUP(J210,'Recherche mots connus'!$C$6:$D$187,2,FALSE),"") -> 2016-01-06 | E211: =IFERROR(VLOOKUP(K210,'Recherche mots connus'!$C$6:$D$187,2,FALSE),"") ->  | F211: =IFERROR(VLOOKUP(L210,'Recherche mots connus'!$C$6:$D$187,2,FALSE),"") ->  | G211: =IFERROR(VLOOKUP(M210,'Recherche mots connus'!$C$6:$D$187,2,FALSE),"") ->  | H211: =IFERROR(VLOOKUP(N210,'Recherche mots connus'!$C$6:$D$187,2,FALSE),"") -> 
A213: =A210+1 -> 71 | B213: =VLOOKUP($A213,fréquence!$W$16:$AO$2805,8,FALSE) -> le mercredi ; les mercredis | C213: =VLOOKUP($A213,fréquence!$W$16:$AO$2805,11,FALSE) -> nom commun | D213: =CONCATENATE(D$1,"-",VLOOKUP($A213,fréquence!$A$16:$V$3371,18,FALSE)) -> CP-63 | E213: =CONCATENATE(E$1,"-",VLOOKUP($A213,fréquence!$A$16:$V$3371,19,FALSE)) -> CE1-147 | F213: =CONCATENATE(F$1,"-",VLOOKUP($A213,fréquence!$A$16:$V$3371,20,FALSE)) -> CE2-410 | G213: =CONCATENATE(G$1,"-",VLOOKUP($A213,fréquence!$A$16:$V$3371,21,FALSE)) -> CM1-793 | H213: =CONCATENATE(H$1,"-",VLOOKUP($A213,fréquence!$A$16:$V$3371,22,FALSE)) -> CM2-1404 | J213: =IF(O213<>O210,IF(O213<>0,INT((O213-1)/fréquence!$AH$2)+1,""),"") -> 71 | K213: =IF(P213<>P210,IF(P213<>0,INT((P213-1)/fréquence!$AH$3)+1,""),"") ->  | L213: =IF(Q213<>Q210,IF(Q213<>0,INT((Q213-1)/fréquence!$AH$4)+1,""),"") ->  | M213: =IF(R213<>R210,IF(R213<>0,INT((R213-1)/fréquence!$AH$5)+1,""),"") ->  | N213: =IF(S213<>S210,IF(S213<>0,INT((S213-1)/fréquence!$AH$6)+1,""),"") ->  | O213: =IF(AND($A213>=fréquence!$AJ$2,$A213<=fréquence!$AK$2),O210+1,O210) -> 71 | P213: =IF(AND($A213>=fréquence!$AJ$3,$A213<=fréquence!$AK$3),P210+1,P210) -> 0 | Q213: =IF(AND($A213>=fréquence!$AJ$4,$A213<=fréquence!$AK$4),Q210+1,Q210) -> 0 | R213: =IF(AND($A213>=fréquence!$AJ$5,$A213<=fréquence!$AK$5),R210+1,R210) -> 0 | S213: =IF(AND($A213>=fréquence!$AJ$6,$A213<=fréquence!$AK$6),S210+1,S210) -> 0
D214: =IFERROR(VLOOKUP(J213,'Recherche mots connus'!$C$6:$D$187,2,FALSE),"") -> 2016-01-07 | E214: =IFERROR(VLOOKUP(K213,'Recherche mots connus'!$C$6:$D$187,2,FALSE),"") ->  | F214: =IFERROR(VLOOKUP(L213,'Recherche mots connus'!$C$6:$D$187,2,FALSE),"") ->  | G214: =IFERROR(VLOOKUP(M213,'Recherche mots connus'!$C$6:$D$187,2,FALSE),"") ->  | H214: =IFERROR(VLOOKUP(N213,'Recherche mots connus'!$C$6:$D$187,2,FALSE),"") -> 
A216: =A213+1 -> 72 | B216: =VLOOKUP($A216,fréquence!$W$16:$AO$2805,8,FALSE) -> le jeudi ; les jeudis | C216: =VLOOKUP($A216,fréquence!$W$16:$AO$2805,11,FALSE) -> nom commun | D216: =CONCATENATE(D$1,"-",VLOOKUP($A216,fréquence!$A$16:$V$3371,18,FALSE)) -> CP-47 | E216: =CONCATENATE(E$1,"-",VLOOKUP($A216,fréquence!$A$16:$V$3371,19,FALSE)) -> CE1-116 | F216: =CONCATENATE(F$1,"-",VLOOKUP($A216,fréquence!$A$16:$V$3371,20,FALSE)) -> CE2-324 | G216: =CONCATENATE(G$1,"-",VLOOKUP($A216,fréquence!$A$16:$V$3371,21,FALSE)) -> CM1-657 | H216: =CONCATENATE(H$1,"-",VLOOKUP($A216,fréquence!$A$16:$V$3371,22,FALSE)) -> CM2-1205 | J216: =IF(O216<>O213,IF(O216<>0,INT((O216-1)/fréquence!$AH$2)+1,""),"") -> 72 | K216: =IF(P216<>P213,IF(P216<>0,INT((P216-1)/fréquence!$AH$3)+1,""),"") ->  | L216: =IF(Q216<>Q213,IF(Q216<>0,INT((Q216-1)/fréquence!$AH$4)+1,""),"") ->  | M216: =IF(R216<>R213,IF(R216<>0,INT((R216-1)/fréquence!$AH$5)+1,""),"") ->  | N216: =IF(S216<>S213,IF(S216<>0,INT((S216-1)/fréquence!$AH$6)+1,""),"") ->  | O216: =IF(AND($A216>=fréquence!$AJ$2,$A216<=fréquence!$AK$2),O213+1,O213) -> 72 | P216: =IF(AND($A216>=fréquence!$AJ$3,$A216<=fréquence!$AK$3),P213+1,P213) -> 0 | Q216: =IF(AND($A216>=fréquence!$AJ$4,$A216<=fréquence!$AK$4),Q213+1,Q213) -> 0 | R216: =IF(AND($A216>=fréquence!$AJ$5,$A216<=fréquence!$AK$5),R213+1,R213) -> 0 | S216: =IF(AND($A216>=fréquence!$AJ$6,$A216<=fréquence!$AK$6),S213+1,S213) -> 0
D217: =IFERROR(VLOOKUP(J216,'Recherche mots connus'!$C$6:$D$187,2,FALSE),"") -> 2016-01-08 | E217: =IFERROR(VLOOKUP(K216,'Recherche mots connus'!$C$6:$D$187,2,FALSE),"") ->  | F217: =IFERROR(VLOOKUP(L216,'Recherche mots connus'!$C$6:$D$187,2,FALSE),"") ->  | G217: =IFERROR(VLOOKUP(M216,'Recherche mots connus'!$C$6:$D$187,2,FALSE),"") ->  | H217: =IFERROR(VLOOKUP(N216,'Recherche mots connus'!$C$6:$D$187,2,FALSE),"") -> 
A219: =A216+1 -> 73 | B219: =VLOOKUP($A219,fréquence!$W$16:$AO$2805,8,FALSE) -> le vendredi ; les vendredis | C219: =VLOOKUP($A219,fréquence!$W$16:$AO$2805,11,FALSE) -> nom commun | D219: =CONCATENATE(D$1,"-",VLOOKUP($A219,fréquence!$A$16:$V$3371,18,FALSE)) -> CP-108 | E219: =CONCATENATE(E$1,"-",VLOOKUP($A219,fréquence!$A$16:$V$3371,19,FALSE)) -> CE1-249 | F219: =CONCATENATE(F$1,"-",VLOOKUP($A219,fréquence!$A$16:$V$3371,20,FALSE)) -> CE2-692 | G219: =CONCATENATE(G$1,"-",VLOOKUP($A219,fréquence!$A$16:$V$3371,21,FALSE)) -> CM1-1401 | H219: =CONCATENATE(H$1,"-",VLOOKUP($A219,fréquence!$A$16:$V$3371,22,FALSE)) -> CM2-2361 | J219: =IF(O219<>O216,IF(O219<>0,INT((O219-1)/fréquence!$AH$2)+1,""),"") -> 73 | K219: =IF(P219<>P216,IF(P219<>0,INT((P219-1)/fréquence!$AH$3)+1,""),"") ->  | L219: =IF(Q219<>Q216,IF(Q219<>0,INT((Q219-1)/fréquence!$AH$4)+1,""),"") ->  | M219: =IF(R219<>R216,IF(R219<>0,INT((R219-1)/fréquence!$AH$5)+1,""),"") ->  | N219: =IF(S219<>S216,IF(S219<>0,INT((S219-1)/fréquence!$AH$6)+1,""),"") ->  | O219: =IF(AND($A219>=fréquence!$AJ$2,$A219<=fréquence!$AK$2),O216+1,O216) -> 73 | P219: =IF(AND($A219>=fréquence!$AJ$3,$A219<=fréquence!$AK$3),P216+1,P216) -> 0 | Q219: =IF(AND($A219>=fréquence!$AJ$4,$A219<=fréquence!$AK$4),Q216+1,Q216) -> 0 | R219: =IF(AND($A219>=fréquence!$AJ$5,$A219<=fréquence!$AK$5),R216+1,R216) -> 0 | S219: =IF(AND($A219>=fréquence!$AJ$6,$A219<=fréquence!$AK$6),S216+1,S216) -> 0
D220: =IFERROR(VLOOKUP(J219,'Recherche mots connus'!$C$6:$D$187,2,FALSE),"") -> 2016-01-11 | E220: =IFERROR(VLOOKUP(K219,'Recherche mots connus'!$C$6:$D$187,2,FALSE),"") ->  | F220: =IFERROR(VLOOKUP(L219,'Recherche mots connus'!$C$6:$D$187,2,FALSE),"") ->  | G220: =IFERROR(VLOOKUP(M219,'Recherche mots connus'!$C$6:$D$187,2,FALSE),"") ->  | H220: =IFERROR(VLOOKUP(N219,'Recherche mots connus'!$C$6:$D$187,2,FALSE),"") -> 
A222: =A219+1 -> 74 | B222: =VLOOKUP($A222,fréquence!$W$16:$AO$2805,8,FALSE) -> le samedi ; les samedis | C222: =VLOOKUP($A222,fréquence!$W$16:$AO$2805,11,FALSE) -> nom commun | D222: =CONCATENATE(D$1,"-",VLOOKUP($A222,fréquence!$A$16:$V$3371,18,FALSE)) -> CP-94 | E222: =CONCATENATE(E$1,"-",VLOOKUP($A222,fréquence!$A$16:$V$3371,19,FALSE)) -> CE1-219 | F222: =CONCATENATE(F$1,"-",VLOOKUP($A222,fréquence!$A$16:$V$3371,20,FALSE)) -> CE2-598 | G222: =CONCATENATE(G$1,"-",VLOOKUP($A222,fréquence!$A$16:$V$3371,21,FALSE)) -> CM1-1201 | H222: =CONCATENATE(H$1,"-",VLOOKUP($A222,fréquence!$A$16:$V$3371,22,FALSE)) -> CM2-2047 | J222: =IF(O222<>O219,IF(O222<>0,INT((O222-1)/fréquence!$AH$2)+1,""),"") -> 74 | K222: =IF(P222<>P219,IF(P222<>0,INT((P222-1)/fréquence!$AH$3)+1,""),"") ->  | L222: =IF(Q222<>Q219,IF(Q222<>0,INT((Q222-1)/fréquence!$AH$4)+1,""),"") ->  | M222: =IF(R222<>R219,IF(R222<>0,INT((R222-1)/fréquence!$AH$5)+1,""),"") ->  | N222: =IF(S222<>S219,IF(S222<>0,INT((S222-1)/fréquence!$AH$6)+1,""),"") ->  | O222: =IF(AND($A222>=fréquence!$AJ$2,$A222<=fréquence!$AK$2),O219+1,O219) -> 74 | P222: =IF(AND($A222>=fréquence!$AJ$3,$A222<=fréquence!$AK$3),P219+1,P219) -> 0 | Q222: =IF(AND($A222>=fréquence!$AJ$4,$A222<=fréquence!$AK$4),Q219+1,Q219) -> 0 | R222: =IF(AND($A222>=fréquence!$AJ$5,$A222<=fréquence!$AK$5),R219+1,R219) -> 0 | S222: =IF(AND($A222>=fréquence!$AJ$6,$A222<=fréquence!$AK$6),S219+1,S219) -> 0
D223: =IFERROR(VLOOKUP(J222,'Recherche mots connus'!$C$6:$D$187,2,FALSE),"") -> 2016-01-12 | E223: =IFERROR(VLOOKUP(K222,'Recherche mots connus'!$C$6:$D$187,2,FALSE),"") ->  | F223: =IFERROR(VLOOKUP(L222,'Recherche mots connus'!$C$6:$D$187,2,FALSE),"") ->  | G223: =IFERROR(VLOOKUP(M222,'Recherche mots connus'!$C$6:$D$187,2,FALSE),"") ->  | H223: =IFERROR(VLOOKUP(N222,'Recherche mots connus'!$C$6:$D$187,2,FALSE),"") -> 
A225: =A222+1 -> 75 | B225: =VLOOKUP($A225,fréquence!$W$16:$AO$2805,8,FALSE) -> le dimanche ; les dimanches | C225: =VLOOKUP($A225,fréquence!$W$16:$AO$2805,11,FALSE) -> nom commun | D225: =CONCATENATE(D$1,"-",VLOOKUP($A225,fréquence!$A$16:$V$3371,18,FALSE)) -> CP-21 | E225: =CONCATENATE(E$1,"-",VLOOKUP($A225,fréquence!$A$16:$V$3371,19,FALSE)) -> CE1-62 | F225: =CONCATENATE(F$1,"-",VLOOKUP($A225,fréquence!$A$16:$V$3371,20,FALSE)) -> CE2-180 | G225: =CONCATENATE(G$1,"-",VLOOKUP($A225,fréquence!$A$16:$V$3371,21,FALSE)) -> CM1-373 | H225: =CONCATENATE(H$1,"-",VLOOKUP($A225,fréquence!$A$16:$V$3371,22,FALSE)) -> CM2-660 | J225: =IF(O225<>O222,IF(O225<>0,INT((O225-1)/fréquence!$AH$2)+1,""),"") -> 75 | K225: =IF(P225<>P222,IF(P225<>0,INT((P225-1)/fréquence!$AH$3)+1,""),"") ->  | L225: =IF(Q225<>Q222,IF(Q225<>0,INT((Q225-1)/fréquence!$AH$4)+1,""),"") ->  | M225: =IF(R225<>R222,IF(R225<>0,INT((R225-1)/fréquence!$AH$5)+1,""),"") ->  | N225: =IF(S225<>S222,IF(S225<>0,INT((S225-1)/fréquence!$AH$6)+1,""),"") ->  | O225: =IF(AND($A225>=fréquence!$AJ$2,$A225<=fréquence!$AK$2),O222+1,O222) -> 75 | P225: =IF(AND($A225>=fréquence!$AJ$3,$A225<=fréquence!$AK$3),P222+1,P222) -> 0 | Q225: =IF(AND($A225>=fréquence!$AJ$4,$A225<=fréquence!$AK$4),Q222+1,Q222) -> 0 | R225: =IF(AND($A225>=fréquence!$AJ$5,$A225<=fréquence!$AK$5),R222+1,R222) -> 0 | S225: =IF(AND($A225>=fréquence!$AJ$6,$A225<=fréquence!$AK$6),S222+1,S222) -> 0
D226: =IFERROR(VLOOKUP(J225,'Recherche mots connus'!$C$6:$D$187,2,FALSE),"") -> 2016-01-13 | E226: =IFERROR(VLOOKUP(K225,'Recherche mots connus'!$C$6:$D$187,2,FALSE),"") ->  | F226: =IFERROR(VLOOKUP(L225,'Recherche mots connus'!$C$6:$D$187,2,FALSE),"") ->  | G226: =IFERROR(VLOOKUP(M225,'Recherche mots connus'!$C$6:$D$187,2,FALSE),"") ->  | H226: =IFERROR(VLOOKUP(N225,'Recherche mots connus'!$C$6:$D$187,2,FALSE),"") -> 
A228: =A225+1 -> 76 | B228: =VLOOKUP($A228,fréquence!$W$16:$AO$2805,8,FALSE) -> j'ai | C228: =VLOOKUP($A228,fréquence!$W$16:$AO$2805,11,FALSE) -> forme verbale | D228: =CONCATENATE(D$1,"-",VLOOKUP($A228,fréquence!$A$16:$V$3371,18,FALSE)) -> CP-42 | E228: =CONCATENATE(E$1,"-",VLOOKUP($A228,fréquence!$A$16:$V$3371,19,FALSE)) -> CE1-106 | F228: =CONCATENATE(F$1,"-",VLOOKUP($A228,fréquence!$A$16:$V$3371,20,FALSE)) -> CE2-312 | G228: =CONCATENATE(G$1,"-",VLOOKUP($A228,fréquence!$A$16:$V$3371,21,FALSE)) -> CM1-639 | H228: =CONCATENATE(H$1,"-",VLOOKUP($A228,fréquence!$A$16:$V$3371,22,FALSE)) -> CM2-1186 | J228: =IF(O228<>O225,IF(O228<>0,INT((O228-1)/fréquence!$AH$2)+1,""),"") -> 76 | K228: =IF(P228<>P225,IF(P228<>0,INT((P228-1)/fréquence!$AH$3)+1,""),"") ->  | L228: =IF(Q228<>Q225,IF(Q228<>0,INT((Q228-1)/fréquence!$AH$4)+1,""),"") ->  | M228: =IF(R228<>R225,IF(R228<>0,INT((R228-1)/fréquence!$AH$5)+1,""),"") ->  | N228: =IF(S228<>S225,IF(S228<>0,INT((S228-1)/fréquence!$AH$6)+1,""),"") ->  | O228: =IF(AND($A228>=fréquence!$AJ$2,$A228<=fréquence!$AK$2),O225+1,O225) -> 76 | P228: =IF(AND($A228>=fréquence!$AJ$3,$A228<=fréquence!$AK$3),P225+1,P225) -> 0 | Q228: =IF(AND($A228>=fréquence!$AJ$4,$A228<=fréquence!$AK$4),Q225+1,Q225) -> 0 | R228: =IF(AND($A228>=fréquence!$AJ$5,$A228<=fréquence!$AK$5),R225+1,R225) -> 0 | S228: =IF(AND($A228>=fréquence!$AJ$6,$A228<=fréquence!$AK$6),S225+1,S225) -> 0
D229: =IFERROR(VLOOKUP(J228,'Recherche mots connus'!$C$6:$D$187,2,FALSE),"") -> 2016-01-14 | E229: =IFERROR(VLOOKUP(K228,'Recherche mots connus'!$C$6:$D$187,2,FALSE),"") ->  | F229: =IFERROR(VLOOKUP(L228,'Recherche mots connus'!$C$6:$D$187,2,FALSE),"") ->  | G229: =IFERROR(VLOOKUP(M228,'Recherche mots connus'!$C$6:$D$187,2,FALSE),"") ->  | H229: =IFERROR(VLOOKUP(N228,'Recherche mots connus'!$C$6:$D$187,2,FALSE),"") -> 
A231: =A228+1 -> 77 | B231: =VLOOKUP($A231,fréquence!$W$16:$AO$2805,8,FALSE) -> je suis | C231: =VLOOKUP($A231,fréquence!$W$16:$AO$2805,11,FALSE) -> forme verbale | D231: =CONCATENATE(D$1,"-",VLOOKUP($A231,fréquence!$A$16:$V$3371,18,FALSE)) -> CP-44 | E231: =CONCATENATE(E$1,"-",VLOOKUP($A231,fréquence!$A$16:$V$3371,19,FALSE)) -> CE1-113 | F231: =CONCATENATE(F$1,"-",VLOOKUP($A231,fréquence!$A$16:$V$3371,20,FALSE)) -> CE2-321 | G231: =CONCATENATE(G$1,"-",VLOOKUP($A231,fréquence!$A$16:$V$3371,21,FALSE)) -> CM1-653 | H231: =CONCATENATE(H$1,"-",VLOOKUP($A231,fréquence!$A$16:$V$3371,22,FALSE)) -> CM2-1200 | J231: =IF(O231<>O228,IF(O231<>0,INT((O231-1)/fréquence!$AH$2)+1,""),"") -> 77 | K231: =IF(P231<>P228,IF(P231<>0,INT((P231-1)/fréquence!$AH$3)+1,""),"") ->  | L231: =IF(Q231<>Q228,IF(Q231<>0,INT((Q231-1)/fréquence!$AH$4)+1,""),"") ->  | M231: =IF(R231<>R228,IF(R231<>0,INT((R231-1)/fréquence!$AH$5)+1,""),"") ->  | N231: =IF(S231<>S228,IF(S231<>0,INT((S231-1)/fréquence!$AH$6)+1,""),"") ->  | O231: =IF(AND($A231>=fréquence!$AJ$2,$A231<=fréquence!$AK$2),O228+1,O228) -> 77 | P231: =IF(AND($A231>=fréquence!$AJ$3,$A231<=fréquence!$AK$3),P228+1,P228) -> 0 | Q231: =IF(AND($A231>=fréquence!$AJ$4,$A231<=fréquence!$AK$4),Q228+1,Q228) -> 0 | R231: =IF(AND($A231>=fréquence!$AJ$5,$A231<=fréquence!$AK$5),R228+1,R228) -> 0 | S231: =IF(AND($A231>=fréquence!$AJ$6,$A231<=fréquence!$AK$6),S228+1,S228) -> 0
D232: =IFERROR(VLOOKUP(J231,'Recherche mots connus'!$C$6:$D$187,2,FALSE),"") -> 2016-01-15 | E232: =IFERROR(VLOOKUP(K231,'Recherche mots connus'!$C$6:$D$187,2,FALSE),"") ->  | F232: =IFERROR(VLOOKUP(L231,'Recherche mots connus'!$C$6:$D$187,2,FALSE),"") ->  | G232: =IFERROR(VLOOKUP(M231,'Recherche mots connus'!$C$6:$D$187,2,FALSE),"") ->  | H232: =IFERROR(VLOOKUP(N231,'Recherche mots connus'!$C$6:$D$187,2,FALSE),"") -> 
A234: =A231+1 -> 78 | B234: =VLOOKUP($A234,fréquence!$W$16:$AO$2805,8,FALSE) -> je suis allé | C234: =VLOOKUP($A234,fréquence!$W$16:$AO$2805,11,FALSE) -> forme verbale | D234: =CONCATENATE(D$1,"-",VLOOKUP($A234,fréquence!$A$16:$V$3371,18,FALSE)) -> CP-45 | E234: =CONCATENATE(E$1,"-",VLOOKUP($A234,fréquence!$A$16:$V$3371,19,FALSE)) -> CE1-114 | F234: =CONCATENATE(F$1,"-",VLOOKUP($A234,fréquence!$A$16:$V$3371,20,FALSE)) -> CE2-322 | G234: =CONCATENATE(G$1,"-",VLOOKUP($A234,fréquence!$A$16:$V$3371,21,FALSE)) -> CM1-654 | H234: =CONCATENATE(H$1,"-",VLOOKUP($A234,fréquence!$A$16:$V$3371,22,FALSE)) -> CM2-1201 | J234: =IF(O234<>O231,IF(O234<>0,INT((O234-1)/fréquence!$AH$2)+1,""),"") -> 78 | K234: =IF(P234<>P231,IF(P234<>0,INT((P234-1)/fréquence!$AH$3)+1,""),"") ->  | L234: =IF(Q234<>Q231,IF(Q234<>0,INT((Q234-1)/fréquence!$AH$4)+1,""),"") ->  | M234: =IF(R234<>R231,IF(R234<>0,INT((R234-1)/fréquence!$AH$5)+1,""),"") ->  | N234: =IF(S234<>S231,IF(S234<>0,INT((S234-1)/fréquence!$AH$6)+1,""),"") ->  | O234: =IF(AND($A234>=fréquence!$AJ$2,$A234<=fréquence!$AK$2),O231+1,O231) -> 78 | P234: =IF(AND($A234>=fréquence!$AJ$3,$A234<=fréquence!$AK$3),P231+1,P231) -> 0 | Q234: =IF(AND($A234>=fréquence!$AJ$4,$A234<=fréquence!$AK$4),Q231+1,Q231) -> 0 | R234: =IF(AND($A234>=fréquence!$AJ$5,$A234<=fréquence!$AK$5),R231+1,R231) -> 0 | S234: =IF(AND($A234>=fréquence!$AJ$6,$A234<=fréquence!$AK$6),S231+1,S231) -> 0
D235: =IFERROR(VLOOKUP(J234,'Recherche mots connus'!$C$6:$D$187,2,FALSE),"") -> 2016-01-18 | E235: =IFERROR(VLOOKUP(K234,'Recherche mots connus'!$C$6:$D$187,2,FALSE),"") ->  | F235: =IFERROR(VLOOKUP(L234,'Recherche mots connus'!$C$6:$D$187,2,FALSE),"") ->  | G235: =IFERROR(VLOOKUP(M234,'Recherche mots connus'!$C$6:$D$187,2,FALSE),"") ->  | H235: =IFERROR(VLOOKUP(N234,'Recherche mots connus'!$C$6:$D$187,2,FALSE),"") -> 
A237: =A234+1 -> 79 | B237: =VLOOKUP($A237,fréquence!$W$16:$AO$2805,8,FALSE) -> je suis allée | C237: =VLOOKUP($A237,fréquence!$W$16:$AO$2805,11,FALSE) -> forme verbale | D237: =CONCATENATE(D$1,"-",VLOOKUP($A237,fréquence!$A$16:$V$3371,18,FALSE)) -> CP-46 | E237: =CONCATENATE(E$1,"-",VLOOKUP($A237,fréquence!$A$16:$V$3371,19,FALSE)) -> CE1-115 | F237: =CONCATENATE(F$1,"-",VLOOKUP($A237,fréquence!$A$16:$V$3371,20,FALSE)) -> CE2-323 | G237: =CONCATENATE(G$1,"-",VLOOKUP($A237,fréquence!$A$16:$V$3371,21,FALSE)) -> CM1-655 | H237: =CONCATENATE(H$1,"-",VLOOKUP($A237,fréquence!$A$16:$V$3371,22,FALSE)) -> CM2-1202 | J237: =IF(O237<>O234,IF(O237<>0,INT((O237-1)/fréquence!$AH$2)+1,""),"") -> 79 | K237: =IF(P237<>P234,IF(P237<>0,INT((P237-1)/fréquence!$AH$3)+1,""),"") ->  | L237: =IF(Q237<>Q234,IF(Q237<>0,INT((Q237-1)/fréquence!$AH$4)+1,""),"") ->  | M237: =IF(R237<>R234,IF(R237<>0,INT((R237-1)/fréquence!$AH$5)+1,""),"") ->  | N237: =IF(S237<>S234,IF(S237<>0,INT((S237-1)/fréquence!$AH$6)+1,""),"") ->  | O237: =IF(AND($A237>=fréquence!$AJ$2,$A237<=fréquence!$AK$2),O234+1,O234) -> 79 | P237: =IF(AND($A237>=fréquence!$AJ$3,$A237<=fréquence!$AK$3),P234+1,P234) -> 0 | Q237: =IF(AND($A237>=fréquence!$AJ$4,$A237<=fréquence!$AK$4),Q234+1,Q234) -> 0 | R237: =IF(AND($A237>=fréquence!$AJ$5,$A237<=fréquence!$AK$5),R234+1,R234) -> 0 | S237: =IF(AND($A237>=fréquence!$AJ$6,$A237<=fréquence!$AK$6),S234+1,S234) -> 0
D238: =IFERROR(VLOOKUP(J237,'Recherche mots connus'!$C$6:$D$187,2,FALSE),"") -> 2016-01-19 | E238: =IFERROR(VLOOKUP(K237,'Recherche mots connus'!$C$6:$D$187,2,FALSE),"") ->  | F238: =IFERROR(VLOOKUP(L237,'Recherche mots connus'!$C$6:$D$187,2,FALSE),"") ->  | G238: =IFERROR(VLOOKUP(M237,'Recherche mots connus'!$C$6:$D$187,2,FALSE),"") ->  | H238: =IFERROR(VLOOKUP(N237,'Recherche mots connus'!$C$6:$D$187,2,FALSE),"") -> 
A240: =A237+1 -> 80 | B240: =VLOOKUP($A240,fréquence!$W$16:$AO$2805,8,FALSE) -> il a | C240: =VLOOKUP($A240,fréquence!$W$16:$AO$2805,11,FALSE) -> forme verbale | D240: =CONCATENATE(D$1,"-",VLOOKUP($A240,fréquence!$A$16:$V$3371,18,FALSE)) -> CP-37 | E240: =CONCATENATE(E$1,"-",VLOOKUP($A240,fréquence!$A$16:$V$3371,19,FALSE)) -> CE1-99 | F240: =CONCATENATE(F$1,"-",VLOOKUP($A240,fréquence!$A$16:$V$3371,20,FALSE)) -> CE2-298 | G240: =CONCATENATE(G$1,"-",VLOOKUP($A240,fréquence!$A$16:$V$3371,21,FALSE)) -> CM1-611 | H240: =CONCATENATE(H$1,"-",VLOOKUP($A240,fréquence!$A$16:$V$3371,22,FALSE)) -> CM2-1118 | J240: =IF(O240<>O237,IF(O240<>0,INT((O240-1)/fréquence!$AH$2)+1,""),"") -> 80 | K240: =IF(P240<>P237,IF(P240<>0,INT((P240-1)/fréquence!$AH$3)+1,""),"") ->  | L240: =IF(Q240<>Q237,IF(Q240<>0,INT((Q240-1)/fréquence!$AH$4)+1,""),"") ->  | M240: =IF(R240<>R237,IF(R240<>0,INT((R240-1)/fréquence!$AH$5)+1,""),"") ->  | N240: =IF(S240<>S237,IF(S240<>0,INT((S240-1)/fréquence!$AH$6)+1,""),"") ->  | O240: =IF(AND($A240>=fréquence!$AJ$2,$A240<=fréquence!$AK$2),O237+1,O237) -> 80 | P240: =IF(AND($A240>=fréquence!$AJ$3,$A240<=fréquence!$AK$3),P237+1,P237) -> 0 | Q240: =IF(AND($A240>=fréquence!$AJ$4,$A240<=fréquence!$AK$4),Q237+1,Q237) -> 0 | R240: =IF(AND($A240>=fréquence!$AJ$5,$A240<=fréquence!$AK$5),R237+1,R237) -> 0 | S240: =IF(AND($A240>=fréquence!$AJ$6,$A240<=fréquence!$AK$6),S237+1,S237) -> 0
D241: =IFERROR(VLOOKUP(J240,'Recherche mots connus'!$C$6:$D$187,2,FALSE),"") -> 2016-01-20 | E241: =IFERROR(VLOOKUP(K240,'Recherche mots connus'!$C$6:$D$187,2,FALSE),"") ->  | F241: =IFERROR(VLOOKUP(L240,'Recherche mots connus'!$C$6:$D$187,2,FALSE),"") ->  | G241: =IFERROR(VLOOKUP(M240,'Recherche mots connus'!$C$6:$D$187,2,FALSE),"") ->  | H241: =IFERROR(VLOOKUP(N240,'Recherche mots connus'!$C$6:$D$187,2,FALSE),"") -> 
A243: =A240+1 -> 81 | B243: =VLOOKUP($A243,fréquence!$W$16:$AO$2805,8,FALSE) -> elle a | C243: =VLOOKUP($A243,fréquence!$W$16:$AO$2805,11,FALSE) -> forme verbale | D243: =CONCATENATE(D$1,"-",VLOOKUP($A243,fréquence!$A$16:$V$3371,18,FALSE)) -> CP-26 | E243: =CONCATENATE(E$1,"-",VLOOKUP($A243,fréquence!$A$16:$V$3371,19,FALSE)) -> CE1-71 | F243: =CONCATENATE(F$1,"-",VLOOKUP($A243,fréquence!$A$16:$V$3371,20,FALSE)) -> CE2-207 | G243: =CONCATENATE(G$1,"-",VLOOKUP($A243,fréquence!$A$16:$V$3371,21,FALSE)) -> CM1-431 | H243: =CONCATENATE(H$1,"-",VLOOKUP($A243,fréquence!$A$16:$V$3371,22,FALSE)) -> CM2-760 | J243: =IF(O243<>O240,IF(O243<>0,INT((O243-1)/fréquence!$AH$2)+1,""),"") -> 81 | K243: =IF(P243<>P240,IF(P243<>0,INT((P243-1)/fréquence!$AH$3)+1,""),"") ->  | L243: =IF(Q243<>Q240,IF(Q243<>0,INT((Q243-1)/fréquence!$AH$4)+1,""),"") ->  | M243: =IF(R243<>R240,IF(R243<>0,INT((R243-1)/fréquence!$AH$5)+1,""),"") ->  | N243: =IF(S243<>S240,IF(S243<>0,INT((S243-1)/fréquence!$AH$6)+1,""),"") ->  | O243: =IF(AND($A243>=fréquence!$AJ$2,$A243<=fréquence!$AK$2),O240+1,O240) -> 81 | P243: =IF(AND($A243>=fréquence!$AJ$3,$A243<=fréquence!$AK$3),P240+1,P240) -> 0 | Q243: =IF(AND($A243>=fréquence!$AJ$4,$A243<=fréquence!$AK$4),Q240+1,Q240) -> 0 | R243: =IF(AND($A243>=fréquence!$AJ$5,$A243<=fréquence!$AK$5),R240+1,R240) -> 0 | S243: =IF(AND($A243>=fréquence!$AJ$6,$A243<=fréquence!$AK$6),S240+1,S240) -> 0
D244: =IFERROR(VLOOKUP(J243,'Recherche mots connus'!$C$6:$D$187,2,FALSE),"") -> 2016-01-21 | E244: =IFERROR(VLOOKUP(K243,'Recherche mots connus'!$C$6:$D$187,2,FALSE),"") ->  | F244: =IFERROR(VLOOKUP(L243,'Recherche mots connus'!$C$6:$D$187,2,FALSE),"") ->  | G244: =IFERROR(VLOOKUP(M243,'Recherche mots connus'!$C$6:$D$187,2,FALSE),"") ->  | H244: =IFERROR(VLOOKUP(N243,'Recherche mots connus'!$C$6:$D$187,2,FALSE),"") -> 
A246: =A243+1 -> 82 | B246: =VLOOKUP($A246,fréquence!$W$16:$AO$2805,8,FALSE) -> il est | C246: =VLOOKUP($A246,fréquence!$W$16:$AO$2805,11,FALSE) -> forme verbale | D246: =CONCATENATE(D$1,"-",VLOOKUP($A246,fréquence!$A$16:$V$3371,18,FALSE)) -> CP-38 | E246: =CONCATENATE(E$1,"-",VLOOKUP($A246,fréquence!$A$16:$V$3371,19,FALSE)) -> CE1-100 | F246: =CONCATENATE(F$1,"-",VLOOKUP($A246,fréquence!$A$16:$V$3371,20,FALSE)) -> CE2-299 | G246: =CONCATENATE(G$1,"-",VLOOKUP($A246,fréquence!$A$16:$V$3371,21,FALSE)) -> CM1-612 | H246: =CONCATENATE(H$1,"-",VLOOKUP($A246,fréquence!$A$16:$V$3371,22,FALSE)) -> CM2-1119 | J246: =IF(O246<>O243,IF(O246<>0,INT((O246-1)/fréquence!$AH$2)+1,""),"") -> 82 | K246: =IF(P246<>P243,IF(P246<>0,INT((P246-1)/fréquence!$AH$3)+1,""),"") ->  | L246: =IF(Q246<>Q243,IF(Q246<>0,INT((Q246-1)/fréquence!$AH$4)+1,""),"") ->  | M246: =IF(R246<>R243,IF(R246<>0,INT((R246-1)/fréquence!$AH$5)+1,""),"") ->  | N246: =IF(S246<>S243,IF(S246<>0,INT((S246-1)/fréquence!$AH$6)+1,""),"") ->  | O246: =IF(AND($A246>=fréquence!$AJ$2,$A246<=fréquence!$AK$2),O243+1,O243) -> 82 | P246: =IF(AND($A246>=fréquence!$AJ$3,$A246<=fréquence!$AK$3),P243+1,P243) -> 0 | Q246: =IF(AND($A246>=fréquence!$AJ$4,$A246<=fréquence!$AK$4),Q243+1,Q243) -> 0 | R246: =IF(AND($A246>=fréquence!$AJ$5,$A246<=fréquence!$AK$5),R243+1,R243) -> 0 | S246: =IF(AND($A246>=fréquence!$AJ$6,$A246<=fréquence!$AK$6),S243+1,S243) -> 0
D247: =IFERROR(VLOOKUP(J246,'Recherche mots connus'!$C$6:$D$187,2,FALSE),"") -> 2016-01-22 | E247: =IFERROR(VLOOKUP(K246,'Recherche mots connus'!$C$6:$D$187,2,FALSE),"") ->  | F247: =IFERROR(VLOOKUP(L246,'Recherche mots connus'!$C$6:$D$187,2,FALSE),"") ->  | G247: =IFERROR(VLOOKUP(M246,'Recherche mots connus'!$C$6:$D$187,2,FALSE),"") ->  | H247: =IFERROR(VLOOKUP(N246,'Recherche mots connus'!$C$6:$D$187,2,FALSE),"") -> 
A249: =A246+1 -> 83 | B249: =VLOOKUP($A249,fréquence!$W$16:$AO$2805,8,FALSE) -> elle est | C249: =VLOOKUP($A249,fréquence!$W$16:$AO$2805,11,FALSE) -> forme verbale | D249: =CONCATENATE(D$1,"-",VLOOKUP($A249,fréquence!$A$16:$V$3371,18,FALSE)) -> CP-25 | E249: =CONCATENATE(E$1,"-",VLOOKUP($A249,fréquence!$A$16:$V$3371,19,FALSE)) -> CE1-70 | F249: =CONCATENATE(F$1,"-",VLOOKUP($A249,fréquence!$A$16:$V$3371,20,FALSE)) -> CE2-206 | G249: =CONCATENATE(G$1,"-",VLOOKUP($A249,fréquence!$A$16:$V$3371,21,FALSE)) -> CM1-430 | H249: =CONCATENATE(H$1,"-",VLOOKUP($A249,fréquence!$A$16:$V$3371,22,FALSE)) -> CM2-759 | J249: =IF(O249<>O246,IF(O249<>0,INT((O249-1)/fréquence!$AH$2)+1,""),"") -> 83 | K249: =IF(P249<>P246,IF(P249<>0,INT((P249-1)/fréquence!$AH$3)+1,""),"") ->  | L249: =IF(Q249<>Q246,IF(Q249<>0,INT((Q249-1)/fréquence!$AH$4)+1,""),"") ->  | M249: =IF(R249<>R246,IF(R249<>0,INT((R249-1)/fréquence!$AH$5)+1,""),"") ->  | N249: =IF(S249<>S246,IF(S249<>0,INT((S249-1)/fréquence!$AH$6)+1,""),"") ->  | O249: =IF(AND($A249>=fréquence!$AJ$2,$A249<=fréquence!$AK$2),O246+1,O246) -> 83 | P249: =IF(AND($A249>=fréquence!$AJ$3,$A249<=fréquence!$AK$3),P246+1,P246) -> 0 | Q249: =IF(AND($A249>=fréquence!$AJ$4,$A249<=fréquence!$AK$4),Q246+1,Q246) -> 0 | R249: =IF(AND($A249>=fréquence!$AJ$5,$A249<=fréquence!$AK$5),R246+1,R246) -> 0 | S249: =IF(AND($A249>=fréquence!$AJ$6,$A249<=fréquence!$AK$6),S246+1,S246) -> 0
D250: =IFERROR(VLOOKUP(J249,'Recherche mots connus'!$C$6:$D$187,2,FALSE),"") -> 2016-01-25 | E250: =IFERROR(VLOOKUP(K249,'Recherche mots connus'!$C$6:$D$187,2,FALSE),"") ->  | F250: =IFERROR(VLOOKUP(L249,'Recherche mots connus'!$C$6:$D$187,2,FALSE),"") ->  | G250: =IFERROR(VLOOKUP(M249,'Recherche mots connus'!$C$6:$D$187,2,FALSE),"") ->  | H250: =IFERROR(VLOOKUP(N249,'Recherche mots connus'!$C$6:$D$187,2,FALSE),"") -> 
A252: =A249+1 -> 84 | B252: =VLOOKUP($A252,fréquence!$W$16:$AO$2805,8,FALSE) -> il y a | C252: =VLOOKUP($A252,fréquence!$W$16:$AO$2805,11,FALSE) -> forme verbale | D252: =CONCATENATE(D$1,"-",VLOOKUP($A252,fréquence!$A$16:$V$3371,18,FALSE)) -> CP-39 | E252: =CONCATENATE(E$1,"-",VLOOKUP($A252,fréquence!$A$16:$V$3371,19,FALSE)) -> CE1-101 | F252: =CONCATENATE(F$1,"-",VLOOKUP($A252,fréquence!$A$16:$V$3371,20,FALSE)) -> CE2-300 | G252: =CONCATENATE(G$1,"-",VLOOKUP($A252,fréquence!$A$16:$V$3371,21,FALSE)) -> CM1-613 | H252: =CONCATENATE(H$1,"-",VLOOKUP($A252,fréquence!$A$16:$V$3371,22,FALSE)) -> CM2-1120 | J252: =IF(O252<>O249,IF(O252<>0,INT((O252-1)/fréquence!$AH$2)+1,""),"") -> 84 | K252: =IF(P252<>P249,IF(P252<>0,INT((P252-1)/fréquence!$AH$3)+1,""),"") ->  | L252: =IF(Q252<>Q249,IF(Q252<>0,INT((Q252-1)/fréquence!$AH$4)+1,""),"") ->  | M252: =IF(R252<>R249,IF(R252<>0,INT((R252-1)/fréquence!$AH$5)+1,""),"") ->  | N252: =IF(S252<>S249,IF(S252<>0,INT((S252-1)/fréquence!$AH$6)+1,""),"") ->  | O252: =IF(AND($A252>=fréquence!$AJ$2,$A252<=fréquence!$AK$2),O249+1,O249) -> 84 | P252: =IF(AND($A252>=fréquence!$AJ$3,$A252<=fréquence!$AK$3),P249+1,P249) -> 0 | Q252: =IF(AND($A252>=fréquence!$AJ$4,$A252<=fréquence!$AK$4),Q249+1,Q249) -> 0 | R252: =IF(AND($A252>=fréquence!$AJ$5,$A252<=fréquence!$AK$5),R249+1,R249) -> 0 | S252: =IF(AND($A252>=fréquence!$AJ$6,$A252<=fréquence!$AK$6),S249+1,S249) -> 0
D253: =IFERROR(VLOOKUP(J252,'Recherche mots connus'!$C$6:$D$187,2,FALSE),"") -> 2016-01-26 | E253: =IFERROR(VLOOKUP(K252,'Recherche mots connus'!$C$6:$D$187,2,FALSE),"") ->  | F253: =IFERROR(VLOOKUP(L252,'Recherche mots connus'!$C$6:$D$187,2,FALSE),"") ->  | G253: =IFERROR(VLOOKUP(M252,'Recherche mots connus'!$C$6:$D$187,2,FALSE),"") ->  | H253: =IFERROR(VLOOKUP(N252,'Recherche mots connus'!$C$6:$D$187,2,FALSE),"") -> 
A255: =A252+1 -> 85 | B255: =VLOOKUP($A255,fréquence!$W$16:$AO$2805,8,FALSE) -> il y avait | C255: =VLOOKUP($A255,fréquence!$W$16:$AO$2805,11,FALSE) -> forme verbale | D255: =CONCATENATE(D$1,"-",VLOOKUP($A255,fréquence!$A$16:$V$3371,18,FALSE)) -> CP-40 | E255: =CONCATENATE(E$1,"-",VLOOKUP($A255,fréquence!$A$16:$V$3371,19,FALSE)) -> CE1-102 | F255: =CONCATENATE(F$1,"-",VLOOKUP($A255,fréquence!$A$16:$V$3371,20,FALSE)) -> CE2-301 | G255: =CONCATENATE(G$1,"-",VLOOKUP($A255,fréquence!$A$16:$V$3371,21,FALSE)) -> CM1-614 | H255: =CONCATENATE(H$1,"-",VLOOKUP($A255,fréquence!$A$16:$V$3371,22,FALSE)) -> CM2-1121 | J255: =IF(O255<>O252,IF(O255<>0,INT((O255-1)/fréquence!$AH$2)+1,""),"") -> 85 | K255: =IF(P255<>P252,IF(P255<>0,INT((P255-1)/fréquence!$AH$3)+1,""),"") ->  | L255: =IF(Q255<>Q252,IF(Q255<>0,INT((Q255-1)/fréquence!$AH$4)+1,""),"") ->  | M255: =IF(R255<>R252,IF(R255<>0,INT((R255-1)/fréquence!$AH$5)+1,""),"") ->  | N255: =IF(S255<>S252,IF(S255<>0,INT((S255-1)/fréquence!$AH$6)+1,""),"") ->  | O255: =IF(AND($A255>=fréquence!$AJ$2,$A255<=fréquence!$AK$2),O252+1,O252) -> 85 | P255: =IF(AND($A255>=fréquence!$AJ$3,$A255<=fréquence!$AK$3),P252+1,P252) -> 0 | Q255: =IF(AND($A255>=fréquence!$AJ$4,$A255<=fréquence!$AK$4),Q252+1,Q252) -> 0 | R255: =IF(AND($A255>=fréquence!$AJ$5,$A255<=fréquence!$AK$5),R252+1,R252) -> 0 | S255: =IF(AND($A255>=fréquence!$AJ$6,$A255<=fréquence!$AK$6),S252+1,S252) -> 0
D256: =IFERROR(VLOOKUP(J255,'Recherche mots connus'!$C$6:$D$187,2,FALSE),"") -> 2016-01-27 | E256: =IFERROR(VLOOKUP(K255,'Recherche mots connus'!$C$6:$D$187,2,FALSE),"") ->  | F256: =IFERROR(VLOOKUP(L255,'Recherche mots connus'!$C$6:$D$187,2,FALSE),"") ->  | G256: =IFERROR(VLOOKUP(M255,'Recherche mots connus'!$C$6:$D$187,2,FALSE),"") ->  | H256: =IFERROR(VLOOKUP(N255,'Recherche mots connus'!$C$6:$D$187,2,FALSE),"") -> 
A258: =A255+1 -> 86 | B258: =VLOOKUP($A258,fréquence!$W$16:$AO$2805,8,FALSE) -> un animal ; des animaux | C258: =VLOOKUP($A258,fréquence!$W$16:$AO$2805,11,FALSE) -> nom commun | D258: =CONCATENATE(D$1,"-",VLOOKUP($A258,fréquence!$A$16:$V$3371,18,FALSE)) -> CP-4 | E258: =CONCATENATE(E$1,"-",VLOOKUP($A258,fréquence!$A$16:$V$3371,19,FALSE)) -> CE1-6 | F258: =CONCATENATE(F$1,"-",VLOOKUP($A258,fréquence!$A$16:$V$3371,20,FALSE)) -> CE2-13 | G258: =CONCATENATE(G$1,"-",VLOOKUP($A258,fréquence!$A$16:$V$3371,21,FALSE)) -> CM1-35 | H258: =CONCATENATE(H$1,"-",VLOOKUP($A258,fréquence!$A$16:$V$3371,22,FALSE)) -> CM2-81 | J258: =IF(O258<>O255,IF(O258<>0,INT((O258-1)/fréquence!$AH$2)+1,""),"") -> 86 | K258: =IF(P258<>P255,IF(P258<>0,INT((P258-1)/fréquence!$AH$3)+1,""),"") ->  | L258: =IF(Q258<>Q255,IF(Q258<>0,INT((Q258-1)/fréquence!$AH$4)+1,""),"") ->  | M258: =IF(R258<>R255,IF(R258<>0,INT((R258-1)/fréquence!$AH$5)+1,""),"") ->  | N258: =IF(S258<>S255,IF(S258<>0,INT((S258-1)/fréquence!$AH$6)+1,""),"") ->  | O258: =IF(AND($A258>=fréquence!$AJ$2,$A258<=fréquence!$AK$2),O255+1,O255) -> 86 | P258: =IF(AND($A258>=fréquence!$AJ$3,$A258<=fréquence!$AK$3),P255+1,P255) -> 0 | Q258: =IF(AND($A258>=fréquence!$AJ$4,$A258<=fréquence!$AK$4),Q255+1,Q255) -> 0 | R258: =IF(AND($A258>=fréquence!$AJ$5,$A258<=fréquence!$AK$5),R255+1,R255) -> 0 | S258: =IF(AND($A258>=fréquence!$AJ$6,$A258<=fréquence!$AK$6),S255+1,S255) -> 0
D259: =IFERROR(VLOOKUP(J258,'Recherche mots connus'!$C$6:$D$187,2,FALSE),"") -> 2016-01-28 | E259: =IFERROR(VLOOKUP(K258,'Recherche mots connus'!$C$6:$D$187,2,FALSE),"") ->  | F259: =IFERROR(VLOOKUP(L258,'Recherche mots connus'!$C$6:$D$187,2,FALSE),"") ->  | G259: =IFERROR(VLOOKUP(M258,'Recherche mots connus'!$C$6:$D$187,2,FALSE),"") ->  | H259: =IFERROR(VLOOKUP(N258,'Recherche mots connus'!$C$6:$D$187,2,FALSE),"") -> 
A261: =A258+1 -> 87 | B261: =VLOOKUP($A261,fréquence!$W$16:$AO$2805,8,FALSE) -> un journal ; des journaux | C261: =VLOOKUP($A261,fréquence!$W$16:$AO$2805,11,FALSE) -> nom commun | D261: =CONCATENATE(D$1,"-",VLOOKUP($A261,fréquence!$A$16:$V$3371,18,FALSE)) -> CP-49 | E261: =CONCATENATE(E$1,"-",VLOOKUP($A261,fréquence!$A$16:$V$3371,19,FALSE)) -> CE1-118 | F261: =CONCATENATE(F$1,"-",VLOOKUP($A261,fréquence!$A$16:$V$3371,20,FALSE)) -> CE2-333 | G261: =CONCATENATE(G$1,"-",VLOOKUP($A261,fréquence!$A$16:$V$3371,21,FALSE)) -> CM1-667 | H261: =CONCATENATE(H$1,"-",VLOOKUP($A261,fréquence!$A$16:$V$3371,22,FALSE)) -> CM2-1216 | J261: =IF(O261<>O258,IF(O261<>0,INT((O261-1)/fréquence!$AH$2)+1,""),"") -> 87 | K261: =IF(P261<>P258,IF(P261<>0,INT((P261-1)/fréquence!$AH$3)+1,""),"") ->  | L261: =IF(Q261<>Q258,IF(Q261<>0,INT((Q261-1)/fréquence!$AH$4)+1,""),"") ->  | M261: =IF(R261<>R258,IF(R261<>0,INT((R261-1)/fréquence!$AH$5)+1,""),"") ->  | N261: =IF(S261<>S258,IF(S261<>0,INT((S261-1)/fréquence!$AH$6)+1,""),"") ->  | O261: =IF(AND($A261>=fréquence!$AJ$2,$A261<=fréquence!$AK$2),O258+1,O258) -> 87 | P261: =IF(AND($A261>=fréquence!$AJ$3,$A261<=fréquence!$AK$3),P258+1,P258) -> 0 | Q261: =IF(AND($A261>=fréquence!$AJ$4,$A261<=fréquence!$AK$4),Q258+1,Q258) -> 0 | R261: =IF(AND($A261>=fréquence!$AJ$5,$A261<=fréquence!$AK$5),R258+1,R258) -> 0 | S261: =IF(AND($A261>=fréquence!$AJ$6,$A261<=fréquence!$AK$6),S258+1,S258) -> 0
D262: =IFERROR(VLOOKUP(J261,'Recherche mots connus'!$C$6:$D$187,2,FALSE),"") -> 2016-01-29 | E262: =IFERROR(VLOOKUP(K261,'Recherche mots connus'!$C$6:$D$187,2,FALSE),"") ->  | F262: =IFERROR(VLOOKUP(L261,'Recherche mots connus'!$C$6:$D$187,2,FALSE),"") ->  | G262: =IFERROR(VLOOKUP(M261,'Recherche mots connus'!$C$6:$D$187,2,FALSE),"") ->  | H262: =IFERROR(VLOOKUP(N261,'Recherche mots connus'!$C$6:$D$187,2,FALSE),"") -> 
A264: =A261+1 -> 88 | B264: =VLOOKUP($A264,fréquence!$W$16:$AO$2805,8,FALSE) -> une eau ; des eaux | C264: =VLOOKUP($A264,fréquence!$W$16:$AO$2805,11,FALSE) -> nom commun | D264: =CONCATENATE(D$1,"-",VLOOKUP($A264,fréquence!$A$16:$V$3371,18,FALSE)) -> CP-22 | E264: =CONCATENATE(E$1,"-",VLOOKUP($A264,fréquence!$A$16:$V$3371,19,FALSE)) -> CE1-66 | F264: =CONCATENATE(F$1,"-",VLOOKUP($A264,fréquence!$A$16:$V$3371,20,FALSE)) -> CE2-197 | G264: =CONCATENATE(G$1,"-",VLOOKUP($A264,fréquence!$A$16:$V$3371,21,FALSE)) -> CM1-410 | H264: =CONCATENATE(H$1,"-",VLOOKUP($A264,fréquence!$A$16:$V$3371,22,FALSE)) -> CM2-720 | J264: =IF(O264<>O261,IF(O264<>0,INT((O264-1)/fréquence!$AH$2)+1,""),"") -> 88 | K264: =IF(P264<>P261,IF(P264<>0,INT((P264-1)/fréquence!$AH$3)+1,""),"") ->  | L264: =IF(Q264<>Q261,IF(Q264<>0,INT((Q264-1)/fréquence!$AH$4)+1,""),"") ->  | M264: =IF(R264<>R261,IF(R264<>0,INT((R264-1)/fréquence!$AH$5)+1,""),"") ->  | N264: =IF(S264<>S261,IF(S264<>0,INT((S264-1)/fréquence!$AH$6)+1,""),"") ->  | O264: =IF(AND($A264>=fréquence!$AJ$2,$A264<=fréquence!$AK$2),O261+1,O261) -> 88 | P264: =IF(AND($A264>=fréquence!$AJ$3,$A264<=fréquence!$AK$3),P261+1,P261) -> 0 | Q264: =IF(AND($A264>=fréquence!$AJ$4,$A264<=fréquence!$AK$4),Q261+1,Q261) -> 0 | R264: =IF(AND($A264>=fréquence!$AJ$5,$A264<=fréquence!$AK$5),R261+1,R261) -> 0 | S264: =IF(AND($A264>=fréquence!$AJ$6,$A264<=fréquence!$AK$6),S261+1,S261) -> 0
D265: =IFERROR(VLOOKUP(J264,'Recherche mots connus'!$C$6:$D$187,2,FALSE),"") -> 2016-02-01 | E265: =IFERROR(VLOOKUP(K264,'Recherche mots connus'!$C$6:$D$187,2,FALSE),"") ->  | F265: =IFERROR(VLOOKUP(L264,'Recherche mots connus'!$C$6:$D$187,2,FALSE),"") ->  | G265: =IFERROR(VLOOKUP(M264,'Recherche mots connus'!$C$6:$D$187,2,FALSE),"") ->  | H265: =IFERROR(VLOOKUP(N264,'Recherche mots connus'!$C$6:$D$187,2,FALSE),"") -> 
A267: =A264+1 -> 89 | B267: =VLOOKUP($A267,fréquence!$W$16:$AO$2805,8,FALSE) -> un gâteau ; des gâteaux | C267: =VLOOKUP($A267,fréquence!$W$16:$AO$2805,11,FALSE) -> nom commun | D267: =CONCATENATE(D$1,"-",VLOOKUP($A267,fréquence!$A$16:$V$3371,18,FALSE)) -> CP-36 | E267: =CONCATENATE(E$1,"-",VLOOKUP($A267,fréquence!$A$16:$V$3371,19,FALSE)) -> CE1-93 | F267: =CONCATENATE(F$1,"-",VLOOKUP($A267,fréquence!$A$16:$V$3371,20,FALSE)) -> CE2-280 | G267: =CONCATENATE(G$1,"-",VLOOKUP($A267,fréquence!$A$16:$V$3371,21,FALSE)) -> CM1-561 | H267: =CONCATENATE(H$1,"-",VLOOKUP($A267,fréquence!$A$16:$V$3371,22,FALSE)) -> CM2-1018 | J267: =IF(O267<>O264,IF(O267<>0,INT((O267-1)/fréquence!$AH$2)+1,""),"") -> 89 | K267: =IF(P267<>P264,IF(P267<>0,INT((P267-1)/fréquence!$AH$3)+1,""),"") ->  | L267: =IF(Q267<>Q264,IF(Q267<>0,INT((Q267-1)/fréquence!$AH$4)+1,""),"") ->  | M267: =IF(R267<>R264,IF(R267<>0,INT((R267-1)/fréquence!$AH$5)+1,""),"") ->  | N267: =IF(S267<>S264,IF(S267<>0,INT((S267-1)/fréquence!$AH$6)+1,""),"") ->  | O267: =IF(AND($A267>=fréquence!$AJ$2,$A267<=fréquence!$AK$2),O264+1,O264) -> 89 | P267: =IF(AND($A267>=fréquence!$AJ$3,$A267<=fréquence!$AK$3),P264+1,P264) -> 0 | Q267: =IF(AND($A267>=fréquence!$AJ$4,$A267<=fréquence!$AK$4),Q264+1,Q264) -> 0 | R267: =IF(AND($A267>=fréquence!$AJ$5,$A267<=fréquence!$AK$5),R264+1,R264) -> 0 | S267: =IF(AND($A267>=fréquence!$AJ$6,$A267<=fréquence!$AK$6),S264+1,S264) -> 0
D268: =IFERROR(VLOOKUP(J267,'Recherche mots connus'!$C$6:$D$187,2,FALSE),"") -> 2016-02-02 | E268: =IFERROR(VLOOKUP(K267,'Recherche mots connus'!$C$6:$D$187,2,FALSE),"") ->  | F268: =IFERROR(VLOOKUP(L267,'Recherche mots connus'!$C$6:$D$187,2,FALSE),"") ->  | G268: =IFERROR(VLOOKUP(M267,'Recherche mots connus'!$C$6:$D$187,2,FALSE),"") ->  | H268: =IFERROR(VLOOKUP(N267,'Recherche mots connus'!$C$6:$D$187,2,FALSE),"") -> 
A270: =A267+1 -> 90 | B270: =VLOOKUP($A270,fréquence!$W$16:$AO$2805,8,FALSE) -> un jour ; des jours | C270: =VLOOKUP($A270,fréquence!$W$16:$AO$2805,11,FALSE) -> nom commun | D270: =CONCATENATE(D$1,"-",VLOOKUP($A270,fréquence!$A$16:$V$3371,18,FALSE)) -> CP-48 | E270: =CONCATENATE(E$1,"-",VLOOKUP($A270,fréquence!$A$16:$V$3371,19,FALSE)) -> CE1-117 | F270: =CONCATENATE(F$1,"-",VLOOKUP($A270,fréquence!$A$16:$V$3371,20,FALSE)) -> CE2-332 | G270: =CONCATENATE(G$1,"-",VLOOKUP($A270,fréquence!$A$16:$V$3371,21,FALSE)) -> CM1-666 | H270: =CONCATENATE(H$1,"-",VLOOKUP($A270,fréquence!$A$16:$V$3371,22,FALSE)) -> CM2-1215 | J270: =IF(O270<>O267,IF(O270<>0,INT((O270-1)/fréquence!$AH$2)+1,""),"") -> 90 | K270: =IF(P270<>P267,IF(P270<>0,INT((P270-1)/fréquence!$AH$3)+1,""),"") ->  | L270: =IF(Q270<>Q267,IF(Q270<>0,INT((Q270-1)/fréquence!$AH$4)+1,""),"") ->  | M270: =IF(R270<>R267,IF(R270<>0,INT((R270-1)/fréquence!$AH$5)+1,""),"") ->  | N270: =IF(S270<>S267,IF(S270<>0,INT((S270-1)/fréquence!$AH$6)+1,""),"") ->  | O270: =IF(AND($A270>=fréquence!$AJ$2,$A270<=fréquence!$AK$2),O267+1,O267) -> 90 | P270: =IF(AND($A270>=fréquence!$AJ$3,$A270<=fréquence!$AK$3),P267+1,P267) -> 0 | Q270: =IF(AND($A270>=fréquence!$AJ$4,$A270<=fréquence!$AK$4),Q267+1,Q267) -> 0 | R270: =IF(AND($A270>=fréquence!$AJ$5,$A270<=fréquence!$AK$5),R267+1,R267) -> 0 | S270: =IF(AND($A270>=fréquence!$AJ$6,$A270<=fréquence!$AK$6),S267+1,S267) -> 0
D271: =IFERROR(VLOOKUP(J270,'Recherche mots connus'!$C$6:$D$187,2,FALSE),"") -> 2016-02-03 | E271: =IFERROR(VLOOKUP(K270,'Recherche mots connus'!$C$6:$D$187,2,FALSE),"") ->  | F271: =IFERROR(VLOOKUP(L270,'Recherche mots connus'!$C$6:$D$187,2,FALSE),"") ->  | G271: =IFERROR(VLOOKUP(M270,'Recherche mots connus'!$C$6:$D$187,2,FALSE),"") ->  | H271: =IFERROR(VLOOKUP(N270,'Recherche mots connus'!$C$6:$D$187,2,FALSE),"") -> 
A273: =A270+1 -> 91 | B273: =VLOOKUP($A273,fréquence!$W$16:$AO$2805,8,FALSE) -> une semaine ; des semaines | C273: =VLOOKUP($A273,fréquence!$W$16:$AO$2805,11,FALSE) -> nom commun | D273: =CONCATENATE(D$1,"-",VLOOKUP($A273,fréquence!$A$16:$V$3371,18,FALSE)) -> CP-95 | E273: =CONCATENATE(E$1,"-",VLOOKUP($A273,fréquence!$A$16:$V$3371,19,FALSE)) -> CE1-220 | F273: =CONCATENATE(F$1,"-",VLOOKUP($A273,fréquence!$A$16:$V$3371,20,FALSE)) -> CE2-604 | G273: =CONCATENATE(G$1,"-",VLOOKUP($A273,fréquence!$A$16:$V$3371,21,FALSE)) -> CM1-1220 | H273: =CONCATENATE(H$1,"-",VLOOKUP($A273,fréquence!$A$16:$V$3371,22,FALSE)) -> CM2-2078 | J273: =IF(O273<>O270,IF(O273<>0,INT((O273-1)/fréquence!$AH$2)+1,""),"") -> 91 | K273: =IF(P273<>P270,IF(P273<>0,INT((P273-1)/fréquence!$AH$3)+1,""),"") ->  | L273: =IF(Q273<>Q270,IF(Q273<>0,INT((Q273-1)/fréquence!$AH$4)+1,""),"") ->  | M273: =IF(R273<>R270,IF(R273<>0,INT((R273-1)/fréquence!$AH$5)+1,""),"") ->  | N273: =IF(S273<>S270,IF(S273<>0,INT((S273-1)/fréquence!$AH$6)+1,""),"") ->  | O273: =IF(AND($A273>=fréquence!$AJ$2,$A273<=fréquence!$AK$2),O270+1,O270) -> 91 | P273: =IF(AND($A273>=fréquence!$AJ$3,$A273<=fréquence!$AK$3),P270+1,P270) -> 0 | Q273: =IF(AND($A273>=fréquence!$AJ$4,$A273<=fréquence!$AK$4),Q270+1,Q270) -> 0 | R273: =IF(AND($A273>=fréquence!$AJ$5,$A273<=fréquence!$AK$5),R270+1,R270) -> 0 | S273: =IF(AND($A273>=fréquence!$AJ$6,$A273<=fréquence!$AK$6),S270+1,S270) -> 0
D274: =IFERROR(VLOOKUP(J273,'Recherche mots connus'!$C$6:$D$187,2,FALSE),"") -> 2016-02-04 | E274: =IFERROR(VLOOKUP(K273,'Recherche mots connus'!$C$6:$D$187,2,FALSE),"") ->  | F274: =IFERROR(VLOOKUP(L273,'Recherche mots connus'!$C$6:$D$187,2,FALSE),"") ->  | G274: =IFERROR(VLOOKUP(M273,'Recherche mots connus'!$C$6:$D$187,2,FALSE),"") ->  | H274: =IFERROR(VLOOKUP(N273,'Recherche mots connus'!$C$6:$D$187,2,FALSE),"") -> 
A276: =A273+1 -> 92 | B276: =VLOOKUP($A276,fréquence!$W$16:$AO$2805,8,FALSE) -> un mois ; des mois | C276: =VLOOKUP($A276,fréquence!$W$16:$AO$2805,11,FALSE) -> nom commun | D276: =CONCATENATE(D$1,"-",VLOOKUP($A276,fréquence!$A$16:$V$3371,18,FALSE)) -> CP-68 | E276: =CONCATENATE(E$1,"-",VLOOKUP($A276,fréquence!$A$16:$V$3371,19,FALSE)) -> CE1-152 | F276: =CONCATENATE(F$1,"-",VLOOKUP($A276,fréquence!$A$16:$V$3371,20,FALSE)) -> CE2-423 | G276: =CONCATENATE(G$1,"-",VLOOKUP($A276,fréquence!$A$16:$V$3371,21,FALSE)) -> CM1-823 | H276: =CONCATENATE(H$1,"-",VLOOKUP($A276,fréquence!$A$16:$V$3371,22,FALSE)) -> CM2-1446 | J276: =IF(O276<>O273,IF(O276<>0,INT((O276-1)/fréquence!$AH$2)+1,""),"") -> 92 | K276: =IF(P276<>P273,IF(P276<>0,INT((P276-1)/fréquence!$AH$3)+1,""),"") ->  | L276: =IF(Q276<>Q273,IF(Q276<>0,INT((Q276-1)/fréquence!$AH$4)+1,""),"") ->  | M276: =IF(R276<>R273,IF(R276<>0,INT((R276-1)/fréquence!$AH$5)+1,""),"") ->  | N276: =IF(S276<>S273,IF(S276<>0,INT((S276-1)/fréquence!$AH$6)+1,""),"") ->  | O276: =IF(AND($A276>=fréquence!$AJ$2,$A276<=fréquence!$AK$2),O273+1,O273) -> 92 | P276: =IF(AND($A276>=fréquence!$AJ$3,$A276<=fréquence!$AK$3),P273+1,P273) -> 0 | Q276: =IF(AND($A276>=fréquence!$AJ$4,$A276<=fréquence!$AK$4),Q273+1,Q273) -> 0 | R276: =IF(AND($A276>=fréquence!$AJ$5,$A276<=fréquence!$AK$5),R273+1,R273) -> 0 | S276: =IF(AND($A276>=fréquence!$AJ$6,$A276<=fréquence!$AK$6),S273+1,S273) -> 0
D277: =IFERROR(VLOOKUP(J276,'Recherche mots connus'!$C$6:$D$187,2,FALSE),"") -> 2016-02-05 | E277: =IFERROR(VLOOKUP(K276,'Recherche mots connus'!$C$6:$D$187,2,FALSE),"") ->  | F277: =IFERROR(VLOOKUP(L276,'Recherche mots connus'!$C$6:$D$187,2,FALSE),"") ->  | G277: =IFERROR(VLOOKUP(M276,'Recherche mots connus'!$C$6:$D$187,2,FALSE),"") ->  | H277: =IFERROR(VLOOKUP(N276,'Recherche mots connus'!$C$6:$D$187,2,FALSE),"") -> 
A279: =A276+1 -> 93 | B279: =VLOOKUP($A279,fréquence!$W$16:$AO$2805,8,FALSE) -> un an ; les ans | C279: =VLOOKUP($A279,fréquence!$W$16:$AO$2805,11,FALSE) -> nom commun | D279: =CONCATENATE(D$1,"-",VLOOKUP($A279,fréquence!$A$16:$V$3371,18,FALSE)) -> CP-3 | E279: =CONCATENATE(E$1,"-",VLOOKUP($A279,fréquence!$A$16:$V$3371,19,FALSE)) -> CE1-5 | F279: =CONCATENATE(F$1,"-",VLOOKUP($A279,fréquence!$A$16:$V$3371,20,FALSE)) -> CE2-10 | G279: =CONCATENATE(G$1,"-",VLOOKUP($A279,fréquence!$A$16:$V$3371,21,FALSE)) -> CM1-31 | H279: =CONCATENATE(H$1,"-",VLOOKUP($A279,fréquence!$A$16:$V$3371,22,FALSE)) -> CM2-75 | J279: =IF(O279<>O276,IF(O279<>0,INT((O279-1)/fréquence!$AH$2)+1,""),"") -> 93 | K279: =IF(P279<>P276,IF(P279<>0,INT((P279-1)/fréquence!$AH$3)+1,""),"") ->  | L279: =IF(Q279<>Q276,IF(Q279<>0,INT((Q279-1)/fréquence!$AH$4)+1,""),"") ->  | M279: =IF(R279<>R276,IF(R279<>0,INT((R279-1)/fréquence!$AH$5)+1,""),"") ->  | N279: =IF(S279<>S276,IF(S279<>0,INT((S279-1)/fréquence!$AH$6)+1,""),"") ->  | O279: =IF(AND($A279>=fréquence!$AJ$2,$A279<=fréquence!$AK$2),O276+1,O276) -> 93 | P279: =IF(AND($A279>=fréquence!$AJ$3,$A279<=fréquence!$AK$3),P276+1,P276) -> 0 | Q279: =IF(AND($A279>=fréquence!$AJ$4,$A279<=fréquence!$AK$4),Q276+1,Q276) -> 0 | R279: =IF(AND($A279>=fréquence!$AJ$5,$A279<=fréquence!$AK$5),R276+1,R276) -> 0 | S279: =IF(AND($A279>=fréquence!$AJ$6,$A279<=fréquence!$AK$6),S276+1,S276) -> 0
D280: =IFERROR(VLOOKUP(J279,'Recherche mots connus'!$C$6:$D$187,2,FALSE),"") -> 2016-02-08 | E280: =IFERROR(VLOOKUP(K279,'Recherche mots connus'!$C$6:$D$187,2,FALSE),"") ->  | F280: =IFERROR(VLOOKUP(L279,'Recherche mots connus'!$C$6:$D$187,2,FALSE),"") ->  | G280: =IFERROR(VLOOKUP(M279,'Recherche mots connus'!$C$6:$D$187,2,FALSE),"") ->  | H280: =IFERROR(VLOOKUP(N279,'Recherche mots connus'!$C$6:$D$187,2,FALSE),"") -> 
A282: =A279+1 -> 94 | B282: =VLOOKUP($A282,fréquence!$W$16:$AO$2805,8,FALSE) -> une ville ; des villes | C282: =VLOOKUP($A282,fréquence!$W$16:$AO$2805,11,FALSE) -> nom commun | D282: =CONCATENATE(D$1,"-",VLOOKUP($A282,fréquence!$A$16:$V$3371,18,FALSE)) -> CP-109 | E282: =CONCATENATE(E$1,"-",VLOOKUP($A282,fréquence!$A$16:$V$3371,19,FALSE)) -> CE1-250 | F282: =CONCATENATE(F$1,"-",VLOOKUP($A282,fréquence!$A$16:$V$3371,20,FALSE)) -> CE2-705 | G282: =CONCATENATE(G$1,"-",VLOOKUP($A282,fréquence!$A$16:$V$3371,21,FALSE)) -> CM1-1421 | H282: =CONCATENATE(H$1,"-",VLOOKUP($A282,fréquence!$A$16:$V$3371,22,FALSE)) -> CM2-2388 | J282: =IF(O282<>O279,IF(O282<>0,INT((O282-1)/fréquence!$AH$2)+1,""),"") -> 94 | K282: =IF(P282<>P279,IF(P282<>0,INT((P282-1)/fréquence!$AH$3)+1,""),"") ->  | L282: =IF(Q282<>Q279,IF(Q282<>0,INT((Q282-1)/fréquence!$AH$4)+1,""),"") ->  | M282: =IF(R282<>R279,IF(R282<>0,INT((R282-1)/fréquence!$AH$5)+1,""),"") ->  | N282: =IF(S282<>S279,IF(S282<>0,INT((S282-1)/fréquence!$AH$6)+1,""),"") ->  | O282: =IF(AND($A282>=fréquence!$AJ$2,$A282<=fréquence!$AK$2),O279+1,O279) -> 94 | P282: =IF(AND($A282>=fréquence!$AJ$3,$A282<=fréquence!$AK$3),P279+1,P279) -> 0 | Q282: =IF(AND($A282>=fréquence!$AJ$4,$A282<=fréquence!$AK$4),Q279+1,Q279) -> 0 | R282: =IF(AND($A282>=fréquence!$AJ$5,$A282<=fréquence!$AK$5),R279+1,R279) -> 0 | S282: =IF(AND($A282>=fréquence!$AJ$6,$A282<=fréquence!$AK$6),S279+1,S279) -> 0
D283: =IFERROR(VLOOKUP(J282,'Recherche mots connus'!$C$6:$D$187,2,FALSE),"") -> 2016-02-09 | E283: =IFERROR(VLOOKUP(K282,'Recherche mots connus'!$C$6:$D$187,2,FALSE),"") ->  | F283: =IFERROR(VLOOKUP(L282,'Recherche mots connus'!$C$6:$D$187,2,FALSE),"") ->  | G283: =IFERROR(VLOOKUP(M282,'Recherche mots connus'!$C$6:$D$187,2,FALSE),"") ->  | H283: =IFERROR(VLOOKUP(N282,'Recherche mots connus'!$C$6:$D$187,2,FALSE),"") -> 
A285: =A282+1 -> 95 | B285: =VLOOKUP($A285,fréquence!$W$16:$AO$2805,8,FALSE) -> la peur ; les peurs | C285: =VLOOKUP($A285,fréquence!$W$16:$AO$2805,11,FALSE) -> nom commun | D285: =CONCATENATE(D$1,"-",VLOOKUP($A285,fréquence!$A$16:$V$3371,18,FALSE)) -> CP-78 | E285: =CONCATENATE(E$1,"-",VLOOKUP($A285,fréquence!$A$16:$V$3371,19,FALSE)) -> CE1-183 | F285: =CONCATENATE(F$1,"-",VLOOKUP($A285,fréquence!$A$16:$V$3371,20,FALSE)) -> CE2-496 | G285: =CONCATENATE(G$1,"-",VLOOKUP($A285,fréquence!$A$16:$V$3371,21,FALSE)) -> CM1-978 | H285: =CONCATENATE(H$1,"-",VLOOKUP($A285,fréquence!$A$16:$V$3371,22,FALSE)) -> CM2-1666 | J285: =IF(O285<>O282,IF(O285<>0,INT((O285-1)/fréquence!$AH$2)+1,""),"") -> 95 | K285: =IF(P285<>P282,IF(P285<>0,INT((P285-1)/fréquence!$AH$3)+1,""),"") ->  | L285: =IF(Q285<>Q282,IF(Q285<>0,INT((Q285-1)/fréquence!$AH$4)+1,""),"") ->  | M285: =IF(R285<>R282,IF(R285<>0,INT((R285-1)/fréquence!$AH$5)+1,""),"") ->  | N285: =IF(S285<>S282,IF(S285<>0,INT((S285-1)/fréquence!$AH$6)+1,""),"") ->  | O285: =IF(AND($A285>=fréquence!$AJ$2,$A285<=fréquence!$AK$2),O282+1,O282) -> 95 | P285: =IF(AND($A285>=fréquence!$AJ$3,$A285<=fréquence!$AK$3),P282+1,P282) -> 0 | Q285: =IF(AND($A285>=fréquence!$AJ$4,$A285<=fréquence!$AK$4),Q282+1,Q282) -> 0 | R285: =IF(AND($A285>=fréquence!$AJ$5,$A285<=fréquence!$AK$5),R282+1,R282) -> 0 | S285: =IF(AND($A285>=fréquence!$AJ$6,$A285<=fréquence!$AK$6),S282+1,S282) -> 0
D286: =IFERROR(VLOOKUP(J285,'Recherche mots connus'!$C$6:$D$187,2,FALSE),"") -> 2016-02-10 | E286: =IFERROR(VLOOKUP(K285,'Recherche mots connus'!$C$6:$D$187,2,FALSE),"") ->  | F286: =IFERROR(VLOOKUP(L285,'Recherche mots connus'!$C$6:$D$187,2,FALSE),"") ->  | G286: =IFERROR(VLOOKUP(M285,'Recherche mots connus'!$C$6:$D$187,2,FALSE),"") ->  | H286: =IFERROR(VLOOKUP(N285,'Recherche mots connus'!$C$6:$D$187,2,FALSE),"") -> 
A288: =A285+1 -> 96 | B288: =VLOOKUP($A288,fréquence!$W$16:$AO$2805,8,FALSE) -> la France | C288: =VLOOKUP($A288,fréquence!$W$16:$AO$2805,11,FALSE) -> nom propre | D288: =CONCATENATE(D$1,"-",VLOOKUP($A288,fréquence!$A$16:$V$3371,18,FALSE)) -> CP-34 | E288: =CONCATENATE(E$1,"-",VLOOKUP($A288,fréquence!$A$16:$V$3371,19,FALSE)) -> CE1-89 | F288: =CONCATENATE(F$1,"-",VLOOKUP($A288,fréquence!$A$16:$V$3371,20,FALSE)) -> CE2-270 | G288: =CONCATENATE(G$1,"-",VLOOKUP($A288,fréquence!$A$16:$V$3371,21,FALSE)) -> CM1-542 | H288: =CONCATENATE(H$1,"-",VLOOKUP($A288,fréquence!$A$16:$V$3371,22,FALSE)) -> CM2-984 | J288: =IF(O288<>O285,IF(O288<>0,INT((O288-1)/fréquence!$AH$2)+1,""),"") -> 96 | K288: =IF(P288<>P285,IF(P288<>0,INT((P288-1)/fréquence!$AH$3)+1,""),"") ->  | L288: =IF(Q288<>Q285,IF(Q288<>0,INT((Q288-1)/fréquence!$AH$4)+1,""),"") ->  | M288: =IF(R288<>R285,IF(R288<>0,INT((R288-1)/fréquence!$AH$5)+1,""),"") ->  | N288: =IF(S288<>S285,IF(S288<>0,INT((S288-1)/fréquence!$AH$6)+1,""),"") ->  | O288: =IF(AND($A288>=fréquence!$AJ$2,$A288<=fréquence!$AK$2),O285+1,O285) -> 96 | P288: =IF(AND($A288>=fréquence!$AJ$3,$A288<=fréquence!$AK$3),P285+1,P285) -> 0 | Q288: =IF(AND($A288>=fréquence!$AJ$4,$A288<=fréquence!$AK$4),Q285+1,Q285) -> 0 | R288: =IF(AND($A288>=fréquence!$AJ$5,$A288<=fréquence!$AK$5),R285+1,R285) -> 0 | S288: =IF(AND($A288>=fréquence!$AJ$6,$A288<=fréquence!$AK$6),S285+1,S285) -> 0
D289: =IFERROR(VLOOKUP(J288,'Recherche mots connus'!$C$6:$D$187,2,FALSE),"") -> 2016-02-11 | E289: =IFERROR(VLOOKUP(K288,'Recherche mots connus'!$C$6:$D$187,2,FALSE),"") ->  | F289: =IFERROR(VLOOKUP(L288,'Recherche mots connus'!$C$6:$D$187,2,FALSE),"") ->  | G289: =IFERROR(VLOOKUP(M288,'Recherche mots connus'!$C$6:$D$187,2,FALSE),"") ->  | H289: =IFERROR(VLOOKUP(N288,'Recherche mots connus'!$C$6:$D$187,2,FALSE),"") -> 
A291: =A288+1 -> 97 | B291: =VLOOKUP($A291,fréquence!$W$16:$AO$2805,8,FALSE) -> jaune ; jaunes | C291: =VLOOKUP($A291,fréquence!$W$16:$AO$2805,11,FALSE) -> adjectif | D291: =CONCATENATE(D$1,"-",VLOOKUP($A291,fréquence!$A$16:$V$3371,18,FALSE)) -> CP-43 | E291: =CONCATENATE(E$1,"-",VLOOKUP($A291,fréquence!$A$16:$V$3371,19,FALSE)) -> CE1-111 | F291: =CONCATENATE(F$1,"-",VLOOKUP($A291,fréquence!$A$16:$V$3371,20,FALSE)) -> CE2-319 | G291: =CONCATENATE(G$1,"-",VLOOKUP($A291,fréquence!$A$16:$V$3371,21,FALSE)) -> CM1-650 | H291: =CONCATENATE(H$1,"-",VLOOKUP($A291,fréquence!$A$16:$V$3371,22,FALSE)) -> CM2-1197 | J291: =IF(O291<>O288,IF(O291<>0,INT((O291-1)/fréquence!$AH$2)+1,""),"") -> 97 | K291: =IF(P291<>P288,IF(P291<>0,INT((P291-1)/fréquence!$AH$3)+1,""),"") ->  | L291: =IF(Q291<>Q288,IF(Q291<>0,INT((Q291-1)/fréquence!$AH$4)+1,""),"") ->  | M291: =IF(R291<>R288,IF(R291<>0,INT((R291-1)/fréquence!$AH$5)+1,""),"") ->  | N291: =IF(S291<>S288,IF(S291<>0,INT((S291-1)/fréquence!$AH$6)+1,""),"") ->  | O291: =IF(AND($A291>=fréquence!$AJ$2,$A291<=fréquence!$AK$2),O288+1,O288) -> 97 | P291: =IF(AND($A291>=fréquence!$AJ$3,$A291<=fréquence!$AK$3),P288+1,P288) -> 0 | Q291: =IF(AND($A291>=fréquence!$AJ$4,$A291<=fréquence!$AK$4),Q288+1,Q288) -> 0 | R291: =IF(AND($A291>=fréquence!$AJ$5,$A291<=fréquence!$AK$5),R288+1,R288) -> 0 | S291: =IF(AND($A291>=fréquence!$AJ$6,$A291<=fréquence!$AK$6),S288+1,S288) -> 0
D292: =IFERROR(VLOOKUP(J291,'Recherche mots connus'!$C$6:$D$187,2,FALSE),"") -> 2016-02-12 | E292: =IFERROR(VLOOKUP(K291,'Recherche mots connus'!$C$6:$D$187,2,FALSE),"") ->  | F292: =IFERROR(VLOOKUP(L291,'Recherche mots connus'!$C$6:$D$187,2,FALSE),"") ->  | G292: =IFERROR(VLOOKUP(M291,'Recherche mots connus'!$C$6:$D$187,2,FALSE),"") ->  | H292: =IFERROR(VLOOKUP(N291,'Recherche mots connus'!$C$6:$D$187,2,FALSE),"") -> 
A294: =A291+1 -> 98 | B294: =VLOOKUP($A294,fréquence!$W$16:$AO$2805,8,FALSE) -> une rose ; des roses | C294: =VLOOKUP($A294,fréquence!$W$16:$AO$2805,11,FALSE) -> nom commun | D294: =CONCATENATE(D$1,"-",VLOOKUP($A294,fréquence!$A$16:$V$3371,18,FALSE)) -> CP-87 | E294: =CONCATENATE(E$1,"-",VLOOKUP($A294,fréquence!$A$16:$V$3371,19,FALSE)) -> CE1-210 | F294: =CONCATENATE(F$1,"-",VLOOKUP($A294,fréquence!$A$16:$V$3371,20,FALSE)) -> CE2-584 | G294: =CONCATENATE(G$1,"-",VLOOKUP($A294,fréquence!$A$16:$V$3371,21,FALSE)) -> CM1-1174 | H294: =CONCATENATE(H$1,"-",VLOOKUP($A294,fréquence!$A$16:$V$3371,22,FALSE)) -> CM2-2008 | J294: =IF(O294<>O291,IF(O294<>0,INT((O294-1)/fréquence!$AH$2)+1,""),"") -> 98 | K294: =IF(P294<>P291,IF(P294<>0,INT((P294-1)/fréquence!$AH$3)+1,""),"") ->  | L294: =IF(Q294<>Q291,IF(Q294<>0,INT((Q294-1)/fréquence!$AH$4)+1,""),"") ->  | M294: =IF(R294<>R291,IF(R294<>0,INT((R294-1)/fréquence!$AH$5)+1,""),"") ->  | N294: =IF(S294<>S291,IF(S294<>0,INT((S294-1)/fréquence!$AH$6)+1,""),"") ->  | O294: =IF(AND($A294>=fréquence!$AJ$2,$A294<=fréquence!$AK$2),O291+1,O291) -> 98 | P294: =IF(AND($A294>=fréquence!$AJ$3,$A294<=fréquence!$AK$3),P291+1,P291) -> 0 | Q294: =IF(AND($A294>=fréquence!$AJ$4,$A294<=fréquence!$AK$4),Q291+1,Q291) -> 0 | R294: =IF(AND($A294>=fréquence!$AJ$5,$A294<=fréquence!$AK$5),R291+1,R291) -> 0 | S294: =IF(AND($A294>=fréquence!$AJ$6,$A294<=fréquence!$AK$6),S291+1,S291) -> 0
D295: =IFERROR(VLOOKUP(J294,'Recherche mots connus'!$C$6:$D$187,2,FALSE),"") -> 2016-02-15 | E295: =IFERROR(VLOOKUP(K294,'Recherche mots connus'!$C$6:$D$187,2,FALSE),"") ->  | F295: =IFERROR(VLOOKUP(L294,'Recherche mots connus'!$C$6:$D$187,2,FALSE),"") ->  | G295: =IFERROR(VLOOKUP(M294,'Recherche mots connus'!$C$6:$D$187,2,FALSE),"") ->  | H295: =IFERROR(VLOOKUP(N294,'Recherche mots connus'!$C$6:$D$187,2,FALSE),"") -> 
A297: =A294+1 -> 99 | B297: =VLOOKUP($A297,fréquence!$W$16:$AO$2805,8,FALSE) -> ensuite | C297: =VLOOKUP($A297,fréquence!$W$16:$AO$2805,11,FALSE) -> adverbe | D297: =CONCATENATE(D$1,"-",VLOOKUP($A297,fréquence!$A$16:$V$3371,18,FALSE)) -> CP-28 | E297: =CONCATENATE(E$1,"-",VLOOKUP($A297,fréquence!$A$16:$V$3371,19,FALSE)) -> CE1-74 | F297: =CONCATENATE(F$1,"-",VLOOKUP($A297,fréquence!$A$16:$V$3371,20,FALSE)) -> CE2-215 | G297: =CONCATENATE(G$1,"-",VLOOKUP($A297,fréquence!$A$16:$V$3371,21,FALSE)) -> CM1-445 | H297: =CONCATENATE(H$1,"-",VLOOKUP($A297,fréquence!$A$16:$V$3371,22,FALSE)) -> CM2-793 | J297: =IF(O297<>O294,IF(O297<>0,INT((O297-1)/fréquence!$AH$2)+1,""),"") -> 99 | K297: =IF(P297<>P294,IF(P297<>0,INT((P297-1)/fréquence!$AH$3)+1,""),"") ->  | L297: =IF(Q297<>Q294,IF(Q297<>0,INT((Q297-1)/fréquence!$AH$4)+1,""),"") ->  | M297: =IF(R297<>R294,IF(R297<>0,INT((R297-1)/fréquence!$AH$5)+1,""),"") ->  | N297: =IF(S297<>S294,IF(S297<>0,INT((S297-1)/fréquence!$AH$6)+1,""),"") ->  | O297: =IF(AND($A297>=fréquence!$AJ$2,$A297<=fréquence!$AK$2),O294+1,O294) -> 99 | P297: =IF(AND($A297>=fréquence!$AJ$3,$A297<=fréquence!$AK$3),P294+1,P294) -> 0 | Q297: =IF(AND($A297>=fréquence!$AJ$4,$A297<=fréquence!$AK$4),Q294+1,Q294) -> 0 | R297: =IF(AND($A297>=fréquence!$AJ$5,$A297<=fréquence!$AK$5),R294+1,R294) -> 0 | S297: =IF(AND($A297>=fréquence!$AJ$6,$A297<=fréquence!$AK$6),S294+1,S294) -> 0
D298: =IFERROR(VLOOKUP(J297,'Recherche mots connus'!$C$6:$D$187,2,FALSE),"") -> 2016-02-16 | E298: =IFERROR(VLOOKUP(K297,'Recherche mots connus'!$C$6:$D$187,2,FALSE),"") ->  | F298: =IFERROR(VLOOKUP(L297,'Recherche mots connus'!$C$6:$D$187,2,FALSE),"") ->  | G298: =IFERROR(VLOOKUP(M297,'Recherche mots connus'!$C$6:$D$187,2,FALSE),"") ->  | H298: =IFERROR(VLOOKUP(N297,'Recherche mots connus'!$C$6:$D$187,2,FALSE),"") -> 
A300: =A297+1 -> 100 | B300: =VLOOKUP($A300,fréquence!$W$16:$AO$2805,8,FALSE) -> mais | C300: =VLOOKUP($A300,fréquence!$W$16:$AO$2805,11,FALSE) -> adverbe | D300: =CONCATENATE(D$1,"-",VLOOKUP($A300,fréquence!$A$16:$V$3371,18,FALSE)) -> CP-57 | E300: =CONCATENATE(E$1,"-",VLOOKUP($A300,fréquence!$A$16:$V$3371,19,FALSE)) -> CE1-135 | F300: =CONCATENATE(F$1,"-",VLOOKUP($A300,fréquence!$A$16:$V$3371,20,FALSE)) -> CE2-381 | G300: =CONCATENATE(G$1,"-",VLOOKUP($A300,fréquence!$A$16:$V$3371,21,FALSE)) -> CM1-743 | H300: =CONCATENATE(H$1,"-",VLOOKUP($A300,fréquence!$A$16:$V$3371,22,FALSE)) -> CM2-1324 | J300: =IF(O300<>O297,IF(O300<>0,INT((O300-1)/fréquence!$AH$2)+1,""),"") -> 100 | K300: =IF(P300<>P297,IF(P300<>0,INT((P300-1)/fréquence!$AH$3)+1,""),"") ->  | L300: =IF(Q300<>Q297,IF(Q300<>0,INT((Q300-1)/fréquence!$AH$4)+1,""),"") ->  | M300: =IF(R300<>R297,IF(R300<>0,INT((R300-1)/fréquence!$AH$5)+1,""),"") ->  | N300: =IF(S300<>S297,IF(S300<>0,INT((S300-1)/fréquence!$AH$6)+1,""),"") ->  | O300: =IF(AND($A300>=fréquence!$AJ$2,$A300<=fréquence!$AK$2),O297+1,O297) -> 100 | P300: =IF(AND($A300>=fréquence!$AJ$3,$A300<=fréquence!$AK$3),P297+1,P297) -> 0 | Q300: =IF(AND($A300>=fréquence!$AJ$4,$A300<=fréquence!$AK$4),Q297+1,Q297) -> 0 | R300: =IF(AND($A300>=fréquence!$AJ$5,$A300<=fréquence!$AK$5),R297+1,R297) -> 0 | S300: =IF(AND($A300>=fréquence!$AJ$6,$A300<=fréquence!$AK$6),S297+1,S297) -> 0
... 2797 more rows

Sheet Dictée de mots
A1: 3 | B1: =A1 -> 3 | D1: =VLOOKUP('Dictée de mots'!B1,fréquence!AF2:AG8,2,FALSE) -> CE2 | E1: semaine | G1: 1 | J1: =CONCATENATE("Niveau : ",fréquence!AG1) -> Niveau : 1
A2: =VLOOKUP($G$1,Calendrier!$B$38:$AD$83,5,FALSE) -> 0 | B2: =VLOOKUP($G$1,Calendrier!$B$38:$AD$83,4,FALSE) -> 0 | C2: =CONCATENATE("Mots à apprendre ",$D$1) -> Mots à apprendre CE2 | H2: =CONCATENATE("Dictée de mots ",$D$1) -> Dictée de mots CE2
A3: =VLOOKUP(A2,'Recherche mots connus'!$A$6:$Q$161,17,FALSE) -> 
A4: =INT(VLOOKUP(A2,'Recherche mots connus'!$A$6:$Q$161,17,FALSE)) ->  | B4: =IF(MOD(2*A3,2)=0,1,2) ->  | D4: pour le | E4: =VLOOKUP(G1,Calendrier!$B$38:$D$83,3,FALSE) -> 2015-08-31 | I4: =E4 -> 2015-08-31
B5: colonne
D6: =CONCATENATE("Revoir tous les mots de la colonne ",B4," de la page ",A4) ->  | J6: =D6 -> 
A8: =IF(B8="o",0+VLOOKUP($D$1,fréquence!$AG$2:$AL$6,4,FALSE)+VLOOKUP($D$1,fréquence!$AG$2:$AH$6,2,FALSE)*(A2-1),"") ->  | B8: =IF(AND(VLOOKUP($D$1,fréquence!$AG$2:$AH$6,2,FALSE)>=1,B2=1),"o","n") -> n | D8: =IF(B8="o",VLOOKUP(A8,fréquence!$A$16:$V$3371,VLOOKUP('Dictée de mots'!$D$1,fréquence!$AG$2:$AO$6,9,FALSE)+17,FALSE),"") ->  | E8: =IF(B8="o",VLOOKUP(A8,fréquence!$A$16:$AE$3371,27+IF(VLOOKUP($D$1,fréquence!$AG$2:$AN$6,6,FALSE)=1,1,3),FALSE),"") ->  | I8: Mot 1: | J8: =E8 -> 
A10: =IF(B10="o",1+VLOOKUP($D$1,fréquence!$AG$2:$AL$6,4,FALSE)+VLOOKUP($D$1,fréquence!$AG$2:$AH$6,2,FALSE)*(A2-1),"") ->  | B10: =IF(AND(VLOOKUP($D$1,fréquence!$AG$2:$AH$6,2,FALSE)>=2,B2=1),"o","n") -> n | D10: =IF(B10="o",VLOOKUP(A10,fréquence!$A$16:$V$3371,VLOOKUP('Dictée de mots'!$D$1,fréquence!$AG$2:$AO$6,9,FALSE)+17,FALSE),"") ->  | E10: =IF(B10="o",VLOOKUP(A10,fréquence!$A$16:$AE$3371,27+IF(VLOOKUP($D$1,fréquence!$AG$2:$AN$6,6,FALSE)=1,1,3),FALSE),"") ->  | I10: Mot 2: | J10: =IF(B10="o",E10,VLOOKUP($A2,'Recherche mots connus'!$FG$6:$FQ$176,10,FALSE)) -> 
A12: =IF(B12="o",2+VLOOKUP($D$1,fréquence!$AG$2:$AL$6,4,FALSE)+VLOOKUP($D$1,fréquence!$AG$2:$AH$6,2,FALSE)*(A2-1),"") ->  | B12: =IF(AND(VLOOKUP($D$1,fréquence!$AG$2:$AH$6,2,FALSE)>=3,B2=1),"o","n") -> n | D12: =IF(B12="o",VLOOKUP(A12,fréquence!$A$16:$V$3371,VLOOKUP('Dictée de mots'!$D$1,fréquence!$AG$2:$AO$6,9,FALSE)+17,FALSE),"") ->  | E12: =IF(B12="o",VLOOKUP(A12,fréquence!$A$16:$AE$3371,27+IF(VLOOKUP($D$1,fréquence!$AG$2:$AN$6,6,FALSE)=1,1,3),FALSE),"") ->  | I12: Mot 3: | J12: =IF(B12="o",E12,VLOOKUP($A2,'Recherche mots connus'!$FG$6:$FQ$176,9,FALSE)) -> 
A14: =IF(B14="o",3+VLOOKUP($D$1,fréquence!$AG$2:$AL$6,4,FALSE)+VLOOKUP($D$1,fréquence!$AG$2:$AH$6,2,FALSE)*(A2-1),"") ->  | B14: =IF(AND(VLOOKUP($D$1,fréquence!$AG$2:$AH$6,2,FALSE)>=4,B2=1),"o","n") -> n | D14: =IF(B14="o",VLOOKUP(A14,fréquence!$A$16:$V$3371,VLOOKUP('Dictée de mots'!$D$1,fréquence!$AG$2:$AO$6,9,FALSE)+17,FALSE),"") ->  | E14: =IF(B14="o",VLOOKUP(A14,fréquence!$A$16:$AE$3371,27+IF(VLOOKUP($D$1,fréquence!$AG$2:$AN$6,6,FALSE)=1,1,3),FALSE),"") ->  | I14: Mot 4: | J14: =IF(B14="o",E14,VLOOKUP($A2,'Recherche mots connus'!$FG$6:$FQ$176,8,FALSE)) -> 
A16: =IF(B16="o",4+VLOOKUP($D$1,fréquence!$AG$2:$AL$6,4,FALSE)+VLOOKUP($D$1,fréquence!$AG$2:$AH$6,2,FALSE)*(A2-1),"") ->  | B16: =IF(AND(VLOOKUP($D$1,fréquence!$AG$2:$AH$6,2,FALSE)>=5,B2=1),"o","n") -> n | D16: =IF(B16="o",VLOOKUP(A16,fréquence!$A$16:$V$3371,VLOOKUP('Dictée de mots'!$D$1,fréquence!$AG$2:$AO$6,9,FALSE)+17,FALSE),"") ->  | E16: =IF(B16="o",VLOOKUP(A16,fréquence!$A$16:$AE$3371,27+IF(VLOOKUP($D$1,fréquence!$AG$2:$AN$6,6,FALSE)=1,1,3),FALSE),"") ->  | I16: Mot 5: | J16: =IF(B16="o",E16,VLOOKUP($A2,'Recherche mots connus'!$FG$6:$FQ$176,7,FALSE)) -> 
A18: =IF(B18="o",5+VLOOKUP($D$1,fréquence!$AG$2:$AL$6,4,FALSE)+VLOOKUP($D$1,fréquence!$AG$2:$AH$6,2,FALSE)*(A2-1),"") ->  | B18: =IF(AND(VLOOKUP($D$1,fréquence!$AG$2:$AH$6,2,FALSE)>=6,B2=1),"o","n") -> n | D18: =IF(B18="o",VLOOKUP(A18,fréquence!$A$16:$V$3371,VLOOKUP('Dictée de mots'!$D$1,fréquence!$AG$2:$AO$6,9,FALSE)+17,FALSE),"") ->  | E18: =IF(B18="o",VLOOKUP(A18,fréquence!$A$16:$AE$3371,27+IF(VLOOKUP($D$1,fréquence!$AG$2:$AN$6,6,FALSE)=1,1,3),FALSE),"") ->  | I18: Mot 6: | J18: =IF(B18="o",E18,VLOOKUP($A2,'Recherche mots connus'!$FG$6:$FQ$176,6,FALSE)) -> 
A20: =IF(B20="o",6+VLOOKUP($D$1,fréquence!$AG$2:$AL$6,4,FALSE)+VLOOKUP($D$1,fréquence!$AG$2:$AH$6,2,FALSE)*(A2-1),"") ->  | B20: =IF(AND(VLOOKUP($D$1,fréquence!$AG$2:$AH$6,2,FALSE)>=7,B2=1),"o","n") -> n | D20: =IF(B20="o",VLOOKUP(A20,fréquence!$A$16:$V$3371,VLOOKUP('Dictée de mots'!$D$1,fréquence!$AG$2:$AO$6,9,FALSE)+17,FALSE),"") ->  | E20: =IF(B20="o",VLOOKUP(A20,fréquence!$A$16:$AE$3371,27+IF(VLOOKUP($D$1,fréquence!$AG$2:$AN$6,6,FALSE)=1,1,3),FALSE),"") ->  | I20: Mot 7: | J20: =IF(B20="o",E20,VLOOKUP($A2,'Recherche mots connus'!$FG$6:$FQ$176,5,FALSE)) -> 
A22: =IF(B22="o",7+VLOOKUP($D$1,fréquence!$AG$2:$AL$6,4,FALSE)+VLOOKUP($D$1,fréquence!$AG$2:$AH$6,2,FALSE)*(A4-1),"") ->  | B22: =IF(AND(VLOOKUP($D$1,fréquence!$AG$2:$AH$6,2,FALSE)>=8,B2=1),"o","n") -> n | D22: =IF(B22="o",VLOOKUP(A22,fréquence!$A$16:$V$3371,VLOOKUP('Dictée de mots'!$D$1,fréquence!$AG$2:$AO$6,9,FALSE)+17,FALSE),"") ->  | E22: =IF(B22="o",VLOOKUP(A22,fréquence!$A$16:$AE$3371,27+IF(VLOOKUP($D$1,fréquence!$AG$2:$AN$6,6,FALSE)=1,1,3),FALSE),"") ->  | I22: Mot 8: | J22: =IF(B22="o",E22,VLOOKUP($A2,'Recherche mots connus'!$FG$6:$FQ$176,4,FALSE)) -> 
A24: =IF(B24="o",8+VLOOKUP($D$1,fréquence!$AG$2:$AL$6,4,FALSE)+VLOOKUP($D$1,fréquence!$AG$2:$AH$6,2,FALSE)*(A6-1),"") ->  | B24: =IF(AND(VLOOKUP($D$1,fréquence!$AG$2:$AH$6,2,FALSE)>=9,B2=1),"o","n") -> n | D24: =IF(B24="o",VLOOKUP(A24,fréquence!$A$16:$V$3371,VLOOKUP('Dictée de mots'!$D$1,fréquence!$AG$2:$AO$6,9,FALSE)+17,FALSE),"") ->  | E24: =IF(B24="o",VLOOKUP(A24,fréquence!$A$16:$AE$3371,27+IF(VLOOKUP($D$1,fréquence!$AG$2:$AN$6,6,FALSE)=1,1,3),FALSE),"") ->  | I24: Mot 9: | J24: =IF(B24="o",E24,VLOOKUP($A2,'Recherche mots connus'!$FG$6:$FQ$176,3,FALSE)) -> 
A26: =IF(B26="o",9+VLOOKUP($D$1,fréquence!$AG$2:$AL$6,4,FALSE)+VLOOKUP($D$1,fréquence!$AG$2:$AH$6,2,FALSE)*(A8-1),"") ->  | B26: =IF(AND(VLOOKUP($D$1,fréquence!$AG$2:$AH$6,2,FALSE)>=10,B2=1),"o","n") -> n | D26: =IF(B26="o",VLOOKUP(A26,fréquence!$A$16:$V$3371,VLOOKUP('Dictée de mots'!$D$1,fréquence!$AG$2:$AO$6,9,FALSE)+17,FALSE),"") ->  | E26: =IF(B26="o",VLOOKUP(A26,fréquence!$A$16:$AE$3371,27+IF(VLOOKUP($D$1,fréquence!$AG$2:$AN$6,6,FALSE)=1,1,3),FALSE),"") ->  | I26: Mot 10: | J26: =IF(B26="o",E26,VLOOKUP($A2,'Recherche mots connus'!$FG$6:$FQ$176,2,FALSE)) -> 
A29: =VLOOKUP($G$1,Calendrier!$B$38:$AD$83,12,FALSE) -> 0 | B29: =VLOOKUP($G$1,Calendrier!$B$38:$AD$83,11,FALSE) -> 2 | C29: =CONCATENATE("Mots à apprendre ",$D$1) -> Mots à apprendre CE2 | H29: =CONCATENATE("Dictée de mots ",$D$1) -> Dictée de mots CE2
A30: =VLOOKUP(A29,'Recherche mots connus'!$A$6:$Q$161,17,FALSE) -> 
A31: =INT(VLOOKUP(A29,'Recherche mots connus'!$A$6:$Q$161,17,FALSE)) ->  | B31: =IF(MOD(2*A30,2)=0,1,2) ->  | D31: pour le | E31: =E4+1 -> 2015-09-01 | I31: =E31 -> 2015-09-01
B32: colonne
D33: =CONCATENATE("Revoir tous les mots de la colonne ",B31," de la page ",A31) ->  | J33: =D33 -> 
A35: =IF(B35="o",0+VLOOKUP($D$1,fréquence!$AG$2:$AL$6,4,FALSE)+VLOOKUP($D$1,fréquence!$AG$2:$AH$6,2,FALSE)*(A29-1),"") ->  | B35: =IF(AND(VLOOKUP($D$1,fréquence!$AG$2:$AH$6,2,FALSE)>=1,B29=1),"o","n") -> n | D35: =IF(B35="o",VLOOKUP(A35,fréquence!$A$16:$V$3371,VLOOKUP('Dictée de mots'!$D$1,fréquence!$AG$2:$AO$6,9,FALSE)+17,FALSE),"") ->  | E35: =IF(B35="o",VLOOKUP(A35,fréquence!$A$16:$AE$3371,27+IF(VLOOKUP($D$1,fréquence!$AG$2:$AN$6,6,FALSE)=1,1,3),FALSE),"") ->  | I35: Mot 1: | J35: =E35 -> 
A37: =IF(B37="o",1+VLOOKUP($D$1,fréquence!$AG$2:$AL$6,4,FALSE)+VLOOKUP($D$1,fréquence!$AG$2:$AH$6,2,FALSE)*(A29-1),"") ->  | B37: =IF(AND(VLOOKUP($D$1,fréquence!$AG$2:$AH$6,2,FALSE)>=2,B29=1),"o","n") -> n | D37: =IF(B37="o",VLOOKUP(A37,fréquence!$A$16:$V$3371,VLOOKUP('Dictée de mots'!$D$1,fréquence!$AG$2:$AO$6,9,FALSE)+17,FALSE),"") ->  | E37: =IF(B37="o",VLOOKUP(A37,fréquence!$A$16:$AE$3371,27+IF(VLOOKUP($D$1,fréquence!$AG$2:$AN$6,6,FALSE)=1,1,3),FALSE),"") ->  | I37: Mot 2: | J37: =IF(B37="o",E37,VLOOKUP($A29,'Recherche mots connus'!$FG$6:$FQ$176,10,FALSE)) -> 
A39: =IF(B39="o",2+VLOOKUP($D$1,fréquence!$AG$2:$AL$6,4,FALSE)+VLOOKUP($D$1,fréquence!$AG$2:$AH$6,2,FALSE)*(A29-1),"") ->  | B39: =IF(AND(VLOOKUP($D$1,fréquence!$AG$2:$AH$6,2,FALSE)>=3,B29=1),"o","n") -> n | D39: =IF(B39="o",VLOOKUP(A39,fréquence!$A$16:$V$3371,VLOOKUP('Dictée de mots'!$D$1,fréquence!$AG$2:$AO$6,9,FALSE)+17,FALSE),"") ->  | E39: =IF(B39="o",VLOOKUP(A39,fréquence!$A$16:$AE$3371,27+IF(VLOOKUP($D$1,fréquence!$AG$2:$AN$6,6,FALSE)=1,1,3),FALSE),"") ->  | I39: Mot 3: | J39: =IF(B39="o",E39,VLOOKUP($A29,'Recherche mots connus'!$FG$6:$FQ$176,9,FALSE)) -> 
A41: =IF(B41="o",3+VLOOKUP($D$1,fréquence!$AG$2:$AL$6,4,FALSE)+VLOOKUP($D$1,fréquence!$AG$2:$AH$6,2,FALSE)*(A29-1),"") ->  | B41: =IF(AND(VLOOKUP($D$1,fréquence!$AG$2:$AH$6,2,FALSE)>=4,B29=1),"o","n") -> n | D41: =IF(B41="o",VLOOKUP(A41,fréquence!$A$16:$V$3371,VLOOKUP('Dictée de mots'!$D$1,fréquence!$AG$2:$AO$6,9,FALSE)+17,FALSE),"") ->  | E41: =IF(B41="o",VLOOKUP(A41,fréquence!$A$16:$AE$3371,27+IF(VLOOKUP($D$1,fréquence!$AG$2:$AN$6,6,FALSE)=1,1,3),FALSE),"") ->  | I41: Mot 4: | J41: =IF(B41="o",E41,VLOOKUP($A29,'Recherche mots connus'!$FG$6:$FQ$176,8,FALSE)) -> 
A43: =IF(B43="o",4+VLOOKUP($D$1,fréquence!$AG$2:$AL$6,4,FALSE)+VLOOKUP($D$1,fréquence!$AG$2:$AH$6,2,FALSE)*(A29-1),"") ->  | B43: =IF(AND(VLOOKUP($D$1,fréquence!$AG$2:$AH$6,2,FALSE)>=5,B29=1),"o","n") -> n | D43: =IF(B43="o",VLOOKUP(A43,fréquence!$A$16:$V$3371,VLOOKUP('Dictée de mots'!$D$1,fréquence!$AG$2:$AO$6,9,FALSE)+17,FALSE),"") ->  | E43: =IF(B43="o",VLOOKUP(A43,fréquence!$A$16:$AE$3371,27+IF(VLOOKUP($D$1,fréquence!$AG$2:$AN$6,6,FALSE)=1,1,3),FALSE),"") ->  | I43: Mot 5: | J43: =IF(B43="o",E43,VLOOKUP($A29,'Recherche mots connus'!$FG$6:$FQ$176,7,FALSE)) -> 
A45: =IF(B45="o",5+VLOOKUP($D$1,fréquence!$AG$2:$AL$6,4,FALSE)+VLOOKUP($D$1,fréquence!$AG$2:$AH$6,2,FALSE)*(A29-1),"") ->  | B45: =IF(AND(VLOOKUP($D$1,fréquence!$AG$2:$AH$6,2,FALSE)>=6,B29=1),"o","n") -> n | D45: =IF(B45="o",VLOOKUP(A45,fréquence!$A$16:$V$3371,VLOOKUP('Dictée de mots'!$D$1,fréquence!$AG$2:$AO$6,9,FALSE)+17,FALSE),"") ->  | E45: =IF(B45="o",VLOOKUP(A45,fréquence!$A$16:$AE$3371,27+IF(VLOOKUP($D$1,fréquence!$AG$2:$AN$6,6,FALSE)=1,1,3),FALSE),"") ->  | I45: Mot 6: | J45: =IF(B45="o",E45,VLOOKUP($A29,'Recherche mots connus'!$FG$6:$FQ$176,6,FALSE)) -> 
A47: =IF(B47="o",6+VLOOKUP($D$1,fréquence!$AG$2:$AL$6,4,FALSE)+VLOOKUP($D$1,fréquence!$AG$2:$AH$6,2,FALSE)*(A29-1),"") ->  | B47: =IF(AND(VLOOKUP($D$1,fréquence!$AG$2:$AH$6,2,FALSE)>=7,B29=1),"o","n") -> n | D47: =IF(B47="o",VLOOKUP(A47,fréquence!$A$16:$V$3371,VLOOKUP('Dictée de mots'!$D$1,fréquence!$AG$2:$AO$6,9,FALSE)+17,FALSE),"") ->  | E47: =IF(B47="o",VLOOKUP(A47,fréquence!$A$16:$AE$3371,27+IF(VLOOKUP($D$1,fréquence!$AG$2:$AN$6,6,FALSE)=1,1,3),FALSE),"") ->  | I47: Mot 7: | J47: =IF(B47="o",E47,VLOOKUP($A29,'Recherche mots connus'!$FG$6:$FQ$176,5,FALSE)) -> 
A49: =IF(B49="o",7+VLOOKUP($D$1,fréquence!$AG$2:$AL$6,4,FALSE)+VLOOKUP($D$1,fréquence!$AG$2:$AH$6,2,FALSE)*(A31-1),"") ->  | B49: =IF(AND(VLOOKUP($D$1,fréquence!$AG$2:$AH$6,2,FALSE)>=8,B29=1),"o","n") -> n | D49: =IF(B49="o",VLOOKUP(A49,fréquence!$A$16:$V$3371,VLOOKUP('Dictée de mots'!$D$1,fréquence!$AG$2:$AO$6,9,FALSE)+17,FALSE),"") ->  | E49: =IF(B49="o",VLOOKUP(A49,fréquence!$A$16:$AE$3371,27+IF(VLOOKUP($D$1,fréquence!$AG$2:$AN$6,6,FALSE)=1,1,3),FALSE),"") ->  | I49: Mot 8: | J49: =IF(B49="o",E49,VLOOKUP($A29,'Recherche mots connus'!$FG$6:$FQ$176,4,FALSE)) -> 
A51: =IF(B51="o",8+VLOOKUP($D$1,fréquence!$AG$2:$AL$6,4,FALSE)+VLOOKUP($D$1,fréquence!$AG$2:$AH$6,2,FALSE)*(A33-1),"") ->  | B51: =IF(AND(VLOOKUP($D$1,fréquence!$AG$2:$AH$6,2,FALSE)>=9,B29=1),"o","n") -> n | D51: =IF(B51="o",VLOOKUP(A51,fréquence!$A$16:$V$3371,VLOOKUP('Dictée de mots'!$D$1,fréquence!$AG$2:$AO$6,9,FALSE)+17,FALSE),"") ->  | E51: =IF(B51="o",VLOOKUP(A51,fréquence!$A$16:$AE$3371,27+IF(VLOOKUP($D$1,fréquence!$AG$2:$AN$6,6,FALSE)=1,1,3),FALSE),"") ->  | I51: Mot 9: | J51: =IF(B51="o",E51,VLOOKUP($A29,'Recherche mots connus'!$FG$6:$FQ$176,3,FALSE)) -> 
A53: =IF(B53="o",9+VLOOKUP($D$1,fréquence!$AG$2:$AL$6,4,FALSE)+VLOOKUP($D$1,fréquence!$AG$2:$AH$6,2,FALSE)*(A35-1),"") ->  | B53: =IF(AND(VLOOKUP($D$1,fréquence!$AG$2:$AH$6,2,FALSE)>=10,B29=1),"o","n") -> n | D53: =IF(B53="o",VLOOKUP(A53,fréquence!$A$16:$V$3371,VLOOKUP('Dictée de mots'!$D$1,fréquence!$AG$2:$AO$6,9,FALSE)+17,FALSE),"") ->  | E53: =IF(B53="o",VLOOKUP(A53,fréquence!$A$16:$AE$3371,27+IF(VLOOKUP($D$1,fréquence!$AG$2:$AN$6,6,FALSE)=1,1,3),FALSE),"") ->  | I53: Mot 10: | J53: =IF(B53="o",E53,VLOOKUP($A29,'Recherche mots connus'!$FG$6:$FQ$176,2,FALSE)) -> 
A56: =VLOOKUP($G$1,Calendrier!$B$38:$AD$83,19,FALSE) -> 1 | B56: =VLOOKUP($G$1,Calendrier!$B$38:$AD$83,18,FALSE) -> 1 | C56: =CONCATENATE("Mots à apprendre ",$D$1) -> Mots à apprendre CE2 | H56: =CONCATENATE("Dictée de mots ",$D$1) -> Dictée de mots CE2
A57: =VLOOKUP(A56,'Recherche mots connus'!$A$6:$Q$161,17,FALSE) -> 3
A58: =INT(VLOOKUP(A56,'Recherche mots connus'!$A$6:$Q$161,17,FALSE)) -> 3 | B58: =IF(MOD(2*A57,2)=0,1,2) -> 1 | D58: pour le | E58: =E31+1 -> 2015-09-02 | I58: =E58 -> 2015-09-02
B59: colonne
D60: =CONCATENATE("Revoir tous les mots de la colonne ",B58," de la page ",A58) -> Revoir tous les mots de la colonne 1 de la page 3 | J60: =D60 -> Revoir tous les mots de la colonne 1 de la page 3
A62: =IF(B62="o",0+VLOOKUP($D$1,fréquence!$AG$2:$AL$6,4,FALSE)+VLOOKUP($D$1,fréquence!$AG$2:$AH$6,2,FALSE)*(A56-1),"") -> 254 | B62: =IF(AND(VLOOKUP($D$1,fréquence!$AG$2:$AH$6,2,FALSE)>=1,B56=1),"o","n") -> o | D62: =IF(B62="o",VLOOKUP(A62,fréquence!$A$16:$V$3371,VLOOKUP('Dictée de mots'!$D$1,fréquence!$AG$2:$AO$6,9,FALSE)+17,FALSE),"") -> 55 | E62: =IF(B62="o",VLOOKUP(A62,fréquence!$A$16:$AE$3371,27+IF(VLOOKUP($D$1,fréquence!$AG$2:$AN$6,6,FALSE)=1,1,3),FALSE),"") -> bon ; bonne ; bons ; bonnes | I62: Mot 1: | J62: =E62 -> bon ; bonne ; bons ; bonnes
A64: =IF(B64="o",1+VLOOKUP($D$1,fréquence!$AG$2:$AL$6,4,FALSE)+VLOOKUP($D$1,fréquence!$AG$2:$AH$6,2,FALSE)*(A56-1),"") -> 255 | B64: =IF(AND(VLOOKUP($D$1,fréquence!$AG$2:$AH$6,2,FALSE)>=2,B56=1),"o","n") -> o | D64: =IF(B64="o",VLOOKUP(A64,fréquence!$A$16:$V$3371,VLOOKUP('Dictée de mots'!$D$1,fréquence!$AG$2:$AO$6,9,FALSE)+17,FALSE),"") -> 700 | E64: =IF(B64="o",VLOOKUP(A64,fréquence!$A$16:$AE$3371,27+IF(VLOOKUP($D$1,fréquence!$AG$2:$AN$6,6,FALSE)=1,1,3),FALSE),"") -> la vie ; les vies | I64: Mot 2: | J64: =IF(B64="o",E64,VLOOKUP($A56,'Recherche mots connus'!$FG$6:$FQ$176,10,FALSE)) -> la vie ; les vies
A66: =IF(B66="o",2+VLOOKUP($D$1,fréquence!$AG$2:$AL$6,4,FALSE)+VLOOKUP($D$1,fréquence!$AG$2:$AH$6,2,FALSE)*(A56-1),"") -> 256 | B66: =IF(AND(VLOOKUP($D$1,fréquence!$AG$2:$AH$6,2,FALSE)>=3,B56=1),"o","n") -> o | D66: =IF(B66="o",VLOOKUP(A66,fréquence!$A$16:$V$3371,VLOOKUP('Dictée de mots'!$D$1,fréquence!$AG$2:$AO$6,9,FALSE)+17,FALSE),"") -> 444 | E66: =IF(B66="o",VLOOKUP(A66,fréquence!$A$16:$AE$3371,27+IF(VLOOKUP($D$1,fréquence!$AG$2:$AN$6,6,FALSE)=1,1,3),FALSE),"") -> la neige ; les neiges | I66: Mot 3: | J66: =IF(B66="o",E66,VLOOKUP($A56,'Recherche mots connus'!$FG$6:$FQ$176,9,FALSE)) -> la neige ; les neiges
A68: =IF(B68="o",3+VLOOKUP($D$1,fréquence!$AG$2:$AL$6,4,FALSE)+VLOOKUP($D$1,fréquence!$AG$2:$AH$6,2,FALSE)*(A56-1),"") ->  | B68: =IF(AND(VLOOKUP($D$1,fréquence!$AG$2:$AH$6,2,FALSE)>=4,B56=1),"o","n") -> n | D68: =IF(B68="o",VLOOKUP(A68,fréquence!$A$16:$V$3371,VLOOKUP('Dictée de mots'!$D$1,fréquence!$AG$2:$AO$6,9,FALSE)+17,FALSE),"") ->  | E68: =IF(B68="o",VLOOKUP(A68,fréquence!$A$16:$AE$3371,27+IF(VLOOKUP($D$1,fréquence!$AG$2:$AN$6,6,FALSE)=1,1,3),FALSE),"") ->  | I68: Mot 4: | J68: =IF(B68="o",E68,VLOOKUP($A56,'Recherche mots connus'!$FG$6:$FQ$176,8,FALSE)) -> ; au
A70: =IF(B70="o",4+VLOOKUP($D$1,fréquence!$AG$2:$AL$6,4,FALSE)+VLOOKUP($D$1,fréquence!$AG$2:$AH$6,2,FALSE)*(A56-1),"") ->  | B70: =IF(AND(VLOOKUP($D$1,fréquence!$AG$2:$AH$6,2,FALSE)>=5,B56=1),"o","n") -> n | D70: =IF(B70="o",VLOOKUP(A70,fréquence!$A$16:$V$3371,VLOOKUP('Dictée de mots'!$D$1,fréquence!$AG$2:$AO$6,9,FALSE)+17,FALSE),"") ->  | E70: =IF(B70="o",VLOOKUP(A70,fréquence!$A$16:$AE$3371,27+IF(VLOOKUP($D$1,fréquence!$AG$2:$AN$6,6,FALSE)=1,1,3),FALSE),"") ->  | I70: Mot 5: | J70: =IF(B70="o",E70,VLOOKUP($A56,'Recherche mots connus'!$FG$6:$FQ$176,7,FALSE)) -> ; un article; des articles
A72: =IF(B72="o",5+VLOOKUP($D$1,fréquence!$AG$2:$AL$6,4,FALSE)+VLOOKUP($D$1,fréquence!$AG$2:$AH$6,2,FALSE)*(A56-1),"") ->  | B72: =IF(AND(VLOOKUP($D$1,fréquence!$AG$2:$AH$6,2,FALSE)>=6,B56=1),"o","n") -> n | D72: =IF(B72="o",VLOOKUP(A72,fréquence!$A$16:$V$3371,VLOOKUP('Dictée de mots'!$D$1,fréquence!$AG$2:$AO$6,9,FALSE)+17,FALSE),"") ->  | E72: =IF(B72="o",VLOOKUP(A72,fréquence!$A$16:$AE$3371,27+IF(VLOOKUP($D$1,fréquence!$AG$2:$AN$6,6,FALSE)=1,1,3),FALSE),"") ->  | I72: Mot 6: | J72: =IF(B72="o",E72,VLOOKUP($A56,'Recherche mots connus'!$FG$6:$FQ$176,6,FALSE)) -> ; [son nom de famille]
A74: =IF(B74="o",6+VLOOKUP($D$1,fréquence!$AG$2:$AL$6,4,FALSE)+VLOOKUP($D$1,fréquence!$AG$2:$AH$6,2,FALSE)*(A56-1),"") ->  | B74: =IF(AND(VLOOKUP($D$1,fréquence!$AG$2:$AH$6,2,FALSE)>=7,B56=1),"o","n") -> n | D74: =IF(B74="o",VLOOKUP(A74,fréquence!$A$16:$V$3371,VLOOKUP('Dictée de mots'!$D$1,fréquence!$AG$2:$AO$6,9,FALSE)+17,FALSE),"") ->  | E74: =IF(B74="o",VLOOKUP(A74,fréquence!$A$16:$AE$3371,27+IF(VLOOKUP($D$1,fréquence!$AG$2:$AN$6,6,FALSE)=1,1,3),FALSE),"") ->  | I74: Mot 7: | J74: =IF(B74="o",E74,VLOOKUP($A56,'Recherche mots connus'!$FG$6:$FQ$176,5,FALSE)) -> ; à
A76: =IF(B76="o",7+VLOOKUP($D$1,fréquence!$AG$2:$AL$6,4,FALSE)+VLOOKUP($D$1,fréquence!$AG$2:$AH$6,2,FALSE)*(A58-1),"") ->  | B76: =IF(AND(VLOOKUP($D$1,fréquence!$AG$2:$AH$6,2,FALSE)>=8,B56=1),"o","n") -> n | D76: =IF(B76="o",VLOOKUP(A76,fréquence!$A$16:$V$3371,VLOOKUP('Dictée de mots'!$D$1,fréquence!$AG$2:$AO$6,9,FALSE)+17,FALSE),"") ->  | E76: =IF(B76="o",VLOOKUP(A76,fréquence!$A$16:$AE$3371,27+IF(VLOOKUP($D$1,fréquence!$AG$2:$AN$6,6,FALSE)=1,1,3),FALSE),"") ->  | I76: Mot 8: | J76: =IF(B76="o",E76,VLOOKUP($A56,'Recherche mots connus'!$FG$6:$FQ$176,4,FALSE)) -> ; un arbre; des arbres
A78: =IF(B78="o",8+VLOOKUP($D$1,fréquence!$AG$2:$AL$6,4,FALSE)+VLOOKUP($D$1,fréquence!$AG$2:$AH$6,2,FALSE)*(A60-1),"") ->  | B78: =IF(AND(VLOOKUP($D$1,fréquence!$AG$2:$AH$6,2,FALSE)>=9,B56=1),"o","n") -> n | D78: =IF(B78="o",VLOOKUP(A78,fréquence!$A$16:$V$3371,VLOOKUP('Dictée de mots'!$D$1,fréquence!$AG$2:$AO$6,9,FALSE)+17,FALSE),"") ->  | E78: =IF(B78="o",VLOOKUP(A78,fréquence!$A$16:$AE$3371,27+IF(VLOOKUP($D$1,fréquence!$AG$2:$AN$6,6,FALSE)=1,1,3),FALSE),"") ->  | I78: Mot 9: | J78: =IF(B78="o",E78,VLOOKUP($A56,'Recherche mots connus'!$FG$6:$FQ$176,3,FALSE)) -> ; un animal; des animaux
A80: =IF(B80="o",9+VLOOKUP($D$1,fréquence!$AG$2:$AL$6,4,FALSE)+VLOOKUP($D$1,fréquence!$AG$2:$AH$6,2,FALSE)*(A62-1),"") ->  | B80: =IF(AND(VLOOKUP($D$1,fréquence!$AG$2:$AH$6,2,FALSE)>=10,B56=1),"o","n") -> n | D80: =IF(B80="o",VLOOKUP(A80,fréquence!$A$16:$V$3371,VLOOKUP('Dictée de mots'!$D$1,fréquence!$AG$2:$AO$6,9,FALSE)+17,FALSE),"") ->  | E80: =IF(B80="o",VLOOKUP(A80,fréquence!$A$16:$AE$3371,27+IF(VLOOKUP($D$1,fréquence!$AG$2:$AN$6,6,FALSE)=1,1,3),FALSE),"") ->  | I80: Mot 10: | J80: =IF(B80="o",E80,VLOOKUP($A56,'Recherche mots connus'!$FG$6:$FQ$176,2,FALSE)) -> ; une aube; des aubes
A83: =VLOOKUP($G$1,Calendrier!$B$38:$AD$83,22,FALSE) -> 2 | B83: =VLOOKUP($G$1,Calendrier!$B$38:$AD$83,21,FALSE) -> 1 | C83: =CONCATENATE("Mots à apprendre ",$D$1) -> Mots à apprendre CE2 | H83: =CONCATENATE("Dictée de mots ",$D$1) -> Dictée de mots CE2
A84: =VLOOKUP(A83,'Recherche mots connus'!$A$6:$Q$161,17,FALSE) -> 3.5
A85: =INT(VLOOKUP(A83,'Recherche mots connus'!$A$6:$Q$161,17,FALSE)) -> 3 | B85: =IF(MOD(2*A84,2)=0,1,2) -> 2 | D85: pour le | E85: =E58+1 -> 2015-09-03 | I85: =E85 -> 2015-09-03
B86: colonne
D87: =CONCATENATE("Revoir tous les mots de la colonne ",B85," de la page ",A85) -> Revoir tous les mots de la colonne 2 de la page 3 | J87: =D87 -> Revoir tous les mots de la colonne 2 de la page 3
A89: =IF(B89="o",0+VLOOKUP($D$1,fréquence!$AG$2:$AL$6,4,FALSE)+VLOOKUP($D$1,fréquence!$AG$2:$AH$6,2,FALSE)*(A83-1),"") -> 257 | B89: =IF(AND(VLOOKUP($D$1,fréquence!$AG$2:$AH$6,2,FALSE)>=1,B83=1),"o","n") -> o | D89: =IF(B89="o",VLOOKUP(A89,fréquence!$A$16:$V$3371,VLOOKUP('Dictée de mots'!$D$1,fréquence!$AG$2:$AO$6,9,FALSE)+17,FALSE),"") -> 618 | E89: =IF(B89="o",VLOOKUP(A89,fréquence!$A$16:$AE$3371,27+IF(VLOOKUP($D$1,fréquence!$AG$2:$AN$6,6,FALSE)=1,1,3),FALSE),"") -> le sol ; les sols | I89: Mot 1: | J89: =E89 -> le sol ; les sols
A91: =IF(B91="o",1+VLOOKUP($D$1,fréquence!$AG$2:$AL$6,4,FALSE)+VLOOKUP($D$1,fréquence!$AG$2:$AH$6,2,FALSE)*(A83-1),"") -> 258 | B91: =IF(AND(VLOOKUP($D$1,fréquence!$AG$2:$AH$6,2,FALSE)>=2,B83=1),"o","n") -> o | D91: =IF(B91="o",VLOOKUP(A91,fréquence!$A$16:$V$3371,VLOOKUP('Dictée de mots'!$D$1,fréquence!$AG$2:$AO$6,9,FALSE)+17,FALSE),"") -> 728 | E91: =IF(B91="o",VLOOKUP(A91,fréquence!$A$16:$AE$3371,27+IF(VLOOKUP($D$1,fréquence!$AG$2:$AN$6,6,FALSE)=1,1,3),FALSE),"") -> la vue ; les vues | I91: Mot 2: | J91: =IF(B91="o",E91,VLOOKUP($A83,'Recherche mots connus'!$FG$6:$FQ$176,10,FALSE)) -> la vue ; les vues
A93: =IF(B93="o",2+VLOOKUP($D$1,fréquence!$AG$2:$AL$6,4,FALSE)+VLOOKUP($D$1,fréquence!$AG$2:$AH$6,2,FALSE)*(A83-1),"") -> 259 | B93: =IF(AND(VLOOKUP($D$1,fréquence!$AG$2:$AH$6,2,FALSE)>=3,B83=1),"o","n") -> o | D93: =IF(B93="o",VLOOKUP(A93,fréquence!$A$16:$V$3371,VLOOKUP('Dictée de mots'!$D$1,fréquence!$AG$2:$AO$6,9,FALSE)+17,FALSE),"") -> 53 | E93: =IF(B93="o",VLOOKUP(A93,fréquence!$A$16:$AE$3371,27+IF(VLOOKUP($D$1,fréquence!$AG$2:$AN$6,6,FALSE)=1,1,3),FALSE),"") -> boire | I93: Mot 3: | J93: =IF(B93="o",E93,VLOOKUP($A83,'Recherche mots connus'!$FG$6:$FQ$176,9,FALSE)) -> boire
A95: =IF(B95="o",3+VLOOKUP($D$1,fréquence!$AG$2:$AL$6,4,FALSE)+VLOOKUP($D$1,fréquence!$AG$2:$AH$6,2,FALSE)*(A83-1),"") ->  | B95: =IF(AND(VLOOKUP($D$1,fréquence!$AG$2:$AH$6,2,FALSE)>=4,B83=1),"o","n") -> n | D95: =IF(B95="o",VLOOKUP(A95,fréquence!$A$16:$V$3371,VLOOKUP('Dictée de mots'!$D$1,fréquence!$AG$2:$AO$6,9,FALSE)+17,FALSE),"") ->  | E95: =IF(B95="o",VLOOKUP(A95,fréquence!$A$16:$AE$3371,27+IF(VLOOKUP($D$1,fréquence!$AG$2:$AN$6,6,FALSE)=1,1,3),FALSE),"") ->  | I95: Mot 4: | J95: =IF(B95="o",E95,VLOOKUP($A83,'Recherche mots connus'!$FG$6:$FQ$176,8,FALSE)) -> ; un aviateur; des aviateurs
A97: =IF(B97="o",4+VLOOKUP($D$1,fréquence!$AG$2:$AL$6,4,FALSE)+VLOOKUP($D$1,fréquence!$AG$2:$AH$6,2,FALSE)*(A83-1),"") ->  | B97: =IF(AND(VLOOKUP($D$1,fréquence!$AG$2:$AH$6,2,FALSE)>=5,B83=1),"o","n") -> n | D97: =IF(B97="o",VLOOKUP(A97,fréquence!$A$16:$V$3371,VLOOKUP('Dictée de mots'!$D$1,fréquence!$AG$2:$AO$6,9,FALSE)+17,FALSE),"") ->  | E97: =IF(B97="o",VLOOKUP(A97,fréquence!$A$16:$AE$3371,27+IF(VLOOKUP($D$1,fréquence!$AG$2:$AN$6,6,FALSE)=1,1,3),FALSE),"") ->  | I97: Mot 5: | J97: =IF(B97="o",E97,VLOOKUP($A83,'Recherche mots connus'!$FG$6:$FQ$176,7,FALSE)) -> ; une barbe; des barbes
A99: =IF(B99="o",5+VLOOKUP($D$1,fréquence!$AG$2:$AL$6,4,FALSE)+VLOOKUP($D$1,fréquence!$AG$2:$AH$6,2,FALSE)*(A83-1),"") ->  | B99: =IF(AND(VLOOKUP($D$1,fréquence!$AG$2:$AH$6,2,FALSE)>=6,B83=1),"o","n") -> n | D99: =IF(B99="o",VLOOKUP(A99,fréquence!$A$16:$V$3371,VLOOKUP('Dictée de mots'!$D$1,fréquence!$AG$2:$AO$6,9,FALSE)+17,FALSE),"") ->  | E99: =IF(B99="o",VLOOKUP(A99,fréquence!$A$16:$AE$3371,27+IF(VLOOKUP($D$1,fréquence!$AG$2:$AN$6,6,FALSE)=1,1,3),FALSE),"") ->  | I99: Mot 6: | J99: =IF(B99="o",E99,VLOOKUP($A83,'Recherche mots connus'!$FG$6:$FQ$176,6,FALSE)) -> ; autour
A101: =IF(B101="o",6+VLOOKUP($D$1,fréquence!$AG$2:$AL$6,4,FALSE)+VLOOKUP($D$1,fréquence!$AG$2:$AH$6,2,FALSE)*(A83-1),"") ->  | B101: =IF(AND(VLOOKUP($D$1,fréquence!$AG$2:$AH$6,2,FALSE)>=7,B83=1),"o","n") -> n | D101: =IF(B101="o",VLOOKUP(A101,fréquence!$A$16:$V$3371,VLOOKUP('Dictée de mots'!$D$1,fréquence!$AG$2:$AO$6,9,FALSE)+17,FALSE),"") ->  | E101: =IF(B101="o",VLOOKUP(A101,fréquence!$A$16:$AE$3371,27+IF(VLOOKUP($D$1,fréquence!$AG$2:$AN$6,6,FALSE)=1,1,3),FALSE),"") ->  | I101: Mot 7: | J101: =IF(B101="o",E101,VLOOKUP($A83,'Recherche mots connus'!$FG$6:$FQ$176,5,FALSE)) -> ; un autre; une autre; des autres
A103: =IF(B103="o",7+VLOOKUP($D$1,fréquence!$AG$2:$AL$6,4,FALSE)+VLOOKUP($D$1,fréquence!$AG$2:$AH$6,2,FALSE)*(A85-1),"") ->  | B103: =IF(AND(VLOOKUP($D$1,fréquence!$AG$2:$AH$6,2,FALSE)>=8,B83=1),"o","n") -> n | D103: =IF(B103="o",VLOOKUP(A103,fréquence!$A$16:$V$3371,VLOOKUP('Dictée de mots'!$D$1,fréquence!$AG$2:$AO$6,9,FALSE)+17,FALSE),"") ->  | E103: =IF(B103="o",VLOOKUP(A103,fréquence!$A$16:$AE$3371,27+IF(VLOOKUP($D$1,fréquence!$AG$2:$AN$6,6,FALSE)=1,1,3),FALSE),"") ->  | I103: Mot 8: | J103: =IF(B103="o",E103,VLOOKUP($A83,'Recherche mots connus'!$FG$6:$FQ$176,4,FALSE)) -> ; une balle; des balles
A105: =IF(B105="o",8+VLOOKUP($D$1,fréquence!$AG$2:$AL$6,4,FALSE)+VLOOKUP($D$1,fréquence!$AG$2:$AH$6,2,FALSE)*(A87-1),"") ->  | B105: =IF(AND(VLOOKUP($D$1,fréquence!$AG$2:$AH$6,2,FALSE)>=9,B83=1),"o","n") -> n | D105: =IF(B105="o",VLOOKUP(A105,fréquence!$A$16:$V$3371,VLOOKUP('Dictée de mots'!$D$1,fréquence!$AG$2:$AO$6,9,FALSE)+17,FALSE),"") ->  | E105: =IF(B105="o",VLOOKUP(A105,fréquence!$A$16:$AE$3371,27+IF(VLOOKUP($D$1,fréquence!$AG$2:$AN$6,6,FALSE)=1,1,3),FALSE),"") ->  | I105: Mot 9: | J105: =IF(B105="o",E105,VLOOKUP($A83,'Recherche mots connus'!$FG$6:$FQ$176,3,FALSE)) -> ; un avenir; des avenirs
A107: =IF(B107="o",9+VLOOKUP($D$1,fréquence!$AG$2:$AL$6,4,FALSE)+VLOOKUP($D$1,fréquence!$AG$2:$AH$6,2,FALSE)*(A89-1),"") ->  | B107: =IF(AND(VLOOKUP($D$1,fréquence!$AG$2:$AH$6,2,FALSE)>=10,B83=1),"o","n") -> n | D107: =IF(B107="o",VLOOKUP(A107,fréquence!$A$16:$V$3371,VLOOKUP('Dictée de mots'!$D$1,fréquence!$AG$2:$AO$6,9,FALSE)+17,FALSE),"") ->  | E107: =IF(B107="o",VLOOKUP(A107,fréquence!$A$16:$AE$3371,27+IF(VLOOKUP($D$1,fréquence!$AG$2:$AN$6,6,FALSE)=1,1,3),FALSE),"") ->  | I107: Mot 10: | J107: =IF(B107="o",E107,VLOOKUP($A83,'Recherche mots connus'!$FG$6:$FQ$176,2,FALSE)) -> ; une aviatrice; des aviatrices
A110: =VLOOKUP($G$1,Calendrier!$B$38:$AD$83,29,FALSE) -> 3 | B110: =VLOOKUP($G$1,Calendrier!$B$38:$AD$83,28,FALSE) -> 1 | C110: =CONCATENATE("Mots à apprendre ",$D$1) -> Mots à apprendre CE2 | H110: =CONCATENATE("Dictée de mots ",$D$1) -> Dictée de mots CE2
A111: =VLOOKUP(A110,'Recherche mots connus'!$A$6:$Q$161,17,FALSE) -> 4
A112: =INT(VLOOKUP(A110,'Recherche mots connus'!$A$6:$Q$161,17,FALSE)) -> 4 | B112: =IF(MOD(2*A111,2)=0,1,2) -> 1 | D112: pour le | E112: =E85+1 -> 2015-09-04 | I112: =E112 -> 2015-09-04
B113: colonne
D114: =CONCATENATE("Revoir tous les mots de la colonne ",B112," de la page ",A112) -> Revoir tous les mots de la colonne 1 de la page 4 | J114: =D114 -> Revoir tous les mots de la colonne 1 de la page 4
A116: =IF(B116="o",0+VLOOKUP($D$1,fréquence!$AG$2:$AL$6,4,FALSE)+VLOOKUP($D$1,fréquence!$AG$2:$AH$6,2,FALSE)*(A110-1),"") -> 260 | B116: =IF(AND(VLOOKUP($D$1,fréquence!$AG$2:$AH$6,2,FALSE)>=1,B110=1),"o","n") -> o | D116: =IF(B116="o",VLOOKUP(A116,fréquence!$A$16:$V$3371,VLOOKUP('Dictée de mots'!$D$1,fréquence!$AG$2:$AO$6,9,FALSE)+17,FALSE),"") -> 102 | E116: =IF(B116="o",VLOOKUP(A116,fréquence!$A$16:$AE$3371,27+IF(VLOOKUP($D$1,fréquence!$AG$2:$AN$6,6,FALSE)=1,1,3),FALSE),"") -> la chasse ; les chasses | I116: Mot 1: | J116: =E116 -> la chasse ; les chasses
A118: =IF(B118="o",1+VLOOKUP($D$1,fréquence!$AG$2:$AL$6,4,FALSE)+VLOOKUP($D$1,fréquence!$AG$2:$AH$6,2,FALSE)*(A110-1),"") -> 261 | B118: =IF(AND(VLOOKUP($D$1,fréquence!$AG$2:$AH$6,2,FALSE)>=2,B110=1),"o","n") -> o | D118: =IF(B118="o",VLOOKUP(A118,fréquence!$A$16:$V$3371,VLOOKUP('Dictée de mots'!$D$1,fréquence!$AG$2:$AO$6,9,FALSE)+17,FALSE),"") -> 569 | E118: =IF(B118="o",VLOOKUP(A118,fréquence!$A$16:$AE$3371,27+IF(VLOOKUP($D$1,fréquence!$AG$2:$AN$6,6,FALSE)=1,1,3),FALSE),"") -> le reste ; les restes | I118: Mot 2: | J118: =IF(B118="o",E118,VLOOKUP($A110,'Recherche mots connus'!$FG$6:$FQ$176,10,FALSE)) -> le reste ; les restes
A120: =IF(B120="o",2+VLOOKUP($D$1,fréquence!$AG$2:$AL$6,4,FALSE)+VLOOKUP($D$1,fréquence!$AG$2:$AH$6,2,FALSE)*(A110-1),"") -> 262 | B120: =IF(AND(VLOOKUP($D$1,fréquence!$AG$2:$AH$6,2,FALSE)>=3,B110=1),"o","n") -> o | D120: =IF(B120="o",VLOOKUP(A120,fréquence!$A$16:$V$3371,VLOOKUP('Dictée de mots'!$D$1,fréquence!$AG$2:$AO$6,9,FALSE)+17,FALSE),"") -> 532 | E120: =IF(B120="o",VLOOKUP(A120,fréquence!$A$16:$AE$3371,27+IF(VLOOKUP($D$1,fréquence!$AG$2:$AN$6,6,FALSE)=1,1,3),FALSE),"") -> un prince ; des princes | I120: Mot 3: | J120: =IF(B120="o",E120,VLOOKUP($A110,'Recherche mots connus'!$FG$6:$FQ$176,9,FALSE)) -> un prince ; des princes
A122: =IF(B122="o",3+VLOOKUP($D$1,fréquence!$AG$2:$AL$6,4,FALSE)+VLOOKUP($D$1,fréquence!$AG$2:$AH$6,2,FALSE)*(A110-1),"") ->  | B122: =IF(AND(VLOOKUP($D$1,fréquence!$AG$2:$AH$6,2,FALSE)>=4,B110=1),"o","n") -> n | D122: =IF(B122="o",VLOOKUP(A122,fréquence!$A$16:$V$3371,VLOOKUP('Dictée de mots'!$D$1,fréquence!$AG$2:$AO$6,9,FALSE)+17,FALSE),"") ->  | E122: =IF(B122="o",VLOOKUP(A122,fréquence!$A$16:$AE$3371,27+IF(VLOOKUP($D$1,fréquence!$AG$2:$AN$6,6,FALSE)=1,1,3),FALSE),"") ->  | I122: Mot 4: | J122: =IF(B122="o",E122,VLOOKUP($A110,'Recherche mots connus'!$FG$6:$FQ$176,8,FALSE)) -> 
A124: =IF(B124="o",4+VLOOKUP($D$1,fréquence!$AG$2:$AL$6,4,FALSE)+VLOOKUP($D$1,fréquence!$AG$2:$AH$6,2,FALSE)*(A110-1),"") ->  | B124: =IF(AND(VLOOKUP($D$1,fréquence!$AG$2:$AH$6,2,FALSE)>=5,B110=1),"o","n") -> n | D124: =IF(B124="o",VLOOKUP(A124,fréquence!$A$16:$V$3371,VLOOKUP('Dictée de mots'!$D$1,fréquence!$AG$2:$AO$6,9,FALSE)+17,FALSE),"") ->  | E124: =IF(B124="o",VLOOKUP(A124,fréquence!$A$16:$AE$3371,27+IF(VLOOKUP($D$1,fréquence!$AG$2:$AN$6,6,FALSE)=1,1,3),FALSE),"") ->  | I124: Mot 5: | J124: =IF(B124="o",E124,VLOOKUP($A110,'Recherche mots connus'!$FG$6:$FQ$176,7,FALSE)) -> 
A126: =IF(B126="o",5+VLOOKUP($D$1,fréquence!$AG$2:$AL$6,4,FALSE)+VLOOKUP($D$1,fréquence!$AG$2:$AH$6,2,FALSE)*(A110-1),"") ->  | B126: =IF(AND(VLOOKUP($D$1,fréquence!$AG$2:$AH$6,2,FALSE)>=6,B110=1),"o","n") -> n | D126: =IF(B126="o",VLOOKUP(A126,fréquence!$A$16:$V$3371,VLOOKUP('Dictée de mots'!$D$1,fréquence!$AG$2:$AO$6,9,FALSE)+17,FALSE),"") ->  | E126: =IF(B126="o",VLOOKUP(A126,fréquence!$A$16:$AE$3371,27+IF(VLOOKUP($D$1,fréquence!$AG$2:$AN$6,6,FALSE)=1,1,3),FALSE),"") ->  | I126: Mot 6: | J126: =IF(B126="o",E126,VLOOKUP($A110,'Recherche mots connus'!$FG$6:$FQ$176,6,FALSE)) -> ; bien
A128: =IF(B128="o",6+VLOOKUP($D$1,fréquence!$AG$2:$AL$6,4,FALSE)+VLOOKUP($D$1,fréquence!$AG$2:$AH$6,2,FALSE)*(A110-1),"") ->  | B128: =IF(AND(VLOOKUP($D$1,fréquence!$AG$2:$AH$6,2,FALSE)>=7,B110=1),"o","n") -> n | D128: =IF(B128="o",VLOOKUP(A128,fréquence!$A$16:$V$3371,VLOOKUP('Dictée de mots'!$D$1,fréquence!$AG$2:$AO$6,9,FALSE)+17,FALSE),"") ->  | E128: =IF(B128="o",VLOOKUP(A128,fréquence!$A$16:$AE$3371,27+IF(VLOOKUP($D$1,fréquence!$AG$2:$AN$6,6,FALSE)=1,1,3),FALSE),"") ->  | I128: Mot 7: | J128: =IF(B128="o",E128,VLOOKUP($A110,'Recherche mots connus'!$FG$6:$FQ$176,5,FALSE)) -> ; boire
A130: =IF(B130="o",7+VLOOKUP($D$1,fréquence!$AG$2:$AL$6,4,FALSE)+VLOOKUP($D$1,fréquence!$AG$2:$AH$6,2,FALSE)*(A112-1),"") ->  | B130: =IF(AND(VLOOKUP($D$1,fréquence!$AG$2:$AH$6,2,FALSE)>=8,B110=1),"o","n") -> n | D130: =IF(B130="o",VLOOKUP(A130,fréquence!$A$16:$V$3371,VLOOKUP('Dictée de mots'!$D$1,fréquence!$AG$2:$AO$6,9,FALSE)+17,FALSE),"") ->  | E130: =IF(B130="o",VLOOKUP(A130,fréquence!$A$16:$AE$3371,27+IF(VLOOKUP($D$1,fréquence!$AG$2:$AN$6,6,FALSE)=1,1,3),FALSE),"") ->  | I130: Mot 8: | J130: =IF(B130="o",E130,VLOOKUP($A110,'Recherche mots connus'!$FG$6:$FQ$176,4,FALSE)) -> ; bon; bonne; bons; bonnes
A132: =IF(B132="o",8+VLOOKUP($D$1,fréquence!$AG$2:$AL$6,4,FALSE)+VLOOKUP($D$1,fréquence!$AG$2:$AH$6,2,FALSE)*(A114-1),"") ->  | B132: =IF(AND(VLOOKUP($D$1,fréquence!$AG$2:$AH$6,2,FALSE)>=9,B110=1),"o","n") -> n | D132: =IF(B132="o",VLOOKUP(A132,fréquence!$A$16:$V$3371,VLOOKUP('Dictée de mots'!$D$1,fréquence!$AG$2:$AO$6,9,FALSE)+17,FALSE),"") ->  | E132: =IF(B132="o",VLOOKUP(A132,fréquence!$A$16:$AE$3371,27+IF(VLOOKUP($D$1,fréquence!$AG$2:$AN$6,6,FALSE)=1,1,3),FALSE),"") ->  | I132: Mot 9: | J132: =IF(B132="o",E132,VLOOKUP($A110,'Recherche mots connus'!$FG$6:$FQ$176,3,FALSE)) -> ; un bébé ; des bébés
A134: =IF(B134="o",9+VLOOKUP($D$1,fréquence!$AG$2:$AL$6,4,FALSE)+VLOOKUP($D$1,fréquence!$AG$2:$AH$6,2,FALSE)*(A116-1),"") ->  | B134: =IF(AND(VLOOKUP($D$1,fréquence!$AG$2:$AH$6,2,FALSE)>=10,B110=1),"o","n") -> n | D134: =IF(B134="o",VLOOKUP(A134,fréquence!$A$16:$V$3371,VLOOKUP('Dictée de mots'!$D$1,fréquence!$AG$2:$AO$6,9,FALSE)+17,FALSE),"") ->  | E134: =IF(B134="o",VLOOKUP(A134,fréquence!$A$16:$AE$3371,27+IF(VLOOKUP($D$1,fréquence!$AG$2:$AN$6,6,FALSE)=1,1,3),FALSE),"") ->  | I134: Mot 10: | J134: =IF(B134="o",E134,VLOOKUP($A110,'Recherche mots connus'!$FG$6:$FQ$176,2,FALSE)) -> ; bleu; bleue; bleus; bleues

Sheet CP
B1: afficher les numéros: | C1: oui
B2: Afficher les mots depuis le numéro | C2: 1 | F2: 1 | H2: début | I2: =VLOOKUP("CP",fréquence!$AG$2:$AK$8,4,FALSE) -> 1
B3: jusqu'au | C3: 110 | F3: 45 | H3: fin | I3: =VLOOKUP("CP",fréquence!$AG$2:$AK$8,5,FALSE) -> 110
B4: afficher les mots: | C4: oui
B6: Carnet de mots
B7: de
A13: =1 -> 1 | B13: =IFERROR(IF(VLOOKUP(A13,fréquence!$R$16:$X$2448,6,FALSE)<=$C$1,VLOOKUP(A13,fréquence!$R$16:$AD$2448,11,FALSE),""),"") -> [son prénom] | G13: =B13 -> [son prénom]
A15: =A13+1 -> 2 | B15: =IFERROR(IF(VLOOKUP(A15,fréquence!$R$16:$X$2448,6,FALSE)<=$C$1,VLOOKUP(A15,fréquence!$R$16:$AD$2448,11,FALSE),""),"") -> à | G15: =B15 -> à
A17: =A15+1 -> 3 | B17: =IFERROR(IF(VLOOKUP(A17,fréquence!$R$16:$X$2448,6,FALSE)<=$C$1,VLOOKUP(A17,fréquence!$R$16:$AD$2448,11,FALSE),""),"") -> un an | G17: =B17 -> un an
A19: =A17+1 -> 4 | B19: =IFERROR(IF(VLOOKUP(A19,fréquence!$R$16:$X$2448,6,FALSE)<=$C$1,VLOOKUP(A19,fréquence!$R$16:$AD$2448,11,FALSE),""),"") -> un animal | G19: =B19 -> un animal
A21: =A19+1 -> 5 | B21: =IFERROR(IF(VLOOKUP(A21,fréquence!$R$16:$X$2448,6,FALSE)<=$C$1,VLOOKUP(A21,fréquence!$R$16:$AD$2448,11,FALSE),""),"") -> au | G21: =B21 -> au
A23: =A21+1 -> 6 | B23: =IFERROR(IF(VLOOKUP(A23,fréquence!$R$16:$X$2448,6,FALSE)<=$C$1,VLOOKUP(A23,fréquence!$R$16:$AD$2448,11,FALSE),""),"") -> avec | G23: =B23 -> avec
A25: =A23+1 -> 7 | B25: =IFERROR(IF(VLOOKUP(A25,fréquence!$R$16:$X$2448,6,FALSE)<=$C$1,VLOOKUP(A25,fréquence!$R$16:$AD$2448,11,FALSE),""),"") -> une balle | G25: =B25 -> une balle
A27: =A25+1 -> 8 | B27: =IFERROR(IF(VLOOKUP(A27,fréquence!$R$16:$X$2448,6,FALSE)<=$C$1,VLOOKUP(A27,fréquence!$R$16:$AD$2448,11,FALSE),""),"") -> un bébé | G27: =B27 -> un bébé
A29: =A27+1 -> 9 | B29: =IFERROR(IF(VLOOKUP(A29,fréquence!$R$16:$X$2448,6,FALSE)<=$C$1,VLOOKUP(A29,fréquence!$R$16:$AD$2448,11,FALSE),""),"") -> la bouche | G29: =B29 -> la bouche
A31: =A29+1 -> 10 | B31: =IFERROR(IF(VLOOKUP(A31,fréquence!$R$16:$X$2448,6,FALSE)<=$C$1,VLOOKUP(A31,fréquence!$R$16:$AD$2448,11,FALSE),""),"") -> le café | G31: =B31 -> le café
A32: =A31+1 -> 11 | B32: =IFERROR(IF(VLOOKUP(A32,fréquence!$R$16:$X$2448,6,FALSE)<=$C$1,VLOOKUP(A32,fréquence!$R$16:$AD$2448,11,FALSE),""),"") -> une cave | G32: =B32 -> une cave
A34: =A32+1 -> 12 | B34: =IFERROR(IF(VLOOKUP(A34,fréquence!$R$16:$X$2448,6,FALSE)<=$C$1,VLOOKUP(A34,fréquence!$R$16:$AD$2448,11,FALSE),""),"") -> c'est | G34: =B34 -> c'est
A36: =A34+1 -> 13 | B36: =IFERROR(IF(VLOOKUP(A36,fréquence!$R$16:$X$2448,6,FALSE)<=$C$1,VLOOKUP(A36,fréquence!$R$16:$AD$2448,11,FALSE),""),"") -> un chapeau | G36: =B36 -> un chapeau
A38: =A36+1 -> 14 | B38: =IFERROR(IF(VLOOKUP(A38,fréquence!$R$16:$X$2448,6,FALSE)<=$C$1,VLOOKUP(A38,fréquence!$R$16:$AD$2448,11,FALSE),""),"") -> un chat | G38: =B38 -> un chat
A40: =A38+1 -> 15 | B40: =IFERROR(IF(VLOOKUP(A40,fréquence!$R$16:$X$2448,6,FALSE)<=$C$1,VLOOKUP(A40,fréquence!$R$16:$AD$2448,11,FALSE),""),"") -> une chatte | G40: =B40 -> une chatte
A42: =A40+1 -> 16 | B42: =IFERROR(IF(VLOOKUP(A42,fréquence!$R$16:$X$2448,6,FALSE)<=$C$1,VLOOKUP(A42,fréquence!$R$16:$AD$2448,11,FALSE),""),"") -> un cheval | G42: =B42 -> un cheval
A44: =A42+1 -> 17 | B44: =IFERROR(IF(VLOOKUP(A44,fréquence!$R$16:$X$2448,6,FALSE)<=$C$1,VLOOKUP(A44,fréquence!$R$16:$AD$2448,11,FALSE),""),"") -> une classe | G44: =B44 -> une classe
A46: =A44+1 -> 18 | B46: =IFERROR(IF(VLOOKUP(A46,fréquence!$R$16:$X$2448,6,FALSE)<=$C$1,VLOOKUP(A46,fréquence!$R$16:$AD$2448,11,FALSE),""),"") -> la confiture | G46: =B46 -> la confiture
A48: =A46+1 -> 19 | B48: =IFERROR(IF(VLOOKUP(A48,fréquence!$R$16:$X$2448,6,FALSE)<=$C$1,VLOOKUP(A48,fréquence!$R$16:$AD$2448,11,FALSE),""),"") -> dans | G48: =B48 -> dans
A50: =A48+1 -> 20 | B50: =IFERROR(IF(VLOOKUP(A50,fréquence!$R$16:$X$2448,6,FALSE)<=$C$1,VLOOKUP(A50,fréquence!$R$16:$AD$2448,11,FALSE),""),"") -> des | G50: =B50 -> des
A51: =A50+1 -> 21 | B51: =IFERROR(IF(VLOOKUP(A51,fréquence!$R$16:$X$2448,6,FALSE)<=$C$1,VLOOKUP(A51,fréquence!$R$16:$AD$2448,11,FALSE),""),"") -> le dimanche | G51: =B51 -> le dimanche
A53: =A51+1 -> 22 | B53: =IFERROR(IF(VLOOKUP(A53,fréquence!$R$16:$X$2448,6,FALSE)<=$C$1,VLOOKUP(A53,fréquence!$R$16:$AD$2448,11,FALSE),""),"") -> une eau | G53: =B53 -> une eau
A55: =A53+1 -> 23 | B55: =IFERROR(IF(VLOOKUP(A55,fréquence!$R$16:$X$2448,6,FALSE)<=$C$1,VLOOKUP(A55,fréquence!$R$16:$AD$2448,11,FALSE),""),"") -> une école | G55: =B55 -> une école
A57: =A55+1 -> 24 | B57: =IFERROR(IF(VLOOKUP(A57,fréquence!$R$16:$X$2448,6,FALSE)<=$C$1,VLOOKUP(A57,fréquence!$R$16:$AD$2448,11,FALSE),""),"") -> un élève ; une élève | G57: =B57 -> un élève ; une élève
A59: =A57+1 -> 25 | B59: =IFERROR(IF(VLOOKUP(A59,fréquence!$R$16:$X$2448,6,FALSE)<=$C$1,VLOOKUP(A59,fréquence!$R$16:$AD$2448,11,FALSE),""),"") -> elle est | G59: =B59 -> elle est
A61: =A59+1 -> 26 | B61: =IFERROR(IF(VLOOKUP(A61,fréquence!$R$16:$X$2448,6,FALSE)<=$C$1,VLOOKUP(A61,fréquence!$R$16:$AD$2448,11,FALSE),""),"") -> elle a | G61: =B61 -> elle a
A63: =A61+1 -> 27 | B63: =IFERROR(IF(VLOOKUP(A63,fréquence!$R$16:$X$2448,6,FALSE)<=$C$1,VLOOKUP(A63,fréquence!$R$16:$AD$2448,11,FALSE),""),"") -> en | G63: =B63 -> en
A65: =A63+1 -> 28 | B65: =IFERROR(IF(VLOOKUP(A65,fréquence!$R$16:$X$2448,6,FALSE)<=$C$1,VLOOKUP(A65,fréquence!$R$16:$AD$2448,11,FALSE),""),"") -> ensuite | G65: =B65 -> ensuite
A67: =A65+1 -> 29 | B67: =IFERROR(IF(VLOOKUP(A67,fréquence!$R$16:$X$2448,6,FALSE)<=$C$1,VLOOKUP(A67,fréquence!$R$16:$AD$2448,11,FALSE),""),"") -> et | G67: =B67 -> et
A69: =A67+1 -> 30 | B69: =IFERROR(IF(VLOOKUP(A69,fréquence!$R$16:$X$2448,6,FALSE)<=$C$1,VLOOKUP(A69,fréquence!$R$16:$AD$2448,11,FALSE),""),"") -> un été | G69: =B69 -> un été
A70: =A69+1 -> 31 | B70: =IFERROR(IF(VLOOKUP(A70,fréquence!$R$16:$X$2448,6,FALSE)<=$C$1,VLOOKUP(A70,fréquence!$R$16:$AD$2448,11,FALSE),""),"") -> être | G70: =B70 -> être
A72: =A70+1 -> 32 | B72: =IFERROR(IF(VLOOKUP(A72,fréquence!$R$16:$X$2448,6,FALSE)<=$C$1,VLOOKUP(A72,fréquence!$R$16:$AD$2448,11,FALSE),""),"") -> une fête | G72: =B72 -> une fête
A74: =A72+1 -> 33 | B74: =IFERROR(IF(VLOOKUP(A74,fréquence!$R$16:$X$2448,6,FALSE)<=$C$1,VLOOKUP(A74,fréquence!$R$16:$AD$2448,11,FALSE),""),"") -> une fille | G74: =B74 -> une fille
A76: =A74+1 -> 34 | B76: =IFERROR(IF(VLOOKUP(A76,fréquence!$R$16:$X$2448,6,FALSE)<=$C$1,VLOOKUP(A76,fréquence!$R$16:$AD$2448,11,FALSE),""),"") -> la France | G76: =B76 -> la France
A78: =A76+1 -> 35 | B78: =IFERROR(IF(VLOOKUP(A78,fréquence!$R$16:$X$2448,6,FALSE)<=$C$1,VLOOKUP(A78,fréquence!$R$16:$AD$2448,11,FALSE),""),"") -> un garçon | G78: =B78 -> un garçon
A80: =A78+1 -> 36 | B80: =IFERROR(IF(VLOOKUP(A80,fréquence!$R$16:$X$2448,6,FALSE)<=$C$1,VLOOKUP(A80,fréquence!$R$16:$AD$2448,11,FALSE),""),"") -> un gâteau | G80: =B80 -> un gâteau
A82: =A80+1 -> 37 | B82: =IFERROR(IF(VLOOKUP(A82,fréquence!$R$16:$X$2448,6,FALSE)<=$C$1,VLOOKUP(A82,fréquence!$R$16:$AD$2448,11,FALSE),""),"") -> il a | G82: =B82 -> il a
A84: =A82+1 -> 38 | B84: =IFERROR(IF(VLOOKUP(A84,fréquence!$R$16:$X$2448,6,FALSE)<=$C$1,VLOOKUP(A84,fréquence!$R$16:$AD$2448,11,FALSE),""),"") -> il est | G84: =B84 -> il est
A86: =A84+1 -> 39 | B86: =IFERROR(IF(VLOOKUP(A86,fréquence!$R$16:$X$2448,6,FALSE)<=$C$1,VLOOKUP(A86,fréquence!$R$16:$AD$2448,11,FALSE),""),"") -> il y a | G86: =B86 -> il y a
A88: =A86+1 -> 40 | B88: =IFERROR(IF(VLOOKUP(A88,fréquence!$R$16:$X$2448,6,FALSE)<=$C$1,VLOOKUP(A88,fréquence!$R$16:$AD$2448,11,FALSE),""),"") -> il y avait | G88: =B88 -> il y avait
A89: =A88+1 -> 41 | B89: =IFERROR(IF(VLOOKUP(A89,fréquence!$R$16:$X$2448,6,FALSE)<=$C$1,VLOOKUP(A89,fréquence!$R$16:$AD$2448,11,FALSE),""),"") -> une image | G89: =B89 -> une image
A91: =A89+1 -> 42 | B91: =IFERROR(IF(VLOOKUP(A91,fréquence!$R$16:$X$2448,6,FALSE)<=$C$1,VLOOKUP(A91,fréquence!$R$16:$AD$2448,11,FALSE),""),"") -> j'ai | G91: =B91 -> j'ai
A93: =A91+1 -> 43 | B93: =IFERROR(IF(VLOOKUP(A93,fréquence!$R$16:$X$2448,6,FALSE)<=$C$1,VLOOKUP(A93,fréquence!$R$16:$AD$2448,11,FALSE),""),"") -> jaune | G93: =B93 -> jaune
A95: =A93+1 -> 44 | B95: =IFERROR(IF(VLOOKUP(A95,fréquence!$R$16:$X$2448,6,FALSE)<=$C$1,VLOOKUP(A95,fréquence!$R$16:$AD$2448,11,FALSE),""),"") -> je suis | G95: =B95 -> je suis
A97: =A95+1 -> 45 | B97: =IFERROR(IF(VLOOKUP(A97,fréquence!$R$16:$X$2448,6,FALSE)<=$C$1,VLOOKUP(A97,fréquence!$R$16:$AD$2448,11,FALSE),""),"") -> je suis allé | G97: =B97 -> je suis allé
A99: =A97+1 -> 46 | B99: =IFERROR(IF(VLOOKUP(A99,fréquence!$R$16:$X$2448,6,FALSE)<=$C$1,VLOOKUP(A99,fréquence!$R$16:$AD$2448,11,FALSE),""),"") -> je suis allée | G99: =B99 -> je suis allée
A101: =A99+1 -> 47 | B101: =IFERROR(IF(VLOOKUP(A101,fréquence!$R$16:$X$2448,6,FALSE)<=$C$1,VLOOKUP(A101,fréquence!$R$16:$AD$2448,11,FALSE),""),"") -> le jeudi | G101: =B101 -> le jeudi
A103: =A101+1 -> 48 | B103: =IFERROR(IF(VLOOKUP(A103,fréquence!$R$16:$X$2448,6,FALSE)<=$C$1,VLOOKUP(A103,fréquence!$R$16:$AD$2448,11,FALSE),""),"") -> un jour | G103: =B103 -> un jour
A105: =A103+1 -> 49 | B105: =IFERROR(IF(VLOOKUP(A105,fréquence!$R$16:$X$2448,6,FALSE)<=$C$1,VLOOKUP(A105,fréquence!$R$16:$AD$2448,11,FALSE),""),"") -> un journal | G105: =B105 -> un journal
A107: =A105+1 -> 50 | B107: =IFERROR(IF(VLOOKUP(A107,fréquence!$R$16:$X$2448,6,FALSE)<=$C$1,VLOOKUP(A107,fréquence!$R$16:$AD$2448,11,FALSE),""),"") -> le lait | G107: =B107 -> le lait
A108: =A107+1 -> 51 | B108: =IFERROR(IF(VLOOKUP(A108,fréquence!$R$16:$X$2448,6,FALSE)<=$C$1,VLOOKUP(A108,fréquence!$R$16:$AD$2448,11,FALSE),""),"") -> un lapin | G108: =B108 -> un lapin
A110: =A108+1 -> 52 | B110: =IFERROR(IF(VLOOKUP(A110,fréquence!$R$16:$X$2448,6,FALSE)<=$C$1,VLOOKUP(A110,fréquence!$R$16:$AD$2448,11,FALSE),""),"") -> une lapine | G110: =B110 -> une lapine
A112: =A110+1 -> 53 | B112: =IFERROR(IF(VLOOKUP(A112,fréquence!$R$16:$X$2448,6,FALSE)<=$C$1,VLOOKUP(A112,fréquence!$R$16:$AD$2448,11,FALSE),""),"") -> les | G112: =B112 -> les
A114: =A112+1 -> 54 | B114: =IFERROR(IF(VLOOKUP(A114,fréquence!$R$16:$X$2448,6,FALSE)<=$C$1,VLOOKUP(A114,fréquence!$R$16:$AD$2448,11,FALSE),""),"") -> un lit | G114: =B114 -> un lit
A116: =A114+1 -> 55 | B116: =IFERROR(IF(VLOOKUP(A116,fréquence!$R$16:$X$2448,6,FALSE)<=$C$1,VLOOKUP(A116,fréquence!$R$16:$AD$2448,11,FALSE),""),"") -> le lundi | G116: =B116 -> le lundi
A118: =A116+1 -> 56 | B118: =IFERROR(IF(VLOOKUP(A118,fréquence!$R$16:$X$2448,6,FALSE)<=$C$1,VLOOKUP(A118,fréquence!$R$16:$AD$2448,11,FALSE),""),"") -> ma | G118: =B118 -> ma
A120: =A118+1 -> 57 | B120: =IFERROR(IF(VLOOKUP(A120,fréquence!$R$16:$X$2448,6,FALSE)<=$C$1,VLOOKUP(A120,fréquence!$R$16:$AD$2448,11,FALSE),""),"") -> mais | G120: =B120 -> mais
A122: =A120+1 -> 58 | B122: =IFERROR(IF(VLOOKUP(A122,fréquence!$R$16:$X$2448,6,FALSE)<=$C$1,VLOOKUP(A122,fréquence!$R$16:$AD$2448,11,FALSE),""),"") -> une maison | G122: =B122 -> une maison
A124: =A122+1 -> 59 | B124: =IFERROR(IF(VLOOKUP(A124,fréquence!$R$16:$X$2448,6,FALSE)<=$C$1,VLOOKUP(A124,fréquence!$R$16:$AD$2448,11,FALSE),""),"") -> malade | G124: =B124 -> malade
A126: =A124+1 -> 60 | B126: =IFERROR(IF(VLOOKUP(A126,fréquence!$R$16:$X$2448,6,FALSE)<=$C$1,VLOOKUP(A126,fréquence!$R$16:$AD$2448,11,FALSE),""),"") -> une maman | G126: =B126 -> une maman
A127: =A126+1 -> 61 | B127: =IFERROR(IF(VLOOKUP(A127,fréquence!$R$16:$X$2448,6,FALSE)<=$C$1,VLOOKUP(A127,fréquence!$R$16:$AD$2448,11,FALSE),""),"") -> le mardi | G127: =B127 -> le mardi
A129: =A127+1 -> 62 | B129: =IFERROR(IF(VLOOKUP(A129,fréquence!$R$16:$X$2448,6,FALSE)<=$C$1,VLOOKUP(A129,fréquence!$R$16:$AD$2448,11,FALSE),""),"") -> un matin | G129: =B129 -> un matin
A131: =A129+1 -> 63 | B131: =IFERROR(IF(VLOOKUP(A131,fréquence!$R$16:$X$2448,6,FALSE)<=$C$1,VLOOKUP(A131,fréquence!$R$16:$AD$2448,11,FALSE),""),"") -> le mercredi | G131: =B131 -> le mercredi
A133: =A131+1 -> 64 | B133: =IFERROR(IF(VLOOKUP(A133,fréquence!$R$16:$X$2448,6,FALSE)<=$C$1,VLOOKUP(A133,fréquence!$R$16:$AD$2448,11,FALSE),""),"") -> une mère | G133: =B133 -> une mère
A135: =A133+1 -> 65 | B135: =IFERROR(IF(VLOOKUP(A135,fréquence!$R$16:$X$2448,6,FALSE)<=$C$1,VLOOKUP(A135,fréquence!$R$16:$AD$2448,11,FALSE),""),"") -> mes | G135: =B135 -> mes
A137: =A135+1 -> 66 | B137: =IFERROR(IF(VLOOKUP(A137,fréquence!$R$16:$X$2448,6,FALSE)<=$C$1,VLOOKUP(A137,fréquence!$R$16:$AD$2448,11,FALSE),""),"") -> le midi | G137: =B137 -> le midi
A139: =A137+1 -> 67 | B139: =IFERROR(IF(VLOOKUP(A139,fréquence!$R$16:$X$2448,6,FALSE)<=$C$1,VLOOKUP(A139,fréquence!$R$16:$AD$2448,11,FALSE),""),"") -> moi | G139: =B139 -> moi
A141: =A139+1 -> 68 | B141: =IFERROR(IF(VLOOKUP(A141,fréquence!$R$16:$X$2448,6,FALSE)<=$C$1,VLOOKUP(A141,fréquence!$R$16:$AD$2448,11,FALSE),""),"") -> un mois | G141: =B141 -> un mois
A143: =A141+1 -> 69 | B143: =IFERROR(IF(VLOOKUP(A143,fréquence!$R$16:$X$2448,6,FALSE)<=$C$1,VLOOKUP(A143,fréquence!$R$16:$AD$2448,11,FALSE),""),"") -> mon | G143: =B143 -> mon
A145: =A143+1 -> 70 | B145: =IFERROR(IF(VLOOKUP(A145,fréquence!$R$16:$X$2448,6,FALSE)<=$C$1,VLOOKUP(A145,fréquence!$R$16:$AD$2448,11,FALSE),""),"") -> le monde | G145: =B145 -> le monde
A146: =A145+1 -> 71 | B146: =IFERROR(IF(VLOOKUP(A146,fréquence!$R$16:$X$2448,6,FALSE)<=$C$1,VLOOKUP(A146,fréquence!$R$16:$AD$2448,11,FALSE),""),"") -> un mouton | G146: =B146 -> un mouton
A148: =A146+1 -> 72 | B148: =IFERROR(IF(VLOOKUP(A148,fréquence!$R$16:$X$2448,6,FALSE)<=$C$1,VLOOKUP(A148,fréquence!$R$16:$AD$2448,11,FALSE),""),"") -> noir ; noire | G148: =B148 -> noir ; noire
A150: =A148+1 -> 73 | B150: =IFERROR(IF(VLOOKUP(A150,fréquence!$R$16:$X$2448,6,FALSE)<=$C$1,VLOOKUP(A150,fréquence!$R$16:$AD$2448,11,FALSE),""),"") -> un os | G150: =B150 -> un os
A152: =A150+1 -> 74 | B152: =IFERROR(IF(VLOOKUP(A152,fréquence!$R$16:$X$2448,6,FALSE)<=$C$1,VLOOKUP(A152,fréquence!$R$16:$AD$2448,11,FALSE),""),"") -> ou | G152: =B152 -> ou
A154: =A152+1 -> 75 | B154: =IFERROR(IF(VLOOKUP(A154,fréquence!$R$16:$X$2448,6,FALSE)<=$C$1,VLOOKUP(A154,fréquence!$R$16:$AD$2448,11,FALSE),""),"") -> un papa | G154: =B154 -> un papa
A156: =A154+1 -> 76 | B156: =IFERROR(IF(VLOOKUP(A156,fréquence!$R$16:$X$2448,6,FALSE)<=$C$1,VLOOKUP(A156,fréquence!$R$16:$AD$2448,11,FALSE),""),"") -> un père | G156: =B156 -> un père
A158: =A156+1 -> 77 | B158: =IFERROR(IF(VLOOKUP(A158,fréquence!$R$16:$X$2448,6,FALSE)<=$C$1,VLOOKUP(A158,fréquence!$R$16:$AD$2448,11,FALSE),""),"") -> petit ; petite | G158: =B158 -> petit ; petite
A160: =A158+1 -> 78 | B160: =IFERROR(IF(VLOOKUP(A160,fréquence!$R$16:$X$2448,6,FALSE)<=$C$1,VLOOKUP(A160,fréquence!$R$16:$AD$2448,11,FALSE),""),"") -> la peur | G160: =B160 -> la peur
A162: =A160+1 -> 79 | B162: =IFERROR(IF(VLOOKUP(A162,fréquence!$R$16:$X$2448,6,FALSE)<=$C$1,VLOOKUP(A162,fréquence!$R$16:$AD$2448,11,FALSE),""),"") -> une poire | G162: =B162 -> une poire
A164: =A162+1 -> 80 | B164: =IFERROR(IF(VLOOKUP(A164,fréquence!$R$16:$X$2448,6,FALSE)<=$C$1,VLOOKUP(A164,fréquence!$R$16:$AD$2448,11,FALSE),""),"") -> une pomme | G164: =B164 -> une pomme
A165: =A164+1 -> 81 | B165: =IFERROR(IF(VLOOKUP(A165,fréquence!$R$16:$X$2448,6,FALSE)<=$C$1,VLOOKUP(A165,fréquence!$R$16:$AD$2448,11,FALSE),""),"") -> une porte | G165: =B165 -> une porte
A167: =A165+1 -> 82 | B167: =IFERROR(IF(VLOOKUP(A167,fréquence!$R$16:$X$2448,6,FALSE)<=$C$1,VLOOKUP(A167,fréquence!$R$16:$AD$2448,11,FALSE),""),"") -> un pou | G167: =B167 -> un pou
A169: =A167+1 -> 83 | B169: =IFERROR(IF(VLOOKUP(A169,fréquence!$R$16:$X$2448,6,FALSE)<=$C$1,VLOOKUP(A169,fréquence!$R$16:$AD$2448,11,FALSE),""),"") -> pour | G169: =B169 -> pour
A171: =A169+1 -> 84 | B171: =IFERROR(IF(VLOOKUP(A171,fréquence!$R$16:$X$2448,6,FALSE)<=$C$1,VLOOKUP(A171,fréquence!$R$16:$AD$2448,11,FALSE),""),"") -> que | G171: =B171 -> que
A173: =A171+1 -> 85 | B173: =IFERROR(IF(VLOOKUP(A173,fréquence!$R$16:$X$2448,6,FALSE)<=$C$1,VLOOKUP(A173,fréquence!$R$16:$AD$2448,11,FALSE),""),"") -> qui | G173: =B173 -> qui
A175: =A173+1 -> 86 | B175: =IFERROR(IF(VLOOKUP(A175,fréquence!$R$16:$X$2448,6,FALSE)<=$C$1,VLOOKUP(A175,fréquence!$R$16:$AD$2448,11,FALSE),""),"") -> une robe | G175: =B175 -> une robe
A177: =A175+1 -> 87 | B177: =IFERROR(IF(VLOOKUP(A177,fréquence!$R$16:$X$2448,6,FALSE)<=$C$1,VLOOKUP(A177,fréquence!$R$16:$AD$2448,11,FALSE),""),"") -> une rose | G177: =B177 -> une rose
A179: =A177+1 -> 88 | B179: =IFERROR(IF(VLOOKUP(A179,fréquence!$R$16:$X$2448,6,FALSE)<=$C$1,VLOOKUP(A179,fréquence!$R$16:$AD$2448,11,FALSE),""),"") -> une route | G179: =B179 -> une route
A181: =A179+1 -> 89 | B181: =IFERROR(IF(VLOOKUP(A181,fréquence!$R$16:$X$2448,6,FALSE)<=$C$1,VLOOKUP(A181,fréquence!$R$16:$AD$2448,11,FALSE),""),"") -> une rue | G181: =B181 -> une rue
A183: =A181+1 -> 90 | B183: =IFERROR(IF(VLOOKUP(A183,fréquence!$R$16:$X$2448,6,FALSE)<=$C$1,VLOOKUP(A183,fréquence!$R$16:$AD$2448,11,FALSE),""),"") -> sa | G183: =B183 -> sa
A184: =A183+1 -> 91 | B184: =IFERROR(IF(VLOOKUP(A184,fréquence!$R$16:$X$2448,6,FALSE)<=$C$1,VLOOKUP(A184,fréquence!$R$16:$AD$2448,11,FALSE),""),"") -> un sac | G184: =B184 -> un sac
A186: =A184+1 -> 92 | B186: =IFERROR(IF(VLOOKUP(A186,fréquence!$R$16:$X$2448,6,FALSE)<=$C$1,VLOOKUP(A186,fréquence!$R$16:$AD$2448,11,FALSE),""),"") -> sage | G186: =B186 -> sage
A188: =A186+1 -> 93 | B188: =IFERROR(IF(VLOOKUP(A188,fréquence!$R$16:$X$2448,6,FALSE)<=$C$1,VLOOKUP(A188,fréquence!$R$16:$AD$2448,11,FALSE),""),"") -> une salade | G188: =B188 -> une salade
A190: =A188+1 -> 94 | B190: =IFERROR(IF(VLOOKUP(A190,fréquence!$R$16:$X$2448,6,FALSE)<=$C$1,VLOOKUP(A190,fréquence!$R$16:$AD$2448,11,FALSE),""),"") -> le samedi | G190: =B190 -> le samedi
A192: =A190+1 -> 95 | B192: =IFERROR(IF(VLOOKUP(A192,fréquence!$R$16:$X$2448,6,FALSE)<=$C$1,VLOOKUP(A192,fréquence!$R$16:$AD$2448,11,FALSE),""),"") -> une semaine | G192: =B192 -> une semaine
A194: =A192+1 -> 96 | B194: =IFERROR(IF(VLOOKUP(A194,fréquence!$R$16:$X$2448,6,FALSE)<=$C$1,VLOOKUP(A194,fréquence!$R$16:$AD$2448,11,FALSE),""),"") -> ses | G194: =B194 -> ses
A196: =A194+1 -> 97 | B196: =IFERROR(IF(VLOOKUP(A196,fréquence!$R$16:$X$2448,6,FALSE)<=$C$1,VLOOKUP(A196,fréquence!$R$16:$AD$2448,11,FALSE),""),"") -> le soir | G196: =B196 -> le soir
A198: =A196+1 -> 98 | B198: =IFERROR(IF(VLOOKUP(A198,fréquence!$R$16:$X$2448,6,FALSE)<=$C$1,VLOOKUP(A198,fréquence!$R$16:$AD$2448,11,FALSE),""),"") -> son | G198: =B198 -> son
A200: =A198+1 -> 99 | B200: =IFERROR(IF(VLOOKUP(A200,fréquence!$R$16:$X$2448,6,FALSE)<=$C$1,VLOOKUP(A200,fréquence!$R$16:$AD$2448,11,FALSE),""),"") -> la soupe | G200: =B200 -> la soupe
A202: =A200+1 -> 100 | B202: =IFERROR(IF(VLOOKUP(A202,fréquence!$R$16:$X$2448,6,FALSE)<=$C$1,VLOOKUP(A202,fréquence!$R$16:$AD$2448,11,FALSE),""),"") -> le sucre | G202: =B202 -> le sucre
A203: =A202+1 -> 101 | B203: =IFERROR(IF(VLOOKUP(A203,fréquence!$R$16:$X$2448,6,FALSE)<=$C$1,VLOOKUP(A203,fréquence!$R$16:$AD$2448,11,FALSE),""),"") -> sur | G203: =B203 -> sur
A205: =A203+1 -> 102 | B205: =IFERROR(IF(VLOOKUP(A205,fréquence!$R$16:$X$2448,6,FALSE)<=$C$1,VLOOKUP(A205,fréquence!$R$16:$AD$2448,11,FALSE),""),"") -> ta | G205: =B205 -> ta
A207: =A205+1 -> 103 | B207: =IFERROR(IF(VLOOKUP(A207,fréquence!$R$16:$X$2448,6,FALSE)<=$C$1,VLOOKUP(A207,fréquence!$R$16:$AD$2448,11,FALSE),""),"") -> une tartine | G207: =B207 -> une tartine
A209: =A207+1 -> 104 | B209: =IFERROR(IF(VLOOKUP(A209,fréquence!$R$16:$X$2448,6,FALSE)<=$C$1,VLOOKUP(A209,fréquence!$R$16:$AD$2448,11,FALSE),""),"") -> tes | G209: =B209 -> tes
A211: =A209+1 -> 105 | B211: =IFERROR(IF(VLOOKUP(A211,fréquence!$R$16:$X$2448,6,FALSE)<=$C$1,VLOOKUP(A211,fréquence!$R$16:$AD$2448,11,FALSE),""),"") -> une tête | G211: =B211 -> une tête
A213: =A211+1 -> 106 | B213: =IFERROR(IF(VLOOKUP(A213,fréquence!$R$16:$X$2448,6,FALSE)<=$C$1,VLOOKUP(A213,fréquence!$R$16:$AD$2448,11,FALSE),""),"") -> ton | G213: =B213 -> ton
A215: =A213+1 -> 107 | B215: =IFERROR(IF(VLOOKUP(A215,fréquence!$R$16:$X$2448,6,FALSE)<=$C$1,VLOOKUP(A215,fréquence!$R$16:$AD$2448,11,FALSE),""),"") -> une vache | G215: =B215 -> une vache
A217: =A215+1 -> 108 | B217: =IFERROR(IF(VLOOKUP(A217,fréquence!$R$16:$X$2448,6,FALSE)<=$C$1,VLOOKUP(A217,fréquence!$R$16:$AD$2448,11,FALSE),""),"") -> le vendredi | G217: =B217 -> le vendredi
A219: =A217+1 -> 109 | B219: =IFERROR(IF(VLOOKUP(A219,fréquence!$R$16:$X$2448,6,FALSE)<=$C$1,VLOOKUP(A219,fréquence!$R$16:$AD$2448,11,FALSE),""),"") -> une ville | G219: =B219 -> une ville
A221: =A219+1 -> 110 | B221: =IFERROR(IF(VLOOKUP(A221,fréquence!$R$16:$X$2448,6,FALSE)<=$C$1,VLOOKUP(A221,fréquence!$R$16:$AD$2448,11,FALSE),""),"") -> une voiture | G221: =B221 -> une voiture
A222: =A221+1 -> 111 | B222: =IFERROR(IF(VLOOKUP(A222,fréquence!$R$16:$X$2448,6,FALSE)<=$C$1,VLOOKUP(A222,fréquence!$R$16:$AD$2448,11,FALSE),""),"") ->  | G222: =B222 -> 
A224: =A222+1 -> 112 | B224: =IFERROR(IF(VLOOKUP(A224,fréquence!$R$16:$X$2448,6,FALSE)<=$C$1,VLOOKUP(A224,fréquence!$R$16:$AD$2448,11,FALSE),""),"") ->  | G224: =B224 -> 
A226: =A224+1 -> 113 | B226: =IFERROR(IF(VLOOKUP(A226,fréquence!$R$16:$X$2448,6,FALSE)<=$C$1,VLOOKUP(A226,fréquence!$R$16:$AD$2448,11,FALSE),""),"") ->  | G226: =B226 -> 
A228: =A226+1 -> 114 | B228: =IFERROR(IF(VLOOKUP(A228,fréquence!$R$16:$X$2448,6,FALSE)<=$C$1,VLOOKUP(A228,fréquence!$R$16:$AD$2448,11,FALSE),""),"") ->  | G228: =B228 -> 
A230: =A228+1 -> 115 | B230: =IFERROR(IF(VLOOKUP(A230,fréquence!$R$16:$X$2448,6,FALSE)<=$C$1,VLOOKUP(A230,fréquence!$R$16:$AD$2448,11,FALSE),""),"") ->  | G230: =B230 -> 
A232: =A230+1 -> 116 | B232: =IFERROR(IF(VLOOKUP(A232,fréquence!$R$16:$X$2448,6,FALSE)<=$C$1,VLOOKUP(A232,fréquence!$R$16:$AD$2448,11,FALSE),""),"") ->  | G232: =B232 -> 
A234: =A232+1 -> 117 | B234: =IFERROR(IF(VLOOKUP(A234,fréquence!$R$16:$X$2448,6,FALSE)<=$C$1,VLOOKUP(A234,fréquence!$R$16:$AD$2448,11,FALSE),""),"") ->  | G234: =B234 -> 
A236: =A234+1 -> 118 | B236: =IFERROR(IF(VLOOKUP(A236,fréquence!$R$16:$X$2448,6,FALSE)<=$C$1,VLOOKUP(A236,fréquence!$R$16:$AD$2448,11,FALSE),""),"") ->  | G236: =B236 -> 
A238: =A236+1 -> 119 | B238: =IFERROR(IF(VLOOKUP(A238,fréquence!$R$16:$X$2448,6,FALSE)<=$C$1,VLOOKUP(A238,fréquence!$R$16:$AD$2448,11,FALSE),""),"") ->  | G238: =B238 -> 
A240: =A238+1 -> 120 | B240: =IFERROR(IF(VLOOKUP(A240,fréquence!$R$16:$X$2448,6,FALSE)<=$C$1,VLOOKUP(A240,fréquence!$R$16:$AD$2448,11,FALSE),""),"") ->  | G240: =B240 -> 
A241: =A240+1 -> 121 | B241: =IFERROR(IF(VLOOKUP(A241,fréquence!$R$16:$X$2448,6,FALSE)<=$C$1,VLOOKUP(A241,fréquence!$R$16:$AD$2448,11,FALSE),""),"") ->  | G241: =B241 -> 
A243: =A241+1 -> 122 | B243: =IFERROR(IF(VLOOKUP(A243,fréquence!$R$16:$X$2448,6,FALSE)<=$C$1,VLOOKUP(A243,fréquence!$R$16:$AD$2448,11,FALSE),""),"") ->  | G243: =B243 -> 
A245: =A243+1 -> 123 | B245: =IFERROR(IF(VLOOKUP(A245,fréquence!$R$16:$X$2448,6,FALSE)<=$C$1,VLOOKUP(A245,fréquence!$R$16:$AD$2448,11,FALSE),""),"") ->  | G245: =B245 -> 
A247: =A245+1 -> 124 | B247: =IFERROR(IF(VLOOKUP(A247,fréquence!$R$16:$X$2448,6,FALSE)<=$C$1,VLOOKUP(A247,fréquence!$R$16:$AD$2448,11,FALSE),""),"") ->  | G247: =B247 -> 
A249: =A247+1 -> 125 | B249: =IFERROR(IF(VLOOKUP(A249,fréquence!$R$16:$X$2448,6,FALSE)<=$C$1,VLOOKUP(A249,fréquence!$R$16:$AD$2448,11,FALSE),""),"") ->  | G249: =B249 -> 
A251: =A249+1 -> 126 | B251: =IFERROR(IF(VLOOKUP(A251,fréquence!$R$16:$X$2448,6,FALSE)<=$C$1,VLOOKUP(A251,fréquence!$R$16:$AD$2448,11,FALSE),""),"") ->  | G251: =B251 -> 
A253: =A251+1 -> 127 | B253: =IFERROR(IF(VLOOKUP(A253,fréquence!$R$16:$X$2448,6,FALSE)<=$C$1,VLOOKUP(A253,fréquence!$R$16:$AD$2448,11,FALSE),""),"") ->  | G253: =B253 -> 
A255: =A253+1 -> 128 | B255: =IFERROR(IF(VLOOKUP(A255,fréquence!$R$16:$X$2448,6,FALSE)<=$C$1,VLOOKUP(A255,fréquence!$R$16:$AD$2448,11,FALSE),""),"") ->  | G255: =B255 -> 
A257: =A255+1 -> 129 | B257: =IFERROR(IF(VLOOKUP(A257,fréquence!$R$16:$X$2448,6,FALSE)<=$C$1,VLOOKUP(A257,fréquence!$R$16:$AD$2448,11,FALSE),""),"") ->  | G257: =B257 -> 
A259: =A257+1 -> 130 | B259: =IFERROR(IF(VLOOKUP(A259,fréquence!$R$16:$X$2448,6,FALSE)<=$C$1,VLOOKUP(A259,fréquence!$R$16:$AD$2448,11,FALSE),""),"") ->  | G259: =B259 -> 
A260: =A259+1 -> 131 | B260: =IFERROR(IF(VLOOKUP(A260,fréquence!$R$16:$X$2448,6,FALSE)<=$C$1,VLOOKUP(A260,fréquence!$R$16:$AD$2448,11,FALSE),""),"") ->  | G260: =B260 -> 
A262: =A260+1 -> 132 | B262: =IFERROR(IF(VLOOKUP(A262,fréquence!$R$16:$X$2448,6,FALSE)<=$C$1,VLOOKUP(A262,fréquence!$R$16:$AD$2448,11,FALSE),""),"") ->  | G262: =B262 -> 
A264: =A262+1 -> 133 | B264: =IFERROR(IF(VLOOKUP(A264,fréquence!$R$16:$X$2448,6,FALSE)<=$C$1,VLOOKUP(A264,fréquence!$R$16:$AD$2448,11,FALSE),""),"") ->  | G264: =B264 -> 
A266: =A264+1 -> 134 | B266: =IFERROR(IF(VLOOKUP(A266,fréquence!$R$16:$X$2448,6,FALSE)<=$C$1,VLOOKUP(A266,fréquence!$R$16:$AD$2448,11,FALSE),""),"") ->  | G266: =B266 -> 
A268: =A266+1 -> 135 | B268: =IFERROR(IF(VLOOKUP(A268,fréquence!$R$16:$X$2448,6,FALSE)<=$C$1,VLOOKUP(A268,fréquence!$R$16:$AD$2448,11,FALSE),""),"") ->  | G268: =B268 -> 
A270: =A268+1 -> 136 | B270: =IFERROR(IF(VLOOKUP(A270,fréquence!$R$16:$X$2448,6,FALSE)<=$C$1,VLOOKUP(A270,fréquence!$R$16:$AD$2448,11,FALSE),""),"") ->  | G270: =B270 -> 
A272: =A270+1 -> 137 | B272: =IFERROR(IF(VLOOKUP(A272,fréquence!$R$16:$X$2448,6,FALSE)<=$C$1,VLOOKUP(A272,fréquence!$R$16:$AD$2448,11,FALSE),""),"") ->  | G272: =B272 -> 
A274: =A272+1 -> 138 | B274: =IFERROR(IF(VLOOKUP(A274,fréquence!$R$16:$X$2448,6,FALSE)<=$C$1,VLOOKUP(A274,fréquence!$R$16:$AD$2448,11,FALSE),""),"") ->  | G274: =B274 -> 
A276: =A274+1 -> 139 | B276: =IFERROR(IF(VLOOKUP(A276,fréquence!$R$16:$X$2448,6,FALSE)<=$C$1,VLOOKUP(A276,fréquence!$R$16:$AD$2448,11,FALSE),""),"") ->  | G276: =B276 -> 
A278: =A276+1 -> 140 | B278: =IFERROR(IF(VLOOKUP(A278,fréquence!$R$16:$X$2448,6,FALSE)<=$C$1,VLOOKUP(A278,fréquence!$R$16:$AD$2448,11,FALSE),""),"") ->  | G278: =B278 -> 
A279: =A278+1 -> 141 | B279: =IFERROR(IF(VLOOKUP(A279,fréquence!$R$16:$X$2448,6,FALSE)<=$C$1,VLOOKUP(A279,fréquence!$R$16:$AD$2448,11,FALSE),""),"") ->  | G279: =B279 -> 
A281: =A279+1 -> 142 | B281: =IFERROR(IF(VLOOKUP(A281,fréquence!$R$16:$X$2448,6,FALSE)<=$C$1,VLOOKUP(A281,fréquence!$R$16:$AD$2448,11,FALSE),""),"") ->  | G281: =B281 -> 
A283: =A281+1 -> 143 | B283: =IFERROR(IF(VLOOKUP(A283,fréquence!$R$16:$X$2448,6,FALSE)<=$C$1,VLOOKUP(A283,fréquence!$R$16:$AD$2448,11,FALSE),""),"") ->  | G283: =B283 -> 
A285: =A283+1 -> 144 | B285: =IFERROR(IF(VLOOKUP(A285,fréquence!$R$16:$X$2448,6,FALSE)<=$C$1,VLOOKUP(A285,fréquence!$R$16:$AD$2448,11,FALSE),""),"") ->  | G285: =B285 -> 
A287: =A285+1 -> 145 | B287: =IFERROR(IF(VLOOKUP(A287,fréquence!$R$16:$X$2448,6,FALSE)<=$C$1,VLOOKUP(A287,fréquence!$R$16:$AD$2448,11,FALSE),""),"") ->  | G287: =B287 -> 
A289: =A287+1 -> 146 | B289: =IFERROR(IF(VLOOKUP(A289,fréquence!$R$16:$X$2448,6,FALSE)<=$C$1,VLOOKUP(A289,fréquence!$R$16:$AD$2448,11,FALSE),""),"") ->  | G289: =B289 -> 
A291: =A289+1 -> 147 | B291: =IFERROR(IF(VLOOKUP(A291,fréquence!$R$16:$X$2448,6,FALSE)<=$C$1,VLOOKUP(A291,fréquence!$R$16:$AD$2448,11,FALSE),""),"") ->  | G291: =B291 -> 
A293: =A291+1 -> 148 | B293: =IFERROR(IF(VLOOKUP(A293,fréquence!$R$16:$X$2448,6,FALSE)<=$C$1,VLOOKUP(A293,fréquence!$R$16:$AD$2448,11,FALSE),""),"") ->  | G293: =B293 -> 
A295: =A293+1 -> 149 | B295: =IFERROR(IF(VLOOKUP(A295,fréquence!$R$16:$X$2448,6,FALSE)<=$C$1,VLOOKUP(A295,fréquence!$R$16:$AD$2448,11,FALSE),""),"") ->  | G295: =B295 -> 
A297: =A295+1 -> 150 | B297: =IFERROR(IF(VLOOKUP(A297,fréquence!$R$16:$X$2448,6,FALSE)<=$C$1,VLOOKUP(A297,fréquence!$R$16:$AD$2448,11,FALSE),""),"") ->  | G297: =B297 -> 
A298: =A297+1 -> 151 | B298: =IFERROR(IF(VLOOKUP(A298,fréquence!$R$16:$X$2448,6,FALSE)<=$C$1,VLOOKUP(A298,fréquence!$R$16:$AD$2448,11,FALSE),""),"") ->  | G298: =B298 -> 
A300: =A298+1 -> 152 | B300: =IFERROR(IF(VLOOKUP(A300,fréquence!$R$16:$X$2448,6,FALSE)<=$C$1,VLOOKUP(A300,fréquence!$R$16:$AD$2448,11,FALSE),""),"") ->  | G300: =B300 -> 
A302: =A300+1 -> 153 | B302: =IFERROR(IF(VLOOKUP(A302,fréquence!$R$16:$X$2448,6,FALSE)<=$C$1,VLOOKUP(A302,fréquence!$R$16:$AD$2448,11,FALSE),""),"") ->  | G302: =B302 -> 
A304: =A302+1 -> 154 | B304: =IFERROR(IF(VLOOKUP(A304,fréquence!$R$16:$X$2448,6,FALSE)<=$C$1,VLOOKUP(A304,fréquence!$R$16:$AD$2448,11,FALSE),""),"") ->  | G304: =B304 -> 
A306: =A304+1 -> 155 | B306: =IFERROR(IF(VLOOKUP(A306,fréquence!$R$16:$X$2448,6,FALSE)<=$C$1,VLOOKUP(A306,fréquence!$R$16:$AD$2448,11,FALSE),""),"") ->  | G306: =B306 -> 
A308: =A306+1 -> 156 | B308: =IFERROR(IF(VLOOKUP(A308,fréquence!$R$16:$X$2448,6,FALSE)<=$C$1,VLOOKUP(A308,fréquence!$R$16:$AD$2448,11,FALSE),""),"") ->  | G308: =B308 -> 
A310: =A308+1 -> 157 | B310: =IFERROR(IF(VLOOKUP(A310,fréquence!$R$16:$X$2448,6,FALSE)<=$C$1,VLOOKUP(A310,fréquence!$R$16:$AD$2448,11,FALSE),""),"") ->  | G310: =B310 -> 
A312: =A310+1 -> 158 | B312: =IFERROR(IF(VLOOKUP(A312,fréquence!$R$16:$X$2448,6,FALSE)<=$C$1,VLOOKUP(A312,fréquence!$R$16:$AD$2448,11,FALSE),""),"") ->  | G312: =B312 -> 
A314: =A312+1 -> 159 | B314: =IFERROR(IF(VLOOKUP(A314,fréquence!$R$16:$X$2448,6,FALSE)<=$C$1,VLOOKUP(A314,fréquence!$R$16:$AD$2448,11,FALSE),""),"") ->  | G314: =B314 -> 
A316: =A314+1 -> 160 | B316: =IFERROR(IF(VLOOKUP(A316,fréquence!$R$16:$X$2448,6,FALSE)<=$C$1,VLOOKUP(A316,fréquence!$R$16:$AD$2448,11,FALSE),""),"") ->  | G316: =B316 -> 
A317: =A316+1 -> 161 | B317: =IFERROR(IF(VLOOKUP(A317,fréquence!$R$16:$X$2448,6,FALSE)<=$C$1,VLOOKUP(A317,fréquence!$R$16:$AD$2448,11,FALSE),""),"") ->  | G317: =B317 -> 
A319: =A317+1 -> 162 | B319: =IFERROR(IF(VLOOKUP(A319,fréquence!$R$16:$X$2448,6,FALSE)<=$C$1,VLOOKUP(A319,fréquence!$R$16:$AD$2448,11,FALSE),""),"") ->  | G319: =B319 -> 
A321: =A319+1 -> 163 | B321: =IFERROR(IF(VLOOKUP(A321,fréquence!$R$16:$X$2448,6,FALSE)<=$C$1,VLOOKUP(A321,fréquence!$R$16:$AD$2448,11,FALSE),""),"") ->  | G321: =B321 -> 
A323: =A321+1 -> 164 | B323: =IFERROR(IF(VLOOKUP(A323,fréquence!$R$16:$X$2448,6,FALSE)<=$C$1,VLOOKUP(A323,fréquence!$R$16:$AD$2448,11,FALSE),""),"") ->  | G323: =B323 -> 
A325: =A323+1 -> 165 | B325: =IFERROR(IF(VLOOKUP(A325,fréquence!$R$16:$X$2448,6,FALSE)<=$C$1,VLOOKUP(A325,fréquence!$R$16:$AD$2448,11,FALSE),""),"") ->  | G325: =B325 -> 
A327: =A325+1 -> 166 | B327: =IFERROR(IF(VLOOKUP(A327,fréquence!$R$16:$X$2448,6,FALSE)<=$C$1,VLOOKUP(A327,fréquence!$R$16:$AD$2448,11,FALSE),""),"") ->  | G327: =B327 -> 
A329: =A327+1 -> 167 | B329: =IFERROR(IF(VLOOKUP(A329,fréquence!$R$16:$X$2448,6,FALSE)<=$C$1,VLOOKUP(A329,fréquence!$R$16:$AD$2448,11,FALSE),""),"") ->  | G329: =B329 -> 
A331: =A329+1 -> 168 | B331: =IFERROR(IF(VLOOKUP(A331,fréquence!$R$16:$X$2448,6,FALSE)<=$C$1,VLOOKUP(A331,fréquence!$R$16:$AD$2448,11,FALSE),""),"") ->  | G331: =B331 -> 
A333: =A331+1 -> 169 | B333: =IFERROR(IF(VLOOKUP(A333,fréquence!$R$16:$X$2448,6,FALSE)<=$C$1,VLOOKUP(A333,fréquence!$R$16:$AD$2448,11,FALSE),""),"") ->  | G333: =B333 -> 
A335: =A333+1 -> 170 | B335: =IFERROR(IF(VLOOKUP(A335,fréquence!$R$16:$X$2448,6,FALSE)<=$C$1,VLOOKUP(A335,fréquence!$R$16:$AD$2448,11,FALSE),""),"") ->  | G335: =B335 -> 
